Workbook

Sheet Equity Raising Costs
F2: Equity Raising Costs Cash Flow Analysis
F4: $Nominal
F5: RAB and capex | G5: =Input!G40 -> 2013 | H5: =Input!H40 -> 2014 | I5: =Input!I40 -> 2015 | J5: =Input!J40 -> 2016 | K5: =Input!K40 -> 2017 | L5: Total
F6: Opening RAB | G6: =Assets!F474 -> 1016.514595 | H6: =Assets!G474 -> 1052.081814 | I6: =Assets!H474 -> 1065.877758 | J6: =Assets!I474 -> 1079.578291 | K6: =Assets!J474 -> 1094.154004 | L6: =SUM(G6:K6) -> 5308.206462
F7: Capex | G7: =Assets!G41 -> 50.42458059 | H7: =Assets!H41 -> 34.45550145 | I7: =Assets!I41 -> 37.21978225 | J7: =Assets!J41 -> 40.72801237 | K7: =Assets!K41 -> 31.91348264 | L7: =SUM(G7:K7) -> 194.7413593
F8: Capex rate | G8: =G7/G6 -> 0.04960536801 | H8: 0.03274983084 | I8: 0.0349193723 | J8: 0.03772585344 | K8: 0.02916726761 | L8: 0.03668684718
F10: Dividend assessment | G10: =G5 -> 2013 | H10: =H5 -> 2014 | I10: =I5 -> 2015 | J10: =J5 -> 2016 | K10: =K5 -> 2017 | L10: Total
F11: Tax payable | G11: =Analysis!G24 -> 6.721717859 | H11: =Analysis!H24 -> 6.091421888 | I11: =Analysis!I24 -> 6.587614138 | J11: =Analysis!J24 -> 7.958799556 | K11: =Analysis!K24 -> 9.561981536 | L11: =SUM(G11:K11) -> 36.92153498
F12: Dividends | G12: =(G11/$G$54)*(1-$G$54)*$G$49 -> 10.97880584 | H12: =(H11/$G$54)*(1-$G$54)*$G$49 -> 9.949322418 | I12: =(I11/$G$55)*(1-$G$55)*$G$49 -> 10.75976976 | J12: =(J11/$G$56)*(1-$G$56)*$G$49 -> 12.99937261 | K12: =(K11/$G$57)*(1-$G$57)*$G$49 -> 15.61790318 | L12: =SUM(G12:K12) -> 60.3051738
F13: Dividend reinvestment | G13: =G12*$G$52 -> 3.293641751 | H13: =H12*$G$52 -> 2.984796725 | I13: =I12*$G$52 -> 3.227930928 | J13: =J12*$G$52 -> 3.899811783 | K13: =K12*$G$52 -> 4.685370953 | L13: =SUM(G13:K13) -> 18.09155214
F15: Benchmark cash flows | G15: =G5 -> 2013 | H15: =H5 -> 2014 | I15: =I5 -> 2015 | J15: =J5 -> 2016 | K15: =K5 -> 2017 | L15: Total
F16: Revenue (smoothed) | G16: ='X factor'!E25 -> 163.6501313 | H16: ='X factor'!F25 -> 149.0565447 | I16: ='X factor'!G25 -> 152.5232991 | J16: ='X factor'!H25 -> 156.438831 | K16: ='X factor'!I25 -> 160.2320422 | L16: =SUM(G16:K16) -> 781.9008483
F17: Opex | G17: =Analysis!G114 -> 53.75769957 | H17: =Analysis!H114 -> 55.76279626 | I17: =Analysis!I114 -> 57.87410557 | J17: =Analysis!J114 -> 61.02229076 | K17: =Analysis!K114 -> 63.03048106 | L17: 291.4473732
F18: Interest payment | G18: =Analysis!G59 -> 41.10785023 | H18: =Analysis!H59 -> 42.54618857 | I18: =Analysis!I59 -> 43.10409653 | J18: =Analysis!J59 -> 43.65814607 | K18: =Analysis!K59 -> 44.24758792 | L18: 214.6638693
F19: Tax payable | G19: =Analysis!G24 -> 6.721717859 | H19: =Analysis!H24 -> 6.091421888 | I19: =Analysis!I24 -> 6.587614138 | J19: =Analysis!J24 -> 7.958799556 | K19: =Analysis!K24 -> 9.561981536 | L19: 36.92153498
F20: Internal cash flow | G20: =G16-G17-G18-G19 -> 62.06286361 | H20: =H16-H17-H18-H19 -> 44.65613796 | I20: =I16-I17-I18-I19 -> 44.95748281 | J20: =J16-J17-J18-J19 -> 43.79959464 | K20: =K16-K17-K18-K19 -> 43.39199173 | L20: 238.8680708
F21: Dividends | G21: =G12 -> 10.97880584 | H21: 9.949322418 | I21: 10.75976976 | J21: 12.99937261 | K21: 15.61790318 | L21: 60.3051738
F22: Retained cash flow (Excl. Dividend reivestment) | G22: =G20-G21 -> 51.08405778 | H22: =H20-H21 -> 34.70681554 | I22: 34.19771306 | J22: 30.80022203 | K22: 27.77408856 | L22: 178.562897
F24: Benchmark capex funding ($m nominal) | G24: =G5 -> 2013 | H24: =H5 -> 2014 | I24: =I5 -> 2015 | J24: =J5 -> 2016 | K24: =K5 -> 2017 | L24: Total
F25: Capex funding requirement | G25: =G7/(1+vanilla)^0.5 -> 48.7117854 | H25: =H7/(1+vanilla)^0.5 -> 33.2851354 | I25: =I7/(1+vanilla)^0.5 -> 35.9555206 | J25: =J7/(1+vanilla)^0.5 -> 39.34458503 | K25: =K7/(1+vanilla)^0.5 -> 30.82946253 | L25: =SUM(G25:K25) -> 188.126489
F26: Debt component | G26: =-Analysis!G60 -> 21.34033137 | H26: =-Analysis!H60 -> 8.277566259 | I26: =-Analysis!I60 -> 8.220319507 | J26: =-Analysis!J60 -> 8.745428059 | K26: =-Analysis!K60 -> 1.688017939 | L26: =SUM(G26:K26) -> 48.27166313
F27: Equity component | G27: =G25-G26 -> 27.37145403 | H27: =H25-H26 -> 25.00756914 | I27: =I25-I26 -> 27.73520109 | J27: =J25-J26 -> 30.59915697 | K27: =K25-K26 -> 29.14144459 | L27: =SUM(G27:K27) -> 139.8548258
F28: Retained cash flow (Excl. Dividend reivestment) | G28: =G22 -> 51.08405778 | H28: =H22 -> 34.70681554 | I28: =I22 -> 34.19771306 | J28: =J22 -> 30.80022203 | K28: =K22 -> 27.77408856 | L28: =SUM(G28:K28) -> 178.562897
F29: Equity requirement (SEO) | G29: =G27-G28 -> -23.71260374 | H29: =H27-H28 -> -9.699246394 | I29: =I27-I28 -> -6.462511964 | J29: =J27-J28 -> -0.2010650574 | K29: =K27-K28 -> 1.367356035 | L29: =SUM(G29:K29) -> -38.70807112
F31: Equity raising costs ($m Real 2012) | G31: =G5 -> 2013 | H31: 2014 | I31: 2015 | J31: 2016 | K31: 2017 | L31: Total
F32: Equity component | G32: =G27/Analysis!G8 -> 26.70385759 | H32: =H27/Analysis!H8 -> 23.80256433 | I32: =I27/Analysis!I8 -> 25.7548914 | J32: =J27/Analysis!J8 -> 27.72132599 | K32: =K27/Analysis!K8 -> 25.75679075 | L32: =SUM(G32:K32) -> 129.7394301
F33: Retained Cash Flows (Excl. Dividen reinvestment) | G33: =G28/Analysis!G8 -> 49.83810515 | H33: =H28/Analysis!H8 -> 33.03444668 | I33: =I28/Analysis!I8 -> 31.7559762 | J33: =J28/Analysis!J8 -> 27.90348101 | K33: =K28/Analysis!K8 -> 24.54824726 | L33: =SUM(G33:K33) -> 167.0802563
F34: Equity requirement | G34: =G32-G33 -> -23.13424755 | H34: =H32-H33 -> -9.23188235 | I34: -6.001084803 | J34: -0.1821550184 | K34: 1.208543494 | L34: =SUM(G34:K34) -> -37.34082623
F36: Dividend reinvestment | G36: =G13/Analysis!G8 -> 3.213309025 | H36: =H13/Analysis!H8 -> 2.840972493 | I36: =I13/Analysis!I8 -> 2.997454758 | J36: =J13/Analysis!J8 -> 3.533036999 | K36: =K13/Analysis!K8 -> 4.141185206 | L36: =SUM(G36:K36) -> 16.72595848
F38: ($m Real 2012)
F39: Dividend Reinvestment Plan Requirement | L39: =IF(L34>0,MIN(L34,L36),0) -> 0
F40: External Equity (SEO) Requirement | L40: =IF((L34-L36)>0,(L34-L36),0) -> 0
F41: Total Equity Requirement | L41: =L39+L40 -> 0
F43: Dividend Reinvestment Plan Cost | L43: =L39*G51 -> 0
F44: External Equity Raising (SEO) Cost | L44: =L39*G50 -> 0
F45: Total Equity Raising Cost | L45: =L43+L44 -> 0
F48: Assumptions
F49: Dividend/imputation payout ratio | G49: 0.7
F50: Benchmark SEO raising cost | G50: 0.03
F51: Benchmark DRP cost | G51: 0.01
F52: Benchmark DRP takeup | G52: 0.3
F53: Corporate tax rates
F54: 2013 | G54: =WACC!F14 -> 0.3
F55: 2014 | G55: =G54 -> 0.3
F56: 2015 | G56: =G55 -> 0.3
F57: 2016+ | G57: =G56 -> 0.3
F58: Inflation forecast | G58: =WACC!F9 -> 0.025
F60: Input linked to PTRM

Sheet DD tables
B2: Table X: AER draft decision on Multinet's capital base for the next access arrangement period ($million, nominal)
C3: 2013 | D3: 2014 | E3: 2015 | F3: 2016 | G3: 2017 | H3: Total
B4: Opening capital base | C4: =Assets!F474 -> 1016.514595 | D4: =Assets!G474 -> 1052.081814 | E4: =Assets!H474 -> 1065.877758 | F4: =Assets!I474 -> 1079.578291 | G4: =Assets!J474 -> 1094.154004 | H4: =SUM(C4:G4) -> 5308.206462
B5: Capital expenditure | C5: =Assets!G41 -> 50.42458059 | D5: =Assets!H41 -> 34.45550145 | E5: =Assets!I41 -> 37.21978225 | F5: =Assets!J41 -> 40.72801237 | G5: =Assets!K41 -> 31.91348264 | H5: =SUM(C5:G5) -> 194.7413593
B6: CPI indexation on opening capital base | C6: =Assets!G471 -> 25.41286488 | D6: =Assets!H471 -> 26.30204536 | E6: =Assets!I471 -> 26.64694395 | F6: =Assets!J471 -> 26.98945726 | G6: =Assets!K471 -> 27.3538501 | H6: 132.7051615
B7: Straight-line depreciation | C7: =-Assets!G472 -> -40.27022652 | D7: =-Assets!H472 -> -46.96160304 | E7: =-Assets!I472 -> -50.16619369 | F7: =-Assets!J472 -> -53.1417562 | G7: =-Assets!K472 -> -56.45396951 | H7: -246.993749
B8: Closing capital base as at 30 December 2017 | C8: =SUM(C4:C7) -> 1052.081814 | D8: =SUM(D4:D7) -> 1065.877758 | E8: =SUM(E4:E7) -> 1079.578291 | F8: =SUM(F4:F7) -> 1094.154004 | G8: =SUM(G4:G7) -> 1096.967367 | H8: 5388.659234
B11: Table X: AER's draft decision on Multinet's depreciation allowance ($million, nominal)
C12: 2013 | D12: 2014 | E12: 2015 | F12: 2016 | G12: 2017 | H12: Total
B13: Straight-line depreciation (including retirement of assets) | C13: =Assets!G472 -> 40.27022652 | D13: =Assets!H472 -> 46.96160304 | E13: =Assets!I472 -> 50.16619369 | F13: =Assets!J472 -> 53.1417562 | G13: =Assets!K472 -> 56.45396951 | H13: =SUM(C13:G13) -> 246.993749
B14: Less: indexation on opening capital base | C14: =Assets!G471 -> 25.41286488 | D14: =Assets!H471 -> 26.30204536 | E14: =Assets!I471 -> 26.64694395 | F14: =Assets!J471 -> 26.98945726 | G14: =Assets!K471 -> 27.3538501 | H14: =SUM(C14:G14) -> 132.7051615
B15: Regulatory depreciation | C15: =C13-C14 -> 14.85736164 | D15: =D13-D14 -> 20.65955768 | E15: 23.51924974 | F15: 26.15229894 | G15: 29.10011941 | H15: =SUM(C15:G15) -> 114.2885874
B18: Table X: AER's draft decision on corporate income tax allowance for Multinet ($million, nominal)
C19: 2013 | D19: 2014 | E19: 2015 | F19: 2016 | G19: 2017 | H19: Total
B20: Tax payable | C20: =Analysis!G24 -> 6.721717859 | D20: =Analysis!H24 -> 6.091421888 | E20: =Analysis!I24 -> 6.587614138 | F20: =Analysis!J24 -> 7.958799556 | G20: =Analysis!K24 -> 9.561981536 | H20: =SUM(C20:G20) -> 36.92153498
B21: Less value of imputation credits | C21: =-Analysis!G25 -> 1.680429465 | D21: =-Analysis!H25 -> 1.522855472 | E21: =-Analysis!I25 -> 1.646903534 | F21: =-Analysis!J25 -> 1.989699889 | G21: =-Analysis!K25 -> 2.390495384 | H21: =SUM(C21:G21) -> 9.230383744
B22: Net corporate income tax allowance | C22: =C20-C21 -> 5.041288394 | D22: =D20-D21 -> 4.568566416 | E22: 4.940710603 | F22: =F20-F21 -> 5.969099667 | G22: 7.171486152 | H22: =SUM(C22:G22) -> 27.69115123
B26: Table X: AER's draft decision on Multinet's building block components ($million, nominal)
C27: 2013 | D27: 2014 | E27: 2015 | F27: 2016 | G27: 2017 | H27: Total
B28: Return on capital | C28: ='X factor'!E11 -> 72.74178444 | D28: ='X factor'!F11 -> 75.28697463 | E28: ='X factor'!G11 -> 76.27421236 | F28: ='X factor'!H11 -> 77.25462247 | G28: ='X factor'!I11 -> 78.29766052 | H28: =SUM(C28:G28) -> 379.8552544
B29: Regulatory depreciation | C29: ='X factor'!E12 -> 14.85736164 | D29: ='X factor'!F12 -> 20.65955768 | E29: ='X factor'!G12 -> 23.51924974 | F29: ='X factor'!H12 -> 26.15229894 | G29: ='X factor'!I12 -> 29.10011941 | H29: =SUM(C29:G29) -> 114.2885874
B30: Operating expenditure | C30: ='X factor'!E13 -> 53.75769957 | D30: ='X factor'!F13 -> 55.76279626 | E30: ='X factor'!G13 -> 57.87410557 | F30: ='X factor'!H13 -> 61.02229076 | G30: ='X factor'!I13 -> 63.03048106 | H30: 291.4473732
B31: Efficiency carry-over | C31: =Input!G180*Assets!G7 -> -3.920129514 | D31: =Input!H180*Assets!H7 -> -3.080522538 | E31: =Input!I180*Assets!I7 -> -5.419483875 | F31: =Input!J180*Assets!J7 -> -5.389534068 | G31: =Input!K180*Assets!K7 -> 0 | H31: -17.80967
B32: Net corporate income tax allowance | C32: ='X factor'!E15 -> 5.041288394 | D32: ='X factor'!F15 -> 4.568566416 | E32: ='X factor'!G15 -> 4.940710603 | F32: ='X factor'!H15 -> 5.969099667 | G32: ='X factor'!I15 -> 7.171486152 | H32: 27.69115123
B33: Less: ancillary services revenue | C33: =-Input!G181*Assets!G7 -> 1.482828182 | D33: =-Input!H181*Assets!H7 -> 1.531226771 | E33: =-Input!I181*Assets!I7 -> 1.581085847 | F33: =-Input!J181*Assets!J7 -> 1.632297299 | G33: =-Input!K181*Assets!K7 -> 1.684749701 | H33: 7.912187801
B34: Annual building block revenue requirement (unsmoothed) | C34: =SUM(C28:C32)-C33 -> 140.9951763 | D34: =SUM(D28:D32)-D33 -> 151.6661457 | E34: 155.6077086 | F34: 163.3764805 | G34: 175.9149974 | H34: 787.5605085
B35: Annual expected revenue requirement (smoothed) | C35: ='X factor'!E25 -> 163.6501313 | D35: ='X factor'!F25 -> 149.0565447 | E35: ='X factor'!G25 -> 152.5232991 | F35: ='X factor'!H25 -> 156.438831 | G35: ='X factor'!I25 -> 160.2320422 | H35: =SUM(C35:G35) -> 781.9008483
B36: X factor (per cent) | C36: =P_0 -> 0.2347870373 | D36: =x_1 -> 0 | E36: =X_2 -> 0 | F36: =X_3 -> 0 | G36: =X_4 -> 0 | H36: n/a

Sheet Input
E2: Input Variables | G2: Input cells are in blue
E5: ="Opening Regulated Asset Base for "&Q7&" ($m Nominal)" -> Opening Regulated Asset Base for 2013 ($m Nominal)
G6: Asset Class Name | J6: Opening Asset Value | K6: Assets Under Construction | L6: Remaining Life | M6: Standard Life | N6: Opening Tax Value | O6: Tax Remaining Life | P6: Tax Standard Life | Q6: Base Financial Year
E7: Asset Class 1 | G7: Transmission and distribution | J7: 521.1909705 | K7: 0 | L7: 33.47501991 | M7: 50 | N7: n/a | O7: n/a | P7: n/a | Q7: 2013
E8: Asset Class 2 | G8: Services | J8: 364.1839695 | K8: 0 | L8: 30.58169207 | M8: 50 | N8: n/a | O8: n/a | P8: n/a
E9: Asset Class 3 | G9: Cathodic Protection | J9: 0.9846630618 | K9: 0 | L9: 45.54845952 | M9: 50 | N9: n/a | O9: n/a | P9: n/a
E10: Asset Class 4 | G10: Suppy Regs/Valve stations | J10: 22.9144168 | K10: 0 | L10: 18.38186344 | M10: 50 | N10: n/a | O10: n/a | P10: n/a
E11: Asset Class 5 | G11: Meters | J11: 96.95369911 | K11: 0 | L11: 10.45611323 | M11: 30 | N11: n/a | O11: n/a | P11: n/a
E12: Asset Class 6 | G12: Land | J12: 0 | K12: 0 | L12: n/a | M12: n/a | N12: n/a | O12: n/a | P12: n/a
E13: Asset Class 7 | G13: IT | J13: 10.9219188 | K13: 0 | L13: 5 | M13: 5 | N13: n/a | O13: n/a | P13: n/a
E14: Asset Class 8 | G14: SCADA | J14: -0.9707285785 | K14: 0 | L14: 0 | M14: 15 | N14: n/a | O14: n/a | P14: n/a
E15: Asset Class 9 | G15: Other | J15: 0.3356860739 | K15: 0 | L15: 6.035055305 | M15: 10 | N15: n/a | O15: n/a | P15: n/a
E16: Asset Class 11 | G16: Pipeworks retirement | J16: 0 | K16: 0 | L16: n/a | M16: 5 | N16: n/a | O16: n/a | P16: n/a
E17: Asset Class 12 | G17: Pipeworks retirement | J17: 0 | K17: 0 | L17: n/a | M17: 5
E18: Asset Class 13 | G18: Buildings | J18: 0 | K18: 0 | L18: n/a | M18: 50
E19: Asset Class 14
E20: Asset Class 15
E21: Asset Class 16
E22: Asset Class 17
E23: Asset Class 18
E24: Asset Class 19
E25: Asset Class 20
E26: Asset Class 21
E27: Asset Class 22
E28: Asset Class 23
E29: Asset Class 24
E30: Asset Class 25
E31: Asset Class 26
E32: Asset Class 27
E33: Asset Class 28
E34: Asset Class 29
E35: Asset Class 30
E36: Asset Class 31
E37: Total | J37: =SUM(J7:J36)+K37 -> 1016.514595 | K37: =SUM(K7:K36) -> 0 | N37: =SUM(N7:N36) -> 0
E39: ="Forecast Capital Expenditure – As Incurred ($m Real "&Q7-1&")" -> Forecast Capital Expenditure – As Incurred ($m Real 2012)
E40: Year | G40: =Q7 -> 2013 | H40: =G40+1 -> 2014 | I40: =H40+1 -> 2015 | J40: 2016 | K40: 2017 | L40: 2018 | M40: 2019 | N40: 2020 | O40: 2021 | P40: 2022
E41: =Asset1 -> Transmission and distribution | G41: 20.55979841 | H41: 12.04364657 | I41: 13.14999434 | J41: 16.47646181 | K41: 12.22051116
E42: =Asset2 -> Services | G42: 12.59570003 | H42: 13.11989228 | I42: 13.09230388 | J42: 11.29779838 | K42: 11.33307834
E43: =Asset3 -> Cathodic Protection | G43: 0.185 | H43: 0.185 | I43: 0.185 | J43: 0.185 | K43: 0.185
E44: =Asset4 -> Suppy Regs/Valve stations | G44: 1.335777765 | H44: 1.435526807 | I44: 1.459726807 | J44: 1.454326807 | K44: 0.8343583068
E45: =Asset5 -> Meters | G45: 3.025857642 | H45: 3.020123531 | I45: 2.98787323 | J45: 2.95499192 | K45: 2.9648013
E46: =Asset6 -> Land | G46: 0 | H46: 0 | I46: 0 | J46: 0 | K46: 0
E47: =Asset7 -> IT | G47: 18.46387107 | H47: 6.425042318 | I47: 4.479432701 | J47: 5.289838622 | K47: 1.610831313
E48: =Asset8 -> SCADA | G48: 0.1863358338 | H48: 0.1086959031 | I48: 0.0310559723 | J48: 0.0310559723 | K48: 0.0310559723
E49: =Asset9 -> Other | G49: 0.09531933836 | H49: 0.0100412133 | I49: 0.02008401244 | J49: 0 | K49: 0.01004166091
E50: =Asset10 -> Pipeworks retirement | G50: 0 | H50: 0 | I50: 0 | J50: 0 | K50: 0
E51: =Asset11 -> Pipeworks retirement | G51: 0 | H51: 0 | I51: 0 | J51: 0 | K51: 0
E52: =Asset12 -> Buildings | G52: 3.3 | H52: 0 | I52: 0 | J52: 0 | K52: 0
E53: =Asset13 -> 0
E54: =Asset14 -> 0
E55: =Asset15 -> 0
E56: =Asset16 -> 0
E57: =Asset17 -> 0
E58: =Asset18 -> 0
E59: =Asset19 -> 0
E60: =Asset20 -> 0
E61: =Asset21 -> 0
E62: =Asset22 -> 0
E63: =Asset23 -> 0
E64: =Asset24 -> 0
E65: =Asset25 -> 0
E66: =Asset26 -> 0
E67: =Asset27 -> 0
E68: =Asset28 -> 0
E69: =Asset29 -> 0
E70: =Asset30 -> 0
E71: Total | G71: =SUM(G41:G70) -> 59.7476601 | H71: 36.34796862 | I71: 35.40547095 | J71: 37.68947351 | K71: 29.18967806 | L71: 0 | M71: =SUM(M41:M70) -> 0 | N71: 0 | O71: 0 | P71: 0
Q72: =SUM(G71:P71) -> 198.3802512
E73: ="Forecast Asset Disposal – as incurred ($m Real "&Q7-1&")" -> Forecast Asset Disposal – as incurred ($m Real 2012)
E74: Year | G74: =G40 -> 2013 | H74: =H40 -> 2014 | I74: 2015 | J74: 2016 | K74: 2017 | L74: 2018 | M74: 2019 | N74: 2020 | O74: 2021 | P74: 2022
E75: =Asset1 -> Transmission and distribution | G75: 0 | H75: 0 | I75: 0 | J75: 0 | K75: 0
E76: =Asset2 -> Services | G76: 0 | H76: 0 | I76: 0 | J76: 0 | K76: 0
E77: =Asset3 -> Cathodic Protection | G77: 0 | H77: 0 | I77: 0 | J77: 0 | K77: 0
E78: =Asset4 -> Suppy Regs/Valve stations | G78: 0 | H78: 0 | I78: 0 | J78: 0 | K78: 0
E79: =Asset5 -> Meters | G79: 0 | H79: 0 | I79: 0 | J79: 0 | K79: 0
E80: =Asset6 -> Land | G80: 0 | H80: 0 | I80: 0 | J80: 0 | K80: 0
E81: =Asset7 -> IT | G81: 0 | H81: 0 | I81: 0 | J81: 0 | K81: 0
E82: =Asset8 -> SCADA
E83: =Asset9 -> Other
E84: =Asset10 -> Pipeworks retirement
E85: =Asset11 -> Pipeworks retirement
E86: =Asset12 -> Buildings
E87: =Asset13 -> 0
E88: =Asset14 -> 0
E89: =Asset15 -> 0
E90: =Asset16 -> 0
E91: =Asset17 -> 0
E92: =Asset18 -> 0
E93: =Asset19 -> 0
E94: =Asset20 -> 0
E95: =Asset21 -> 0
E96: =Asset22 -> 0
E97: =Asset23 -> 0
E98: =Asset24 -> 0
E99: =Asset25 -> 0
E100: =Asset26 -> 0
E101: =Asset27 -> 0
E102: =Asset28 -> 0
E103: =Asset29 -> 0
E104: =Asset30 -> 0
E105: Total | G105: =SUM(G75:G104) -> 0 | H105: 0 | I105: 0 | J105: =SUM(J75:J104) -> 0 | K105: 0 | L105: 0 | M105: 0 | N105: 0 | O105: 0 | P105: 0
Q106: =SUM(G105:P105) -> 0
E107: ="Forecast Customer Contributions – As Incurred ($m Real "&Q7-1&")" -> Forecast Customer Contributions – As Incurred ($m Real 2012)
E108: Year | G108: =G74 -> 2013 | H108: =H74 -> 2014 | I108: 2015 | J108: 2016 | K108: 2017 | L108: 2018 | M108: 2019 | N108: 2020 | O108: 2021 | P108: 2022
E109: =Asset1 -> Transmission and distribution | G109: 11.63358795 | H109: 4.273126307 | I109: 1.602418615 | J109: 1.602418615 | K109: 1.602418615
E110: =Asset2 -> Services | G110: 0 | H110: 0 | I110: 0 | J110: 0 | K110: 0
E111: =Asset3 -> Cathodic Protection | G111: 0 | H111: 0 | I111: 0 | J111: 0 | K111: 0
E112: =Asset4 -> Suppy Regs/Valve stations | G112: 0 | H112: 0 | I112: 0 | J112: 0 | K112: 0
E113: =Asset5 -> Meters | G113: 0 | H113: 0 | I113: 0 | J113: 0 | K113: 0
E114: =Asset6 -> Land | G114: 0 | H114: 0 | I114: 0 | J114: 0 | K114: 0
E115: =Asset7 -> IT | G115: 0 | H115: 0 | I115: 0 | J115: 0 | K115: 0
E116: =Asset8 -> SCADA | G116: 0 | H116: 0 | I116: 0 | J116: 0 | K116: 0
E117: =Asset9 -> Other | G117: 0 | H117: 0 | I117: 0 | J117: 0 | K117: 0
E118: =Asset10 -> Pipeworks retirement | G118: 0 | H118: 0 | I118: 0 | J118: 0 | K118: 0
E119: =Asset11 -> Pipeworks retirement | G119: 0 | H119: 0 | I119: 0 | J119: 0 | K119: 0
E120: =Asset12 -> Buildings | G120: 0 | H120: 0 | I120: 0 | J120: 0 | K120: 0
E121: =Asset13 -> 0
E122: =Asset14 -> 0
E123: =Asset15 -> 0
E124: =Asset16 -> 0
E125: =Asset17 -> 0
E126: =Asset18 -> 0
E127: =Asset19 -> 0
E128: =Asset20 -> 0
E129: =Asset21 -> 0
E130: =Asset22 -> 0
E131: =Asset23 -> 0
E132: =Asset24 -> 0
E133: =Asset25 -> 0
E134: =Asset26 -> 0
E135: =Asset27 -> 0
E136: =Asset28 -> 0
E137: =Asset29 -> 0
E138: =Asset30 -> 0
E139: Total | G139: =SUM(G109:G138) -> 11.63358795 | H139: 4.273126307 | I139: 1.602418615 | J139: 1.602418615 | K139: 1.602418615 | L139: 0 | M139: 0 | N139: 0 | O139: 0 | P139: 0
Q140: =SUM(G139:P139) -> 20.7139701
E141: ="Forecast Net Capital Expenditure – As Incurred ($m Real "&Q7-1&")" -> Forecast Net Capital Expenditure – As Incurred ($m Real 2012)
E142: Year | G142: =G40 -> 2013 | H142: =H40 -> 2014 | I142: 2015 | J142: 2016 | K142: 2017 | L142: 2018 | M142: 2019 | N142: 2020 | O142: 2021 | P142: 2022
E143: =Asset1 -> Transmission and distribution | G143: =G41-G75-G109 -> 8.926210468 | H143: =H41-H75-H109 -> 7.770520261 | I143: =I41-I75-I109 -> 11.54757573 | J143: 14.8740432 | K143: 10.61809255 | L143: 0 | M143: 0 | N143: 0 | O143: 0 | P143: 0
E144: =Asset2 -> Services | G144: =G42-G76-G110 -> 12.59570003 | H144: 13.11989228 | I144: 13.09230388 | J144: 11.29779838 | K144: 11.33307834 | L144: 0 | M144: 0 | N144: 0 | O144: 0 | P144: 0
E145: =Asset3 -> Cathodic Protection | G145: =G43-G77-G111 -> 0.185 | H145: 0.185 | I145: 0.185 | J145: 0.185 | K145: 0.185 | L145: 0 | M145: 0 | N145: 0 | O145: 0 | P145: 0
E146: =Asset4 -> Suppy Regs/Valve stations | G146: =G44-G78-G112 -> 1.335777765 | H146: 1.435526807 | I146: 1.459726807 | J146: 1.454326807 | K146: 0.8343583068 | L146: 0 | M146: 0 | N146: 0 | O146: 0 | P146: 0
E147: =Asset5 -> Meters | G147: =G45-G79-G113 -> 3.025857642 | H147: 3.020123531 | I147: 2.98787323 | J147: 2.95499192 | K147: 2.9648013 | L147: 0 | M147: 0 | N147: 0 | O147: 0 | P147: 0
E148: =Asset6 -> Land | G148: =G46-G80-G114 -> 0 | H148: =H46-H80-H114 -> 0 | I148: =I46-I80-I114 -> 0 | J148: =J46-J80-J114 -> 0 | K148: =K46-K80-K114 -> 0 | L148: =L46-L80-L114 -> 0 | M148: 0 | N148: 0 | O148: 0 | P148: 0
E149: =Asset7 -> IT | G149: =G47-G81-G115 -> 18.46387107 | H149: 6.425042318 | I149: 4.479432701 | J149: 5.289838622 | K149: 1.610831313 | L149: 0 | M149: 0 | N149: 0 | O149: 0 | P149: 0
E150: =Asset8 -> SCADA | G150: =G48-G82-G116 -> 0.1863358338 | H150: 0.1086959031 | I150: 0.0310559723 | J150: 0.0310559723 | K150: 0.0310559723 | L150: 0 | M150: 0 | N150: 0 | O150: 0 | P150: 0
E151: =Asset9 -> Other | G151: =G49-G83-G117 -> 0.09531933836 | H151: 0.0100412133 | I151: 0.02008401244 | J151: 0 | K151: 0.01004166091 | L151: 0 | M151: 0 | N151: 0 | O151: 0 | P151: 0
E152: =Asset10 -> Pipeworks retirement | G152: =G50-G84-G118 -> 0 | H152: 0 | I152: 0 | J152: 0 | K152: 0 | L152: 0 | M152: 0 | N152: 0 | O152: 0 | P152: 0
E153: =Asset11 -> Pipeworks retirement | G153: =G51-G85-G119 -> 0 | H153: 0 | I153: 0 | J153: 0 | K153: 0 | L153: 0 | M153: 0 | N153: 0 | O153: 0 | P153: 0
E154: =Asset12 -> Buildings | G154: =G52-G86-G120 -> 3.3 | H154: 0 | I154: 0 | J154: 0 | K154: 0 | L154: 0 | M154: 0 | N154: 0 | O154: 0 | P154: 0
E155: =Asset13 -> 0 | G155: =G53-G87-G121 -> 0 | H155: =H53-H87-H121 -> 0 | I155: =I53-I87-I121 -> 0 | J155: =J53-J87-J121 -> 0 | K155: =K53-K87-K121 -> 0 | L155: =L53-L87-L121 -> 0 | M155: 0 | N155: 0 | O155: 0 | P155: 0
E156: =Asset14 -> 0 | G156: =G54-G88-G122 -> 0 | H156: 0 | I156: 0 | J156: 0 | K156: 0 | L156: 0 | M156: 0 | N156: 0 | O156: 0 | P156: 0
E157: =Asset15 -> 0 | G157: =G55-G89-G123 -> 0 | H157: 0 | I157: 0 | J157: 0 | K157: 0 | L157: 0 | M157: 0 | N157: 0 | O157: 0 | P157: 0
E158: =Asset16 -> 0 | G158: =G56-G90-G124 -> 0 | H158: 0 | I158: 0 | J158: 0 | K158: 0 | L158: 0 | M158: 0 | N158: 0 | O158: 0 | P158: 0
E159: =Asset17 -> 0 | G159: =G57-G91-G125 -> 0 | H159: 0 | I159: 0 | J159: 0 | K159: 0 | L159: 0 | M159: 0 | N159: 0 | O159: 0 | P159: 0
E160: =Asset18 -> 0 | G160: =G58-G92-G126 -> 0 | H160: 0 | I160: 0 | J160: 0 | K160: 0 | L160: 0 | M160: 0 | N160: 0 | O160: 0 | P160: 0
E161: =Asset19 -> 0 | G161: =G59-G93-G127 -> 0 | H161: 0 | I161: 0 | J161: 0 | K161: 0 | L161: 0 | M161: 0 | N161: 0 | O161: 0 | P161: 0
E162: =Asset20 -> 0 | G162: =G60-G94-G128 -> 0 | H162: 0 | I162: 0 | J162: 0 | K162: 0 | L162: 0 | M162: 0 | N162: 0 | O162: 0 | P162: 0
E163: =Asset21 -> 0 | G163: =G61-G95-G129 -> 0 | H163: 0 | I163: 0 | J163: 0 | K163: 0 | L163: 0 | M163: 0 | N163: 0 | O163: 0 | P163: 0
E164: =Asset22 -> 0 | G164: =G62-G96-G130 -> 0 | H164: 0 | I164: 0 | J164: 0 | K164: 0 | L164: 0 | M164: 0 | N164: 0 | O164: 0 | P164: 0
E165: =Asset23 -> 0 | G165: =G63-G97-G131 -> 0 | H165: 0 | I165: 0 | J165: 0 | K165: 0 | L165: 0 | M165: 0 | N165: 0 | O165: 0 | P165: 0
E166: =Asset24 -> 0 | G166: =G64-G98-G132 -> 0 | H166: 0 | I166: 0 | J166: 0 | K166: 0 | L166: 0 | M166: 0 | N166: 0 | O166: 0 | P166: 0
E167: =Asset25 -> 0 | G167: =G65-G99-G133 -> 0 | H167: 0 | I167: 0 | J167: 0 | K167: 0 | L167: 0 | M167: 0 | N167: 0 | O167: 0 | P167: 0
E168: =Asset26 -> 0 | G168: =G66-G100-G134 -> 0 | H168: 0 | I168: 0 | J168: 0 | K168: 0 | L168: 0 | M168: 0 | N168: 0 | O168: 0 | P168: 0
E169: =Asset27 -> 0 | G169: =G67-G101-G135 -> 0 | H169: 0 | I169: 0 | J169: 0 | K169: 0 | L169: 0 | M169: 0 | N169: 0 | O169: 0 | P169: 0
E170: =Asset28 -> 0 | G170: =G68-G102-G136 -> 0 | H170: 0 | I170: 0 | J170: 0 | K170: 0 | L170: 0 | M170: 0 | N170: 0 | O170: 0 | P170: 0
E171: =Asset29 -> 0 | G171: =G69-G103-G137 -> 0 | H171: 0 | I171: 0 | J171: 0 | K171: 0 | L171: 0 | M171: 0 | N171: 0 | O171: 0 | P171: 0
E172: =Asset30 -> 0 | G172: =G70-G104-G138 -> 0 | H172: 0 | I172: 0 | J172: 0 | K172: 0 | L172: 0 | M172: 0 | N172: 0 | O172: 0 | P172: 0
E173: Total | G173: =SUM(G143:G172) -> 48.11407215 | H173: 32.07484231 | I173: =SUM(I143:I172) -> 33.80305233 | J173: 36.0870549 | K173: 27.58725944 | L173: 0 | M173: 0 | N173: 0 | O173: 0 | P173: 0
Q174: =SUM(G173:P173) -> 177.6662811
E175: ="Forecast Operating and Maintenance Expenditure ($m Real "&Q7-1&")" -> Forecast Operating and Maintenance Expenditure ($m Real 2012)
E176: Year | G176: =G40 -> 2013 | H176: =H40 -> 2014 | I176: 2015 | J176: 2016 | K176: 2017 | L176: 2018 | M176: 2019 | N176: 2020 | O176: 2021 | P176: 2022
E177: Controllable opex | G177: 51.89315554 | H177: 52.51705852 | I177: 53.18956675 | J177: 54.73743475 | K177: 55.17013436
E178: Blank line | G178: 0 | H178: 0 | I178: 0 | J178: 0 | K178: 0
E179: Uncontrollable opex | G179: 0 | H179: 0 | I179: 0 | J179: 0 | K179: 0
E180: Efficiency carryover | G180: ='Carry-over'!G45 -> -3.824516599 | H180: ='Carry-over'!H45 -> -2.9320857 | I180: ='Carry-over'!I45 -> -5.032529534 | J180: ='Carry-over'!J45 -> -4.882651864 | K180: ='Carry-over'!K45 -> 0
E181: Deduct Ancillary Services Revenue | G181: -1.446661641 | H181: -1.457443684 | I181: -1.468195386 | J181: -1.478780791 | K181: -1.489073247
E182: Debt raising costs | G182: =(Dr*Dv*Assets!F474)/Assets!G7 -> 0.5533806285 | H182: =(Dr*Dv*Assets!G474)/Assets!H7 -> 0.5587737321 | I182: =(Dr*Dv*Assets!H474)/Assets!I7 -> 0.5522935897 | J182: =(Dr*Dv*Assets!I474)/Assets!J7 -> 0.5457489138 | K182: =(Dr*Dv*Assets!J474)/Assets!K7 -> 0.5396265709 | L182: =IF(L177=0,0,(Dr*Dv*Assets!K474)/Assets!L7) -> 0 | M182: =IF(M177=0,0,(Dr*Dv*Assets!L474)/Assets!M7) -> 0 | N182: =IF(N177=0,0,(Dr*Dv*Assets!M474)/Assets!N7) -> 0 | O182: =IF(O177=0,0,(Dr*Dv*Assets!N474)/Assets!O7) -> 0 | P182: =IF(P177=0,0,(Dr*Dv*Assets!O474)/Assets!P7) -> 0
E183: Total | G183: =SUM(G177:G182) -> 47.17535793 | H183: 48.68630287 | I183: 47.24113542 | J183: 48.92175101 | K183: 54.22068769 | L183: 0 | M183: 0 | N183: 0 | O183: 0 | P183: 0
Q184: =SUM(G183:P183) -> 246.2452349
E185: Cost of Capital
G186: Value
E187: Nominal Risk Free Rate Rf | G187: 0.0298
E188: Inflation Rate f | G188: 0.025
E189: Debt Risk Premium DRP | G189: 0.0376
E190: Market Risk Premium MRP | G190: 0.06
E191: Utilisation of Imputation (Franking) Credits g | G191: 0.25
E192: Proportion of Debt Funding D/V | G192: 0.6
E193: Equity Beta βe | G193: 0.8
E194: Debt Raising Cost Benchmark Dr | F194: Dr | G194: 0.00093
E196: ="Price/ revenue constraint for "&Q7-1& " (Nominal)" -> Price/ revenue constraint for 2012 (Nominal)
G197: Value
E198: Maximum Allowed Revenue
E199: Revenue yield (c/kWh)
E202: Energy Delivered Forecast (GJ's)
E203: Year | F203: =Q7-1 -> 2012 | G203: =G40 -> 2013 | H203: =H40 -> 2014 | I203: 2015 | J203: 2016 | K203: 2017 | L203: 2018 | M203: 2019 | N203: 2020 | O203: 2021 | P203: 2022
E204: Energy | F204: =SUM(L338,R338,X338,AD338,AJ338)/1000 -> 45074.90669 | G204: 44833.74075 | H204: 44506.84691 | I204: 44357.96516 | J204: 44311.79676 | K204: 44265.24313
E207: ="Base year prices per tariff component for "&Q7-1& "" -> Base year prices per tariff component for 2012
F210: Standing Charge ($ per customer per day) | G210: Peak Energy ($\GJ) | H210: Shoulder Energy ($\GJ) | I210: Off Peak Energy ($\GJ) | J210: Rolling Demand | K210: Peak Demand
F211: =Q7-1 -> 2012 | G211: =F211 -> 2012 | H211: =G211 -> 2012 | I211: 2012 | J211: 2012 | K211: 2012 | L211: 2012 | M211: 2012 | N211: 2012 | O211: 2012
... 178 more rows

Sheet WACC
B2: Cost of Capital Parameters
F6: Input Data & Calculated Inputs | G6: Basic Building Block Model
B7: Nominal Risk Free Rate | D7: Rf | F7: =Rf -> 0.0298
B8: Real Risk Free Rate | D8: Rrf | F8: =(1+F7)/(1+F9)-1 -> 0.004682926829
B9: Inflation Rate | D9: f | F9: =f -> 0.025
B10: Cost of Debt Margin | D10: DRP | F10: =Drp -> 0.0376
B11: Nominal Pre-tax Cost of Debt | D11: Rd | F11: =F7+F10 -> 0.0674
B12: Real Pre-tax Cost of Debt | D12: Rrd | F12: =(1+F11)/(1+F9)-1 -> 0.04136585366
B13: Market Risk Premium | D13: MRP | F13: =Mrp -> 0.06
B14: Corporate Tax Rate | D14: T | F14: 0.3
B15: Effective Tax Rate for Equity (From Relevant Cash flows) | D15: Te | F15: 0.319617667 | G15: =Analysis!$D$63 -> 0.319617667
B16: Effective Tax Rate for Debt (Effective Debt Shield) | D16: Td | F16: =Td -> 0.3 | G16: =Analysis!$D$73 -> 0.3
B17: Utilisation of Imputation (Franking) Credits | D17: g | F17: =g -> 0.25
B18: Proportion of Equity Funding | D18: E/V | F18: =1-F19 -> 0.4
B19: Proportion of Debt Funding | D19: D/V | F19: =Dv -> 0.6
B20: Equity Beta | D20: βe | F20: =Be -> 0.8
B22: WACC Analysis
F24: Formula Approximation
B25: Post-tax Nominal Return on Equity(pre-imp) | F25: =F7+F20*(F13) -> 0.0778 | G25: =Analysis!$E$65 -> 0.0778
B26: Post-tax Real Return on Equity(pre-imp) | F26: =(1+F25)/(1+F9)-1 -> 0.05151219512 | G26: =Analysis!$E$69 -> 0.05151219512
B27: Nominal Vanilla WACC | F27: =F18*F25+F19*F11 -> 0.07156 | G27: =Analysis!$E$79 -> 0.07156
B28: Real Vanilla WACC | F28: =F18*F26+F19*F12 -> 0.04542439024 | G28: =Analysis!$E$80 -> 0.04542439024
B29: Post-tax Nominal WACC | F29: =F25*((1-F15)/(1-F15*(1-F17)))*F18+F11*F19*(1-F16) -> 0.05615735843 | G29: =Analysis!$E$76 -> 0.0679420672
B30: Post-tax Real WACC | F30: =(1+F29)/(1+F9)-1 -> 0.03039742286 | G30: =Analysis!$E$78 -> 0.0418946997
B31: Pre-tax Nominal WACC | F31: =F25*(1/(1-F15*(1-F17)))*F18+F11*F19 -> 0.08137192471 | G31: =Analysis!$E$75 -> 0.0817071805
B32: Pre-tax Real WACC | F32: =(1+F31)/(1+F9)-1 -> 0.05499699972 | G32: =Analysis!$E$77 -> 0.05532407853
B33: Nominal Tax Allowance | F33: =F31-F27 -> 0.009811924713 | G33: =G31-$F$27 -> 0.0101471805
B34: Real Tax Allowance | F34: =F32-F28 -> 0.009572609476 | G34: =G32-$F$28 -> 0.009899688287
F37: Numbers in White cells are calculated on this sheet from input parameters.
F38: Numbers in Orange cells are transferred from relevant sheets

Sheet Carry-over
A3: EFFICIENCY CARRYOVER
A5: Operating and Maintenance Expenditure
B6: 2008 | C6: 2009 | D6: 2010 | E6: 2011 | F6: 2012 | G6: 2013 | H6: 2014 | I6: 2015 | J6: 2016 | K6: 2017
A7: O&M Benchmark ($m Real 2006) | B7: =B63 -> 41.19053649 | C7: =C63 -> 41.2567513 | D7: 40.82218305 | E7: 40.66146481 | F7: 40.53454586
A8: O&M Benchmark ($m Real 2012) | B8: =B7*$B$56 -> 49.32965452 | C8: =C7*$B$56 -> 49.40895316 | D8: 48.88851562 | E8: 48.69603996 | F8: 48.54404223
A9: Adjustments to O&M ($m Real 2012) | B9: =B76 -> -0.1437014233 | C9: =C76 -> -0.2869142618 | D9: -0.4296400846 | E9: -0.571880456 | F9: -0.7136369352
A10: Adjusted O&M Benchmark ($m Real 2012) | B10: =B8+B9 -> 49.1859531 | C10: =C8+C9 -> 49.1220389 | D10: =D8+D9 -> 48.45887553 | E10: =E8+E9 -> 48.12415951 | F10: =F8+F9 -> 47.8304053
A12: O&M Actual $m (MOD) | B12: =B68 -> 44.21800727 | C12: =C68 -> 45.77095908 | D12: 46.05650825 | E12: 50.09605085
A13: O&M Actual ($m Real 2012) | B13: =B12*D$56 -> 50.01709019 | C13: =C12*E$56 -> 49.31717754 | D13: 49.00674721 | E13: 51.85938559 | F13: =E13+(F10-E10) -> 51.56563138
A15: O&M Underspend ($m Real 2012) | B15: =B10-B13 -> -0.831137095 | C15: =C10-C13 -> -0.1951386399 | D15: =D10-D13 -> -0.5478716766 | E15: =E10-E13 -> -3.735226083 | F15: =F10-F13 -> -3.735226083
A16: O&M Incremental Gain ($m Real 2012) | B16: =B15 -> -0.831137095 | C16: =C15-B15 -> 0.6359984551 | D16: =D15-C15 -> -0.3527330368 | E16: =E15-D15 -> -3.187354406 | F16: =F15-E15 -> 0
A18: Carry-Over - Year 2008 | C18: =$B$16 -> -0.831137095 | D18: =$B$16 -> -0.831137095 | E18: =$B$16 -> -0.831137095 | F18: =$B$16 -> -0.831137095 | G18: =$B$16 -> -0.831137095
A19: Carry-Over - Year 2009 | D19: =$C$16 -> 0.6359984551 | E19: =$C$16 -> 0.6359984551 | F19: =$C$16 -> 0.6359984551 | G19: =$C$16 -> 0.6359984551 | H19: =$C$16 -> 0.6359984551
A20: Carry-Over - Year 2010 | E20: =$D$16 -> -0.3527330368 | F20: =$D$16 -> -0.3527330368 | G20: =$D$16 -> -0.3527330368 | H20: =$D$16 -> -0.3527330368 | I20: =$D$16 -> -0.3527330368
A21: Carry-Over - Year 2011 | F21: =$E$16 -> -3.187354406 | G21: =$E$16 -> -3.187354406 | H21: =$E$16 -> -3.187354406 | I21: =$E$16 -> -3.187354406 | J21: =$E$16 -> -3.187354406
A22: Carry-Over - Year 2012 | G22: =$F$16 -> 0 | H22: =$F$16 -> 0 | I22: =$F$16 -> 0 | J22: =$F$16 -> 0 | K22: =$F$16 -> 0
A23: O&M Efficiency Carry-Over ($m Real 2012) | G23: =SUM(G18:G22) -> -3.735226083 | H23: =SUM(H18:H22) -> -2.904088988 | I23: =SUM(I18:I22) -> -3.540087443 | J23: =SUM(J18:J22) -> -3.187354406 | K23: =SUM(K18:K22) -> 0
A25: Capital Expenditure
B26: 2008 | C26: 2009 | D26: 2010 | E26: 2011 | F26: 2012 | G26: 2013 | H26: 2014 | I26: 2015 | J26: 2016 | K26: 2017
A27: Capex Benchmark ($m Real 2006) | B27: =B137-B138 -> 39.27419046 | C27: =C137-C138 -> 61.92720745 | D27: 46.28707941 | E27: 41.19895512 | F27: 39.62569649
A28: Capex Benchmark ($m Real 2012) | B28: =B27*$B$56 -> 47.03464465 | C28: =C27*$B$56 -> 74.16382521 | D28: 55.43325799 | E28: 49.33973664 | F28: 47.45560714
A29: Adjustments to Capex ($m Real 2012) | B29: =B200 -> -9.354258513 | C29: =C200 -> -10.79278424 | D29: =D200 -> -13.4162793 | E29: =E200 -> -17.90480503 | F29: =F200 -> -1.848537912
A30: Adjusted Capex Benchmark ($m Real 2012) | B30: =B28+B29 -> 37.68038614 | C30: =C28+C29 -> 63.37104098 | D30: =D28+D29 -> 42.01697869 | E30: =E28+E29 -> 31.43493162 | F30: =F28+F29 -> 45.60706923
A32: Capex Actual $m (MOD) | B32: =B142-B143 -> 34.29692266 | C32: =C142-C143 -> 34.10123141 | D32: 36.02109686 | E32: 60.14321757
A33: Capex Actual ($m Real 2012) | B33: =B32*D$56 -> 38.79487974 | C33: =C32*E$56 -> 36.7433088 | D33: 38.32849808 | E33: 62.2602033 | F33: =F30 -> 45.60706923
A35: Capex Underspend ($m Real 2012) | B35: =B30-B33 -> -1.114493595 | C35: =C30-C33 -> 26.62773218 | D35: =D30-D33 -> 3.688480605 | E35: =E30-E33 -> -30.82527168 | F35: =F30-F33 -> 0
A36: Capex Incremental Gain ($m Real 2012) | B36: =B35*$B$48 -> -0.06129380391 | C36: =C35*$B$48 -> 1.464445379 | D36: =D35*$B$48 -> 0.2028553668 | E36: =E35*$B$48 -> -1.695297458 | F36: =F35*$B$48 -> 0
A38: Carry-Over - Year 2008 | C38: =$B$36 -> -0.06129380391 | D38: =$B$36 -> -0.06129380391 | E38: =$B$36 -> -0.06129380391 | F38: =$B$36 -> -0.06129380391 | G38: =$B$36 -> -0.06129380391
A39: Carry-Over - Year 2009 | D39: =$C$36 -> 1.464445379 | E39: =$C$36 -> 1.464445379 | F39: =$C$36 -> 1.464445379 | G39: =$C$36 -> 1.464445379 | H39: =$C$36 -> 1.464445379
A40: Carry-Over - Year 2010 | E40: =$D$36 -> 0.2028553668 | F40: =$D$36 -> 0.2028553668 | G40: =$D$36 -> 0.2028553668 | H40: =$D$36 -> 0.2028553668 | I40: =$D$36 -> 0.2028553668
A41: Carry-Over - Year 2011 | F41: =$E$36 -> -1.695297458 | G41: =$E$36 -> -1.695297458 | H41: =$E$36 -> -1.695297458 | I41: =$E$36 -> -1.695297458 | J41: =$E$36 -> -1.695297458
A42: Carry-Over - Year 2012 | G42: =$F$36 -> 0 | H42: =$F$36 -> 0 | I42: =$F$36 -> 0 | J42: =$F$36 -> 0 | K42: =$F$36 -> 0
A43: Capex Efficiency Carry-Over ($m Real 2012) | G43: =SUM(G38:G42) -> -0.08929051588 | H43: =SUM(H38:H42) -> -0.02799671197 | I43: =SUM(I38:I42) -> -1.492442091 | J43: =SUM(J38:J42) -> -1.695297458 | K43: =SUM(K38:K42) -> 0
A45: Total Efficiency Carry-Over ($m Real 2012) | G45: =SUM(G23,G43) -> -3.824516599 | H45: =SUM(H23,H43) -> -2.9320857 | I45: -5.032529534 | J45: -4.882651864 | K45: 0
A48: Pre Tax WACC (Real) | B48: =WACC!F32 -> 0.05499699972
A51: CPI | B51: All groups – weighted average of eight capital cities
B52: 2006 | C52: 2007 | D52: 2008 | E52: 2009 | F52: 2010 | G52: 2011 | H52: 2012
B53: 2005-09-30 | C53: 2006-09-30 | D53: 2007-09-30 | E53: 2008-09-30 | F53: 2009-09-30 | G53: 2010-09-30 | H53: 2011-09-30
A54: CPI Index | B54: 149.8 | C54: 155.7 | D54: 158.6 | E54: 166.5 | F54: 168.6 | G54: 173.3 | H54: 179.4
A55: Actual CPI (lagged) | C55: =C54/B54-1 -> 0.0393858478 | D55: 0.01862556198 | E55: 0.04981084489 | F55: 0.01261261261 | G55: 0.02787663108 | H55: 0.03519907675
A56: Convert from $Nominal to $Real 2012 | B56: =C56*(1+C55) -> 1.197596796 | C56: 1.1522158 | D56: 1.131147541 | E56: 1.077477477 | F56: 1.06405694 | G56: 1.035199077 | H56: 1
A59: Efficiency Carry-over Benchmark Adjustments
A61: OPERATING EXPENDITURE
A62: O & M Benchmark ($m Real 2006) | B62: 2008 | C62: 2009 | D62: 2010 | E62: 2011 | F62: 2012
A63: Total O&M benchmark | B63: 41.19053649 | C63: 41.2567513 | D63: 40.82218305 | E63: 40.66146481 | F63: 40.53454586
A64: Base O&M benchmark | B64: 39.99716316 | C64: 39.99716316 | D64: 39.99716316 | E64: 39.99716316 | F64: 39.99716316
A67: O&M Actual $m (MOD) | B67: 2008 | C67: 2009 | D67: 2010 | E67: 2011
A68: Total O&M | B68: 44.21800727 | C68: 45.77095908 | D68: 46.05650825 | E68: 50.09605085
A71: O & M Benchmark Adjustment for Growth
A72: Rate of Change benchmark allowance ($m Real 2006) | B72: =B82 -> -0.007999432631 | C72: =C82 -> -0.01599726538 | D72: -0.02399349855 | E72: -0.03198813248 | F72: -0.03998116749
A73: Adjusted Rate of Change benchmark allowance ($m Real 2006) | B73: =B110 -> -0.1279909221 | C73: =C110 -> -0.2555722732 | D73: -0.3827453641 | E73: -0.509511501 | F73: -0.6358719863
A74: Adjustment to O&M benchmark for actual Growth ($m Real 2006) | B74: =B73-B72 -> -0.1199914895 | C74: =C73-C72 -> -0.2395750079 | D74: -0.3587518655 | E74: -0.4775233685 | F74: -0.5958908188
A76: Adjustment to O&M benchmark ($m Real 2012) | B76: =B74*$B$56 -> -0.1437014233 | C76: =C74*$B$56 -> -0.2869142618 | D76: -0.4296400846 | E76: -0.571880456 | F76: -0.7136369352
A79: Benchmark O & M Rate of Change Allowance | B79: 2008 | C79: 2009 | D79: 2010 | E79: 2011 | F79: 2012
A80: Base O&M benchmark ($m Real 2006) | B80: =B64 -> 39.99716316 | C80: =C64 -> 39.99716316 | D80: =D64 -> 39.99716316 | E80: =E64 -> 39.99716316 | F80: =F64 -> 39.99716316
A81: Rate of Change (%) | B81: =$B$92 -> -0.0002 | C81: =$B$92 -> -0.0002 | D81: -0.0002 | E81: -0.0002 | F81: -0.0002
A82: Rate of Change benchmark allowance ($m Real 2006) | B82: =B80*B81 -> -0.007999432631 | C82: =(C80+B82)*C81+B82 -> -0.01599726538 | D82: =(D80+C82)*D81+C82 -> -0.02399349855 | E82: =(E80+D82)*E81+D82 -> -0.03198813248 | F82: =(F80+E82)*F81+E82 -> -0.03998116749
A84: Rate of Change
A85: Labor Price [A] | B85: 0.057
A86: Labor Share [B] | B86: 0.62
A87: Non-labor Price [C] | B87: 0.026
A88: O&M Input Price [D] = [B * A + (1 - B) * C] | B88: =ROUND(B86*B85+(1-B86)*B87,4) -> 0.0452
A89: PFP [E] | B89: 0.0287
A90: Output [F] | B90: =B103 -> 0.0093
A91: CPI [G] | B91: 0.026
A92: Rate of Change [H] = [D - E + F - G] | B92: =ROUND(B88-B89+B90-B91,4) -> -0.0002
A95: Output Growth | B95: 2007 | C95: 2008 | D95: 2009 | E95: 2010 | F95: 2011 | G95: 2012
A96: Forecast Total Customers | B96: 651639.08 | C96: 658670.59 | D96: 666296.87 | E96: 675043.3 | F96: 683076.3 | G96: 689337.38
A97: Forecast Total Delivery Volumes (GJ) | B97: 59698428.79 | C97: 60295336.97 | D97: 60246673.42 | E97: 60479737.47 | F97: 60604943.23 | G97: 61163208.77
A99: Customer Growth | B99: =ROUND(LN(G96/B96)/5,4) -> 0.0112
A100: Delivery Growth | B100: =ROUND(LN(G97/B97)/5,4) -> 0.0048
A101: Weight - Customers | B101: 0.7421522193
A102: Weight - Deliveries | B102: 0.2104317092
A103: Output Growth | B103: =ROUND(B99*B101+B100*B102,4) -> 0.0093
A107: Adjusted Benchmark O & M Rate of Change Allowance | B107: 2008 | C107: 2009 | D107: 2010 | E107: 2011 | F107: 2012
A108: Base O&M benchmark ($m Real 2006) | B108: =B80 -> 39.99716316 | C108: =C80 -> 39.99716316 | D108: =D80 -> 39.99716316 | E108: =E80 -> 39.99716316 | F108: =F80 -> 39.99716316
A109: Rate of Change (%) | B109: =$B$120 -> -0.0032 | C109: =$B$120 -> -0.0032 | D109: =$B$120 -> -0.0032 | E109: =$B$120 -> -0.0032 | F109: =$B$120 -> -0.0032
A110: Adjusted Rate of Change benchmark allowance ($m Real 2006) | B110: =B108*B109 -> -0.1279909221 | C110: =(C108+B110)*C109+B110 -> -0.2555722732 | D110: =(D108+C110)*D109+C110 -> -0.3827453641 | E110: =(E108+D110)*E109+D110 -> -0.509511501 | F110: =(F108+E110)*F109+E110 -> -0.6358719863
A112: Rate of Change
A113: Labor Price [A] | B113: =B85 -> 0.057
A114: Labor Share [B] | B114: =B86 -> 0.62
A115: Non-labor Price [C] | B115: =B87 -> 0.026
A116: O&M Input Price [D] = [B * A + (1 - B) * C] | B116: =ROUND(B114*B113+(1-B114)*B115,4) -> 0.0452
A117: PFP [E] | B117: =B89 -> 0.0287
A118: Output [F] | B118: =B131 -> 0.0063
A119: CPI [G] | B119: =B91 -> 0.026
A120: Rate of Change [H] = [D - E + F - G] | B120: =ROUND(B116-B117+B118-B119,4) -> -0.0032
A123: Output Growth | B123: 2007 | C123: 2008 | D123: 2009 | E123: 2010 | F123: 2011 | G123: 2012
A124: Actual \ Estimate Total Customers | B124: 652107 | C124: 658106 | D124: 664328 | E124: 668873.417 | F124: 674384.2493 | G124: 679917.345
A125: Actual \ Estimate Total Delivery Volumes (GJ) | B125: 56718808 | C125: 59343376.81 | D125: 57031593 | E125: 58788693.53 | F125: 57013736.55 | G125: 56843408.5
A127: Customer Growth | B127: =ROUND(LN(G124/B124)/5,4) -> 0.0084
A128: Delivery Growth | B128: =ROUND(LN(G125/B125)/5,4) -> 0.0004
A129: Weight - Customers | B129: =B101 -> 0.7421522193
A130: Weight - Deliveries | B130: =B102 -> 0.2104317092
A131: Output Growth | B131: =ROUND(B127*B129+B128*B130,4) -> 0.0063
A135: CAPITAL EXPENDITURE
A136: Capex Benchmark ($m Real 2006) | B136: 2008 | C136: 2009 | D136: 2010 | E136: 2011 | F136: 2012
A137: Gross Capex | B137: 46.97964283 | C137: 67.54301065 | D137: 47.75153433 | E137: 42.64162463 | F137: 41.31695758
A138: Customer Contributions | B138: 7.70545237 | C138: 5.615803202 | D138: 1.464454921 | E138: 1.442669504 | F138: 1.691261092
A141: Capex Actual $m (MOD) | B141: 2008 | C141: 2009 | D141: 2010 | E141: 2011
A142: Gross Capex | B142: 36.45282918 | C142: 36.31977755 | D142: 38.29681166 | E142: 62.26644
A143: Customer Contributions | B143: 2.155906515 | C143: 2.218546143 | D143: 2.2757148 | E143: 2.12322243
A146: Benchmark Adjustment for Customer connections | B146: 2008 | C146: 2009 | D146: 2010 | E146: 2011 | F146: 2012
A147: Domestic
A148: Forecast Number of new connections | B148: 8229 | C148: 8652 | D148: 8845 | E148: 9116 | F148: 8573
A149: Actual \ Estimate Number of new connection | B149: 7537 | C149: 7743 | D149: 6890 | E149: 7670 | F149: 7922.343562
B150: =B149-B148 -> -692 | C150: -909 | D150: -1955 | E150: -1446 | F150: -650.6564384
A152: Capital expenditure per connection ($ Real 2006) | B152: 1222 | C152: 1246 | D152: 1271 | E152: 1296 | F152: 1322
A153: Capital expenditure per connection ($ Real 2012) | B153: =B152*$B$56 -> 1463.463284 | C153: =C152*$B$56 -> 1492.205607 | D153: 1522.145527 | E153: 1552.085447 | F153: 1583.222964
A154: Adjustments to Capex Benchmark ($m Real 2012) | B154: =B150*B153/10^6 -> -1.012716593 | C154: =C150*C153/10^6 -> -1.356414897 | D154: -2.975794506 | E154: -2.244315557 | F154: -1.030134215
A156: Non Domestic
A157: Forecast Number of replacements | B157: 417 | C157: 431 | D157: 437 | E157: 437 | F157: 419
A158: Actual \ Estimate Number of new connection | B158: 263 | C158: 169 | D158: 153 | E158: 120 | F158: 195.8750263
B159: =B158-B157 -> -154 | C159: -262 | D159: -284 | E159: -317 | F159: -223.1249737
A161: Capital expenditure per connection ($ Real 2006) | B161: 3556 | C161: 3626 | D161: 3698 | E161: 3771 | F161: 3846
A162: Capital expenditure per connection ($ Real 2012) | B162: =B161*$B$56 -> 4258.654206 | C162: 4342.485981 | D162: 4428.712951 | E162: 4516.137517 | F162: 4605.957276
A163: Adjustments to Capex Benchmark ($m Real 2012) | B163: =B159*B162/10^6 -> -0.6558327477 | C163: -1.137731327 | D163: -1.257754478 | E163: -1.431615593 | F163: -1.027704096
A165: Adjustments to Capex Benchmark ($m Real 2012) | B165: =SUM(B154,B163) -> -1.66854934 | C165: =SUM(C154,C163) -> -2.494146224 | D165: =SUM(D154,D163) -> -4.233548984 | E165: =SUM(E154,E163) -> -3.67593115 | F165: =SUM(F154,F163) -> -2.057838311
A168: Benchmark Adjustment for LP replacement program | B168: 2008 | C168: 2009 | D168: 2010 | E168: 2011 | F168: 2012
A169: Forecast km replaced | B169: 108 | C169: 111 | D169: 112 | E169: 112 | F169: 114
A170: Actual \ Estimate km replaced | B170: 63.298 | C170: 59.678 | D170: 48.799 | E170: 27.235 | F170: 103.3
B171: =B170-B169 -> -44.702 | C171: =C170-C169 -> -51.322 | D171: =D170-D169 -> -63.201 | E171: =E170-E169 -> -84.765 | F171: =F170-F169 -> -10.7
A173: Capital Expenditure per metre ($ Real 2006) | B173: 157 | C173: 148 | D173: 151 | E173: 155 | F173: 158
A174: Capital Expenditure per metre ($ Real 2012) | B174: =B173*$B$56 -> 188.0226969 | C174: 177.2443258 | D174: 180.8371162 | E174: 185.6275033 | F174: 189.2202937
A175: Adjustments to Capex Benchmark ($m Real 2012) | B175: =B174*B171/10^3 -> -8.404990598 | C175: =C174*C171/10^3 -> -9.096533287 | D175: -11.42908658 | E175: -15.73471532 | F175: -2.024657143
A178: Benchmark Adjustment for Meter Replacement | B178: 2008 | C178: 2009 | D178: 2010 | E178: 2011 | F178: 2012
A179: Domestic
A180: Forecast Number of replacements | B180: 13055 | C180: 9691 | D180: 8168 | E180: 8081 | F180: 8081
A181: Actual \ Estimate Number of replacements | B181: 15945 | C181: 13809 | D181: 22413 | E181: 15621 | F181: 20142
B182: =B181-B180 -> 2890 | C182: =C181-C180 -> 4118 | D182: =D181-D180 -> 14245 | E182: =E181-E180 -> 7540 | F182: =F181-F180 -> 12061
A184: Capital expenditure per meter ($ Real 2006) | B184: 121 | C184: 123 | D184: 126 | E184: 128 | F184: 131
A185: Capital expenditure per meter ($ Real 2012) | B185: =B184*$B$56 -> 144.9092123 | C185: 147.3044059 | D185: 150.8971963 | E185: 153.2923899 | F185: 156.8851802
A186: Adjustments to Capex Benchmark ($m Real 2012) | B186: =B185*B182/10^6 -> 0.4187876235 | C186: =C185*C182/10^6 -> 0.6065995434 | D186: 2.149530561 | E186: 1.155824619 | F186: 1.892192159
A188: Non Domestic
A189: Forecast Number of replacements | B189: 476 | C189: 477 | D189: 504 | E189: 552 | F189: 562
A190: Actual \ Estimate Number of replacements | B190: 689 | C190: 610 | D190: 570 | E190: 786 | F190: 786
B191: =B190-B189 -> 213 | C191: =C190-C189 -> 133 | D191: =D190-D189 -> 66 | E191: =E190-E189 -> 234 | F191: =F190-F189 -> 224
A193: Capital expenditure per meter ($ Real 2006) | B193: 1178 | C193: 1201 | D193: 1225 | E193: 1249 | F193: 1274
A194: Capital expenditure per meter ($ Real 2012) | B194: =B193*$B$56 -> 1410.769025 | C194: 1438.313752 | D194: 1467.056075 | E194: 1495.798398 | F194: 1525.738318
A195: Adjustments to Capex Benchmark ($m Real 2012) | B195: =B194*B191/10^6 -> 0.3004938024 | C195: =C194*C191/10^6 -> 0.191295729 | D195: 0.09682570093 | E195: 0.3500168251 | F195: 0.3417653832
A197: Adjustments to Capex Benchmark ($m Real 2012) | B197: =SUM(B186,B195) -> 0.7192814259 | C197: =SUM(C186,C195) -> 0.7978952724 | D197: =SUM(D186,D195) -> 2.246356262 | E197: =SUM(E186,E195) -> 1.505841445 | F197: =SUM(F186,F195) -> 2.233957542
A200: Total Adjustments to Capex Benchmark ($m Real 2012) | B200: =SUM(B165,B175,B197) -> -9.354258513 | C200: =SUM(C165,C175,C197) -> -10.79278424 | D200: =SUM(D165,D175,D197) -> -13.4162793 | E200: =SUM(E165,E175,E197) -> -17.90480503 | F200: =SUM(F165,F175,F197) -> -1.848537912

Sheet Assets
B2: Asset Roll Forward
F3: 0 | G3: =F3+1 -> 1 | H3: =G3+1 -> 2 | I3: =H3+1 -> 3 | J3: 4 | K3: 5 | L3: 6 | M3: 7 | N3: 8 | O3: 9 | P3: 10 | Q3: 11 | R3: 12 | S3: 13 | T3: 14 | U3: 15 | V3: 16 | W3: 17 | X3: 18 | Y3: 19 | Z3: 20 | AA3: 21 | AB3: 22 | AC3: 23 | AD3: 24 | AE3: 25 | AF3: 26 | AG3: 27 | AH3: 28 | AI3: 29 | AJ3: 30 | AK3: 31 | AL3: 32 | AM3: =AL3+1 -> 33 | AN3: 34 | AO3: 35 | AP3: 36 | AQ3: 37 | AR3: 38 | AS3: 39 | AT3: 40 | AU3: 41 | AV3: 42 | AW3: 43 | AX3: 44 | AY3: 45 | AZ3: 46 | BA3: 47 | BB3: 48 | BC3: 49 | BD3: 50 | BE3: 51 | BF3: 52 | BG3: 53 | BH3: 54 | BI3: 55
B4: Year | F4: =Input!F203 -> 2012 | G4: =Input!G203 -> 2013 | H4: =Input!H203 -> 2014 | I4: =Input!I203 -> 2015 | J4: =Input!J203 -> 2016 | K4: =Input!K203 -> 2017 | L4: =Input!L203 -> 2018 | M4: =Input!M203 -> 2019 | N4: =Input!N203 -> 2020 | O4: =Input!O203 -> 2021 | P4: =Input!P203 -> 2022 | Q4: =P4+1 -> 2023 | R4: =Q4+1 -> 2024 | S4: 2025 | T4: 2026 | U4: 2027 | V4: 2028 | W4: 2029 | X4: 2030 | Y4: 2031 | Z4: 2032 | AA4: 2033 | AB4: 2034 | AC4: 2035 | AD4: 2036 | AE4: 2037 | AF4: 2038 | AG4: 2039 | AH4: 2040 | AI4: 2041 | AJ4: 2042 | AK4: 2043 | AL4: 2044 | AM4: 2045 | AN4: 2046 | AO4: 2047 | AP4: 2048 | AQ4: 2049 | AR4: 2050 | AS4: 2051 | AT4: 2052 | AU4: 2053 | AV4: 2054 | AW4: 2055 | AX4: 2056 | AY4: 2057 | AZ4: 2058 | BA4: 2059 | BB4: 2060 | BC4: 2061 | BD4: 2062 | BE4: 2063 | BF4: 2064 | BG4: 2065 | BH4: 2066 | BI4: 2067
B6: Inflation Assumption (CPI % increase) | D6: =f -> 0.025 | G6: =$D$6 -> 0.025 | H6: =$D$6 -> 0.025 | I6: 0.025 | J6: 0.025 | K6: 0.025 | L6: 0.025 | M6: 0.025 | N6: 0.025 | O6: 0.025 | P6: 0.025 | Q6: 0.025 | R6: 0.025 | S6: 0.025 | T6: 0.025 | U6: 0.025 | V6: 0.025 | W6: 0.025 | X6: 0.025 | Y6: 0.025 | Z6: 0.025 | AA6: 0.025 | AB6: 0.025 | AC6: 0.025 | AD6: 0.025 | AE6: 0.025 | AF6: 0.025 | AG6: 0.025 | AH6: 0.025 | AI6: 0.025 | AJ6: 0.025 | AK6: 0.025 | AL6: 0.025 | AM6: 0.025 | AN6: 0.025 | AO6: 0.025 | AP6: 0.025 | AQ6: 0.025 | AR6: 0.025 | AS6: 0.025 | AT6: 0.025 | AU6: 0.025 | AV6: 0.025 | AW6: 0.025 | AX6: 0.025 | AY6: 0.025 | AZ6: 0.025 | BA6: 0.025 | BB6: 0.025 | BC6: 0.025 | BD6: 0.025 | BE6: 0.025 | BF6: 0.025 | BG6: 0.025 | BH6: 0.025 | BI6: 0.025
B7: Cumulative Inflation Index (CPI end period) | F7: 1 | G7: =F7*(1+G6) -> 1.025 | H7: =G7*(1+H6) -> 1.050625 | I7: =H7*(1+I6) -> 1.076890625 | J7: =I7*(1+J6) -> 1.103812891 | K7: 1.131408213 | L7: 1.159693418 | M7: 1.188685754 | N7: 1.218402898 | O7: 1.24886297 | P7: =O7*(1+P6) -> 1.280084544 | Q7: 1.312086658 | R7: 1.344888824 | S7: 1.378511045 | T7: 1.412973821 | U7: 1.448298166 | V7: 1.484505621 | W7: 1.521618261 | X7: 1.559658718 | Y7: 1.598650186 | Z7: 1.63861644 | AA7: 1.679581851 | AB7: 1.721571398 | AC7: 1.764610683 | AD7: 1.80872595 | AE7: 1.853944098 | AF7: 1.900292701 | AG7: 1.947800018 | AH7: 1.996495019 | AI7: 2.046407394 | AJ7: 2.097567579 | AK7: 2.150006769 | AL7: 2.203756938 | AM7: 2.258850861 | AN7: 2.315322133 | AO7: 2.373205186 | AP7: 2.432535316 | AQ7: 2.493348699 | AR7: 2.555682416 | AS7: 2.619574476 | AT7: 2.685063838 | AU7: 2.752190434 | AV7: 2.820995195 | AW7: 2.891520075 | AX7: 2.963808077 | AY7: 3.037903279 | AZ7: 3.113850861 | BA7: 3.191697132 | BB7: 3.271489561 | BC7: 3.3532768 | BD7: 3.43710872 | BE7: 3.523036438 | BF7: 3.611112349 | BG7: 3.701390157 | BH7: 3.793924911 | BI7: 3.888773034
B9: Opening Regulated Asset Base | F9: =RAB -> 1016.514595
B10: Real Capex | G10: =SUM(G11:G40) -> 49.19471277 | H10: =SUM(H11:H40) -> 32.7952423 | I10: =SUM(I11:I40) -> 34.56226787 | J10: 36.89756907 | K10: 28.20686846 | L10: 0 | M10: 0 | N10: 0 | O10: 0 | P10: 0
C11: =Asset1 -> Transmission and distribution | G11: =Input!G143*(1+rvanilla)^0.5 -> 9.126692888 | H11: =Input!H143*(1+rvanilla)^0.5 -> 7.945045913 | I11: =Input!I143*(1+rvanilla)^0.5 -> 11.80693393 | J11: =Input!J143*(1+rvanilla)^0.5 -> 15.20811376 | K11: =Input!K143*(1+rvanilla)^0.5 -> 10.85657459 | L11: =Input!L143*(1+rvanilla)^0.5 -> 0 | M11: =Input!M143*(1+rvanilla)^0.5 -> 0 | N11: =Input!N143*(1+rvanilla)^0.5 -> 0 | O11: =Input!O143*(1+rvanilla)^0.5 -> 0 | P11: =Input!P143*(1+rvanilla)^0.5 -> 0
C12: =Asset2 -> Services | G12: =Input!G144*(1+rvanilla)^0.5 -> 12.87859908 | H12: =Input!H144*(1+rvanilla)^0.5 -> 13.41456466 | I12: =Input!I144*(1+rvanilla)^0.5 -> 13.38635663 | J12: =Input!J144*(1+rvanilla)^0.5 -> 11.55154659 | K12: =Input!K144*(1+rvanilla)^0.5 -> 11.58761894 | L12: =Input!L144*(1+rvanilla)^0.5 -> 0 | M12: =Input!M144*(1+rvanilla)^0.5 -> 0 | N12: =Input!N144*(1+rvanilla)^0.5 -> 0 | O12: =Input!O144*(1+rvanilla)^0.5 -> 0 | P12: =Input!P144*(1+rvanilla)^0.5 -> 0
C13: =Asset3 -> Cathodic Protection | G13: =Input!G145*(1+rvanilla)^0.5 -> 0.1891550944 | H13: =Input!H145*(1+rvanilla)^0.5 -> 0.1891550944 | I13: =Input!I145*(1+rvanilla)^0.5 -> 0.1891550944 | J13: =Input!J145*(1+rvanilla)^0.5 -> 0.1891550944 | K13: =Input!K145*(1+rvanilla)^0.5 -> 0.1891550944 | L13: =Input!L145*(1+rvanilla)^0.5 -> 0 | M13: =Input!M145*(1+rvanilla)^0.5 -> 0 | N13: =Input!N145*(1+rvanilla)^0.5 -> 0 | O13: =Input!O145*(1+rvanilla)^0.5 -> 0 | P13: =Input!P145*(1+rvanilla)^0.5 -> 0
C14: =Asset4 -> Suppy Regs/Valve stations | G14: =Input!G146*(1+rvanilla)^0.5 -> 1.365779294 | H14: =Input!H146*(1+rvanilla)^0.5 -> 1.467768696 | I14: =Input!I146*(1+rvanilla)^0.5 -> 1.492512227 | J14: =Input!J146*(1+rvanilla)^0.5 -> 1.486990943 | K14: =Input!K146*(1+rvanilla)^0.5 -> 0.8530979693 | L14: =Input!L146*(1+rvanilla)^0.5 -> 0 | M14: =Input!M146*(1+rvanilla)^0.5 -> 0 | N14: =Input!N146*(1+rvanilla)^0.5 -> 0 | O14: =Input!O146*(1+rvanilla)^0.5 -> 0 | P14: =Input!P146*(1+rvanilla)^0.5 -> 0
C15: =Asset5 -> Meters | G15: =Input!G147*(1+rvanilla)^0.5 -> 3.093818314 | H15: =Input!H147*(1+rvanilla)^0.5 -> 3.087955415 | I15: =Input!I147*(1+rvanilla)^0.5 -> 3.054980773 | J15: =Input!J147*(1+rvanilla)^0.5 -> 3.021360949 | K15: =Input!K147*(1+rvanilla)^0.5 -> 3.031390649 | L15: =Input!L147*(1+rvanilla)^0.5 -> 0 | M15: =Input!M147*(1+rvanilla)^0.5 -> 0 | N15: =Input!N147*(1+rvanilla)^0.5 -> 0 | O15: =Input!O147*(1+rvanilla)^0.5 -> 0 | P15: =Input!P147*(1+rvanilla)^0.5 -> 0
C16: =Asset6 -> Land | G16: =Input!G148*(1+rvanilla)^0.5 -> 0 | H16: =Input!H148*(1+rvanilla)^0.5 -> 0 | I16: =Input!I148*(1+rvanilla)^0.5 -> 0 | J16: =Input!J148*(1+rvanilla)^0.5 -> 0 | K16: =Input!K148*(1+rvanilla)^0.5 -> 0 | L16: =Input!L148*(1+rvanilla)^0.5 -> 0 | M16: =Input!M148*(1+rvanilla)^0.5 -> 0 | N16: =Input!N148*(1+rvanilla)^0.5 -> 0 | O16: =Input!O148*(1+rvanilla)^0.5 -> 0 | P16: =Input!P148*(1+rvanilla)^0.5 -> 0
C17: =Asset7 -> IT | G17: =Input!G149*(1+rvanilla)^0.5 -> 18.87856906 | H17: =Input!H149*(1+rvanilla)^0.5 -> 6.569348575 | I17: =Input!I149*(1+rvanilla)^0.5 -> 4.580040626 | J17: =Input!J149*(1+rvanilla)^0.5 -> 5.408648239 | K17: =Input!K149*(1+rvanilla)^0.5 -> 1.647010535 | L17: =Input!L149*(1+rvanilla)^0.5 -> 0 | M17: =Input!M149*(1+rvanilla)^0.5 -> 0 | N17: =Input!N149*(1+rvanilla)^0.5 -> 0 | O17: =Input!O149*(1+rvanilla)^0.5 -> 0 | P17: =Input!P149*(1+rvanilla)^0.5 -> 0
C18: =Asset8 -> SCADA | G18: =Input!G150*(1+rvanilla)^0.5 -> 0.1905209311 | H18: =Input!H150*(1+rvanilla)^0.5 -> 0.1111372098 | I18: =Input!I150*(1+rvanilla)^0.5 -> 0.03175348851 | J18: =Input!J150*(1+rvanilla)^0.5 -> 0.03175348851 | K18: =Input!K150*(1+rvanilla)^0.5 -> 0.03175348851 | L18: =Input!L150*(1+rvanilla)^0.5 -> 0 | M18: =Input!M150*(1+rvanilla)^0.5 -> 0 | N18: =Input!N150*(1+rvanilla)^0.5 -> 0 | O18: =Input!O150*(1+rvanilla)^0.5 -> 0 | P18: =Input!P150*(1+rvanilla)^0.5 -> 0
C19: =Asset9 -> Other | G19: =Input!G151*(1+rvanilla)^0.5 -> 0.09746020784 | H19: =Input!H151*(1+rvanilla)^0.5 -> 0.01026673865 | I19: =Input!I151*(1+rvanilla)^0.5 -> 0.02053509876 | J19: =Input!J151*(1+rvanilla)^0.5 -> 0 | K19: =Input!K151*(1+rvanilla)^0.5 -> 0.01026719631 | L19: =Input!L151*(1+rvanilla)^0.5 -> 0 | M19: =Input!M151*(1+rvanilla)^0.5 -> 0 | N19: =Input!N151*(1+rvanilla)^0.5 -> 0 | O19: =Input!O151*(1+rvanilla)^0.5 -> 0 | P19: =Input!P151*(1+rvanilla)^0.5 -> 0
C20: =Asset10 -> Pipeworks retirement | G20: =Input!G152*(1+rvanilla)^0.5 -> 0 | H20: =Input!H152*(1+rvanilla)^0.5 -> 0 | I20: =Input!I152*(1+rvanilla)^0.5 -> 0 | J20: =Input!J152*(1+rvanilla)^0.5 -> 0 | K20: =Input!K152*(1+rvanilla)^0.5 -> 0 | L20: =Input!L152*(1+rvanilla)^0.5 -> 0 | M20: =Input!M152*(1+rvanilla)^0.5 -> 0 | N20: =Input!N152*(1+rvanilla)^0.5 -> 0 | O20: =Input!O152*(1+rvanilla)^0.5 -> 0 | P20: =Input!P152*(1+rvanilla)^0.5 -> 0
C21: =Asset11 -> Pipeworks retirement | G21: =Input!G153*(1+rvanilla)^0.5 -> 0 | H21: =Input!H153*(1+rvanilla)^0.5 -> 0 | I21: =Input!I153*(1+rvanilla)^0.5 -> 0 | J21: =Input!J153*(1+rvanilla)^0.5 -> 0 | K21: =Input!K153*(1+rvanilla)^0.5 -> 0 | L21: =Input!L153*(1+rvanilla)^0.5 -> 0 | M21: =Input!M153*(1+rvanilla)^0.5 -> 0 | N21: =Input!N153*(1+rvanilla)^0.5 -> 0 | O21: =Input!O153*(1+rvanilla)^0.5 -> 0 | P21: =Input!P153*(1+rvanilla)^0.5 -> 0
C22: =Asset12 -> Buildings | G22: =Input!G154*(1+rvanilla)^0.5 -> 3.374117901 | H22: =Input!H154*(1+rvanilla)^0.5 -> 0 | I22: =Input!I154*(1+rvanilla)^0.5 -> 0 | J22: =Input!J154*(1+rvanilla)^0.5 -> 0 | K22: =Input!K154*(1+rvanilla)^0.5 -> 0 | L22: =Input!L154*(1+rvanilla)^0.5 -> 0 | M22: =Input!M154*(1+rvanilla)^0.5 -> 0 | N22: =Input!N154*(1+rvanilla)^0.5 -> 0 | O22: =Input!O154*(1+rvanilla)^0.5 -> 0 | P22: =Input!P154*(1+rvanilla)^0.5 -> 0
C23: =Asset13 -> 0 | G23: =Input!G155*(1+rvanilla)^0.5 -> 0 | H23: =Input!H155*(1+rvanilla)^0.5 -> 0 | I23: =Input!I155*(1+rvanilla)^0.5 -> 0 | J23: =Input!J155*(1+rvanilla)^0.5 -> 0 | K23: =Input!K155*(1+rvanilla)^0.5 -> 0 | L23: =Input!L155*(1+rvanilla)^0.5 -> 0 | M23: =Input!M155*(1+rvanilla)^0.5 -> 0 | N23: =Input!N155*(1+rvanilla)^0.5 -> 0 | O23: =Input!O155*(1+rvanilla)^0.5 -> 0 | P23: =Input!P155*(1+rvanilla)^0.5 -> 0
C24: =Asset14 -> 0 | G24: =Input!G156*(1+rvanilla)^0.5 -> 0 | H24: =Input!H156*(1+rvanilla)^0.5 -> 0 | I24: =Input!I156*(1+rvanilla)^0.5 -> 0 | J24: =Input!J156*(1+rvanilla)^0.5 -> 0 | K24: =Input!K156*(1+rvanilla)^0.5 -> 0 | L24: =Input!L156*(1+rvanilla)^0.5 -> 0 | M24: =Input!M156*(1+rvanilla)^0.5 -> 0 | N24: =Input!N156*(1+rvanilla)^0.5 -> 0 | O24: =Input!O156*(1+rvanilla)^0.5 -> 0 | P24: =Input!P156*(1+rvanilla)^0.5 -> 0
C25: =Asset15 -> 0 | G25: =Input!G157*(1+rvanilla)^0.5 -> 0 | H25: =Input!H157*(1+rvanilla)^0.5 -> 0 | I25: =Input!I157*(1+rvanilla)^0.5 -> 0 | J25: =Input!J157*(1+rvanilla)^0.5 -> 0 | K25: =Input!K157*(1+rvanilla)^0.5 -> 0 | L25: =Input!L157*(1+rvanilla)^0.5 -> 0 | M25: =Input!M157*(1+rvanilla)^0.5 -> 0 | N25: =Input!N157*(1+rvanilla)^0.5 -> 0 | O25: =Input!O157*(1+rvanilla)^0.5 -> 0 | P25: =Input!P157*(1+rvanilla)^0.5 -> 0
C26: =Asset16 -> 0 | G26: =Input!G158*(1+rvanilla)^0.5 -> 0 | H26: =Input!H158*(1+rvanilla)^0.5 -> 0 | I26: =Input!I158*(1+rvanilla)^0.5 -> 0 | J26: =Input!J158*(1+rvanilla)^0.5 -> 0 | K26: =Input!K158*(1+rvanilla)^0.5 -> 0 | L26: =Input!L158*(1+rvanilla)^0.5 -> 0 | M26: =Input!M158*(1+rvanilla)^0.5 -> 0 | N26: =Input!N158*(1+rvanilla)^0.5 -> 0 | O26: =Input!O158*(1+rvanilla)^0.5 -> 0 | P26: =Input!P158*(1+rvanilla)^0.5 -> 0
C27: =Asset17 -> 0 | G27: =Input!G159*(1+rvanilla)^0.5 -> 0 | H27: =Input!H159*(1+rvanilla)^0.5 -> 0 | I27: =Input!I159*(1+rvanilla)^0.5 -> 0 | J27: =Input!J159*(1+rvanilla)^0.5 -> 0 | K27: =Input!K159*(1+rvanilla)^0.5 -> 0 | L27: =Input!L159*(1+rvanilla)^0.5 -> 0 | M27: =Input!M159*(1+rvanilla)^0.5 -> 0 | N27: =Input!N159*(1+rvanilla)^0.5 -> 0 | O27: =Input!O159*(1+rvanilla)^0.5 -> 0 | P27: =Input!P159*(1+rvanilla)^0.5 -> 0
C28: =Asset18 -> 0 | G28: =Input!G160*(1+rvanilla)^0.5 -> 0 | H28: =Input!H160*(1+rvanilla)^0.5 -> 0 | I28: =Input!I160*(1+rvanilla)^0.5 -> 0 | J28: =Input!J160*(1+rvanilla)^0.5 -> 0 | K28: =Input!K160*(1+rvanilla)^0.5 -> 0 | L28: =Input!L160*(1+rvanilla)^0.5 -> 0 | M28: =Input!M160*(1+rvanilla)^0.5 -> 0 | N28: =Input!N160*(1+rvanilla)^0.5 -> 0 | O28: =Input!O160*(1+rvanilla)^0.5 -> 0 | P28: =Input!P160*(1+rvanilla)^0.5 -> 0
C29: =Asset19 -> 0 | G29: =Input!G161*(1+rvanilla)^0.5 -> 0 | H29: =Input!H161*(1+rvanilla)^0.5 -> 0 | I29: =Input!I161*(1+rvanilla)^0.5 -> 0 | J29: =Input!J161*(1+rvanilla)^0.5 -> 0 | K29: =Input!K161*(1+rvanilla)^0.5 -> 0 | L29: =Input!L161*(1+rvanilla)^0.5 -> 0 | M29: =Input!M161*(1+rvanilla)^0.5 -> 0 | N29: =Input!N161*(1+rvanilla)^0.5 -> 0 | O29: =Input!O161*(1+rvanilla)^0.5 -> 0 | P29: =Input!P161*(1+rvanilla)^0.5 -> 0
C30: =Asset20 -> 0 | G30: =Input!G162*(1+rvanilla)^0.5 -> 0 | H30: =Input!H162*(1+rvanilla)^0.5 -> 0 | I30: =Input!I162*(1+rvanilla)^0.5 -> 0 | J30: =Input!J162*(1+rvanilla)^0.5 -> 0 | K30: =Input!K162*(1+rvanilla)^0.5 -> 0 | L30: =Input!L162*(1+rvanilla)^0.5 -> 0 | M30: =Input!M162*(1+rvanilla)^0.5 -> 0 | N30: =Input!N162*(1+rvanilla)^0.5 -> 0 | O30: =Input!O162*(1+rvanilla)^0.5 -> 0 | P30: =Input!P162*(1+rvanilla)^0.5 -> 0
C31: =Asset21 -> 0 | G31: =Input!G163*(1+rvanilla)^0.5 -> 0 | H31: =Input!H163*(1+rvanilla)^0.5 -> 0 | I31: =Input!I163*(1+rvanilla)^0.5 -> 0 | J31: =Input!J163*(1+rvanilla)^0.5 -> 0 | K31: =Input!K163*(1+rvanilla)^0.5 -> 0 | L31: =Input!L163*(1+rvanilla)^0.5 -> 0 | M31: =Input!M163*(1+rvanilla)^0.5 -> 0 | N31: =Input!N163*(1+rvanilla)^0.5 -> 0 | O31: =Input!O163*(1+rvanilla)^0.5 -> 0 | P31: =Input!P163*(1+rvanilla)^0.5 -> 0
C32: =Asset22 -> 0 | G32: =Input!G164*(1+rvanilla)^0.5 -> 0 | H32: =Input!H164*(1+rvanilla)^0.5 -> 0 | I32: =Input!I164*(1+rvanilla)^0.5 -> 0 | J32: =Input!J164*(1+rvanilla)^0.5 -> 0 | K32: =Input!K164*(1+rvanilla)^0.5 -> 0 | L32: =Input!L164*(1+rvanilla)^0.5 -> 0 | M32: =Input!M164*(1+rvanilla)^0.5 -> 0 | N32: =Input!N164*(1+rvanilla)^0.5 -> 0 | O32: =Input!O164*(1+rvanilla)^0.5 -> 0 | P32: =Input!P164*(1+rvanilla)^0.5 -> 0
C33: =Asset23 -> 0 | G33: =Input!G165*(1+rvanilla)^0.5 -> 0 | H33: =Input!H165*(1+rvanilla)^0.5 -> 0 | I33: =Input!I165*(1+rvanilla)^0.5 -> 0 | J33: =Input!J165*(1+rvanilla)^0.5 -> 0 | K33: =Input!K165*(1+rvanilla)^0.5 -> 0 | L33: =Input!L165*(1+rvanilla)^0.5 -> 0 | M33: =Input!M165*(1+rvanilla)^0.5 -> 0 | N33: =Input!N165*(1+rvanilla)^0.5 -> 0 | O33: =Input!O165*(1+rvanilla)^0.5 -> 0 | P33: =Input!P165*(1+rvanilla)^0.5 -> 0
C34: =Asset24 -> 0 | G34: =Input!G166*(1+rvanilla)^0.5 -> 0 | H34: =Input!H166*(1+rvanilla)^0.5 -> 0 | I34: =Input!I166*(1+rvanilla)^0.5 -> 0 | J34: =Input!J166*(1+rvanilla)^0.5 -> 0 | K34: =Input!K166*(1+rvanilla)^0.5 -> 0 | L34: =Input!L166*(1+rvanilla)^0.5 -> 0 | M34: =Input!M166*(1+rvanilla)^0.5 -> 0 | N34: =Input!N166*(1+rvanilla)^0.5 -> 0 | O34: =Input!O166*(1+rvanilla)^0.5 -> 0 | P34: =Input!P166*(1+rvanilla)^0.5 -> 0
C35: =Asset25 -> 0 | G35: =Input!G167*(1+rvanilla)^0.5 -> 0 | H35: =Input!H167*(1+rvanilla)^0.5 -> 0 | I35: =Input!I167*(1+rvanilla)^0.5 -> 0 | J35: =Input!J167*(1+rvanilla)^0.5 -> 0 | K35: =Input!K167*(1+rvanilla)^0.5 -> 0 | L35: =Input!L167*(1+rvanilla)^0.5 -> 0 | M35: =Input!M167*(1+rvanilla)^0.5 -> 0 | N35: =Input!N167*(1+rvanilla)^0.5 -> 0 | O35: =Input!O167*(1+rvanilla)^0.5 -> 0 | P35: =Input!P167*(1+rvanilla)^0.5 -> 0
C36: =Asset26 -> 0 | G36: =Input!G168*(1+rvanilla)^0.5 -> 0 | H36: =Input!H168*(1+rvanilla)^0.5 -> 0 | I36: =Input!I168*(1+rvanilla)^0.5 -> 0 | J36: =Input!J168*(1+rvanilla)^0.5 -> 0 | K36: =Input!K168*(1+rvanilla)^0.5 -> 0 | L36: =Input!L168*(1+rvanilla)^0.5 -> 0 | M36: =Input!M168*(1+rvanilla)^0.5 -> 0 | N36: =Input!N168*(1+rvanilla)^0.5 -> 0 | O36: =Input!O168*(1+rvanilla)^0.5 -> 0 | P36: =Input!P168*(1+rvanilla)^0.5 -> 0
C37: =Asset27 -> 0 | G37: =Input!G169*(1+rvanilla)^0.5 -> 0 | H37: =Input!H169*(1+rvanilla)^0.5 -> 0 | I37: =Input!I169*(1+rvanilla)^0.5 -> 0 | J37: =Input!J169*(1+rvanilla)^0.5 -> 0 | K37: =Input!K169*(1+rvanilla)^0.5 -> 0 | L37: =Input!L169*(1+rvanilla)^0.5 -> 0 | M37: =Input!M169*(1+rvanilla)^0.5 -> 0 | N37: =Input!N169*(1+rvanilla)^0.5 -> 0 | O37: =Input!O169*(1+rvanilla)^0.5 -> 0 | P37: =Input!P169*(1+rvanilla)^0.5 -> 0
C38: =Asset28 -> 0 | G38: =Input!G170*(1+rvanilla)^0.5 -> 0 | H38: =Input!H170*(1+rvanilla)^0.5 -> 0 | I38: =Input!I170*(1+rvanilla)^0.5 -> 0 | J38: =Input!J170*(1+rvanilla)^0.5 -> 0 | K38: =Input!K170*(1+rvanilla)^0.5 -> 0 | L38: =Input!L170*(1+rvanilla)^0.5 -> 0 | M38: =Input!M170*(1+rvanilla)^0.5 -> 0 | N38: =Input!N170*(1+rvanilla)^0.5 -> 0 | O38: =Input!O170*(1+rvanilla)^0.5 -> 0 | P38: =Input!P170*(1+rvanilla)^0.5 -> 0
C39: =Asset29 -> 0 | G39: =Input!G171*(1+rvanilla)^0.5 -> 0 | H39: =Input!H171*(1+rvanilla)^0.5 -> 0 | I39: =Input!I171*(1+rvanilla)^0.5 -> 0 | J39: =Input!J171*(1+rvanilla)^0.5 -> 0 | K39: =Input!K171*(1+rvanilla)^0.5 -> 0 | L39: =Input!L171*(1+rvanilla)^0.5 -> 0 | M39: =Input!M171*(1+rvanilla)^0.5 -> 0 | N39: =Input!N171*(1+rvanilla)^0.5 -> 0 | O39: =Input!O171*(1+rvanilla)^0.5 -> 0 | P39: =Input!P171*(1+rvanilla)^0.5 -> 0
C40: =Asset30 -> 0 | G40: =Input!G172*(1+rvanilla)^0.5 -> 0 | H40: =Input!H172*(1+rvanilla)^0.5 -> 0 | I40: =Input!I172*(1+rvanilla)^0.5 -> 0 | J40: =Input!J172*(1+rvanilla)^0.5 -> 0 | K40: =Input!K172*(1+rvanilla)^0.5 -> 0 | L40: =Input!L172*(1+rvanilla)^0.5 -> 0 | M40: =Input!M172*(1+rvanilla)^0.5 -> 0 | N40: =Input!N172*(1+rvanilla)^0.5 -> 0 | O40: =Input!O172*(1+rvanilla)^0.5 -> 0 | P40: =Input!P172*(1+rvanilla)^0.5 -> 0
B41: Nominal Capex | G41: =SUM(G42:G71) -> 50.42458059 | H41: =SUM(H42:H71) -> 34.45550145 | I41: 37.21978225 | J41: 40.72801237 | K41: 31.91348264 | L41: 0 | M41: 0 | N41: 0 | O41: 0 | P41: 0
C42: =Asset1 -> Transmission and distribution | G42: =G11*G$7 -> 9.35486021 | H42: =H11*H$7 -> 8.347263862 | I42: 12.71477646 | J42: 16.78691201 | K42: 12.28321765 | L42: 0 | M42: 0 | N42: 0 | O42: 0 | P42: 0
C43: =Asset2 -> Services | G43: 13.20056406 | H43: =H12*H$7 -> 14.093677 | I43: 14.41564196 | J43: 12.75074603 | K43: 13.11032724 | L43: 0 | M43: 0 | N43: 0 | O43: 0 | P43: 0
C44: =Asset3 -> Cathodic Protection | G44: 0.1938839718 | H44: =H13*H$7 -> 0.1987310711 | I44: 0.2036993479 | J44: =J13*J$7 -> 0.2087918316 | K44: 0.2140116274 | L44: 0 | M44: 0 | N44: 0 | O44: 0 | P44: 0
C45: =Asset4 -> Suppy Regs/Valve stations | G45: 1.399923776 | H45: =H14*H$7 -> 1.542074486 | I45: =I14*I$7 -> 1.607272425 | J45: 1.641359771 | K45: 0.9652020489 | L45: 0 | M45: 0 | N45: 0 | O45: 0 | P45: 0
C46: =Asset5 -> Meters | G46: 3.171163771 | H46: =H15*H$7 -> 3.244283158 | I46: 3.289880154 | J46: 3.335017163 | K46: 3.429740276 | L46: 0 | M46: 0 | N46: 0 | O46: 0 | P46: 0
C47: =Asset6 -> Land | G47: 0 | H47: =H16*H$7 -> 0 | I47: 0 | J47: 0 | K47: 0 | L47: 0 | M47: 0 | N47: 0 | O47: 0 | P47: 0
C48: =Asset7 -> IT | G48: 19.35053329 | H48: =H17*H$7 -> 6.901921847 | I48: 4.932202812 | J48: 5.970135647 | K48: 1.863441247 | L48: 0 | M48: 0 | N48: 0 | O48: 0 | P48: 0
C49: =Asset8 -> SCADA | G49: 0.1952839543 | H49: =H18*H$7 -> 0.116763531 | I49: 0.03419503409 | J49: 0.03504990994 | K49: 0.03592615769 | L49: 0 | M49: 0 | N49: 0 | O49: 0 | P49: 0
C50: =Asset9 -> Other | G50: 0.09989671304 | H50: =H19*H$7 -> 0.01078649229 | I50: 0.02211405534 | J50: 0 | K50: 0.01161639023 | L50: 0 | M50: 0 | N50: 0 | O50: 0 | P50: 0
C51: =Asset10 -> Pipeworks retirement | G51: 0 | H51: =H20*H$7 -> 0 | I51: 0 | J51: 0 | K51: 0 | L51: 0 | M51: 0 | N51: 0 | O51: 0 | P51: 0
C52: =Asset11 -> Pipeworks retirement | G52: 0 | H52: =H21*H$7 -> 0 | I52: 0 | J52: 0 | K52: 0 | L52: 0 | M52: 0 | N52: 0 | O52: 0 | P52: 0
C53: =Asset12 -> Buildings | G53: 3.458470849 | H53: =H22*H$7 -> 0 | I53: 0 | J53: 0 | K53: 0 | L53: 0 | M53: 0 | N53: 0 | O53: 0 | P53: 0
C54: =Asset13 -> 0 | G54: 0 | H54: =H23*H$7 -> 0 | I54: 0 | J54: 0 | K54: 0 | L54: 0 | M54: 0 | N54: 0 | O54: 0 | P54: 0
C55: =Asset14 -> 0 | G55: 0 | H55: =H24*H$7 -> 0 | I55: 0 | J55: 0 | K55: 0 | L55: 0 | M55: 0 | N55: 0 | O55: 0 | P55: 0
C56: =Asset15 -> 0 | G56: 0 | H56: =H25*H$7 -> 0 | I56: 0 | J56: 0 | K56: 0 | L56: 0 | M56: 0 | N56: 0 | O56: 0 | P56: 0
C57: =Asset16 -> 0 | G57: 0 | H57: =H26*H$7 -> 0 | I57: 0 | J57: 0 | K57: =K26*K$7 -> 0 | L57: 0 | M57: 0 | N57: 0 | O57: 0 | P57: 0
C58: =Asset17 -> 0 | G58: 0 | H58: =H27*H$7 -> 0 | I58: 0 | J58: 0 | K58: 0 | L58: 0 | M58: 0 | N58: 0 | O58: 0 | P58: 0
C59: =Asset18 -> 0 | G59: 0 | H59: =H28*H$7 -> 0 | I59: 0 | J59: 0 | K59: 0 | L59: 0 | M59: 0 | N59: 0 | O59: 0 | P59: 0
C60: =Asset19 -> 0 | G60: 0 | H60: =H29*H$7 -> 0 | I60: 0 | J60: 0 | K60: 0 | L60: 0 | M60: 0 | N60: 0 | O60: 0 | P60: 0
C61: =Asset20 -> 0 | G61: 0 | H61: =H30*H$7 -> 0 | I61: 0 | J61: 0 | K61: 0 | L61: 0 | M61: 0 | N61: 0 | O61: 0 | P61: 0
C62: =Asset21 -> 0 | G62: 0 | H62: =H31*H$7 -> 0 | I62: 0 | J62: 0 | K62: 0 | L62: 0 | M62: 0 | N62: 0 | O62: 0 | P62: 0
C63: =Asset22 -> 0 | G63: 0 | H63: =H32*H$7 -> 0 | I63: 0 | J63: 0 | K63: 0 | L63: 0 | M63: 0 | N63: 0 | O63: 0 | P63: 0
C64: =Asset23 -> 0 | G64: 0 | H64: =H33*H$7 -> 0 | I64: 0 | J64: 0 | K64: 0 | L64: 0 | M64: 0 | N64: 0 | O64: 0 | P64: 0
C65: =Asset24 -> 0 | G65: 0 | H65: =H34*H$7 -> 0 | I65: 0 | J65: 0 | K65: 0 | L65: 0 | M65: 0 | N65: 0 | O65: 0 | P65: 0
C66: =Asset25 -> 0 | G66: 0 | H66: =H35*H$7 -> 0 | I66: 0 | J66: 0 | K66: 0 | L66: 0 | M66: 0 | N66: 0 | O66: 0 | P66: 0
C67: =Asset26 -> 0 | G67: 0 | H67: =H36*H$7 -> 0 | I67: 0 | J67: 0 | K67: 0 | L67: 0 | M67: 0 | N67: 0 | O67: 0 | P67: 0
C68: =Asset27 -> 0 | G68: 0 | H68: =H37*H$7 -> 0 | I68: 0 | J68: 0 | K68: 0 | L68: 0 | M68: 0 | N68: 0 | O68: 0 | P68: 0
C69: =Asset28 -> 0 | G69: 0 | H69: =H38*H$7 -> 0 | I69: 0 | J69: 0 | K69: 0 | L69: 0 | M69: 0 | N69: 0 | O69: 0 | P69: 0
C70: =Asset29 -> 0 | G70: =G39*G$7 -> 0 | H70: 0 | I70: 0 | J70: 0 | K70: 0 | L70: 0 | M70: 0 | N70: 0 | O70: 0 | P70: 0
C71: =Asset30 -> 0 | G71: =G40*G$7 -> 0 | H71: 0 | I71: 0 | J71: 0 | K71: 0 | L71: 0 | M71: 0 | N71: 0 | O71: 0 | P71: 0
B73: Real Asset Values
B75: Real Straight-line Depreciation | G75: =G88+G101+G114+G127+G140+G153+G166+G179+G192+G205+G218+G231+G244+G257+G270+G283+G296+G309+G322+G335+G348+G361+G374+G387+G400+G413+G426+G439+G452+G465 -> 39.28802587 | H75: =H88+H101+H114+H127+H140+H153+H166+H179+H192+H205+H218+H231+H244+H257+H270+H283+H296+H309+H322+H335+H348+H361+H374+H387+H400+H413+H426+H439+H452+H465 -> 44.69872984 | I75: =I88+I101+I114+I127+I140+I153+I166+I179+I192+I205+I218+I231+I244+I257+I270+I283+I296+I309+I322+I335+I348+I361+I374+I387+I400+I413+I426+I439+I452+I465 -> 46.58429791 | J75: 48.14380829 | K75: 49.897083 | L75: 48.61602025 | M75: 44.78663361 | N75: 43.47081403 | O75: 42.5548059 | P75: 41.47307625 | Q75: 36.10051588 | R75: 31.86148655 | S75: 31.86045987 | T75: 31.85840636 | U75: 31.85840636 | V75: 31.85737964 | W75: 31.84467825 | X75: 31.8372691 | Y75: 31.0645971 | Z75: 30.58645783 | AA75: 30.58434093 | AB75: 30.58434093 | AC75: 30.58434093 | AD75: 30.58434093 | AE75: 30.58434093 | AF75: 30.58434093 | AG75: 30.58434093 | AH75: 30.58434093 | AI75: 30.58434093 | AJ75: 30.58434093 | AK75: 25.60289505 | AL75: 18.57265187 | AM75: 18.46972002 | AN75: 10.19418399 | AO75: 2.697626067 | AP75: 2.596579712 | AQ75: 2.596579712 | AR75: 2.596579712 | AS75: 2.596579712 | AT75: 2.596579712 | AU75: 2.596579712 | AV75: 2.596579712 | AW75: 2.596579712 | AX75: 2.596579712 | AY75: 2.596579712 | AZ75: 2.586818345 | BA75: 2.57496179 | BB75: 2.57496179 | BC75: 2.57496179 | BD75: 2.57496179 | BE75: 2.57496179 | BF75: 2.036274905 | BG75: 1.575944217 | BH75: 1.03844506 | BI75: 0.4697289319
B76: =C88 -> Transmission and distribution | D76: Initial Asset Base | G76: =IF(G$3>A1remlife,A1value-SUM($F76:F76),IF(A1remlife="N/A","n/a",A1value/A1remlife)) -> 15.56954923 | H76: =IF(H$3>A1remlife,A1value-SUM($F76:G76),IF(A1remlife="N/A","n/a",A1value/A1remlife)) -> 15.56954923 | I76: =IF(I$3>A1remlife,A1value-SUM($F76:H76),IF(A1remlife="N/A","n/a",A1value/A1remlife)) -> 15.56954923 | J76: =IF(J$3>A1remlife,A1value-SUM($F76:I76),IF(A1remlife="N/A","n/a",A1value/A1remlife)) -> 15.56954923 | K76: =IF(K$3>A1remlife,A1value-SUM($F76:J76),IF(A1remlife="N/A","n/a",A1value/A1remlife)) -> 15.56954923 | L76: =IF(L$3>A1remlife,A1value-SUM($F76:K76),IF(A1remlife="N/A","n/a",A1value/A1remlife)) -> 15.56954923 | M76: =IF(M$3>A1remlife,A1value-SUM($F76:L76),IF(A1remlife="N/A","n/a",A1value/A1remlife)) -> 15.56954923 | N76: =IF(N$3>A1remlife,A1value-SUM($F76:M76),IF(A1remlife="N/A","n/a",A1value/A1remlife)) -> 15.56954923 | O76: =IF(O$3>A1remlife,A1value-SUM($F76:N76),IF(A1remlife="N/A","n/a",A1value/A1remlife)) -> 15.56954923 | P76: =IF(P$3>A1remlife,A1value-SUM($F76:O76),IF(A1remlife="N/A","n/a",A1value/A1remlife)) -> 15.56954923 | Q76: =IF(Q$3>A1remlife,A1value-SUM($F76:P76),IF(A1remlife="N/A","n/a",A1value/A1remlife)) -> 15.56954923 | R76: =IF(R$3>A1remlife,A1value-SUM($F76:Q76),IF(A1remlife="N/A","n/a",A1value/A1remlife)) -> 15.56954923 | S76: =IF(S$3>A1remlife,A1value-SUM($F76:R76),IF(A1remlife="N/A","n/a",A1value/A1remlife)) -> 15.56954923 | T76: =IF(T$3>A1remlife,A1value-SUM($F76:S76),IF(A1remlife="N/A","n/a",A1value/A1remlife)) -> 15.56954923 | U76: =IF(U$3>A1remlife,A1value-SUM($F76:T76),IF(A1remlife="N/A","n/a",A1value/A1remlife)) -> 15.56954923 | V76: =IF(V$3>A1remlife,A1value-SUM($F76:U76),IF(A1remlife="N/A","n/a",A1value/A1remlife)) -> 15.56954923 | W76: =IF(W$3>A1remlife,A1value-SUM($F76:V76),IF(A1remlife="N/A","n/a",A1value/A1remlife)) -> 15.56954923 | X76: =IF(X$3>A1remlife,A1value-SUM($F76:W76),IF(A1remlife="N/A","n/a",A1value/A1remlife)) -> 15.56954923 | Y76: =IF(Y$3>A1remlife,A1value-SUM($F76:X76),IF(A1remlife="N/A","n/a",A1value/A1remlife)) -> 15.56954923 | Z76: =IF(Z$3>A1remlife,A1value-SUM($F76:Y76),IF(A1remlife="N/A","n/a",A1value/A1remlife)) -> 15.56954923 | AA76: =IF(AA$3>A1remlife,A1value-SUM($F76:Z76),IF(A1remlife="N/A","n/a",A1value/A1remlife)) -> 15.56954923 | AB76: =IF(AB$3>A1remlife,A1value-SUM($F76:AA76),IF(A1remlife="N/A","n/a",A1value/A1remlife)) -> 15.56954923 | AC76: =IF(AC$3>A1remlife,A1value-SUM($F76:AB76),IF(A1remlife="N/A","n/a",A1value/A1remlife)) -> 15.56954923 | AD76: =IF(AD$3>A1remlife,A1value-SUM($F76:AC76),IF(A1remlife="N/A","n/a",A1value/A1remlife)) -> 15.56954923 | AE76: =IF(AE$3>A1remlife,A1value-SUM($F76:AD76),IF(A1remlife="N/A","n/a",A1value/A1remlife)) -> 15.56954923 | AF76: =IF(AF$3>A1remlife,A1value-SUM($F76:AE76),IF(A1remlife="N/A","n/a",A1value/A1remlife)) -> 15.56954923 | AG76: =IF(AG$3>A1remlife,A1value-SUM($F76:AF76),IF(A1remlife="N/A","n/a",A1value/A1remlife)) -> 15.56954923 | AH76: =IF(AH$3>A1remlife,A1value-SUM($F76:AG76),IF(A1remlife="N/A","n/a",A1value/A1remlife)) -> 15.56954923 | AI76: =IF(AI$3>A1remlife,A1value-SUM($F76:AH76),IF(A1remlife="N/A","n/a",A1value/A1remlife)) -> 15.56954923 | AJ76: =IF(AJ$3>A1remlife,A1value-SUM($F76:AI76),IF(A1remlife="N/A","n/a",A1value/A1remlife)) -> 15.56954923 | AK76: =IF(AK$3>A1remlife,A1value-SUM($F76:AJ76),IF(A1remlife="N/A","n/a",A1value/A1remlife)) -> 15.56954923 | AL76: =IF(AL$3>A1remlife,A1value-SUM($F76:AK76),IF(A1remlife="N/A","n/a",A1value/A1remlife)) -> 15.56954923 | AM76: =IF(AM$3>A1remlife,A1value-SUM($F76:AL76),IF(A1remlife="N/A","n/a",A1value/A1remlife)) -> 15.56954923 | AN76: =IF(AN$3>A1remlife,A1value-SUM($F76:AM76),IF(A1remlife="N/A","n/a",A1value/A1remlife)) -> 7.395845894 | AO76: =IF(AO$3>A1remlife,A1value-SUM($F76:AN76),IF(A1remlife="N/A","n/a",A1value/A1remlife)) -> 0 | AP76: =IF(AP$3>A1remlife,A1value-SUM($F76:AO76),IF(A1remlife="N/A","n/a",A1value/A1remlife)) -> 0 | AQ76: =IF(AQ$3>A1remlife,A1value-SUM($F76:AP76),IF(A1remlife="N/A","n/a",A1value/A1remlife)) -> 0 | AR76: =IF(AR$3>A1remlife,A1value-SUM($F76:AQ76),IF(A1remlife="N/A","n/a",A1value/A1remlife)) -> 0 | AS76: =IF(AS$3>A1remlife,A1value-SUM($F76:AR76),IF(A1remlife="N/A","n/a",A1value/A1remlife)) -> 0 | AT76: =IF(AT$3>A1remlife,A1value-SUM($F76:AS76),IF(A1remlife="N/A","n/a",A1value/A1remlife)) -> 0 | AU76: =IF(AU$3>A1remlife,A1value-SUM($F76:AT76),IF(A1remlife="N/A","n/a",A1value/A1remlife)) -> 0 | AV76: =IF(AV$3>A1remlife,A1value-SUM($F76:AU76),IF(A1remlife="N/A","n/a",A1value/A1remlife)) -> 0 | AW76: =IF(AW$3>A1remlife,A1value-SUM($F76:AV76),IF(A1remlife="N/A","n/a",A1value/A1remlife)) -> 0 | AX76: =IF(AX$3>A1remlife,A1value-SUM($F76:AW76),IF(A1remlife="N/A","n/a",A1value/A1remlife)) -> 0 | AY76: =IF(AY$3>A1remlife,A1value-SUM($F76:AX76),IF(A1remlife="N/A","n/a",A1value/A1remlife)) -> 0 | AZ76: =IF(AZ$3>A1remlife,A1value-SUM($F76:AY76),IF(A1remlife="N/A","n/a",A1value/A1remlife)) -> 0 | BA76: =IF(BA$3>A1remlife,A1value-SUM($F76:AZ76),IF(A1remlife="N/A","n/a",A1value/A1remlife)) -> 0 | BB76: =IF(BB$3>A1remlife,A1value-SUM($F76:BA76),IF(A1remlife="N/A","n/a",A1value/A1remlife)) -> 0 | BC76: =IF(BC$3>A1remlife,A1value-SUM($F76:BB76),IF(A1remlife="N/A","n/a",A1value/A1remlife)) -> 0 | BD76: =IF(BD$3>A1remlife,A1value-SUM($F76:BC76),IF(A1remlife="N/A","n/a",A1value/A1remlife)) -> 0 | BE76: =IF(BE$3>A1remlife,A1value-SUM($F76:BD76),IF(A1remlife="N/A","n/a",A1value/A1remlife)) -> 0 | BF76: =IF(BF$3>A1remlife,A1value-SUM($F76:BE76),IF(A1remlife="N/A","n/a",A1value/A1remlife)) -> 0 | BG76: =IF(BG$3>A1remlife,A1value-SUM($F76:BF76),IF(A1remlife="N/A","n/a",A1value/A1remlife)) -> 0 | BH76: =IF(BH$3>A1remlife,A1value-SUM($F76:BG76),IF(A1remlife="N/A","n/a",A1value/A1remlife)) -> 0 | BI76: =IF(BI$3>A1remlife,A1value-SUM($F76:BH76),IF(A1remlife="N/A","n/a",A1value/A1remlife)) -> 0
D77: Capex | E77: 0
E78: 1 | H78: =IF(A1stdlife="n/a","n/a",IF(H$3>(A1stdlife+$E78),(Input!$G$143*(1+rvanilla)^0.5)-SUM($G78:G78),(Input!$G$143*(1+rvanilla)^0.5)/A1stdlife)) -> 0.1825338578 | I78: =IF(A1stdlife="n/a","n/a",IF(I$3>(A1stdlife+$E78),(Input!$G$143*(1+rvanilla)^0.5)-SUM($G78:H78),(Input!$G$143*(1+rvanilla)^0.5)/A1stdlife)) -> 0.1825338578 | J78: =IF(A1stdlife="n/a","n/a",IF(J$3>(A1stdlife+$E78),(Input!$G$143*(1+rvanilla)^0.5)-SUM($G78:I78),(Input!$G$143*(1+rvanilla)^0.5)/A1stdlife)) -> 0.1825338578 | K78: =IF(A1stdlife="n/a","n/a",IF(K$3>(A1stdlife+$E78),(Input!$G$143*(1+rvanilla)^0.5)-SUM($G78:J78),(Input!$G$143*(1+rvanilla)^0.5)/A1stdlife)) -> 0.1825338578 | L78: =IF(A1stdlife="n/a","n/a",IF(L$3>(A1stdlife+$E78),(Input!$G$143*(1+rvanilla)^0.5)-SUM($G78:K78),(Input!$G$143*(1+rvanilla)^0.5)/A1stdlife)) -> 0.1825338578 | M78: =IF(A1stdlife="n/a","n/a",IF(M$3>(A1stdlife+$E78),(Input!$G$143*(1+rvanilla)^0.5)-SUM($G78:L78),(Input!$G$143*(1+rvanilla)^0.5)/A1stdlife)) -> 0.1825338578 | N78: =IF(A1stdlife="n/a","n/a",IF(N$3>(A1stdlife+$E78),(Input!$G$143*(1+rvanilla)^0.5)-SUM($G78:M78),(Input!$G$143*(1+rvanilla)^0.5)/A1stdlife)) -> 0.1825338578 | O78: =IF(A1stdlife="n/a","n/a",IF(O$3>(A1stdlife+$E78),(Input!$G$143*(1+rvanilla)^0.5)-SUM($G78:N78),(Input!$G$143*(1+rvanilla)^0.5)/A1stdlife)) -> 0.1825338578 | P78: =IF(A1stdlife="n/a","n/a",IF(P$3>(A1stdlife+$E78),(Input!$G$143*(1+rvanilla)^0.5)-SUM($G78:O78),(Input!$G$143*(1+rvanilla)^0.5)/A1stdlife)) -> 0.1825338578 | Q78: =IF(A1stdlife="n/a","n/a",IF(Q$3>(A1stdlife+$E78),(Input!$G$143*(1+rvanilla)^0.5)-SUM($G78:P78),(Input!$G$143*(1+rvanilla)^0.5)/A1stdlife)) -> 0.1825338578 | R78: =IF(A1stdlife="n/a","n/a",IF(R$3>(A1stdlife+$E78),(Input!$G$143*(1+rvanilla)^0.5)-SUM($G78:Q78),(Input!$G$143*(1+rvanilla)^0.5)/A1stdlife)) -> 0.1825338578 | S78: =IF(A1stdlife="n/a","n/a",IF(S$3>(A1stdlife+$E78),(Input!$G$143*(1+rvanilla)^0.5)-SUM($G78:R78),(Input!$G$143*(1+rvanilla)^0.5)/A1stdlife)) -> 0.1825338578 | T78: =IF(A1stdlife="n/a","n/a",IF(T$3>(A1stdlife+$E78),(Input!$G$143*(1+rvanilla)^0.5)-SUM($G78:S78),(Input!$G$143*(1+rvanilla)^0.5)/A1stdlife)) -> 0.1825338578 | U78: =IF(A1stdlife="n/a","n/a",IF(U$3>(A1stdlife+$E78),(Input!$G$143*(1+rvanilla)^0.5)-SUM($G78:T78),(Input!$G$143*(1+rvanilla)^0.5)/A1stdlife)) -> 0.1825338578 | V78: =IF(A1stdlife="n/a","n/a",IF(V$3>(A1stdlife+$E78),(Input!$G$143*(1+rvanilla)^0.5)-SUM($G78:U78),(Input!$G$143*(1+rvanilla)^0.5)/A1stdlife)) -> 0.1825338578 | W78: =IF(A1stdlife="n/a","n/a",IF(W$3>(A1stdlife+$E78),(Input!$G$143*(1+rvanilla)^0.5)-SUM($G78:V78),(Input!$G$143*(1+rvanilla)^0.5)/A1stdlife)) -> 0.1825338578 | X78: =IF(A1stdlife="n/a","n/a",IF(X$3>(A1stdlife+$E78),(Input!$G$143*(1+rvanilla)^0.5)-SUM($G78:W78),(Input!$G$143*(1+rvanilla)^0.5)/A1stdlife)) -> 0.1825338578 | Y78: =IF(A1stdlife="n/a","n/a",IF(Y$3>(A1stdlife+$E78),(Input!$G$143*(1+rvanilla)^0.5)-SUM($G78:X78),(Input!$G$143*(1+rvanilla)^0.5)/A1stdlife)) -> 0.1825338578 | Z78: =IF(A1stdlife="n/a","n/a",IF(Z$3>(A1stdlife+$E78),(Input!$G$143*(1+rvanilla)^0.5)-SUM($G78:Y78),(Input!$G$143*(1+rvanilla)^0.5)/A1stdlife)) -> 0.1825338578 | AA78: =IF(A1stdlife="n/a","n/a",IF(AA$3>(A1stdlife+$E78),(Input!$G$143*(1+rvanilla)^0.5)-SUM($G78:Z78),(Input!$G$143*(1+rvanilla)^0.5)/A1stdlife)) -> 0.1825338578 | AB78: =IF(A1stdlife="n/a","n/a",IF(AB$3>(A1stdlife+$E78),(Input!$G$143*(1+rvanilla)^0.5)-SUM($G78:AA78),(Input!$G$143*(1+rvanilla)^0.5)/A1stdlife)) -> 0.1825338578 | AC78: =IF(A1stdlife="n/a","n/a",IF(AC$3>(A1stdlife+$E78),(Input!$G$143*(1+rvanilla)^0.5)-SUM($G78:AB78),(Input!$G$143*(1+rvanilla)^0.5)/A1stdlife)) -> 0.1825338578 | AD78: =IF(A1stdlife="n/a","n/a",IF(AD$3>(A1stdlife+$E78),(Input!$G$143*(1+rvanilla)^0.5)-SUM($G78:AC78),(Input!$G$143*(1+rvanilla)^0.5)/A1stdlife)) -> 0.1825338578 | AE78: =IF(A1stdlife="n/a","n/a",IF(AE$3>(A1stdlife+$E78),(Input!$G$143*(1+rvanilla)^0.5)-SUM($G78:AD78),(Input!$G$143*(1+rvanilla)^0.5)/A1stdlife)) -> 0.1825338578 | AF78: =IF(A1stdlife="n/a","n/a",IF(AF$3>(A1stdlife+$E78),(Input!$G$143*(1+rvanilla)^0.5)-SUM($G78:AE78),(Input!$G$143*(1+rvanilla)^0.5)/A1stdlife)) -> 0.1825338578 | AG78: =IF(A1stdlife="n/a","n/a",IF(AG$3>(A1stdlife+$E78),(Input!$G$143*(1+rvanilla)^0.5)-SUM($G78:AF78),(Input!$G$143*(1+rvanilla)^0.5)/A1stdlife)) -> 0.1825338578 | AH78: =IF(A1stdlife="n/a","n/a",IF(AH$3>(A1stdlife+$E78),(Input!$G$143*(1+rvanilla)^0.5)-SUM($G78:AG78),(Input!$G$143*(1+rvanilla)^0.5)/A1stdlife)) -> 0.1825338578 | AI78: =IF(A1stdlife="n/a","n/a",IF(AI$3>(A1stdlife+$E78),(Input!$G$143*(1+rvanilla)^0.5)-SUM($G78:AH78),(Input!$G$143*(1+rvanilla)^0.5)/A1stdlife)) -> 0.1825338578 | AJ78: =IF(A1stdlife="n/a","n/a",IF(AJ$3>(A1stdlife+$E78),(Input!$G$143*(1+rvanilla)^0.5)-SUM($G78:AI78),(Input!$G$143*(1+rvanilla)^0.5)/A1stdlife)) -> 0.1825338578 | AK78: =IF(A1stdlife="n/a","n/a",IF(AK$3>(A1stdlife+$E78),(Input!$G$143*(1+rvanilla)^0.5)-SUM($G78:AJ78),(Input!$G$143*(1+rvanilla)^0.5)/A1stdlife)) -> 0.1825338578 | AL78: =IF(A1stdlife="n/a","n/a",IF(AL$3>(A1stdlife+$E78),(Input!$G$143*(1+rvanilla)^0.5)-SUM($G78:AK78),(Input!$G$143*(1+rvanilla)^0.5)/A1stdlife)) -> 0.1825338578 | AM78: =IF(A1stdlife="n/a","n/a",IF(AM$3>(A1stdlife+$E78),(Input!$G$143*(1+rvanilla)^0.5)-SUM($G78:AL78),(Input!$G$143*(1+rvanilla)^0.5)/A1stdlife)) -> 0.1825338578 | AN78: =IF(A1stdlife="n/a","n/a",IF(AN$3>(A1stdlife+$E78),(Input!$G$143*(1+rvanilla)^0.5)-SUM($G78:AM78),(Input!$G$143*(1+rvanilla)^0.5)/A1stdlife)) -> 0.1825338578 | AO78: =IF(A1stdlife="n/a","n/a",IF(AO$3>(A1stdlife+$E78),(Input!$G$143*(1+rvanilla)^0.5)-SUM($G78:AN78),(Input!$G$143*(1+rvanilla)^0.5)/A1stdlife)) -> 0.1825338578 | AP78: =IF(A1stdlife="n/a","n/a",IF(AP$3>(A1stdlife+$E78),(Input!$G$143*(1+rvanilla)^0.5)-SUM($G78:AO78),(Input!$G$143*(1+rvanilla)^0.5)/A1stdlife)) -> 0.1825338578 | AQ78: =IF(A1stdlife="n/a","n/a",IF(AQ$3>(A1stdlife+$E78),(Input!$G$143*(1+rvanilla)^0.5)-SUM($G78:AP78),(Input!$G$143*(1+rvanilla)^0.5)/A1stdlife)) -> 0.1825338578 | AR78: =IF(A1stdlife="n/a","n/a",IF(AR$3>(A1stdlife+$E78),(Input!$G$143*(1+rvanilla)^0.5)-SUM($G78:AQ78),(Input!$G$143*(1+rvanilla)^0.5)/A1stdlife)) -> 0.1825338578 | AS78: =IF(A1stdlife="n/a","n/a",IF(AS$3>(A1stdlife+$E78),(Input!$G$143*(1+rvanilla)^0.5)-SUM($G78:AR78),(Input!$G$143*(1+rvanilla)^0.5)/A1stdlife)) -> 0.1825338578 | AT78: =IF(A1stdlife="n/a","n/a",IF(AT$3>(A1stdlife+$E78),(Input!$G$143*(1+rvanilla)^0.5)-SUM($G78:AS78),(Input!$G$143*(1+rvanilla)^0.5)/A1stdlife)) -> 0.1825338578 | AU78: =IF(A1stdlife="n/a","n/a",IF(AU$3>(A1stdlife+$E78),(Input!$G$143*(1+rvanilla)^0.5)-SUM($G78:AT78),(Input!$G$143*(1+rvanilla)^0.5)/A1stdlife)) -> 0.1825338578 | AV78: =IF(A1stdlife="n/a","n/a",IF(AV$3>(A1stdlife+$E78),(Input!$G$143*(1+rvanilla)^0.5)-SUM($G78:AU78),(Input!$G$143*(1+rvanilla)^0.5)/A1stdlife)) -> 0.1825338578 | AW78: =IF(A1stdlife="n/a","n/a",IF(AW$3>(A1stdlife+$E78),(Input!$G$143*(1+rvanilla)^0.5)-SUM($G78:AV78),(Input!$G$143*(1+rvanilla)^0.5)/A1stdlife)) -> 0.1825338578 | AX78: =IF(A1stdlife="n/a","n/a",IF(AX$3>(A1stdlife+$E78),(Input!$G$143*(1+rvanilla)^0.5)-SUM($G78:AW78),(Input!$G$143*(1+rvanilla)^0.5)/A1stdlife)) -> 0.1825338578 | AY78: =IF(A1stdlife="n/a","n/a",IF(AY$3>(A1stdlife+$E78),(Input!$G$143*(1+rvanilla)^0.5)-SUM($G78:AX78),(Input!$G$143*(1+rvanilla)^0.5)/A1stdlife)) -> 0.1825338578 | AZ78: =IF(A1stdlife="n/a","n/a",IF(AZ$3>(A1stdlife+$E78),(Input!$G$143*(1+rvanilla)^0.5)-SUM($G78:AY78),(Input!$G$143*(1+rvanilla)^0.5)/A1stdlife)) -> 0.1825338578 | BA78: =IF(A1stdlife="n/a","n/a",IF(BA$3>(A1stdlife+$E78),(Input!$G$143*(1+rvanilla)^0.5)-SUM($G78:AZ78),(Input!$G$143*(1+rvanilla)^0.5)/A1stdlife)) -> 0.1825338578 | BB78: =IF(A1stdlife="n/a","n/a",IF(BB$3>(A1stdlife+$E78),(Input!$G$143*(1+rvanilla)^0.5)-SUM($G78:BA78),(Input!$G$143*(1+rvanilla)^0.5)/A1stdlife)) -> 0.1825338578 | BC78: =IF(A1stdlife="n/a","n/a",IF(BC$3>(A1stdlife+$E78),(Input!$G$143*(1+rvanilla)^0.5)-SUM($G78:BB78),(Input!$G$143*(1+rvanilla)^0.5)/A1stdlife)) -> 0.1825338578 | BD78: =IF(A1stdlife="n/a","n/a",IF(BD$3>(A1stdlife+$E78),(Input!$G$143*(1+rvanilla)^0.5)-SUM($G78:BC78),(Input!$G$143*(1+rvanilla)^0.5)/A1stdlife)) -> 0.1825338578 | BE78: =IF(A1stdlife="n/a","n/a",IF(BE$3>(A1stdlife+$E78),(Input!$G$143*(1+rvanilla)^0.5)-SUM($G78:BD78),(Input!$G$143*(1+rvanilla)^0.5)/A1stdlife)) -> 0.1825338578 | BF78: =IF(A1stdlife="n/a","n/a",IF(BF$3>(A1stdlife+$E78),(Input!$G$143*(1+rvanilla)^0.5)-SUM($G78:BE78),(Input!$G$143*(1+rvanilla)^0.5)/A1stdlife)) -> 1.776356839e-15 | BG78: =IF(A1stdlife="n/a","n/a",IF(BG$3>(A1stdlife+$E78),(Input!$G$143*(1+rvanilla)^0.5)-SUM($G78:BF78),(Input!$G$143*(1+rvanilla)^0.5)/A1stdlife)) -> 0 | BH78: =IF(A1stdlife="n/a","n/a",IF(BH$3>(A1stdlife+$E78),(Input!$G$143*(1+rvanilla)^0.5)-SUM($G78:BG78),(Input!$G$143*(1+rvanilla)^0.5)/A1stdlife)) -> 0 | BI78: =IF(A1stdlife="n/a","n/a",IF(BI$3>(A1stdlife+$E78),(Input!$G$143*(1+rvanilla)^0.5)-SUM($G78:BH78),(Input!$G$143*(1+rvanilla)^0.5)/A1stdlife)) -> 0
E79: 2 | I79: =IF(A1stdlife="n/a","n/a",IF(I$3>(A1stdlife+$E79),(Input!$H$143*(1+rvanilla)^0.5)-SUM($H79:H79),(Input!$H$143*(1+rvanilla)^0.5)/A1stdlife)) -> 0.1589009183 | J79: =IF(A1stdlife="n/a","n/a",IF(J$3>(A1stdlife+$E79),(Input!$H$143*(1+rvanilla)^0.5)-SUM($H79:I79),(Input!$H$143*(1+rvanilla)^0.5)/A1stdlife)) -> 0.1589009183 | K79: =IF(A1stdlife="n/a","n/a",IF(K$3>(A1stdlife+$E79),(Input!$H$143*(1+rvanilla)^0.5)-SUM($H79:J79),(Input!$H$143*(1+rvanilla)^0.5)/A1stdlife)) -> 0.1589009183 | L79: =IF(A1stdlife="n/a","n/a",IF(L$3>(A1stdlife+$E79),(Input!$H$143*(1+rvanilla)^0.5)-SUM($H79:K79),(Input!$H$143*(1+rvanilla)^0.5)/A1stdlife)) -> 0.1589009183 | M79: =IF(A1stdlife="n/a","n/a",IF(M$3>(A1stdlife+$E79),(Input!$H$143*(1+rvanilla)^0.5)-SUM($H79:L79),(Input!$H$143*(1+rvanilla)^0.5)/A1stdlife)) -> 0.1589009183 | N79: =IF(A1stdlife="n/a","n/a",IF(N$3>(A1stdlife+$E79),(Input!$H$143*(1+rvanilla)^0.5)-SUM($H79:M79),(Input!$H$143*(1+rvanilla)^0.5)/A1stdlife)) -> 0.1589009183 | O79: =IF(A1stdlife="n/a","n/a",IF(O$3>(A1stdlife+$E79),(Input!$H$143*(1+rvanilla)^0.5)-SUM($H79:N79),(Input!$H$143*(1+rvanilla)^0.5)/A1stdlife)) -> 0.1589009183 | P79: =IF(A1stdlife="n/a","n/a",IF(P$3>(A1stdlife+$E79),(Input!$H$143*(1+rvanilla)^0.5)-SUM($H79:O79),(Input!$H$143*(1+rvanilla)^0.5)/A1stdlife)) -> 0.1589009183 | Q79: =IF(A1stdlife="n/a","n/a",IF(Q$3>(A1stdlife+$E79),(Input!$H$143*(1+rvanilla)^0.5)-SUM($H79:P79),(Input!$H$143*(1+rvanilla)^0.5)/A1stdlife)) -> 0.1589009183 | R79: =IF(A1stdlife="n/a","n/a",IF(R$3>(A1stdlife+$E79),(Input!$H$143*(1+rvanilla)^0.5)-SUM($H79:Q79),(Input!$H$143*(1+rvanilla)^0.5)/A1stdlife)) -> 0.1589009183 | S79: =IF(A1stdlife="n/a","n/a",IF(S$3>(A1stdlife+$E79),(Input!$H$143*(1+rvanilla)^0.5)-SUM($H79:R79),(Input!$H$143*(1+rvanilla)^0.5)/A1stdlife)) -> 0.1589009183 | T79: =IF(A1stdlife="n/a","n/a",IF(T$3>(A1stdlife+$E79),(Input!$H$143*(1+rvanilla)^0.5)-SUM($H79:S79),(Input!$H$143*(1+rvanilla)^0.5)/A1stdlife)) -> 0.1589009183 | U79: =IF(A1stdlife="n/a","n/a",IF(U$3>(A1stdlife+$E79),(Input!$H$143*(1+rvanilla)^0.5)-SUM($H79:T79),(Input!$H$143*(1+rvanilla)^0.5)/A1stdlife)) -> 0.1589009183 | V79: =IF(A1stdlife="n/a","n/a",IF(V$3>(A1stdlife+$E79),(Input!$H$143*(1+rvanilla)^0.5)-SUM($H79:U79),(Input!$H$143*(1+rvanilla)^0.5)/A1stdlife)) -> 0.1589009183 | W79: =IF(A1stdlife="n/a","n/a",IF(W$3>(A1stdlife+$E79),(Input!$H$143*(1+rvanilla)^0.5)-SUM($H79:V79),(Input!$H$143*(1+rvanilla)^0.5)/A1stdlife)) -> 0.1589009183 | X79: =IF(A1stdlife="n/a","n/a",IF(X$3>(A1stdlife+$E79),(Input!$H$143*(1+rvanilla)^0.5)-SUM($H79:W79),(Input!$H$143*(1+rvanilla)^0.5)/A1stdlife)) -> 0.1589009183 | Y79: =IF(A1stdlife="n/a","n/a",IF(Y$3>(A1stdlife+$E79),(Input!$H$143*(1+rvanilla)^0.5)-SUM($H79:X79),(Input!$H$143*(1+rvanilla)^0.5)/A1stdlife)) -> 0.1589009183 | Z79: =IF(A1stdlife="n/a","n/a",IF(Z$3>(A1stdlife+$E79),(Input!$H$143*(1+rvanilla)^0.5)-SUM($H79:Y79),(Input!$H$143*(1+rvanilla)^0.5)/A1stdlife)) -> 0.1589009183 | AA79: =IF(A1stdlife="n/a","n/a",IF(AA$3>(A1stdlife+$E79),(Input!$H$143*(1+rvanilla)^0.5)-SUM($H79:Z79),(Input!$H$143*(1+rvanilla)^0.5)/A1stdlife)) -> 0.1589009183 | AB79: =IF(A1stdlife="n/a","n/a",IF(AB$3>(A1stdlife+$E79),(Input!$H$143*(1+rvanilla)^0.5)-SUM($H79:AA79),(Input!$H$143*(1+rvanilla)^0.5)/A1stdlife)) -> 0.1589009183 | AC79: =IF(A1stdlife="n/a","n/a",IF(AC$3>(A1stdlife+$E79),(Input!$H$143*(1+rvanilla)^0.5)-SUM($H79:AB79),(Input!$H$143*(1+rvanilla)^0.5)/A1stdlife)) -> 0.1589009183 | AD79: =IF(A1stdlife="n/a","n/a",IF(AD$3>(A1stdlife+$E79),(Input!$H$143*(1+rvanilla)^0.5)-SUM($H79:AC79),(Input!$H$143*(1+rvanilla)^0.5)/A1stdlife)) -> 0.1589009183 | AE79: =IF(A1stdlife="n/a","n/a",IF(AE$3>(A1stdlife+$E79),(Input!$H$143*(1+rvanilla)^0.5)-SUM($H79:AD79),(Input!$H$143*(1+rvanilla)^0.5)/A1stdlife)) -> 0.1589009183 | AF79: =IF(A1stdlife="n/a","n/a",IF(AF$3>(A1stdlife+$E79),(Input!$H$143*(1+rvanilla)^0.5)-SUM($H79:AE79),(Input!$H$143*(1+rvanilla)^0.5)/A1stdlife)) -> 0.1589009183 | AG79: =IF(A1stdlife="n/a","n/a",IF(AG$3>(A1stdlife+$E79),(Input!$H$143*(1+rvanilla)^0.5)-SUM($H79:AF79),(Input!$H$143*(1+rvanilla)^0.5)/A1stdlife)) -> 0.1589009183 | AH79: =IF(A1stdlife="n/a","n/a",IF(AH$3>(A1stdlife+$E79),(Input!$H$143*(1+rvanilla)^0.5)-SUM($H79:AG79),(Input!$H$143*(1+rvanilla)^0.5)/A1stdlife)) -> 0.1589009183 | AI79: =IF(A1stdlife="n/a","n/a",IF(AI$3>(A1stdlife+$E79),(Input!$H$143*(1+rvanilla)^0.5)-SUM($H79:AH79),(Input!$H$143*(1+rvanilla)^0.5)/A1stdlife)) -> 0.1589009183 | AJ79: =IF(A1stdlife="n/a","n/a",IF(AJ$3>(A1stdlife+$E79),(Input!$H$143*(1+rvanilla)^0.5)-SUM($H79:AI79),(Input!$H$143*(1+rvanilla)^0.5)/A1stdlife)) -> 0.1589009183 | AK79: =IF(A1stdlife="n/a","n/a",IF(AK$3>(A1stdlife+$E79),(Input!$H$143*(1+rvanilla)^0.5)-SUM($H79:AJ79),(Input!$H$143*(1+rvanilla)^0.5)/A1stdlife)) -> 0.1589009183 | AL79: =IF(A1stdlife="n/a","n/a",IF(AL$3>(A1stdlife+$E79),(Input!$H$143*(1+rvanilla)^0.5)-SUM($H79:AK79),(Input!$H$143*(1+rvanilla)^0.5)/A1stdlife)) -> 0.1589009183 | AM79: =IF(A1stdlife="n/a","n/a",IF(AM$3>(A1stdlife+$E79),(Input!$H$143*(1+rvanilla)^0.5)-SUM($H79:AL79),(Input!$H$143*(1+rvanilla)^0.5)/A1stdlife)) -> 0.1589009183 | AN79: =IF(A1stdlife="n/a","n/a",IF(AN$3>(A1stdlife+$E79),(Input!$H$143*(1+rvanilla)^0.5)-SUM($H79:AM79),(Input!$H$143*(1+rvanilla)^0.5)/A1stdlife)) -> 0.1589009183 | AO79: =IF(A1stdlife="n/a","n/a",IF(AO$3>(A1stdlife+$E79),(Input!$H$143*(1+rvanilla)^0.5)-SUM($H79:AN79),(Input!$H$143*(1+rvanilla)^0.5)/A1stdlife)) -> 0.1589009183 | AP79: =IF(A1stdlife="n/a","n/a",IF(AP$3>(A1stdlife+$E79),(Input!$H$143*(1+rvanilla)^0.5)-SUM($H79:AO79),(Input!$H$143*(1+rvanilla)^0.5)/A1stdlife)) -> 0.1589009183 | AQ79: =IF(A1stdlife="n/a","n/a",IF(AQ$3>(A1stdlife+$E79),(Input!$H$143*(1+rvanilla)^0.5)-SUM($H79:AP79),(Input!$H$143*(1+rvanilla)^0.5)/A1stdlife)) -> 0.1589009183 | AR79: =IF(A1stdlife="n/a","n/a",IF(AR$3>(A1stdlife+$E79),(Input!$H$143*(1+rvanilla)^0.5)-SUM($H79:AQ79),(Input!$H$143*(1+rvanilla)^0.5)/A1stdlife)) -> 0.1589009183 | AS79: =IF(A1stdlife="n/a","n/a",IF(AS$3>(A1stdlife+$E79),(Input!$H$143*(1+rvanilla)^0.5)-SUM($H79:AR79),(Input!$H$143*(1+rvanilla)^0.5)/A1stdlife)) -> 0.1589009183 | AT79: =IF(A1stdlife="n/a","n/a",IF(AT$3>(A1stdlife+$E79),(Input!$H$143*(1+rvanilla)^0.5)-SUM($H79:AS79),(Input!$H$143*(1+rvanilla)^0.5)/A1stdlife)) -> 0.1589009183 | AU79: =IF(A1stdlife="n/a","n/a",IF(AU$3>(A1stdlife+$E79),(Input!$H$143*(1+rvanilla)^0.5)-SUM($H79:AT79),(Input!$H$143*(1+rvanilla)^0.5)/A1stdlife)) -> 0.1589009183 | AV79: =IF(A1stdlife="n/a","n/a",IF(AV$3>(A1stdlife+$E79),(Input!$H$143*(1+rvanilla)^0.5)-SUM($H79:AU79),(Input!$H$143*(1+rvanilla)^0.5)/A1stdlife)) -> 0.1589009183 | AW79: =IF(A1stdlife="n/a","n/a",IF(AW$3>(A1stdlife+$E79),(Input!$H$143*(1+rvanilla)^0.5)-SUM($H79:AV79),(Input!$H$143*(1+rvanilla)^0.5)/A1stdlife)) -> 0.1589009183 | AX79: =IF(A1stdlife="n/a","n/a",IF(AX$3>(A1stdlife+$E79),(Input!$H$143*(1+rvanilla)^0.5)-SUM($H79:AW79),(Input!$H$143*(1+rvanilla)^0.5)/A1stdlife)) -> 0.1589009183 | AY79: =IF(A1stdlife="n/a","n/a",IF(AY$3>(A1stdlife+$E79),(Input!$H$143*(1+rvanilla)^0.5)-SUM($H79:AX79),(Input!$H$143*(1+rvanilla)^0.5)/A1stdlife)) -> 0.1589009183 | AZ79: =IF(A1stdlife="n/a","n/a",IF(AZ$3>(A1stdlife+$E79),(Input!$H$143*(1+rvanilla)^0.5)-SUM($H79:AY79),(Input!$H$143*(1+rvanilla)^0.5)/A1stdlife)) -> 0.1589009183 | BA79: =IF(A1stdlife="n/a","n/a",IF(BA$3>(A1stdlife+$E79),(Input!$H$143*(1+rvanilla)^0.5)-SUM($H79:AZ79),(Input!$H$143*(1+rvanilla)^0.5)/A1stdlife)) -> 0.1589009183 | BB79: =IF(A1stdlife="n/a","n/a",IF(BB$3>(A1stdlife+$E79),(Input!$H$143*(1+rvanilla)^0.5)-SUM($H79:BA79),(Input!$H$143*(1+rvanilla)^0.5)/A1stdlife)) -> 0.1589009183 | BC79: =IF(A1stdlife="n/a","n/a",IF(BC$3>(A1stdlife+$E79),(Input!$H$143*(1+rvanilla)^0.5)-SUM($H79:BB79),(Input!$H$143*(1+rvanilla)^0.5)/A1stdlife)) -> 0.1589009183 | BD79: =IF(A1stdlife="n/a","n/a",IF(BD$3>(A1stdlife+$E79),(Input!$H$143*(1+rvanilla)^0.5)-SUM($H79:BC79),(Input!$H$143*(1+rvanilla)^0.5)/A1stdlife)) -> 0.1589009183 | BE79: =IF(A1stdlife="n/a","n/a",IF(BE$3>(A1stdlife+$E79),(Input!$H$143*(1+rvanilla)^0.5)-SUM($H79:BD79),(Input!$H$143*(1+rvanilla)^0.5)/A1stdlife)) -> 0.1589009183 | BF79: =IF(A1stdlife="n/a","n/a",IF(BF$3>(A1stdlife+$E79),(Input!$H$143*(1+rvanilla)^0.5)-SUM($H79:BE79),(Input!$H$143*(1+rvanilla)^0.5)/A1stdlife)) -> 0.1589009183 | BG79: =IF(A1stdlife="n/a","n/a",IF(BG$3>(A1stdlife+$E79),(Input!$H$143*(1+rvanilla)^0.5)-SUM($H79:BF79),(Input!$H$143*(1+rvanilla)^0.5)/A1stdlife)) -> -5.329070518e-15 | BH79: =IF(A1stdlife="n/a","n/a",IF(BH$3>(A1stdlife+$E79),(Input!$H$143*(1+rvanilla)^0.5)-SUM($H79:BG79),(Input!$H$143*(1+rvanilla)^0.5)/A1stdlife)) -> 0 | BI79: =IF(A1stdlife="n/a","n/a",IF(BI$3>(A1stdlife+$E79),(Input!$H$143*(1+rvanilla)^0.5)-SUM($H79:BH79),(Input!$H$143*(1+rvanilla)^0.5)/A1stdlife)) -> 0
E80: 3 | J80: =IF(A1stdlife="n/a","n/a",IF(J$3>(A1stdlife+$E80),(Input!$I$143*(1+rvanilla)^0.5)-SUM($I80:I80),(Input!$I$143*(1+rvanilla)^0.5)/A1stdlife)) -> 0.2361386787 | K80: =IF(A1stdlife="n/a","n/a",IF(K$3>(A1stdlife+$E80),(Input!$I$143*(1+rvanilla)^0.5)-SUM($I80:J80),(Input!$I$143*(1+rvanilla)^0.5)/A1stdlife)) -> 0.2361386787 | L80: =IF(A1stdlife="n/a","n/a",IF(L$3>(A1stdlife+$E80),(Input!$I$143*(1+rvanilla)^0.5)-SUM($I80:K80),(Input!$I$143*(1+rvanilla)^0.5)/A1stdlife)) -> 0.2361386787 | M80: =IF(A1stdlife="n/a","n/a",IF(M$3>(A1stdlife+$E80),(Input!$I$143*(1+rvanilla)^0.5)-SUM($I80:L80),(Input!$I$143*(1+rvanilla)^0.5)/A1stdlife)) -> 0.2361386787 | N80: =IF(A1stdlife="n/a","n/a",IF(N$3>(A1stdlife+$E80),(Input!$I$143*(1+rvanilla)^0.5)-SUM($I80:M80),(Input!$I$143*(1+rvanilla)^0.5)/A1stdlife)) -> 0.2361386787 | O80: =IF(A1stdlife="n/a","n/a",IF(O$3>(A1stdlife+$E80),(Input!$I$143*(1+rvanilla)^0.5)-SUM($I80:N80),(Input!$I$143*(1+rvanilla)^0.5)/A1stdlife)) -> 0.2361386787 | P80: =IF(A1stdlife="n/a","n/a",IF(P$3>(A1stdlife+$E80),(Input!$I$143*(1+rvanilla)^0.5)-SUM($I80:O80),(Input!$I$143*(1+rvanilla)^0.5)/A1stdlife)) -> 0.2361386787 | Q80: =IF(A1stdlife="n/a","n/a",IF(Q$3>(A1stdlife+$E80),(Input!$I$143*(1+rvanilla)^0.5)-SUM($I80:P80),(Input!$I$143*(1+rvanilla)^0.5)/A1stdlife)) -> 0.2361386787 | R80: =IF(A1stdlife="n/a","n/a",IF(R$3>(A1stdlife+$E80),(Input!$I$143*(1+rvanilla)^0.5)-SUM($I80:Q80),(Input!$I$143*(1+rvanilla)^0.5)/A1stdlife)) -> 0.2361386787 | S80: =IF(A1stdlife="n/a","n/a",IF(S$3>(A1stdlife+$E80),(Input!$I$143*(1+rvanilla)^0.5)-SUM($I80:R80),(Input!$I$143*(1+rvanilla)^0.5)/A1stdlife)) -> 0.2361386787 | T80: =IF(A1stdlife="n/a","n/a",IF(T$3>(A1stdlife+$E80),(Input!$I$143*(1+rvanilla)^0.5)-SUM($I80:S80),(Input!$I$143*(1+rvanilla)^0.5)/A1stdlife)) -> 0.2361386787 | U80: =IF(A1stdlife="n/a","n/a",IF(U$3>(A1stdlife+$E80),(Input!$I$143*(1+rvanilla)^0.5)-SUM($I80:T80),(Input!$I$143*(1+rvanilla)^0.5)/A1stdlife)) -> 0.2361386787 | V80: =IF(A1stdlife="n/a","n/a",IF(V$3>(A1stdlife+$E80),(Input!$I$143*(1+rvanilla)^0.5)-SUM($I80:U80),(Input!$I$143*(1+rvanilla)^0.5)/A1stdlife)) -> 0.2361386787 | W80: =IF(A1stdlife="n/a","n/a",IF(W$3>(A1stdlife+$E80),(Input!$I$143*(1+rvanilla)^0.5)-SUM($I80:V80),(Input!$I$143*(1+rvanilla)^0.5)/A1stdlife)) -> 0.2361386787 | X80: =IF(A1stdlife="n/a","n/a",IF(X$3>(A1stdlife+$E80),(Input!$I$143*(1+rvanilla)^0.5)-SUM($I80:W80),(Input!$I$143*(1+rvanilla)^0.5)/A1stdlife)) -> 0.2361386787 | Y80: =IF(A1stdlife="n/a","n/a",IF(Y$3>(A1stdlife+$E80),(Input!$I$143*(1+rvanilla)^0.5)-SUM($I80:X80),(Input!$I$143*(1+rvanilla)^0.5)/A1stdlife)) -> 0.2361386787 | Z80: =IF(A1stdlife="n/a","n/a",IF(Z$3>(A1stdlife+$E80),(Input!$I$143*(1+rvanilla)^0.5)-SUM($I80:Y80),(Input!$I$143*(1+rvanilla)^0.5)/A1stdlife)) -> 0.2361386787 | AA80: =IF(A1stdlife="n/a","n/a",IF(AA$3>(A1stdlife+$E80),(Input!$I$143*(1+rvanilla)^0.5)-SUM($I80:Z80),(Input!$I$143*(1+rvanilla)^0.5)/A1stdlife)) -> 0.2361386787 | AB80: =IF(A1stdlife="n/a","n/a",IF(AB$3>(A1stdlife+$E80),(Input!$I$143*(1+rvanilla)^0.5)-SUM($I80:AA80),(Input!$I$143*(1+rvanilla)^0.5)/A1stdlife)) -> 0.2361386787 | AC80: =IF(A1stdlife="n/a","n/a",IF(AC$3>(A1stdlife+$E80),(Input!$I$143*(1+rvanilla)^0.5)-SUM($I80:AB80),(Input!$I$143*(1+rvanilla)^0.5)/A1stdlife)) -> 0.2361386787 | AD80: =IF(A1stdlife="n/a","n/a",IF(AD$3>(A1stdlife+$E80),(Input!$I$143*(1+rvanilla)^0.5)-SUM($I80:AC80),(Input!$I$143*(1+rvanilla)^0.5)/A1stdlife)) -> 0.2361386787 | AE80: =IF(A1stdlife="n/a","n/a",IF(AE$3>(A1stdlife+$E80),(Input!$I$143*(1+rvanilla)^0.5)-SUM($I80:AD80),(Input!$I$143*(1+rvanilla)^0.5)/A1stdlife)) -> 0.2361386787 | AF80: =IF(A1stdlife="n/a","n/a",IF(AF$3>(A1stdlife+$E80),(Input!$I$143*(1+rvanilla)^0.5)-SUM($I80:AE80),(Input!$I$143*(1+rvanilla)^0.5)/A1stdlife)) -> 0.2361386787 | AG80: =IF(A1stdlife="n/a","n/a",IF(AG$3>(A1stdlife+$E80),(Input!$I$143*(1+rvanilla)^0.5)-SUM($I80:AF80),(Input!$I$143*(1+rvanilla)^0.5)/A1stdlife)) -> 0.2361386787 | AH80: =IF(A1stdlife="n/a","n/a",IF(AH$3>(A1stdlife+$E80),(Input!$I$143*(1+rvanilla)^0.5)-SUM($I80:AG80),(Input!$I$143*(1+rvanilla)^0.5)/A1stdlife)) -> 0.2361386787 | AI80: =IF(A1stdlife="n/a","n/a",IF(AI$3>(A1stdlife+$E80),(Input!$I$143*(1+rvanilla)^0.5)-SUM($I80:AH80),(Input!$I$143*(1+rvanilla)^0.5)/A1stdlife)) -> 0.2361386787 | AJ80: =IF(A1stdlife="n/a","n/a",IF(AJ$3>(A1stdlife+$E80),(Input!$I$143*(1+rvanilla)^0.5)-SUM($I80:AI80),(Input!$I$143*(1+rvanilla)^0.5)/A1stdlife)) -> 0.2361386787 | AK80: =IF(A1stdlife="n/a","n/a",IF(AK$3>(A1stdlife+$E80),(Input!$I$143*(1+rvanilla)^0.5)-SUM($I80:AJ80),(Input!$I$143*(1+rvanilla)^0.5)/A1stdlife)) -> 0.2361386787 | AL80: =IF(A1stdlife="n/a","n/a",IF(AL$3>(A1stdlife+$E80),(Input!$I$143*(1+rvanilla)^0.5)-SUM($I80:AK80),(Input!$I$143*(1+rvanilla)^0.5)/A1stdlife)) -> 0.2361386787 | AM80: =IF(A1stdlife="n/a","n/a",IF(AM$3>(A1stdlife+$E80),(Input!$I$143*(1+rvanilla)^0.5)-SUM($I80:AL80),(Input!$I$143*(1+rvanilla)^0.5)/A1stdlife)) -> 0.2361386787 | AN80: =IF(A1stdlife="n/a","n/a",IF(AN$3>(A1stdlife+$E80),(Input!$I$143*(1+rvanilla)^0.5)-SUM($I80:AM80),(Input!$I$143*(1+rvanilla)^0.5)/A1stdlife)) -> 0.2361386787 | AO80: =IF(A1stdlife="n/a","n/a",IF(AO$3>(A1stdlife+$E80),(Input!$I$143*(1+rvanilla)^0.5)-SUM($I80:AN80),(Input!$I$143*(1+rvanilla)^0.5)/A1stdlife)) -> 0.2361386787 | AP80: =IF(A1stdlife="n/a","n/a",IF(AP$3>(A1stdlife+$E80),(Input!$I$143*(1+rvanilla)^0.5)-SUM($I80:AO80),(Input!$I$143*(1+rvanilla)^0.5)/A1stdlife)) -> 0.2361386787 | AQ80: =IF(A1stdlife="n/a","n/a",IF(AQ$3>(A1stdlife+$E80),(Input!$I$143*(1+rvanilla)^0.5)-SUM($I80:AP80),(Input!$I$143*(1+rvanilla)^0.5)/A1stdlife)) -> 0.2361386787 | AR80: =IF(A1stdlife="n/a","n/a",IF(AR$3>(A1stdlife+$E80),(Input!$I$143*(1+rvanilla)^0.5)-SUM($I80:AQ80),(Input!$I$143*(1+rvanilla)^0.5)/A1stdlife)) -> 0.2361386787 | AS80: =IF(A1stdlife="n/a","n/a",IF(AS$3>(A1stdlife+$E80),(Input!$I$143*(1+rvanilla)^0.5)-SUM($I80:AR80),(Input!$I$143*(1+rvanilla)^0.5)/A1stdlife)) -> 0.2361386787 | AT80: =IF(A1stdlife="n/a","n/a",IF(AT$3>(A1stdlife+$E80),(Input!$I$143*(1+rvanilla)^0.5)-SUM($I80:AS80),(Input!$I$143*(1+rvanilla)^0.5)/A1stdlife)) -> 0.2361386787 | AU80: =IF(A1stdlife="n/a","n/a",IF(AU$3>(A1stdlife+$E80),(Input!$I$143*(1+rvanilla)^0.5)-SUM($I80:AT80),(Input!$I$143*(1+rvanilla)^0.5)/A1stdlife)) -> 0.2361386787 | AV80: =IF(A1stdlife="n/a","n/a",IF(AV$3>(A1stdlife+$E80),(Input!$I$143*(1+rvanilla)^0.5)-SUM($I80:AU80),(Input!$I$143*(1+rvanilla)^0.5)/A1stdlife)) -> 0.2361386787 | AW80: =IF(A1stdlife="n/a","n/a",IF(AW$3>(A1stdlife+$E80),(Input!$I$143*(1+rvanilla)^0.5)-SUM($I80:AV80),(Input!$I$143*(1+rvanilla)^0.5)/A1stdlife)) -> 0.2361386787 | AX80: =IF(A1stdlife="n/a","n/a",IF(AX$3>(A1stdlife+$E80),(Input!$I$143*(1+rvanilla)^0.5)-SUM($I80:AW80),(Input!$I$143*(1+rvanilla)^0.5)/A1stdlife)) -> 0.2361386787 | AY80: =IF(A1stdlife="n/a","n/a",IF(AY$3>(A1stdlife+$E80),(Input!$I$143*(1+rvanilla)^0.5)-SUM($I80:AX80),(Input!$I$143*(1+rvanilla)^0.5)/A1stdlife)) -> 0.2361386787 | AZ80: =IF(A1stdlife="n/a","n/a",IF(AZ$3>(A1stdlife+$E80),(Input!$I$143*(1+rvanilla)^0.5)-SUM($I80:AY80),(Input!$I$143*(1+rvanilla)^0.5)/A1stdlife)) -> 0.2361386787 | BA80: =IF(A1stdlife="n/a","n/a",IF(BA$3>(A1stdlife+$E80),(Input!$I$143*(1+rvanilla)^0.5)-SUM($I80:AZ80),(Input!$I$143*(1+rvanilla)^0.5)/A1stdlife)) -> 0.2361386787 | BB80: =IF(A1stdlife="n/a","n/a",IF(BB$3>(A1stdlife+$E80),(Input!$I$143*(1+rvanilla)^0.5)-SUM($I80:BA80),(Input!$I$143*(1+rvanilla)^0.5)/A1stdlife)) -> 0.2361386787 | BC80: =IF(A1stdlife="n/a","n/a",IF(BC$3>(A1stdlife+$E80),(Input!$I$143*(1+rvanilla)^0.5)-SUM($I80:BB80),(Input!$I$143*(1+rvanilla)^0.5)/A1stdlife)) -> 0.2361386787 | BD80: =IF(A1stdlife="n/a","n/a",IF(BD$3>(A1stdlife+$E80),(Input!$I$143*(1+rvanilla)^0.5)-SUM($I80:BC80),(Input!$I$143*(1+rvanilla)^0.5)/A1stdlife)) -> 0.2361386787 | BE80: =IF(A1stdlife="n/a","n/a",IF(BE$3>(A1stdlife+$E80),(Input!$I$143*(1+rvanilla)^0.5)-SUM($I80:BD80),(Input!$I$143*(1+rvanilla)^0.5)/A1stdlife)) -> 0.2361386787 | BF80: =IF(A1stdlife="n/a","n/a",IF(BF$3>(A1stdlife+$E80),(Input!$I$143*(1+rvanilla)^0.5)-SUM($I80:BE80),(Input!$I$143*(1+rvanilla)^0.5)/A1stdlife)) -> 0.2361386787 | BG80: =IF(A1stdlife="n/a","n/a",IF(BG$3>(A1stdlife+$E80),(Input!$I$143*(1+rvanilla)^0.5)-SUM($I80:BF80),(Input!$I$143*(1+rvanilla)^0.5)/A1stdlife)) -> 0.2361386787 | BH80: =IF(A1stdlife="n/a","n/a",IF(BH$3>(A1stdlife+$E80),(Input!$I$143*(1+rvanilla)^0.5)-SUM($I80:BG80),(Input!$I$143*(1+rvanilla)^0.5)/A1stdlife)) -> -1.243449788e-14 | BI80: =IF(A1stdlife="n/a","n/a",IF(BI$3>(A1stdlife+$E80),(Input!$I$143*(1+rvanilla)^0.5)-SUM($I80:BH80),(Input!$I$143*(1+rvanilla)^0.5)/A1stdlife)) -> 0
E81: 4 | K81: =IF(A1stdlife="n/a","n/a",IF(K$3>(A1stdlife+$E81),(Input!$J$143*(1+rvanilla)^0.5)-SUM($J81:J81),(Input!$J$143*(1+rvanilla)^0.5)/A1stdlife)) -> 0.3041622753 | L81: =IF(A1stdlife="n/a","n/a",IF(L$3>(A1stdlife+$E81),(Input!$J$143*(1+rvanilla)^0.5)-SUM($J81:K81),(Input!$J$143*(1+rvanilla)^0.5)/A1stdlife)) -> 0.3041622753 | M81: =IF(A1stdlife="n/a","n/a",IF(M$3>(A1stdlife+$E81),(Input!$J$143*(1+rvanilla)^0.5)-SUM($J81:L81),(Input!$J$143*(1+rvanilla)^0.5)/A1stdlife)) -> 0.3041622753 | N81: =IF(A1stdlife="n/a","n/a",IF(N$3>(A1stdlife+$E81),(Input!$J$143*(1+rvanilla)^0.5)-SUM($J81:M81),(Input!$J$143*(1+rvanilla)^0.5)/A1stdlife)) -> 0.3041622753 | O81: =IF(A1stdlife="n/a","n/a",IF(O$3>(A1stdlife+$E81),(Input!$J$143*(1+rvanilla)^0.5)-SUM($J81:N81),(Input!$J$143*(1+rvanilla)^0.5)/A1stdlife)) -> 0.3041622753 | P81: =IF(A1stdlife="n/a","n/a",IF(P$3>(A1stdlife+$E81),(Input!$J$143*(1+rvanilla)^0.5)-SUM($J81:O81),(Input!$J$143*(1+rvanilla)^0.5)/A1stdlife)) -> 0.3041622753 | Q81: =IF(A1stdlife="n/a","n/a",IF(Q$3>(A1stdlife+$E81),(Input!$J$143*(1+rvanilla)^0.5)-SUM($J81:P81),(Input!$J$143*(1+rvanilla)^0.5)/A1stdlife)) -> 0.3041622753 | R81: =IF(A1stdlife="n/a","n/a",IF(R$3>(A1stdlife+$E81),(Input!$J$143*(1+rvanilla)^0.5)-SUM($J81:Q81),(Input!$J$143*(1+rvanilla)^0.5)/A1stdlife)) -> 0.3041622753 | S81: =IF(A1stdlife="n/a","n/a",IF(S$3>(A1stdlife+$E81),(Input!$J$143*(1+rvanilla)^0.5)-SUM($J81:R81),(Input!$J$143*(1+rvanilla)^0.5)/A1stdlife)) -> 0.3041622753 | T81: =IF(A1stdlife="n/a","n/a",IF(T$3>(A1stdlife+$E81),(Input!$J$143*(1+rvanilla)^0.5)-SUM($J81:S81),(Input!$J$143*(1+rvanilla)^0.5)/A1stdlife)) -> 0.3041622753 | U81: =IF(A1stdlife="n/a","n/a",IF(U$3>(A1stdlife+$E81),(Input!$J$143*(1+rvanilla)^0.5)-SUM($J81:T81),(Input!$J$143*(1+rvanilla)^0.5)/A1stdlife)) -> 0.3041622753 | V81: =IF(A1stdlife="n/a","n/a",IF(V$3>(A1stdlife+$E81),(Input!$J$143*(1+rvanilla)^0.5)-SUM($J81:U81),(Input!$J$143*(1+rvanilla)^0.5)/A1stdlife)) -> 0.3041622753 | W81: =IF(A1stdlife="n/a","n/a",IF(W$3>(A1stdlife+$E81),(Input!$J$143*(1+rvanilla)^0.5)-SUM($J81:V81),(Input!$J$143*(1+rvanilla)^0.5)/A1stdlife)) -> 0.3041622753 | X81: =IF(A1stdlife="n/a","n/a",IF(X$3>(A1stdlife+$E81),(Input!$J$143*(1+rvanilla)^0.5)-SUM($J81:W81),(Input!$J$143*(1+rvanilla)^0.5)/A1stdlife)) -> 0.3041622753 | Y81: =IF(A1stdlife="n/a","n/a",IF(Y$3>(A1stdlife+$E81),(Input!$J$143*(1+rvanilla)^0.5)-SUM($J81:X81),(Input!$J$143*(1+rvanilla)^0.5)/A1stdlife)) -> 0.3041622753 | Z81: =IF(A1stdlife="n/a","n/a",IF(Z$3>(A1stdlife+$E81),(Input!$J$143*(1+rvanilla)^0.5)-SUM($J81:Y81),(Input!$J$143*(1+rvanilla)^0.5)/A1stdlife)) -> 0.3041622753 | AA81: =IF(A1stdlife="n/a","n/a",IF(AA$3>(A1stdlife+$E81),(Input!$J$143*(1+rvanilla)^0.5)-SUM($J81:Z81),(Input!$J$143*(1+rvanilla)^0.5)/A1stdlife)) -> 0.3041622753 | AB81: =IF(A1stdlife="n/a","n/a",IF(AB$3>(A1stdlife+$E81),(Input!$J$143*(1+rvanilla)^0.5)-SUM($J81:AA81),(Input!$J$143*(1+rvanilla)^0.5)/A1stdlife)) -> 0.3041622753 | AC81: =IF(A1stdlife="n/a","n/a",IF(AC$3>(A1stdlife+$E81),(Input!$J$143*(1+rvanilla)^0.5)-SUM($J81:AB81),(Input!$J$143*(1+rvanilla)^0.5)/A1stdlife)) -> 0.3041622753 | AD81: =IF(A1stdlife="n/a","n/a",IF(AD$3>(A1stdlife+$E81),(Input!$J$143*(1+rvanilla)^0.5)-SUM($J81:AC81),(Input!$J$143*(1+rvanilla)^0.5)/A1stdlife)) -> 0.3041622753 | AE81: =IF(A1stdlife="n/a","n/a",IF(AE$3>(A1stdlife+$E81),(Input!$J$143*(1+rvanilla)^0.5)-SUM($J81:AD81),(Input!$J$143*(1+rvanilla)^0.5)/A1stdlife)) -> 0.3041622753 | AF81: =IF(A1stdlife="n/a","n/a",IF(AF$3>(A1stdlife+$E81),(Input!$J$143*(1+rvanilla)^0.5)-SUM($J81:AE81),(Input!$J$143*(1+rvanilla)^0.5)/A1stdlife)) -> 0.3041622753 | AG81: =IF(A1stdlife="n/a","n/a",IF(AG$3>(A1stdlife+$E81),(Input!$J$143*(1+rvanilla)^0.5)-SUM($J81:AF81),(Input!$J$143*(1+rvanilla)^0.5)/A1stdlife)) -> 0.3041622753 | AH81: =IF(A1stdlife="n/a","n/a",IF(AH$3>(A1stdlife+$E81),(Input!$J$143*(1+rvanilla)^0.5)-SUM($J81:AG81),(Input!$J$143*(1+rvanilla)^0.5)/A1stdlife)) -> 0.3041622753 | AI81: =IF(A1stdlife="n/a","n/a",IF(AI$3>(A1stdlife+$E81),(Input!$J$143*(1+rvanilla)^0.5)-SUM($J81:AH81),(Input!$J$143*(1+rvanilla)^0.5)/A1stdlife)) -> 0.3041622753 | AJ81: =IF(A1stdlife="n/a","n/a",IF(AJ$3>(A1stdlife+$E81),(Input!$J$143*(1+rvanilla)^0.5)-SUM($J81:AI81),(Input!$J$143*(1+rvanilla)^0.5)/A1stdlife)) -> 0.3041622753 | AK81: =IF(A1stdlife="n/a","n/a",IF(AK$3>(A1stdlife+$E81),(Input!$J$143*(1+rvanilla)^0.5)-SUM($J81:AJ81),(Input!$J$143*(1+rvanilla)^0.5)/A1stdlife)) -> 0.3041622753 | AL81: =IF(A1stdlife="n/a","n/a",IF(AL$3>(A1stdlife+$E81),(Input!$J$143*(1+rvanilla)^0.5)-SUM($J81:AK81),(Input!$J$143*(1+rvanilla)^0.5)/A1stdlife)) -> 0.3041622753 | AM81: =IF(A1stdlife="n/a","n/a",IF(AM$3>(A1stdlife+$E81),(Input!$J$143*(1+rvanilla)^0.5)-SUM($J81:AL81),(Input!$J$143*(1+rvanilla)^0.5)/A1stdlife)) -> 0.3041622753 | AN81: =IF(A1stdlife="n/a","n/a",IF(AN$3>(A1stdlife+$E81),(Input!$J$143*(1+rvanilla)^0.5)-SUM($J81:AM81),(Input!$J$143*(1+rvanilla)^0.5)/A1stdlife)) -> 0.3041622753 | AO81: =IF(A1stdlife="n/a","n/a",IF(AO$3>(A1stdlife+$E81),(Input!$J$143*(1+rvanilla)^0.5)-SUM($J81:AN81),(Input!$J$143*(1+rvanilla)^0.5)/A1stdlife)) -> 0.3041622753 | AP81: =IF(A1stdlife="n/a","n/a",IF(AP$3>(A1stdlife+$E81),(Input!$J$143*(1+rvanilla)^0.5)-SUM($J81:AO81),(Input!$J$143*(1+rvanilla)^0.5)/A1stdlife)) -> 0.3041622753 | AQ81: =IF(A1stdlife="n/a","n/a",IF(AQ$3>(A1stdlife+$E81),(Input!$J$143*(1+rvanilla)^0.5)-SUM($J81:AP81),(Input!$J$143*(1+rvanilla)^0.5)/A1stdlife)) -> 0.3041622753 | AR81: =IF(A1stdlife="n/a","n/a",IF(AR$3>(A1stdlife+$E81),(Input!$J$143*(1+rvanilla)^0.5)-SUM($J81:AQ81),(Input!$J$143*(1+rvanilla)^0.5)/A1stdlife)) -> 0.3041622753 | AS81: =IF(A1stdlife="n/a","n/a",IF(AS$3>(A1stdlife+$E81),(Input!$J$143*(1+rvanilla)^0.5)-SUM($J81:AR81),(Input!$J$143*(1+rvanilla)^0.5)/A1stdlife)) -> 0.3041622753 | AT81: =IF(A1stdlife="n/a","n/a",IF(AT$3>(A1stdlife+$E81),(Input!$J$143*(1+rvanilla)^0.5)-SUM($J81:AS81),(Input!$J$143*(1+rvanilla)^0.5)/A1stdlife)) -> 0.3041622753 | AU81: =IF(A1stdlife="n/a","n/a",IF(AU$3>(A1stdlife+$E81),(Input!$J$143*(1+rvanilla)^0.5)-SUM($J81:AT81),(Input!$J$143*(1+rvanilla)^0.5)/A1stdlife)) -> 0.3041622753 | AV81: =IF(A1stdlife="n/a","n/a",IF(AV$3>(A1stdlife+$E81),(Input!$J$143*(1+rvanilla)^0.5)-SUM($J81:AU81),(Input!$J$143*(1+rvanilla)^0.5)/A1stdlife)) -> 0.3041622753 | AW81: =IF(A1stdlife="n/a","n/a",IF(AW$3>(A1stdlife+$E81),(Input!$J$143*(1+rvanilla)^0.5)-SUM($J81:AV81),(Input!$J$143*(1+rvanilla)^0.5)/A1stdlife)) -> 0.3041622753 | AX81: =IF(A1stdlife="n/a","n/a",IF(AX$3>(A1stdlife+$E81),(Input!$J$143*(1+rvanilla)^0.5)-SUM($J81:AW81),(Input!$J$143*(1+rvanilla)^0.5)/A1stdlife)) -> 0.3041622753 | AY81: =IF(A1stdlife="n/a","n/a",IF(AY$3>(A1stdlife+$E81),(Input!$J$143*(1+rvanilla)^0.5)-SUM($J81:AX81),(Input!$J$143*(1+rvanilla)^0.5)/A1stdlife)) -> 0.3041622753 | AZ81: =IF(A1stdlife="n/a","n/a",IF(AZ$3>(A1stdlife+$E81),(Input!$J$143*(1+rvanilla)^0.5)-SUM($J81:AY81),(Input!$J$143*(1+rvanilla)^0.5)/A1stdlife)) -> 0.3041622753 | BA81: =IF(A1stdlife="n/a","n/a",IF(BA$3>(A1stdlife+$E81),(Input!$J$143*(1+rvanilla)^0.5)-SUM($J81:AZ81),(Input!$J$143*(1+rvanilla)^0.5)/A1stdlife)) -> 0.3041622753 | BB81: =IF(A1stdlife="n/a","n/a",IF(BB$3>(A1stdlife+$E81),(Input!$J$143*(1+rvanilla)^0.5)-SUM($J81:BA81),(Input!$J$143*(1+rvanilla)^0.5)/A1stdlife)) -> 0.3041622753 | BC81: =IF(A1stdlife="n/a","n/a",IF(BC$3>(A1stdlife+$E81),(Input!$J$143*(1+rvanilla)^0.5)-SUM($J81:BB81),(Input!$J$143*(1+rvanilla)^0.5)/A1stdlife)) -> 0.3041622753 | BD81: =IF(A1stdlife="n/a","n/a",IF(BD$3>(A1stdlife+$E81),(Input!$J$143*(1+rvanilla)^0.5)-SUM($J81:BC81),(Input!$J$143*(1+rvanilla)^0.5)/A1stdlife)) -> 0.3041622753 | BE81: =IF(A1stdlife="n/a","n/a",IF(BE$3>(A1stdlife+$E81),(Input!$J$143*(1+rvanilla)^0.5)-SUM($J81:BD81),(Input!$J$143*(1+rvanilla)^0.5)/A1stdlife)) -> 0.3041622753 | BF81: =IF(A1stdlife="n/a","n/a",IF(BF$3>(A1stdlife+$E81),(Input!$J$143*(1+rvanilla)^0.5)-SUM($J81:BE81),(Input!$J$143*(1+rvanilla)^0.5)/A1stdlife)) -> 0.3041622753 | BG81: =IF(A1stdlife="n/a","n/a",IF(BG$3>(A1stdlife+$E81),(Input!$J$143*(1+rvanilla)^0.5)-SUM($J81:BF81),(Input!$J$143*(1+rvanilla)^0.5)/A1stdlife)) -> 0.3041622753 | BH81: =IF(A1stdlife="n/a","n/a",IF(BH$3>(A1stdlife+$E81),(Input!$J$143*(1+rvanilla)^0.5)-SUM($J81:BG81),(Input!$J$143*(1+rvanilla)^0.5)/A1stdlife)) -> 0.3041622753 | BI81: =IF(A1stdlife="n/a","n/a",IF(BI$3>(A1stdlife+$E81),(Input!$J$143*(1+rvanilla)^0.5)-SUM($J81:BH81),(Input!$J$143*(1+rvanilla)^0.5)/A1stdlife)) -> 1.065814104e-14
E82: 5 | L82: =IF(A1stdlife="n/a","n/a",IF(L$3>(A1stdlife+$E82),(Input!$K$143*(1+rvanilla)^0.5)-SUM($K82:K82),(Input!$K$143*(1+rvanilla)^0.5)/A1stdlife)) -> 0.2171314917 | M82: =IF(A1stdlife="n/a","n/a",IF(M$3>(A1stdlife+$E82),(Input!$K$143*(1+rvanilla)^0.5)-SUM($K82:L82),(Input!$K$143*(1+rvanilla)^0.5)/A1stdlife)) -> 0.2171314917 | N82: =IF(A1stdlife="n/a","n/a",IF(N$3>(A1stdlife+$E82),(Input!$K$143*(1+rvanilla)^0.5)-SUM($K82:M82),(Input!$K$143*(1+rvanilla)^0.5)/A1stdlife)) -> 0.2171314917 | O82: =IF(A1stdlife="n/a","n/a",IF(O$3>(A1stdlife+$E82),(Input!$K$143*(1+rvanilla)^0.5)-SUM($K82:N82),(Input!$K$143*(1+rvanilla)^0.5)/A1stdlife)) -> 0.2171314917 | P82: =IF(A1stdlife="n/a","n/a",IF(P$3>(A1stdlife+$E82),(Input!$K$143*(1+rvanilla)^0.5)-SUM($K82:O82),(Input!$K$143*(1+rvanilla)^0.5)/A1stdlife)) -> 0.2171314917 | Q82: =IF(A1stdlife="n/a","n/a",IF(Q$3>(A1stdlife+$E82),(Input!$K$143*(1+rvanilla)^0.5)-SUM($K82:P82),(Input!$K$143*(1+rvanilla)^0.5)/A1stdlife)) -> 0.2171314917 | R82: =IF(A1stdlife="n/a","n/a",IF(R$3>(A1stdlife+$E82),(Input!$K$143*(1+rvanilla)^0.5)-SUM($K82:Q82),(Input!$K$143*(1+rvanilla)^0.5)/A1stdlife)) -> 0.2171314917 | S82: =IF(A1stdlife="n/a","n/a",IF(S$3>(A1stdlife+$E82),(Input!$K$143*(1+rvanilla)^0.5)-SUM($K82:R82),(Input!$K$143*(1+rvanilla)^0.5)/A1stdlife)) -> 0.2171314917 | T82: =IF(A1stdlife="n/a","n/a",IF(T$3>(A1stdlife+$E82),(Input!$K$143*(1+rvanilla)^0.5)-SUM($K82:S82),(Input!$K$143*(1+rvanilla)^0.5)/A1stdlife)) -> 0.2171314917 | U82: =IF(A1stdlife="n/a","n/a",IF(U$3>(A1stdlife+$E82),(Input!$K$143*(1+rvanilla)^0.5)-SUM($K82:T82),(Input!$K$143*(1+rvanilla)^0.5)/A1stdlife)) -> 0.2171314917 | V82: =IF(A1stdlife="n/a","n/a",IF(V$3>(A1stdlife+$E82),(Input!$K$143*(1+rvanilla)^0.5)-SUM($K82:U82),(Input!$K$143*(1+rvanilla)^0.5)/A1stdlife)) -> 0.2171314917 | W82: =IF(A1stdlife="n/a","n/a",IF(W$3>(A1stdlife+$E82),(Input!$K$143*(1+rvanilla)^0.5)-SUM($K82:V82),(Input!$K$143*(1+rvanilla)^0.5)/A1stdlife)) -> 0.2171314917 | X82: =IF(A1stdlife="n/a","n/a",IF(X$3>(A1stdlife+$E82),(Input!$K$143*(1+rvanilla)^0.5)-SUM($K82:W82),(Input!$K$143*(1+rvanilla)^0.5)/A1stdlife)) -> 0.2171314917 | Y82: =IF(A1stdlife="n/a","n/a",IF(Y$3>(A1stdlife+$E82),(Input!$K$143*(1+rvanilla)^0.5)-SUM($K82:X82),(Input!$K$143*(1+rvanilla)^0.5)/A1stdlife)) -> 0.2171314917 | Z82: =IF(A1stdlife="n/a","n/a",IF(Z$3>(A1stdlife+$E82),(Input!$K$143*(1+rvanilla)^0.5)-SUM($K82:Y82),(Input!$K$143*(1+rvanilla)^0.5)/A1stdlife)) -> 0.2171314917 | AA82: =IF(A1stdlife="n/a","n/a",IF(AA$3>(A1stdlife+$E82),(Input!$K$143*(1+rvanilla)^0.5)-SUM($K82:Z82),(Input!$K$143*(1+rvanilla)^0.5)/A1stdlife)) -> 0.2171314917 | AB82: =IF(A1stdlife="n/a","n/a",IF(AB$3>(A1stdlife+$E82),(Input!$K$143*(1+rvanilla)^0.5)-SUM($K82:AA82),(Input!$K$143*(1+rvanilla)^0.5)/A1stdlife)) -> 0.2171314917 | AC82: =IF(A1stdlife="n/a","n/a",IF(AC$3>(A1stdlife+$E82),(Input!$K$143*(1+rvanilla)^0.5)-SUM($K82:AB82),(Input!$K$143*(1+rvanilla)^0.5)/A1stdlife)) -> 0.2171314917 | AD82: =IF(A1stdlife="n/a","n/a",IF(AD$3>(A1stdlife+$E82),(Input!$K$143*(1+rvanilla)^0.5)-SUM($K82:AC82),(Input!$K$143*(1+rvanilla)^0.5)/A1stdlife)) -> 0.2171314917 | AE82: =IF(A1stdlife="n/a","n/a",IF(AE$3>(A1stdlife+$E82),(Input!$K$143*(1+rvanilla)^0.5)-SUM($K82:AD82),(Input!$K$143*(1+rvanilla)^0.5)/A1stdlife)) -> 0.2171314917 | AF82: =IF(A1stdlife="n/a","n/a",IF(AF$3>(A1stdlife+$E82),(Input!$K$143*(1+rvanilla)^0.5)-SUM($K82:AE82),(Input!$K$143*(1+rvanilla)^0.5)/A1stdlife)) -> 0.2171314917 | AG82: =IF(A1stdlife="n/a","n/a",IF(AG$3>(A1stdlife+$E82),(Input!$K$143*(1+rvanilla)^0.5)-SUM($K82:AF82),(Input!$K$143*(1+rvanilla)^0.5)/A1stdlife)) -> 0.2171314917 | AH82: =IF(A1stdlife="n/a","n/a",IF(AH$3>(A1stdlife+$E82),(Input!$K$143*(1+rvanilla)^0.5)-SUM($K82:AG82),(Input!$K$143*(1+rvanilla)^0.5)/A1stdlife)) -> 0.2171314917 | AI82: =IF(A1stdlife="n/a","n/a",IF(AI$3>(A1stdlife+$E82),(Input!$K$143*(1+rvanilla)^0.5)-SUM($K82:AH82),(Input!$K$143*(1+rvanilla)^0.5)/A1stdlife)) -> 0.2171314917 | AJ82: =IF(A1stdlife="n/a","n/a",IF(AJ$3>(A1stdlife+$E82),(Input!$K$143*(1+rvanilla)^0.5)-SUM($K82:AI82),(Input!$K$143*(1+rvanilla)^0.5)/A1stdlife)) -> 0.2171314917 | AK82: =IF(A1stdlife="n/a","n/a",IF(AK$3>(A1stdlife+$E82),(Input!$K$143*(1+rvanilla)^0.5)-SUM($K82:AJ82),(Input!$K$143*(1+rvanilla)^0.5)/A1stdlife)) -> 0.2171314917 | AL82: =IF(A1stdlife="n/a","n/a",IF(AL$3>(A1stdlife+$E82),(Input!$K$143*(1+rvanilla)^0.5)-SUM($K82:AK82),(Input!$K$143*(1+rvanilla)^0.5)/A1stdlife)) -> 0.2171314917 | AM82: =IF(A1stdlife="n/a","n/a",IF(AM$3>(A1stdlife+$E82),(Input!$K$143*(1+rvanilla)^0.5)-SUM($K82:AL82),(Input!$K$143*(1+rvanilla)^0.5)/A1stdlife)) -> 0.2171314917 | AN82: =IF(A1stdlife="n/a","n/a",IF(AN$3>(A1stdlife+$E82),(Input!$K$143*(1+rvanilla)^0.5)-SUM($K82:AM82),(Input!$K$143*(1+rvanilla)^0.5)/A1stdlife)) -> 0.2171314917 | AO82: =IF(A1stdlife="n/a","n/a",IF(AO$3>(A1stdlife+$E82),(Input!$K$143*(1+rvanilla)^0.5)-SUM($K82:AN82),(Input!$K$143*(1+rvanilla)^0.5)/A1stdlife)) -> 0.2171314917 | AP82: =IF(A1stdlife="n/a","n/a",IF(AP$3>(A1stdlife+$E82),(Input!$K$143*(1+rvanilla)^0.5)-SUM($K82:AO82),(Input!$K$143*(1+rvanilla)^0.5)/A1stdlife)) -> 0.2171314917 | AQ82: =IF(A1stdlife="n/a","n/a",IF(AQ$3>(A1stdlife+$E82),(Input!$K$143*(1+rvanilla)^0.5)-SUM($K82:AP82),(Input!$K$143*(1+rvanilla)^0.5)/A1stdlife)) -> 0.2171314917 | AR82: =IF(A1stdlife="n/a","n/a",IF(AR$3>(A1stdlife+$E82),(Input!$K$143*(1+rvanilla)^0.5)-SUM($K82:AQ82),(Input!$K$143*(1+rvanilla)^0.5)/A1stdlife)) -> 0.2171314917 | AS82: =IF(A1stdlife="n/a","n/a",IF(AS$3>(A1stdlife+$E82),(Input!$K$143*(1+rvanilla)^0.5)-SUM($K82:AR82),(Input!$K$143*(1+rvanilla)^0.5)/A1stdlife)) -> 0.2171314917 | AT82: =IF(A1stdlife="n/a","n/a",IF(AT$3>(A1stdlife+$E82),(Input!$K$143*(1+rvanilla)^0.5)-SUM($K82:AS82),(Input!$K$143*(1+rvanilla)^0.5)/A1stdlife)) -> 0.2171314917 | AU82: =IF(A1stdlife="n/a","n/a",IF(AU$3>(A1stdlife+$E82),(Input!$K$143*(1+rvanilla)^0.5)-SUM($K82:AT82),(Input!$K$143*(1+rvanilla)^0.5)/A1stdlife)) -> 0.2171314917 | AV82: =IF(A1stdlife="n/a","n/a",IF(AV$3>(A1stdlife+$E82),(Input!$K$143*(1+rvanilla)^0.5)-SUM($K82:AU82),(Input!$K$143*(1+rvanilla)^0.5)/A1stdlife)) -> 0.2171314917 | AW82: =IF(A1stdlife="n/a","n/a",IF(AW$3>(A1stdlife+$E82),(Input!$K$143*(1+rvanilla)^0.5)-SUM($K82:AV82),(Input!$K$143*(1+rvanilla)^0.5)/A1stdlife)) -> 0.2171314917 | AX82: =IF(A1stdlife="n/a","n/a",IF(AX$3>(A1stdlife+$E82),(Input!$K$143*(1+rvanilla)^0.5)-SUM($K82:AW82),(Input!$K$143*(1+rvanilla)^0.5)/A1stdlife)) -> 0.2171314917 | AY82: =IF(A1stdlife="n/a","n/a",IF(AY$3>(A1stdlife+$E82),(Input!$K$143*(1+rvanilla)^0.5)-SUM($K82:AX82),(Input!$K$143*(1+rvanilla)^0.5)/A1stdlife)) -> 0.2171314917 | AZ82: =IF(A1stdlife="n/a","n/a",IF(AZ$3>(A1stdlife+$E82),(Input!$K$143*(1+rvanilla)^0.5)-SUM($K82:AY82),(Input!$K$143*(1+rvanilla)^0.5)/A1stdlife)) -> 0.2171314917 | BA82: =IF(A1stdlife="n/a","n/a",IF(BA$3>(A1stdlife+$E82),(Input!$K$143*(1+rvanilla)^0.5)-SUM($K82:AZ82),(Input!$K$143*(1+rvanilla)^0.5)/A1stdlife)) -> 0.2171314917 | BB82: =IF(A1stdlife="n/a","n/a",IF(BB$3>(A1stdlife+$E82),(Input!$K$143*(1+rvanilla)^0.5)-SUM($K82:BA82),(Input!$K$143*(1+rvanilla)^0.5)/A1stdlife)) -> 0.2171314917 | BC82: =IF(A1stdlife="n/a","n/a",IF(BC$3>(A1stdlife+$E82),(Input!$K$143*(1+rvanilla)^0.5)-SUM($K82:BB82),(Input!$K$143*(1+rvanilla)^0.5)/A1stdlife)) -> 0.2171314917 | BD82: =IF(A1stdlife="n/a","n/a",IF(BD$3>(A1stdlife+$E82),(Input!$K$143*(1+rvanilla)^0.5)-SUM($K82:BC82),(Input!$K$143*(1+rvanilla)^0.5)/A1stdlife)) -> 0.2171314917 | BE82: =IF(A1stdlife="n/a","n/a",IF(BE$3>(A1stdlife+$E82),(Input!$K$143*(1+rvanilla)^0.5)-SUM($K82:BD82),(Input!$K$143*(1+rvanilla)^0.5)/A1stdlife)) -> 0.2171314917 | BF82: =IF(A1stdlife="n/a","n/a",IF(BF$3>(A1stdlife+$E82),(Input!$K$143*(1+rvanilla)^0.5)-SUM($K82:BE82),(Input!$K$143*(1+rvanilla)^0.5)/A1stdlife)) -> 0.2171314917 | BG82: =IF(A1stdlife="n/a","n/a",IF(BG$3>(A1stdlife+$E82),(Input!$K$143*(1+rvanilla)^0.5)-SUM($K82:BF82),(Input!$K$143*(1+rvanilla)^0.5)/A1stdlife)) -> 0.2171314917 | BH82: =IF(A1stdlife="n/a","n/a",IF(BH$3>(A1stdlife+$E82),(Input!$K$143*(1+rvanilla)^0.5)-SUM($K82:BG82),(Input!$K$143*(1+rvanilla)^0.5)/A1stdlife)) -> 0.2171314917 | BI82: =IF(A1stdlife="n/a","n/a",IF(BI$3>(A1stdlife+$E82),(Input!$K$143*(1+rvanilla)^0.5)-SUM($K82:BH82),(Input!$K$143*(1+rvanilla)^0.5)/A1stdlife)) -> 0.2171314917
E83: 6 | M83: =IF(A1stdlife="n/a","n/a",IF(M$3>(A1stdlife+$E83),(Input!$L$143*(1+rvanilla)^0.5)-SUM($L83:L83),(Input!$L$143*(1+rvanilla)^0.5)/A1stdlife)) -> 0 | N83: =IF(A1stdlife="n/a","n/a",IF(N$3>(A1stdlife+$E83),(Input!$L$143*(1+rvanilla)^0.5)-SUM($L83:M83),(Input!$L$143*(1+rvanilla)^0.5)/A1stdlife)) -> 0 | O83: =IF(A1stdlife="n/a","n/a",IF(O$3>(A1stdlife+$E83),(Input!$L$143*(1+rvanilla)^0.5)-SUM($L83:N83),(Input!$L$143*(1+rvanilla)^0.5)/A1stdlife)) -> 0 | P83: =IF(A1stdlife="n/a","n/a",IF(P$3>(A1stdlife+$E83),(Input!$L$143*(1+rvanilla)^0.5)-SUM($L83:O83),(Input!$L$143*(1+rvanilla)^0.5)/A1stdlife)) -> 0 | Q83: =IF(A1stdlife="n/a","n/a",IF(Q$3>(A1stdlife+$E83),(Input!$L$143*(1+rvanilla)^0.5)-SUM($L83:P83),(Input!$L$143*(1+rvanilla)^0.5)/A1stdlife)) -> 0 | R83: =IF(A1stdlife="n/a","n/a",IF(R$3>(A1stdlife+$E83),(Input!$L$143*(1+rvanilla)^0.5)-SUM($L83:Q83),(Input!$L$143*(1+rvanilla)^0.5)/A1stdlife)) -> 0 | S83: =IF(A1stdlife="n/a","n/a",IF(S$3>(A1stdlife+$E83),(Input!$L$143*(1+rvanilla)^0.5)-SUM($L83:R83),(Input!$L$143*(1+rvanilla)^0.5)/A1stdlife)) -> 0 | T83: =IF(A1stdlife="n/a","n/a",IF(T$3>(A1stdlife+$E83),(Input!$L$143*(1+rvanilla)^0.5)-SUM($L83:S83),(Input!$L$143*(1+rvanilla)^0.5)/A1stdlife)) -> 0 | U83: =IF(A1stdlife="n/a","n/a",IF(U$3>(A1stdlife+$E83),(Input!$L$143*(1+rvanilla)^0.5)-SUM($L83:T83),(Input!$L$143*(1+rvanilla)^0.5)/A1stdlife)) -> 0 | V83: =IF(A1stdlife="n/a","n/a",IF(V$3>(A1stdlife+$E83),(Input!$L$143*(1+rvanilla)^0.5)-SUM($L83:U83),(Input!$L$143*(1+rvanilla)^0.5)/A1stdlife)) -> 0 | W83: =IF(A1stdlife="n/a","n/a",IF(W$3>(A1stdlife+$E83),(Input!$L$143*(1+rvanilla)^0.5)-SUM($L83:V83),(Input!$L$143*(1+rvanilla)^0.5)/A1stdlife)) -> 0 | X83: =IF(A1stdlife="n/a","n/a",IF(X$3>(A1stdlife+$E83),(Input!$L$143*(1+rvanilla)^0.5)-SUM($L83:W83),(Input!$L$143*(1+rvanilla)^0.5)/A1stdlife)) -> 0 | Y83: =IF(A1stdlife="n/a","n/a",IF(Y$3>(A1stdlife+$E83),(Input!$L$143*(1+rvanilla)^0.5)-SUM($L83:X83),(Input!$L$143*(1+rvanilla)^0.5)/A1stdlife)) -> 0 | Z83: =IF(A1stdlife="n/a","n/a",IF(Z$3>(A1stdlife+$E83),(Input!$L$143*(1+rvanilla)^0.5)-SUM($L83:Y83),(Input!$L$143*(1+rvanilla)^0.5)/A1stdlife)) -> 0 | AA83: =IF(A1stdlife="n/a","n/a",IF(AA$3>(A1stdlife+$E83),(Input!$L$143*(1+rvanilla)^0.5)-SUM($L83:Z83),(Input!$L$143*(1+rvanilla)^0.5)/A1stdlife)) -> 0 | AB83: =IF(A1stdlife="n/a","n/a",IF(AB$3>(A1stdlife+$E83),(Input!$L$143*(1+rvanilla)^0.5)-SUM($L83:AA83),(Input!$L$143*(1+rvanilla)^0.5)/A1stdlife)) -> 0 | AC83: =IF(A1stdlife="n/a","n/a",IF(AC$3>(A1stdlife+$E83),(Input!$L$143*(1+rvanilla)^0.5)-SUM($L83:AB83),(Input!$L$143*(1+rvanilla)^0.5)/A1stdlife)) -> 0 | AD83: =IF(A1stdlife="n/a","n/a",IF(AD$3>(A1stdlife+$E83),(Input!$L$143*(1+rvanilla)^0.5)-SUM($L83:AC83),(Input!$L$143*(1+rvanilla)^0.5)/A1stdlife)) -> 0 | AE83: =IF(A1stdlife="n/a","n/a",IF(AE$3>(A1stdlife+$E83),(Input!$L$143*(1+rvanilla)^0.5)-SUM($L83:AD83),(Input!$L$143*(1+rvanilla)^0.5)/A1stdlife)) -> 0 | AF83: =IF(A1stdlife="n/a","n/a",IF(AF$3>(A1stdlife+$E83),(Input!$L$143*(1+rvanilla)^0.5)-SUM($L83:AE83),(Input!$L$143*(1+rvanilla)^0.5)/A1stdlife)) -> 0 | AG83: =IF(A1stdlife="n/a","n/a",IF(AG$3>(A1stdlife+$E83),(Input!$L$143*(1+rvanilla)^0.5)-SUM($L83:AF83),(Input!$L$143*(1+rvanilla)^0.5)/A1stdlife)) -> 0 | AH83: =IF(A1stdlife="n/a","n/a",IF(AH$3>(A1stdlife+$E83),(Input!$L$143*(1+rvanilla)^0.5)-SUM($L83:AG83),(Input!$L$143*(1+rvanilla)^0.5)/A1stdlife)) -> 0 | AI83: =IF(A1stdlife="n/a","n/a",IF(AI$3>(A1stdlife+$E83),(Input!$L$143*(1+rvanilla)^0.5)-SUM($L83:AH83),(Input!$L$143*(1+rvanilla)^0.5)/A1stdlife)) -> 0 | AJ83: =IF(A1stdlife="n/a","n/a",IF(AJ$3>(A1stdlife+$E83),(Input!$L$143*(1+rvanilla)^0.5)-SUM($L83:AI83),(Input!$L$143*(1+rvanilla)^0.5)/A1stdlife)) -> 0 | AK83: =IF(A1stdlife="n/a","n/a",IF(AK$3>(A1stdlife+$E83),(Input!$L$143*(1+rvanilla)^0.5)-SUM($L83:AJ83),(Input!$L$143*(1+rvanilla)^0.5)/A1stdlife)) -> 0 | AL83: =IF(A1stdlife="n/a","n/a",IF(AL$3>(A1stdlife+$E83),(Input!$L$143*(1+rvanilla)^0.5)-SUM($L83:AK83),(Input!$L$143*(1+rvanilla)^0.5)/A1stdlife)) -> 0 | AM83: =IF(A1stdlife="n/a","n/a",IF(AM$3>(A1stdlife+$E83),(Input!$L$143*(1+rvanilla)^0.5)-SUM($L83:AL83),(Input!$L$143*(1+rvanilla)^0.5)/A1stdlife)) -> 0 | AN83: =IF(A1stdlife="n/a","n/a",IF(AN$3>(A1stdlife+$E83),(Input!$L$143*(1+rvanilla)^0.5)-SUM($L83:AM83),(Input!$L$143*(1+rvanilla)^0.5)/A1stdlife)) -> 0 | AO83: =IF(A1stdlife="n/a","n/a",IF(AO$3>(A1stdlife+$E83),(Input!$L$143*(1+rvanilla)^0.5)-SUM($L83:AN83),(Input!$L$143*(1+rvanilla)^0.5)/A1stdlife)) -> 0 | AP83: =IF(A1stdlife="n/a","n/a",IF(AP$3>(A1stdlife+$E83),(Input!$L$143*(1+rvanilla)^0.5)-SUM($L83:AO83),(Input!$L$143*(1+rvanilla)^0.5)/A1stdlife)) -> 0 | AQ83: =IF(A1stdlife="n/a","n/a",IF(AQ$3>(A1stdlife+$E83),(Input!$L$143*(1+rvanilla)^0.5)-SUM($L83:AP83),(Input!$L$143*(1+rvanilla)^0.5)/A1stdlife)) -> 0 | AR83: =IF(A1stdlife="n/a","n/a",IF(AR$3>(A1stdlife+$E83),(Input!$L$143*(1+rvanilla)^0.5)-SUM($L83:AQ83),(Input!$L$143*(1+rvanilla)^0.5)/A1stdlife)) -> 0 | AS83: =IF(A1stdlife="n/a","n/a",IF(AS$3>(A1stdlife+$E83),(Input!$L$143*(1+rvanilla)^0.5)-SUM($L83:AR83),(Input!$L$143*(1+rvanilla)^0.5)/A1stdlife)) -> 0 | AT83: =IF(A1stdlife="n/a","n/a",IF(AT$3>(A1stdlife+$E83),(Input!$L$143*(1+rvanilla)^0.5)-SUM($L83:AS83),(Input!$L$143*(1+rvanilla)^0.5)/A1stdlife)) -> 0 | AU83: =IF(A1stdlife="n/a","n/a",IF(AU$3>(A1stdlife+$E83),(Input!$L$143*(1+rvanilla)^0.5)-SUM($L83:AT83),(Input!$L$143*(1+rvanilla)^0.5)/A1stdlife)) -> 0 | AV83: =IF(A1stdlife="n/a","n/a",IF(AV$3>(A1stdlife+$E83),(Input!$L$143*(1+rvanilla)^0.5)-SUM($L83:AU83),(Input!$L$143*(1+rvanilla)^0.5)/A1stdlife)) -> 0 | AW83: =IF(A1stdlife="n/a","n/a",IF(AW$3>(A1stdlife+$E83),(Input!$L$143*(1+rvanilla)^0.5)-SUM($L83:AV83),(Input!$L$143*(1+rvanilla)^0.5)/A1stdlife)) -> 0 | AX83: =IF(A1stdlife="n/a","n/a",IF(AX$3>(A1stdlife+$E83),(Input!$L$143*(1+rvanilla)^0.5)-SUM($L83:AW83),(Input!$L$143*(1+rvanilla)^0.5)/A1stdlife)) -> 0 | AY83: =IF(A1stdlife="n/a","n/a",IF(AY$3>(A1stdlife+$E83),(Input!$L$143*(1+rvanilla)^0.5)-SUM($L83:AX83),(Input!$L$143*(1+rvanilla)^0.5)/A1stdlife)) -> 0 | AZ83: =IF(A1stdlife="n/a","n/a",IF(AZ$3>(A1stdlife+$E83),(Input!$L$143*(1+rvanilla)^0.5)-SUM($L83:AY83),(Input!$L$143*(1+rvanilla)^0.5)/A1stdlife)) -> 0 | BA83: =IF(A1stdlife="n/a","n/a",IF(BA$3>(A1stdlife+$E83),(Input!$L$143*(1+rvanilla)^0.5)-SUM($L83:AZ83),(Input!$L$143*(1+rvanilla)^0.5)/A1stdlife)) -> 0 | BB83: =IF(A1stdlife="n/a","n/a",IF(BB$3>(A1stdlife+$E83),(Input!$L$143*(1+rvanilla)^0.5)-SUM($L83:BA83),(Input!$L$143*(1+rvanilla)^0.5)/A1stdlife)) -> 0 | BC83: =IF(A1stdlife="n/a","n/a",IF(BC$3>(A1stdlife+$E83),(Input!$L$143*(1+rvanilla)^0.5)-SUM($L83:BB83),(Input!$L$143*(1+rvanilla)^0.5)/A1stdlife)) -> 0 | BD83: =IF(A1stdlife="n/a","n/a",IF(BD$3>(A1stdlife+$E83),(Input!$L$143*(1+rvanilla)^0.5)-SUM($L83:BC83),(Input!$L$143*(1+rvanilla)^0.5)/A1stdlife)) -> 0 | BE83: =IF(A1stdlife="n/a","n/a",IF(BE$3>(A1stdlife+$E83),(Input!$L$143*(1+rvanilla)^0.5)-SUM($L83:BD83),(Input!$L$143*(1+rvanilla)^0.5)/A1stdlife)) -> 0 | BF83: =IF(A1stdlife="n/a","n/a",IF(BF$3>(A1stdlife+$E83),(Input!$L$143*(1+rvanilla)^0.5)-SUM($L83:BE83),(Input!$L$143*(1+rvanilla)^0.5)/A1stdlife)) -> 0 | BG83: =IF(A1stdlife="n/a","n/a",IF(BG$3>(A1stdlife+$E83),(Input!$L$143*(1+rvanilla)^0.5)-SUM($L83:BF83),(Input!$L$143*(1+rvanilla)^0.5)/A1stdlife)) -> 0 | BH83: =IF(A1stdlife="n/a","n/a",IF(BH$3>(A1stdlife+$E83),(Input!$L$143*(1+rvanilla)^0.5)-SUM($L83:BG83),(Input!$L$143*(1+rvanilla)^0.5)/A1stdlife)) -> 0 | BI83: =IF(A1stdlife="n/a","n/a",IF(BI$3>(A1stdlife+$E83),(Input!$L$143*(1+rvanilla)^0.5)-SUM($L83:BH83),(Input!$L$143*(1+rvanilla)^0.5)/A1stdlife)) -> 0
E84: 7 | N84: =IF(A1stdlife="n/a","n/a",IF(N$3>(A1stdlife+$E84),(Input!$M$143*(1+rvanilla)^0.5)-SUM($M84:M84),(Input!$M$143*(1+rvanilla)^0.5)/A1stdlife)) -> 0 | O84: =IF(A1stdlife="n/a","n/a",IF(O$3>(A1stdlife+$E84),(Input!$M$143*(1+rvanilla)^0.5)-SUM($M84:N84),(Input!$M$143*(1+rvanilla)^0.5)/A1stdlife)) -> 0 | P84: =IF(A1stdlife="n/a","n/a",IF(P$3>(A1stdlife+$E84),(Input!$M$143*(1+rvanilla)^0.5)-SUM($M84:O84),(Input!$M$143*(1+rvanilla)^0.5)/A1stdlife)) -> 0 | Q84: =IF(A1stdlife="n/a","n/a",IF(Q$3>(A1stdlife+$E84),(Input!$M$143*(1+rvanilla)^0.5)-SUM($M84:P84),(Input!$M$143*(1+rvanilla)^0.5)/A1stdlife)) -> 0 | R84: =IF(A1stdlife="n/a","n/a",IF(R$3>(A1stdlife+$E84),(Input!$M$143*(1+rvanilla)^0.5)-SUM($M84:Q84),(Input!$M$143*(1+rvanilla)^0.5)/A1stdlife)) -> 0 | S84: =IF(A1stdlife="n/a","n/a",IF(S$3>(A1stdlife+$E84),(Input!$M$143*(1+rvanilla)^0.5)-SUM($M84:R84),(Input!$M$143*(1+rvanilla)^0.5)/A1stdlife)) -> 0 | T84: =IF(A1stdlife="n/a","n/a",IF(T$3>(A1stdlife+$E84),(Input!$M$143*(1+rvanilla)^0.5)-SUM($M84:S84),(Input!$M$143*(1+rvanilla)^0.5)/A1stdlife)) -> 0 | U84: =IF(A1stdlife="n/a","n/a",IF(U$3>(A1stdlife+$E84),(Input!$M$143*(1+rvanilla)^0.5)-SUM($M84:T84),(Input!$M$143*(1+rvanilla)^0.5)/A1stdlife)) -> 0 | V84: =IF(A1stdlife="n/a","n/a",IF(V$3>(A1stdlife+$E84),(Input!$M$143*(1+rvanilla)^0.5)-SUM($M84:U84),(Input!$M$143*(1+rvanilla)^0.5)/A1stdlife)) -> 0 | W84: =IF(A1stdlife="n/a","n/a",IF(W$3>(A1stdlife+$E84),(Input!$M$143*(1+rvanilla)^0.5)-SUM($M84:V84),(Input!$M$143*(1+rvanilla)^0.5)/A1stdlife)) -> 0 | X84: =IF(A1stdlife="n/a","n/a",IF(X$3>(A1stdlife+$E84),(Input!$M$143*(1+rvanilla)^0.5)-SUM($M84:W84),(Input!$M$143*(1+rvanilla)^0.5)/A1stdlife)) -> 0 | Y84: =IF(A1stdlife="n/a","n/a",IF(Y$3>(A1stdlife+$E84),(Input!$M$143*(1+rvanilla)^0.5)-SUM($M84:X84),(Input!$M$143*(1+rvanilla)^0.5)/A1stdlife)) -> 0 | Z84: =IF(A1stdlife="n/a","n/a",IF(Z$3>(A1stdlife+$E84),(Input!$M$143*(1+rvanilla)^0.5)-SUM($M84:Y84),(Input!$M$143*(1+rvanilla)^0.5)/A1stdlife)) -> 0 | AA84: =IF(A1stdlife="n/a","n/a",IF(AA$3>(A1stdlife+$E84),(Input!$M$143*(1+rvanilla)^0.5)-SUM($M84:Z84),(Input!$M$143*(1+rvanilla)^0.5)/A1stdlife)) -> 0 | AB84: =IF(A1stdlife="n/a","n/a",IF(AB$3>(A1stdlife+$E84),(Input!$M$143*(1+rvanilla)^0.5)-SUM($M84:AA84),(Input!$M$143*(1+rvanilla)^0.5)/A1stdlife)) -> 0 | AC84: =IF(A1stdlife="n/a","n/a",IF(AC$3>(A1stdlife+$E84),(Input!$M$143*(1+rvanilla)^0.5)-SUM($M84:AB84),(Input!$M$143*(1+rvanilla)^0.5)/A1stdlife)) -> 0 | AD84: =IF(A1stdlife="n/a","n/a",IF(AD$3>(A1stdlife+$E84),(Input!$M$143*(1+rvanilla)^0.5)-SUM($M84:AC84),(Input!$M$143*(1+rvanilla)^0.5)/A1stdlife)) -> 0 | AE84: =IF(A1stdlife="n/a","n/a",IF(AE$3>(A1stdlife+$E84),(Input!$M$143*(1+rvanilla)^0.5)-SUM($M84:AD84),(Input!$M$143*(1+rvanilla)^0.5)/A1stdlife)) -> 0 | AF84: =IF(A1stdlife="n/a","n/a",IF(AF$3>(A1stdlife+$E84),(Input!$M$143*(1+rvanilla)^0.5)-SUM($M84:AE84),(Input!$M$143*(1+rvanilla)^0.5)/A1stdlife)) -> 0 | AG84: =IF(A1stdlife="n/a","n/a",IF(AG$3>(A1stdlife+$E84),(Input!$M$143*(1+rvanilla)^0.5)-SUM($M84:AF84),(Input!$M$143*(1+rvanilla)^0.5)/A1stdlife)) -> 0 | AH84: =IF(A1stdlife="n/a","n/a",IF(AH$3>(A1stdlife+$E84),(Input!$M$143*(1+rvanilla)^0.5)-SUM($M84:AG84),(Input!$M$143*(1+rvanilla)^0.5)/A1stdlife)) -> 0 | AI84: =IF(A1stdlife="n/a","n/a",IF(AI$3>(A1stdlife+$E84),(Input!$M$143*(1+rvanilla)^0.5)-SUM($M84:AH84),(Input!$M$143*(1+rvanilla)^0.5)/A1stdlife)) -> 0 | AJ84: =IF(A1stdlife="n/a","n/a",IF(AJ$3>(A1stdlife+$E84),(Input!$M$143*(1+rvanilla)^0.5)-SUM($M84:AI84),(Input!$M$143*(1+rvanilla)^0.5)/A1stdlife)) -> 0 | AK84: =IF(A1stdlife="n/a","n/a",IF(AK$3>(A1stdlife+$E84),(Input!$M$143*(1+rvanilla)^0.5)-SUM($M84:AJ84),(Input!$M$143*(1+rvanilla)^0.5)/A1stdlife)) -> 0 | AL84: =IF(A1stdlife="n/a","n/a",IF(AL$3>(A1stdlife+$E84),(Input!$M$143*(1+rvanilla)^0.5)-SUM($M84:AK84),(Input!$M$143*(1+rvanilla)^0.5)/A1stdlife)) -> 0 | AM84: =IF(A1stdlife="n/a","n/a",IF(AM$3>(A1stdlife+$E84),(Input!$M$143*(1+rvanilla)^0.5)-SUM($M84:AL84),(Input!$M$143*(1+rvanilla)^0.5)/A1stdlife)) -> 0 | AN84: =IF(A1stdlife="n/a","n/a",IF(AN$3>(A1stdlife+$E84),(Input!$M$143*(1+rvanilla)^0.5)-SUM($M84:AM84),(Input!$M$143*(1+rvanilla)^0.5)/A1stdlife)) -> 0 | AO84: =IF(A1stdlife="n/a","n/a",IF(AO$3>(A1stdlife+$E84),(Input!$M$143*(1+rvanilla)^0.5)-SUM($M84:AN84),(Input!$M$143*(1+rvanilla)^0.5)/A1stdlife)) -> 0 | AP84: =IF(A1stdlife="n/a","n/a",IF(AP$3>(A1stdlife+$E84),(Input!$M$143*(1+rvanilla)^0.5)-SUM($M84:AO84),(Input!$M$143*(1+rvanilla)^0.5)/A1stdlife)) -> 0 | AQ84: =IF(A1stdlife="n/a","n/a",IF(AQ$3>(A1stdlife+$E84),(Input!$M$143*(1+rvanilla)^0.5)-SUM($M84:AP84),(Input!$M$143*(1+rvanilla)^0.5)/A1stdlife)) -> 0 | AR84: =IF(A1stdlife="n/a","n/a",IF(AR$3>(A1stdlife+$E84),(Input!$M$143*(1+rvanilla)^0.5)-SUM($M84:AQ84),(Input!$M$143*(1+rvanilla)^0.5)/A1stdlife)) -> 0 | AS84: =IF(A1stdlife="n/a","n/a",IF(AS$3>(A1stdlife+$E84),(Input!$M$143*(1+rvanilla)^0.5)-SUM($M84:AR84),(Input!$M$143*(1+rvanilla)^0.5)/A1stdlife)) -> 0 | AT84: =IF(A1stdlife="n/a","n/a",IF(AT$3>(A1stdlife+$E84),(Input!$M$143*(1+rvanilla)^0.5)-SUM($M84:AS84),(Input!$M$143*(1+rvanilla)^0.5)/A1stdlife)) -> 0 | AU84: =IF(A1stdlife="n/a","n/a",IF(AU$3>(A1stdlife+$E84),(Input!$M$143*(1+rvanilla)^0.5)-SUM($M84:AT84),(Input!$M$143*(1+rvanilla)^0.5)/A1stdlife)) -> 0 | AV84: =IF(A1stdlife="n/a","n/a",IF(AV$3>(A1stdlife+$E84),(Input!$M$143*(1+rvanilla)^0.5)-SUM($M84:AU84),(Input!$M$143*(1+rvanilla)^0.5)/A1stdlife)) -> 0 | AW84: =IF(A1stdlife="n/a","n/a",IF(AW$3>(A1stdlife+$E84),(Input!$M$143*(1+rvanilla)^0.5)-SUM($M84:AV84),(Input!$M$143*(1+rvanilla)^0.5)/A1stdlife)) -> 0 | AX84: =IF(A1stdlife="n/a","n/a",IF(AX$3>(A1stdlife+$E84),(Input!$M$143*(1+rvanilla)^0.5)-SUM($M84:AW84),(Input!$M$143*(1+rvanilla)^0.5)/A1stdlife)) -> 0 | AY84: =IF(A1stdlife="n/a","n/a",IF(AY$3>(A1stdlife+$E84),(Input!$M$143*(1+rvanilla)^0.5)-SUM($M84:AX84),(Input!$M$143*(1+rvanilla)^0.5)/A1stdlife)) -> 0 | AZ84: =IF(A1stdlife="n/a","n/a",IF(AZ$3>(A1stdlife+$E84),(Input!$M$143*(1+rvanilla)^0.5)-SUM($M84:AY84),(Input!$M$143*(1+rvanilla)^0.5)/A1stdlife)) -> 0 | BA84: =IF(A1stdlife="n/a","n/a",IF(BA$3>(A1stdlife+$E84),(Input!$M$143*(1+rvanilla)^0.5)-SUM($M84:AZ84),(Input!$M$143*(1+rvanilla)^0.5)/A1stdlife)) -> 0 | BB84: =IF(A1stdlife="n/a","n/a",IF(BB$3>(A1stdlife+$E84),(Input!$M$143*(1+rvanilla)^0.5)-SUM($M84:BA84),(Input!$M$143*(1+rvanilla)^0.5)/A1stdlife)) -> 0 | BC84: =IF(A1stdlife="n/a","n/a",IF(BC$3>(A1stdlife+$E84),(Input!$M$143*(1+rvanilla)^0.5)-SUM($M84:BB84),(Input!$M$143*(1+rvanilla)^0.5)/A1stdlife)) -> 0 | BD84: =IF(A1stdlife="n/a","n/a",IF(BD$3>(A1stdlife+$E84),(Input!$M$143*(1+rvanilla)^0.5)-SUM($M84:BC84),(Input!$M$143*(1+rvanilla)^0.5)/A1stdlife)) -> 0 | BE84: =IF(A1stdlife="n/a","n/a",IF(BE$3>(A1stdlife+$E84),(Input!$M$143*(1+rvanilla)^0.5)-SUM($M84:BD84),(Input!$M$143*(1+rvanilla)^0.5)/A1stdlife)) -> 0 | BF84: =IF(A1stdlife="n/a","n/a",IF(BF$3>(A1stdlife+$E84),(Input!$M$143*(1+rvanilla)^0.5)-SUM($M84:BE84),(Input!$M$143*(1+rvanilla)^0.5)/A1stdlife)) -> 0 | BG84: =IF(A1stdlife="n/a","n/a",IF(BG$3>(A1stdlife+$E84),(Input!$M$143*(1+rvanilla)^0.5)-SUM($M84:BF84),(Input!$M$143*(1+rvanilla)^0.5)/A1stdlife)) -> 0 | BH84: =IF(A1stdlife="n/a","n/a",IF(BH$3>(A1stdlife+$E84),(Input!$M$143*(1+rvanilla)^0.5)-SUM($M84:BG84),(Input!$M$143*(1+rvanilla)^0.5)/A1stdlife)) -> 0 | BI84: =IF(A1stdlife="n/a","n/a",IF(BI$3>(A1stdlife+$E84),(Input!$M$143*(1+rvanilla)^0.5)-SUM($M84:BH84),(Input!$M$143*(1+rvanilla)^0.5)/A1stdlife)) -> 0
E85: 8 | O85: =IF(A1stdlife="n/a","n/a",IF(O$3>(A1stdlife+$E85),(Input!$N$143*(1+rvanilla)^0.5)-SUM($N85:N85),(Input!$N$143*(1+rvanilla)^0.5)/A1stdlife)) -> 0 | P85: =IF(A1stdlife="n/a","n/a",IF(P$3>(A1stdlife+$E85),(Input!$N$143*(1+rvanilla)^0.5)-SUM($N85:O85),(Input!$N$143*(1+rvanilla)^0.5)/A1stdlife)) -> 0 | Q85: =IF(A1stdlife="n/a","n/a",IF(Q$3>(A1stdlife+$E85),(Input!$N$143*(1+rvanilla)^0.5)-SUM($N85:P85),(Input!$N$143*(1+rvanilla)^0.5)/A1stdlife)) -> 0 | R85: =IF(A1stdlife="n/a","n/a",IF(R$3>(A1stdlife+$E85),(Input!$N$143*(1+rvanilla)^0.5)-SUM($N85:Q85),(Input!$N$143*(1+rvanilla)^0.5)/A1stdlife)) -> 0 | S85: =IF(A1stdlife="n/a","n/a",IF(S$3>(A1stdlife+$E85),(Input!$N$143*(1+rvanilla)^0.5)-SUM($N85:R85),(Input!$N$143*(1+rvanilla)^0.5)/A1stdlife)) -> 0 | T85: =IF(A1stdlife="n/a","n/a",IF(T$3>(A1stdlife+$E85),(Input!$N$143*(1+rvanilla)^0.5)-SUM($N85:S85),(Input!$N$143*(1+rvanilla)^0.5)/A1stdlife)) -> 0 | U85: =IF(A1stdlife="n/a","n/a",IF(U$3>(A1stdlife+$E85),(Input!$N$143*(1+rvanilla)^0.5)-SUM($N85:T85),(Input!$N$143*(1+rvanilla)^0.5)/A1stdlife)) -> 0 | V85: =IF(A1stdlife="n/a","n/a",IF(V$3>(A1stdlife+$E85),(Input!$N$143*(1+rvanilla)^0.5)-SUM($N85:U85),(Input!$N$143*(1+rvanilla)^0.5)/A1stdlife)) -> 0 | W85: =IF(A1stdlife="n/a","n/a",IF(W$3>(A1stdlife+$E85),(Input!$N$143*(1+rvanilla)^0.5)-SUM($N85:V85),(Input!$N$143*(1+rvanilla)^0.5)/A1stdlife)) -> 0 | X85: =IF(A1stdlife="n/a","n/a",IF(X$3>(A1stdlife+$E85),(Input!$N$143*(1+rvanilla)^0.5)-SUM($N85:W85),(Input!$N$143*(1+rvanilla)^0.5)/A1stdlife)) -> 0 | Y85: =IF(A1stdlife="n/a","n/a",IF(Y$3>(A1stdlife+$E85),(Input!$N$143*(1+rvanilla)^0.5)-SUM($N85:X85),(Input!$N$143*(1+rvanilla)^0.5)/A1stdlife)) -> 0 | Z85: =IF(A1stdlife="n/a","n/a",IF(Z$3>(A1stdlife+$E85),(Input!$N$143*(1+rvanilla)^0.5)-SUM($N85:Y85),(Input!$N$143*(1+rvanilla)^0.5)/A1stdlife)) -> 0 | AA85: =IF(A1stdlife="n/a","n/a",IF(AA$3>(A1stdlife+$E85),(Input!$N$143*(1+rvanilla)^0.5)-SUM($N85:Z85),(Input!$N$143*(1+rvanilla)^0.5)/A1stdlife)) -> 0 | AB85: =IF(A1stdlife="n/a","n/a",IF(AB$3>(A1stdlife+$E85),(Input!$N$143*(1+rvanilla)^0.5)-SUM($N85:AA85),(Input!$N$143*(1+rvanilla)^0.5)/A1stdlife)) -> 0 | AC85: =IF(A1stdlife="n/a","n/a",IF(AC$3>(A1stdlife+$E85),(Input!$N$143*(1+rvanilla)^0.5)-SUM($N85:AB85),(Input!$N$143*(1+rvanilla)^0.5)/A1stdlife)) -> 0 | AD85: =IF(A1stdlife="n/a","n/a",IF(AD$3>(A1stdlife+$E85),(Input!$N$143*(1+rvanilla)^0.5)-SUM($N85:AC85),(Input!$N$143*(1+rvanilla)^0.5)/A1stdlife)) -> 0 | AE85: =IF(A1stdlife="n/a","n/a",IF(AE$3>(A1stdlife+$E85),(Input!$N$143*(1+rvanilla)^0.5)-SUM($N85:AD85),(Input!$N$143*(1+rvanilla)^0.5)/A1stdlife)) -> 0 | AF85: =IF(A1stdlife="n/a","n/a",IF(AF$3>(A1stdlife+$E85),(Input!$N$143*(1+rvanilla)^0.5)-SUM($N85:AE85),(Input!$N$143*(1+rvanilla)^0.5)/A1stdlife)) -> 0 | AG85: =IF(A1stdlife="n/a","n/a",IF(AG$3>(A1stdlife+$E85),(Input!$N$143*(1+rvanilla)^0.5)-SUM($N85:AF85),(Input!$N$143*(1+rvanilla)^0.5)/A1stdlife)) -> 0 | AH85: =IF(A1stdlife="n/a","n/a",IF(AH$3>(A1stdlife+$E85),(Input!$N$143*(1+rvanilla)^0.5)-SUM($N85:AG85),(Input!$N$143*(1+rvanilla)^0.5)/A1stdlife)) -> 0 | AI85: =IF(A1stdlife="n/a","n/a",IF(AI$3>(A1stdlife+$E85),(Input!$N$143*(1+rvanilla)^0.5)-SUM($N85:AH85),(Input!$N$143*(1+rvanilla)^0.5)/A1stdlife)) -> 0 | AJ85: =IF(A1stdlife="n/a","n/a",IF(AJ$3>(A1stdlife+$E85),(Input!$N$143*(1+rvanilla)^0.5)-SUM($N85:AI85),(Input!$N$143*(1+rvanilla)^0.5)/A1stdlife)) -> 0 | AK85: =IF(A1stdlife="n/a","n/a",IF(AK$3>(A1stdlife+$E85),(Input!$N$143*(1+rvanilla)^0.5)-SUM($N85:AJ85),(Input!$N$143*(1+rvanilla)^0.5)/A1stdlife)) -> 0 | AL85: =IF(A1stdlife="n/a","n/a",IF(AL$3>(A1stdlife+$E85),(Input!$N$143*(1+rvanilla)^0.5)-SUM($N85:AK85),(Input!$N$143*(1+rvanilla)^0.5)/A1stdlife)) -> 0 | AM85: =IF(A1stdlife="n/a","n/a",IF(AM$3>(A1stdlife+$E85),(Input!$N$143*(1+rvanilla)^0.5)-SUM($N85:AL85),(Input!$N$143*(1+rvanilla)^0.5)/A1stdlife)) -> 0 | AN85: =IF(A1stdlife="n/a","n/a",IF(AN$3>(A1stdlife+$E85),(Input!$N$143*(1+rvanilla)^0.5)-SUM($N85:AM85),(Input!$N$143*(1+rvanilla)^0.5)/A1stdlife)) -> 0 | AO85: =IF(A1stdlife="n/a","n/a",IF(AO$3>(A1stdlife+$E85),(Input!$N$143*(1+rvanilla)^0.5)-SUM($N85:AN85),(Input!$N$143*(1+rvanilla)^0.5)/A1stdlife)) -> 0 | AP85: =IF(A1stdlife="n/a","n/a",IF(AP$3>(A1stdlife+$E85),(Input!$N$143*(1+rvanilla)^0.5)-SUM($N85:AO85),(Input!$N$143*(1+rvanilla)^0.5)/A1stdlife)) -> 0 | AQ85: =IF(A1stdlife="n/a","n/a",IF(AQ$3>(A1stdlife+$E85),(Input!$N$143*(1+rvanilla)^0.5)-SUM($N85:AP85),(Input!$N$143*(1+rvanilla)^0.5)/A1stdlife)) -> 0 | AR85: =IF(A1stdlife="n/a","n/a",IF(AR$3>(A1stdlife+$E85),(Input!$N$143*(1+rvanilla)^0.5)-SUM($N85:AQ85),(Input!$N$143*(1+rvanilla)^0.5)/A1stdlife)) -> 0 | AS85: =IF(A1stdlife="n/a","n/a",IF(AS$3>(A1stdlife+$E85),(Input!$N$143*(1+rvanilla)^0.5)-SUM($N85:AR85),(Input!$N$143*(1+rvanilla)^0.5)/A1stdlife)) -> 0 | AT85: =IF(A1stdlife="n/a","n/a",IF(AT$3>(A1stdlife+$E85),(Input!$N$143*(1+rvanilla)^0.5)-SUM($N85:AS85),(Input!$N$143*(1+rvanilla)^0.5)/A1stdlife)) -> 0 | AU85: =IF(A1stdlife="n/a","n/a",IF(AU$3>(A1stdlife+$E85),(Input!$N$143*(1+rvanilla)^0.5)-SUM($N85:AT85),(Input!$N$143*(1+rvanilla)^0.5)/A1stdlife)) -> 0 | AV85: =IF(A1stdlife="n/a","n/a",IF(AV$3>(A1stdlife+$E85),(Input!$N$143*(1+rvanilla)^0.5)-SUM($N85:AU85),(Input!$N$143*(1+rvanilla)^0.5)/A1stdlife)) -> 0 | AW85: =IF(A1stdlife="n/a","n/a",IF(AW$3>(A1stdlife+$E85),(Input!$N$143*(1+rvanilla)^0.5)-SUM($N85:AV85),(Input!$N$143*(1+rvanilla)^0.5)/A1stdlife)) -> 0 | AX85: =IF(A1stdlife="n/a","n/a",IF(AX$3>(A1stdlife+$E85),(Input!$N$143*(1+rvanilla)^0.5)-SUM($N85:AW85),(Input!$N$143*(1+rvanilla)^0.5)/A1stdlife)) -> 0 | AY85: =IF(A1stdlife="n/a","n/a",IF(AY$3>(A1stdlife+$E85),(Input!$N$143*(1+rvanilla)^0.5)-SUM($N85:AX85),(Input!$N$143*(1+rvanilla)^0.5)/A1stdlife)) -> 0 | AZ85: =IF(A1stdlife="n/a","n/a",IF(AZ$3>(A1stdlife+$E85),(Input!$N$143*(1+rvanilla)^0.5)-SUM($N85:AY85),(Input!$N$143*(1+rvanilla)^0.5)/A1stdlife)) -> 0 | BA85: =IF(A1stdlife="n/a","n/a",IF(BA$3>(A1stdlife+$E85),(Input!$N$143*(1+rvanilla)^0.5)-SUM($N85:AZ85),(Input!$N$143*(1+rvanilla)^0.5)/A1stdlife)) -> 0 | BB85: =IF(A1stdlife="n/a","n/a",IF(BB$3>(A1stdlife+$E85),(Input!$N$143*(1+rvanilla)^0.5)-SUM($N85:BA85),(Input!$N$143*(1+rvanilla)^0.5)/A1stdlife)) -> 0 | BC85: =IF(A1stdlife="n/a","n/a",IF(BC$3>(A1stdlife+$E85),(Input!$N$143*(1+rvanilla)^0.5)-SUM($N85:BB85),(Input!$N$143*(1+rvanilla)^0.5)/A1stdlife)) -> 0 | BD85: =IF(A1stdlife="n/a","n/a",IF(BD$3>(A1stdlife+$E85),(Input!$N$143*(1+rvanilla)^0.5)-SUM($N85:BC85),(Input!$N$143*(1+rvanilla)^0.5)/A1stdlife)) -> 0 | BE85: =IF(A1stdlife="n/a","n/a",IF(BE$3>(A1stdlife+$E85),(Input!$N$143*(1+rvanilla)^0.5)-SUM($N85:BD85),(Input!$N$143*(1+rvanilla)^0.5)/A1stdlife)) -> 0 | BF85: =IF(A1stdlife="n/a","n/a",IF(BF$3>(A1stdlife+$E85),(Input!$N$143*(1+rvanilla)^0.5)-SUM($N85:BE85),(Input!$N$143*(1+rvanilla)^0.5)/A1stdlife)) -> 0 | BG85: =IF(A1stdlife="n/a","n/a",IF(BG$3>(A1stdlife+$E85),(Input!$N$143*(1+rvanilla)^0.5)-SUM($N85:BF85),(Input!$N$143*(1+rvanilla)^0.5)/A1stdlife)) -> 0 | BH85: =IF(A1stdlife="n/a","n/a",IF(BH$3>(A1stdlife+$E85),(Input!$N$143*(1+rvanilla)^0.5)-SUM($N85:BG85),(Input!$N$143*(1+rvanilla)^0.5)/A1stdlife)) -> 0 | BI85: =IF(A1stdlife="n/a","n/a",IF(BI$3>(A1stdlife+$E85),(Input!$N$143*(1+rvanilla)^0.5)-SUM($N85:BH85),(Input!$N$143*(1+rvanilla)^0.5)/A1stdlife)) -> 0
E86: 9 | P86: =IF(A1stdlife="n/a","n/a",IF(P$3>(A1stdlife+$E86),(Input!$O$143*(1+rvanilla)^0.5)-SUM($O86:O86),(Input!$O$143*(1+rvanilla)^0.5)/A1stdlife)) -> 0 | Q86: =IF(A1stdlife="n/a","n/a",IF(Q$3>(A1stdlife+$E86),(Input!$O$143*(1+rvanilla)^0.5)-SUM($O86:P86),(Input!$O$143*(1+rvanilla)^0.5)/A1stdlife)) -> 0 | R86: =IF(A1stdlife="n/a","n/a",IF(R$3>(A1stdlife+$E86),(Input!$O$143*(1+rvanilla)^0.5)-SUM($O86:Q86),(Input!$O$143*(1+rvanilla)^0.5)/A1stdlife)) -> 0 | S86: =IF(A1stdlife="n/a","n/a",IF(S$3>(A1stdlife+$E86),(Input!$O$143*(1+rvanilla)^0.5)-SUM($O86:R86),(Input!$O$143*(1+rvanilla)^0.5)/A1stdlife)) -> 0 | T86: =IF(A1stdlife="n/a","n/a",IF(T$3>(A1stdlife+$E86),(Input!$O$143*(1+rvanilla)^0.5)-SUM($O86:S86),(Input!$O$143*(1+rvanilla)^0.5)/A1stdlife)) -> 0 | U86: =IF(A1stdlife="n/a","n/a",IF(U$3>(A1stdlife+$E86),(Input!$O$143*(1+rvanilla)^0.5)-SUM($O86:T86),(Input!$O$143*(1+rvanilla)^0.5)/A1stdlife)) -> 0 | V86: =IF(A1stdlife="n/a","n/a",IF(V$3>(A1stdlife+$E86),(Input!$O$143*(1+rvanilla)^0.5)-SUM($O86:U86),(Input!$O$143*(1+rvanilla)^0.5)/A1stdlife)) -> 0 | W86: =IF(A1stdlife="n/a","n/a",IF(W$3>(A1stdlife+$E86),(Input!$O$143*(1+rvanilla)^0.5)-SUM($O86:V86),(Input!$O$143*(1+rvanilla)^0.5)/A1stdlife)) -> 0 | X86: =IF(A1stdlife="n/a","n/a",IF(X$3>(A1stdlife+$E86),(Input!$O$143*(1+rvanilla)^0.5)-SUM($O86:W86),(Input!$O$143*(1+rvanilla)^0.5)/A1stdlife)) -> 0 | Y86: =IF(A1stdlife="n/a","n/a",IF(Y$3>(A1stdlife+$E86),(Input!$O$143*(1+rvanilla)^0.5)-SUM($O86:X86),(Input!$O$143*(1+rvanilla)^0.5)/A1stdlife)) -> 0 | Z86: =IF(A1stdlife="n/a","n/a",IF(Z$3>(A1stdlife+$E86),(Input!$O$143*(1+rvanilla)^0.5)-SUM($O86:Y86),(Input!$O$143*(1+rvanilla)^0.5)/A1stdlife)) -> 0 | AA86: =IF(A1stdlife="n/a","n/a",IF(AA$3>(A1stdlife+$E86),(Input!$O$143*(1+rvanilla)^0.5)-SUM($O86:Z86),(Input!$O$143*(1+rvanilla)^0.5)/A1stdlife)) -> 0 | AB86: =IF(A1stdlife="n/a","n/a",IF(AB$3>(A1stdlife+$E86),(Input!$O$143*(1+rvanilla)^0.5)-SUM($O86:AA86),(Input!$O$143*(1+rvanilla)^0.5)/A1stdlife)) -> 0 | AC86: =IF(A1stdlife="n/a","n/a",IF(AC$3>(A1stdlife+$E86),(Input!$O$143*(1+rvanilla)^0.5)-SUM($O86:AB86),(Input!$O$143*(1+rvanilla)^0.5)/A1stdlife)) -> 0 | AD86: =IF(A1stdlife="n/a","n/a",IF(AD$3>(A1stdlife+$E86),(Input!$O$143*(1+rvanilla)^0.5)-SUM($O86:AC86),(Input!$O$143*(1+rvanilla)^0.5)/A1stdlife)) -> 0 | AE86: =IF(A1stdlife="n/a","n/a",IF(AE$3>(A1stdlife+$E86),(Input!$O$143*(1+rvanilla)^0.5)-SUM($O86:AD86),(Input!$O$143*(1+rvanilla)^0.5)/A1stdlife)) -> 0 | AF86: =IF(A1stdlife="n/a","n/a",IF(AF$3>(A1stdlife+$E86),(Input!$O$143*(1+rvanilla)^0.5)-SUM($O86:AE86),(Input!$O$143*(1+rvanilla)^0.5)/A1stdlife)) -> 0 | AG86: =IF(A1stdlife="n/a","n/a",IF(AG$3>(A1stdlife+$E86),(Input!$O$143*(1+rvanilla)^0.5)-SUM($O86:AF86),(Input!$O$143*(1+rvanilla)^0.5)/A1stdlife)) -> 0 | AH86: =IF(A1stdlife="n/a","n/a",IF(AH$3>(A1stdlife+$E86),(Input!$O$143*(1+rvanilla)^0.5)-SUM($O86:AG86),(Input!$O$143*(1+rvanilla)^0.5)/A1stdlife)) -> 0 | AI86: =IF(A1stdlife="n/a","n/a",IF(AI$3>(A1stdlife+$E86),(Input!$O$143*(1+rvanilla)^0.5)-SUM($O86:AH86),(Input!$O$143*(1+rvanilla)^0.5)/A1stdlife)) -> 0 | AJ86: =IF(A1stdlife="n/a","n/a",IF(AJ$3>(A1stdlife+$E86),(Input!$O$143*(1+rvanilla)^0.5)-SUM($O86:AI86),(Input!$O$143*(1+rvanilla)^0.5)/A1stdlife)) -> 0 | AK86: =IF(A1stdlife="n/a","n/a",IF(AK$3>(A1stdlife+$E86),(Input!$O$143*(1+rvanilla)^0.5)-SUM($O86:AJ86),(Input!$O$143*(1+rvanilla)^0.5)/A1stdlife)) -> 0 | AL86: =IF(A1stdlife="n/a","n/a",IF(AL$3>(A1stdlife+$E86),(Input!$O$143*(1+rvanilla)^0.5)-SUM($O86:AK86),(Input!$O$143*(1+rvanilla)^0.5)/A1stdlife)) -> 0 | AM86: =IF(A1stdlife="n/a","n/a",IF(AM$3>(A1stdlife+$E86),(Input!$O$143*(1+rvanilla)^0.5)-SUM($O86:AL86),(Input!$O$143*(1+rvanilla)^0.5)/A1stdlife)) -> 0 | AN86: =IF(A1stdlife="n/a","n/a",IF(AN$3>(A1stdlife+$E86),(Input!$O$143*(1+rvanilla)^0.5)-SUM($O86:AM86),(Input!$O$143*(1+rvanilla)^0.5)/A1stdlife)) -> 0 | AO86: =IF(A1stdlife="n/a","n/a",IF(AO$3>(A1stdlife+$E86),(Input!$O$143*(1+rvanilla)^0.5)-SUM($O86:AN86),(Input!$O$143*(1+rvanilla)^0.5)/A1stdlife)) -> 0 | AP86: =IF(A1stdlife="n/a","n/a",IF(AP$3>(A1stdlife+$E86),(Input!$O$143*(1+rvanilla)^0.5)-SUM($O86:AO86),(Input!$O$143*(1+rvanilla)^0.5)/A1stdlife)) -> 0 | AQ86: =IF(A1stdlife="n/a","n/a",IF(AQ$3>(A1stdlife+$E86),(Input!$O$143*(1+rvanilla)^0.5)-SUM($O86:AP86),(Input!$O$143*(1+rvanilla)^0.5)/A1stdlife)) -> 0 | AR86: =IF(A1stdlife="n/a","n/a",IF(AR$3>(A1stdlife+$E86),(Input!$O$143*(1+rvanilla)^0.5)-SUM($O86:AQ86),(Input!$O$143*(1+rvanilla)^0.5)/A1stdlife)) -> 0 | AS86: =IF(A1stdlife="n/a","n/a",IF(AS$3>(A1stdlife+$E86),(Input!$O$143*(1+rvanilla)^0.5)-SUM($O86:AR86),(Input!$O$143*(1+rvanilla)^0.5)/A1stdlife)) -> 0 | AT86: =IF(A1stdlife="n/a","n/a",IF(AT$3>(A1stdlife+$E86),(Input!$O$143*(1+rvanilla)^0.5)-SUM($O86:AS86),(Input!$O$143*(1+rvanilla)^0.5)/A1stdlife)) -> 0 | AU86: =IF(A1stdlife="n/a","n/a",IF(AU$3>(A1stdlife+$E86),(Input!$O$143*(1+rvanilla)^0.5)-SUM($O86:AT86),(Input!$O$143*(1+rvanilla)^0.5)/A1stdlife)) -> 0 | AV86: =IF(A1stdlife="n/a","n/a",IF(AV$3>(A1stdlife+$E86),(Input!$O$143*(1+rvanilla)^0.5)-SUM($O86:AU86),(Input!$O$143*(1+rvanilla)^0.5)/A1stdlife)) -> 0 | AW86: =IF(A1stdlife="n/a","n/a",IF(AW$3>(A1stdlife+$E86),(Input!$O$143*(1+rvanilla)^0.5)-SUM($O86:AV86),(Input!$O$143*(1+rvanilla)^0.5)/A1stdlife)) -> 0 | AX86: =IF(A1stdlife="n/a","n/a",IF(AX$3>(A1stdlife+$E86),(Input!$O$143*(1+rvanilla)^0.5)-SUM($O86:AW86),(Input!$O$143*(1+rvanilla)^0.5)/A1stdlife)) -> 0 | AY86: =IF(A1stdlife="n/a","n/a",IF(AY$3>(A1stdlife+$E86),(Input!$O$143*(1+rvanilla)^0.5)-SUM($O86:AX86),(Input!$O$143*(1+rvanilla)^0.5)/A1stdlife)) -> 0 | AZ86: =IF(A1stdlife="n/a","n/a",IF(AZ$3>(A1stdlife+$E86),(Input!$O$143*(1+rvanilla)^0.5)-SUM($O86:AY86),(Input!$O$143*(1+rvanilla)^0.5)/A1stdlife)) -> 0 | BA86: =IF(A1stdlife="n/a","n/a",IF(BA$3>(A1stdlife+$E86),(Input!$O$143*(1+rvanilla)^0.5)-SUM($O86:AZ86),(Input!$O$143*(1+rvanilla)^0.5)/A1stdlife)) -> 0 | BB86: =IF(A1stdlife="n/a","n/a",IF(BB$3>(A1stdlife+$E86),(Input!$O$143*(1+rvanilla)^0.5)-SUM($O86:BA86),(Input!$O$143*(1+rvanilla)^0.5)/A1stdlife)) -> 0 | BC86: =IF(A1stdlife="n/a","n/a",IF(BC$3>(A1stdlife+$E86),(Input!$O$143*(1+rvanilla)^0.5)-SUM($O86:BB86),(Input!$O$143*(1+rvanilla)^0.5)/A1stdlife)) -> 0 | BD86: =IF(A1stdlife="n/a","n/a",IF(BD$3>(A1stdlife+$E86),(Input!$O$143*(1+rvanilla)^0.5)-SUM($O86:BC86),(Input!$O$143*(1+rvanilla)^0.5)/A1stdlife)) -> 0 | BE86: =IF(A1stdlife="n/a","n/a",IF(BE$3>(A1stdlife+$E86),(Input!$O$143*(1+rvanilla)^0.5)-SUM($O86:BD86),(Input!$O$143*(1+rvanilla)^0.5)/A1stdlife)) -> 0 | BF86: =IF(A1stdlife="n/a","n/a",IF(BF$3>(A1stdlife+$E86),(Input!$O$143*(1+rvanilla)^0.5)-SUM($O86:BE86),(Input!$O$143*(1+rvanilla)^0.5)/A1stdlife)) -> 0 | BG86: =IF(A1stdlife="n/a","n/a",IF(BG$3>(A1stdlife+$E86),(Input!$O$143*(1+rvanilla)^0.5)-SUM($O86:BF86),(Input!$O$143*(1+rvanilla)^0.5)/A1stdlife)) -> 0 | BH86: =IF(A1stdlife="n/a","n/a",IF(BH$3>(A1stdlife+$E86),(Input!$O$143*(1+rvanilla)^0.5)-SUM($O86:BG86),(Input!$O$143*(1+rvanilla)^0.5)/A1stdlife)) -> 0 | BI86: =IF(A1stdlife="n/a","n/a",IF(BI$3>(A1stdlife+$E86),(Input!$O$143*(1+rvanilla)^0.5)-SUM($O86:BH86),(Input!$O$143*(1+rvanilla)^0.5)/A1stdlife)) -> 0
E87: 10 | Q87: =IF(A1stdlife="n/a","n/a",IF(Q$3>(A1stdlife+$E87),(Input!$P$143*(1+rvanilla)^0.5)-SUM($P87:P87),(Input!$P$143*(1+rvanilla)^0.5)/A1stdlife)) -> 0 | R87: =IF(A1stdlife="n/a","n/a",IF(R$3>(A1stdlife+$E87),(Input!$P$143*(1+rvanilla)^0.5)-SUM($P87:Q87),(Input!$P$143*(1+rvanilla)^0.5)/A1stdlife)) -> 0 | S87: =IF(A1stdlife="n/a","n/a",IF(S$3>(A1stdlife+$E87),(Input!$P$143*(1+rvanilla)^0.5)-SUM($P87:R87),(Input!$P$143*(1+rvanilla)^0.5)/A1stdlife)) -> 0 | T87: =IF(A1stdlife="n/a","n/a",IF(T$3>(A1stdlife+$E87),(Input!$P$143*(1+rvanilla)^0.5)-SUM($P87:S87),(Input!$P$143*(1+rvanilla)^0.5)/A1stdlife)) -> 0 | U87: =IF(A1stdlife="n/a","n/a",IF(U$3>(A1stdlife+$E87),(Input!$P$143*(1+rvanilla)^0.5)-SUM($P87:T87),(Input!$P$143*(1+rvanilla)^0.5)/A1stdlife)) -> 0 | V87: =IF(A1stdlife="n/a","n/a",IF(V$3>(A1stdlife+$E87),(Input!$P$143*(1+rvanilla)^0.5)-SUM($P87:U87),(Input!$P$143*(1+rvanilla)^0.5)/A1stdlife)) -> 0 | W87: =IF(A1stdlife="n/a","n/a",IF(W$3>(A1stdlife+$E87),(Input!$P$143*(1+rvanilla)^0.5)-SUM($P87:V87),(Input!$P$143*(1+rvanilla)^0.5)/A1stdlife)) -> 0 | X87: =IF(A1stdlife="n/a","n/a",IF(X$3>(A1stdlife+$E87),(Input!$P$143*(1+rvanilla)^0.5)-SUM($P87:W87),(Input!$P$143*(1+rvanilla)^0.5)/A1stdlife)) -> 0 | Y87: =IF(A1stdlife="n/a","n/a",IF(Y$3>(A1stdlife+$E87),(Input!$P$143*(1+rvanilla)^0.5)-SUM($P87:X87),(Input!$P$143*(1+rvanilla)^0.5)/A1stdlife)) -> 0 | Z87: =IF(A1stdlife="n/a","n/a",IF(Z$3>(A1stdlife+$E87),(Input!$P$143*(1+rvanilla)^0.5)-SUM($P87:Y87),(Input!$P$143*(1+rvanilla)^0.5)/A1stdlife)) -> 0 | AA87: =IF(A1stdlife="n/a","n/a",IF(AA$3>(A1stdlife+$E87),(Input!$P$143*(1+rvanilla)^0.5)-SUM($P87:Z87),(Input!$P$143*(1+rvanilla)^0.5)/A1stdlife)) -> 0 | AB87: =IF(A1stdlife="n/a","n/a",IF(AB$3>(A1stdlife+$E87),(Input!$P$143*(1+rvanilla)^0.5)-SUM($P87:AA87),(Input!$P$143*(1+rvanilla)^0.5)/A1stdlife)) -> 0 | AC87: =IF(A1stdlife="n/a","n/a",IF(AC$3>(A1stdlife+$E87),(Input!$P$143*(1+rvanilla)^0.5)-SUM($P87:AB87),(Input!$P$143*(1+rvanilla)^0.5)/A1stdlife)) -> 0 | AD87: =IF(A1stdlife="n/a","n/a",IF(AD$3>(A1stdlife+$E87),(Input!$P$143*(1+rvanilla)^0.5)-SUM($P87:AC87),(Input!$P$143*(1+rvanilla)^0.5)/A1stdlife)) -> 0 | AE87: =IF(A1stdlife="n/a","n/a",IF(AE$3>(A1stdlife+$E87),(Input!$P$143*(1+rvanilla)^0.5)-SUM($P87:AD87),(Input!$P$143*(1+rvanilla)^0.5)/A1stdlife)) -> 0 | AF87: =IF(A1stdlife="n/a","n/a",IF(AF$3>(A1stdlife+$E87),(Input!$P$143*(1+rvanilla)^0.5)-SUM($P87:AE87),(Input!$P$143*(1+rvanilla)^0.5)/A1stdlife)) -> 0 | AG87: =IF(A1stdlife="n/a","n/a",IF(AG$3>(A1stdlife+$E87),(Input!$P$143*(1+rvanilla)^0.5)-SUM($P87:AF87),(Input!$P$143*(1+rvanilla)^0.5)/A1stdlife)) -> 0 | AH87: =IF(A1stdlife="n/a","n/a",IF(AH$3>(A1stdlife+$E87),(Input!$P$143*(1+rvanilla)^0.5)-SUM($P87:AG87),(Input!$P$143*(1+rvanilla)^0.5)/A1stdlife)) -> 0 | AI87: =IF(A1stdlife="n/a","n/a",IF(AI$3>(A1stdlife+$E87),(Input!$P$143*(1+rvanilla)^0.5)-SUM($P87:AH87),(Input!$P$143*(1+rvanilla)^0.5)/A1stdlife)) -> 0 | AJ87: =IF(A1stdlife="n/a","n/a",IF(AJ$3>(A1stdlife+$E87),(Input!$P$143*(1+rvanilla)^0.5)-SUM($P87:AI87),(Input!$P$143*(1+rvanilla)^0.5)/A1stdlife)) -> 0 | AK87: =IF(A1stdlife="n/a","n/a",IF(AK$3>(A1stdlife+$E87),(Input!$P$143*(1+rvanilla)^0.5)-SUM($P87:AJ87),(Input!$P$143*(1+rvanilla)^0.5)/A1stdlife)) -> 0 | AL87: =IF(A1stdlife="n/a","n/a",IF(AL$3>(A1stdlife+$E87),(Input!$P$143*(1+rvanilla)^0.5)-SUM($P87:AK87),(Input!$P$143*(1+rvanilla)^0.5)/A1stdlife)) -> 0 | AM87: =IF(A1stdlife="n/a","n/a",IF(AM$3>(A1stdlife+$E87),(Input!$P$143*(1+rvanilla)^0.5)-SUM($P87:AL87),(Input!$P$143*(1+rvanilla)^0.5)/A1stdlife)) -> 0 | AN87: =IF(A1stdlife="n/a","n/a",IF(AN$3>(A1stdlife+$E87),(Input!$P$143*(1+rvanilla)^0.5)-SUM($P87:AM87),(Input!$P$143*(1+rvanilla)^0.5)/A1stdlife)) -> 0 | AO87: =IF(A1stdlife="n/a","n/a",IF(AO$3>(A1stdlife+$E87),(Input!$P$143*(1+rvanilla)^0.5)-SUM($P87:AN87),(Input!$P$143*(1+rvanilla)^0.5)/A1stdlife)) -> 0 | AP87: =IF(A1stdlife="n/a","n/a",IF(AP$3>(A1stdlife+$E87),(Input!$P$143*(1+rvanilla)^0.5)-SUM($P87:AO87),(Input!$P$143*(1+rvanilla)^0.5)/A1stdlife)) -> 0 | AQ87: =IF(A1stdlife="n/a","n/a",IF(AQ$3>(A1stdlife+$E87),(Input!$P$143*(1+rvanilla)^0.5)-SUM($P87:AP87),(Input!$P$143*(1+rvanilla)^0.5)/A1stdlife)) -> 0 | AR87: =IF(A1stdlife="n/a","n/a",IF(AR$3>(A1stdlife+$E87),(Input!$P$143*(1+rvanilla)^0.5)-SUM($P87:AQ87),(Input!$P$143*(1+rvanilla)^0.5)/A1stdlife)) -> 0 | AS87: =IF(A1stdlife="n/a","n/a",IF(AS$3>(A1stdlife+$E87),(Input!$P$143*(1+rvanilla)^0.5)-SUM($P87:AR87),(Input!$P$143*(1+rvanilla)^0.5)/A1stdlife)) -> 0 | AT87: =IF(A1stdlife="n/a","n/a",IF(AT$3>(A1stdlife+$E87),(Input!$P$143*(1+rvanilla)^0.5)-SUM($P87:AS87),(Input!$P$143*(1+rvanilla)^0.5)/A1stdlife)) -> 0 | AU87: =IF(A1stdlife="n/a","n/a",IF(AU$3>(A1stdlife+$E87),(Input!$P$143*(1+rvanilla)^0.5)-SUM($P87:AT87),(Input!$P$143*(1+rvanilla)^0.5)/A1stdlife)) -> 0 | AV87: =IF(A1stdlife="n/a","n/a",IF(AV$3>(A1stdlife+$E87),(Input!$P$143*(1+rvanilla)^0.5)-SUM($P87:AU87),(Input!$P$143*(1+rvanilla)^0.5)/A1stdlife)) -> 0 | AW87: =IF(A1stdlife="n/a","n/a",IF(AW$3>(A1stdlife+$E87),(Input!$P$143*(1+rvanilla)^0.5)-SUM($P87:AV87),(Input!$P$143*(1+rvanilla)^0.5)/A1stdlife)) -> 0 | AX87: =IF(A1stdlife="n/a","n/a",IF(AX$3>(A1stdlife+$E87),(Input!$P$143*(1+rvanilla)^0.5)-SUM($P87:AW87),(Input!$P$143*(1+rvanilla)^0.5)/A1stdlife)) -> 0 | AY87: =IF(A1stdlife="n/a","n/a",IF(AY$3>(A1stdlife+$E87),(Input!$P$143*(1+rvanilla)^0.5)-SUM($P87:AX87),(Input!$P$143*(1+rvanilla)^0.5)/A1stdlife)) -> 0 | AZ87: =IF(A1stdlife="n/a","n/a",IF(AZ$3>(A1stdlife+$E87),(Input!$P$143*(1+rvanilla)^0.5)-SUM($P87:AY87),(Input!$P$143*(1+rvanilla)^0.5)/A1stdlife)) -> 0 | BA87: =IF(A1stdlife="n/a","n/a",IF(BA$3>(A1stdlife+$E87),(Input!$P$143*(1+rvanilla)^0.5)-SUM($P87:AZ87),(Input!$P$143*(1+rvanilla)^0.5)/A1stdlife)) -> 0 | BB87: =IF(A1stdlife="n/a","n/a",IF(BB$3>(A1stdlife+$E87),(Input!$P$143*(1+rvanilla)^0.5)-SUM($P87:BA87),(Input!$P$143*(1+rvanilla)^0.5)/A1stdlife)) -> 0 | BC87: =IF(A1stdlife="n/a","n/a",IF(BC$3>(A1stdlife+$E87),(Input!$P$143*(1+rvanilla)^0.5)-SUM($P87:BB87),(Input!$P$143*(1+rvanilla)^0.5)/A1stdlife)) -> 0 | BD87: =IF(A1stdlife="n/a","n/a",IF(BD$3>(A1stdlife+$E87),(Input!$P$143*(1+rvanilla)^0.5)-SUM($P87:BC87),(Input!$P$143*(1+rvanilla)^0.5)/A1stdlife)) -> 0 | BE87: =IF(A1stdlife="n/a","n/a",IF(BE$3>(A1stdlife+$E87),(Input!$P$143*(1+rvanilla)^0.5)-SUM($P87:BD87),(Input!$P$143*(1+rvanilla)^0.5)/A1stdlife)) -> 0 | BF87: =IF(A1stdlife="n/a","n/a",IF(BF$3>(A1stdlife+$E87),(Input!$P$143*(1+rvanilla)^0.5)-SUM($P87:BE87),(Input!$P$143*(1+rvanilla)^0.5)/A1stdlife)) -> 0 | BG87: =IF(A1stdlife="n/a","n/a",IF(BG$3>(A1stdlife+$E87),(Input!$P$143*(1+rvanilla)^0.5)-SUM($P87:BF87),(Input!$P$143*(1+rvanilla)^0.5)/A1stdlife)) -> 0 | BH87: =IF(A1stdlife="n/a","n/a",IF(BH$3>(A1stdlife+$E87),(Input!$P$143*(1+rvanilla)^0.5)-SUM($P87:BG87),(Input!$P$143*(1+rvanilla)^0.5)/A1stdlife)) -> 0 | BI87: =IF(A1stdlife="n/a","n/a",IF(BI$3>(A1stdlife+$E87),(Input!$P$143*(1+rvanilla)^0.5)-SUM($P87:BH87),(Input!$P$143*(1+rvanilla)^0.5)/A1stdlife)) -> 0
C88: =Asset1 -> Transmission and distribution | G88: =SUM(G76:G87) -> 15.56954923 | H88: =SUM(H76:H87) -> 15.75208309 | I88: =SUM(I76:I87) -> 15.91098401 | J88: 16.14712269 | K88: 16.45128496 | L88: 16.66841645 | M88: 16.66841645 | N88: 16.66841645 | O88: 16.66841645 | P88: 16.66841645 | Q88: 16.66841645 | R88: 16.66841645 | S88: 16.66841645 | T88: 16.66841645 | U88: 16.66841645 | V88: 16.66841645 | W88: 16.66841645 | X88: 16.66841645 | Y88: 16.66841645 | Z88: 16.66841645 | AA88: 16.66841645 | AB88: 16.66841645 | AC88: 16.66841645 | AD88: 16.66841645 | AE88: 16.66841645 | AF88: 16.66841645 | AG88: 16.66841645 | AH88: 16.66841645 | AI88: 16.66841645 | AJ88: 16.66841645 | AK88: 16.66841645 | AL88: 16.66841645 | AM88: 16.66841645 | AN88: 8.494713115 | AO88: 1.098867222 | AP88: 1.098867222 | AQ88: 1.098867222 | AR88: 1.098867222 | AS88: 1.098867222 | AT88: 1.098867222 | AU88: 1.098867222 | AV88: 1.098867222 | AW88: 1.098867222 | AX88: 1.098867222 | AY88: 1.098867222 | AZ88: 1.098867222 | BA88: 1.098867222 | BB88: 1.098867222 | BC88: 1.098867222 | BD88: 1.098867222 | BE88: 1.098867222 | BF88: 0.9163333639 | BG88: 0.7574324457 | BH88: 0.521293767 | BI88: 0.2171314917
B89: =C101 -> Services | D89: Initial Asset Base | G89: =IF(G$3>A2remlife,A2value-SUM($F89:F89),IF(A2remlife="N/A","n/a",A2value/A2remlife)) -> 11.90856179 | H89: =IF(H$3>A2remlife,A2value-SUM($F89:G89),IF(A2remlife="N/A","n/a",A2value/A2remlife)) -> 11.90856179 | I89: =IF(I$3>A2remlife,A2value-SUM($F89:H89),IF(A2remlife="N/A","n/a",A2value/A2remlife)) -> 11.90856179 | J89: =IF(J$3>A2remlife,A2value-SUM($F89:I89),IF(A2remlife="N/A","n/a",A2value/A2remlife)) -> 11.90856179 | K89: =IF(K$3>A2remlife,A2value-SUM($F89:J89),IF(A2remlife="N/A","n/a",A2value/A2remlife)) -> 11.90856179 | L89: =IF(L$3>A2remlife,A2value-SUM($F89:K89),IF(A2remlife="N/A","n/a",A2value/A2remlife)) -> 11.90856179 | M89: =IF(M$3>A2remlife,A2value-SUM($F89:L89),IF(A2remlife="N/A","n/a",A2value/A2remlife)) -> 11.90856179 | N89: =IF(N$3>A2remlife,A2value-SUM($F89:M89),IF(A2remlife="N/A","n/a",A2value/A2remlife)) -> 11.90856179 | O89: =IF(O$3>A2remlife,A2value-SUM($F89:N89),IF(A2remlife="N/A","n/a",A2value/A2remlife)) -> 11.90856179 | P89: =IF(P$3>A2remlife,A2value-SUM($F89:O89),IF(A2remlife="N/A","n/a",A2value/A2remlife)) -> 11.90856179 | Q89: =IF(Q$3>A2remlife,A2value-SUM($F89:P89),IF(A2remlife="N/A","n/a",A2value/A2remlife)) -> 11.90856179 | R89: =IF(R$3>A2remlife,A2value-SUM($F89:Q89),IF(A2remlife="N/A","n/a",A2value/A2remlife)) -> 11.90856179 | S89: =IF(S$3>A2remlife,A2value-SUM($F89:R89),IF(A2remlife="N/A","n/a",A2value/A2remlife)) -> 11.90856179 | T89: =IF(T$3>A2remlife,A2value-SUM($F89:S89),IF(A2remlife="N/A","n/a",A2value/A2remlife)) -> 11.90856179 | U89: =IF(U$3>A2remlife,A2value-SUM($F89:T89),IF(A2remlife="N/A","n/a",A2value/A2remlife)) -> 11.90856179 | V89: =IF(V$3>A2remlife,A2value-SUM($F89:U89),IF(A2remlife="N/A","n/a",A2value/A2remlife)) -> 11.90856179 | W89: =IF(W$3>A2remlife,A2value-SUM($F89:V89),IF(A2remlife="N/A","n/a",A2value/A2remlife)) -> 11.90856179 | X89: =IF(X$3>A2remlife,A2value-SUM($F89:W89),IF(A2remlife="N/A","n/a",A2value/A2remlife)) -> 11.90856179 | Y89: =IF(Y$3>A2remlife,A2value-SUM($F89:X89),IF(A2remlife="N/A","n/a",A2value/A2remlife)) -> 11.90856179 | Z89: =IF(Z$3>A2remlife,A2value-SUM($F89:Y89),IF(A2remlife="N/A","n/a",A2value/A2remlife)) -> 11.90856179 | AA89: =IF(AA$3>A2remlife,A2value-SUM($F89:Z89),IF(A2remlife="N/A","n/a",A2value/A2remlife)) -> 11.90856179 | AB89: =IF(AB$3>A2remlife,A2value-SUM($F89:AA89),IF(A2remlife="N/A","n/a",A2value/A2remlife)) -> 11.90856179 | AC89: =IF(AC$3>A2remlife,A2value-SUM($F89:AB89),IF(A2remlife="N/A","n/a",A2value/A2remlife)) -> 11.90856179 | AD89: =IF(AD$3>A2remlife,A2value-SUM($F89:AC89),IF(A2remlife="N/A","n/a",A2value/A2remlife)) -> 11.90856179 | AE89: =IF(AE$3>A2remlife,A2value-SUM($F89:AD89),IF(A2remlife="N/A","n/a",A2value/A2remlife)) -> 11.90856179 | AF89: =IF(AF$3>A2remlife,A2value-SUM($F89:AE89),IF(A2remlife="N/A","n/a",A2value/A2remlife)) -> 11.90856179 | AG89: =IF(AG$3>A2remlife,A2value-SUM($F89:AF89),IF(A2remlife="N/A","n/a",A2value/A2remlife)) -> 11.90856179 | AH89: =IF(AH$3>A2remlife,A2value-SUM($F89:AG89),IF(A2remlife="N/A","n/a",A2value/A2remlife)) -> 11.90856179 | AI89: =IF(AI$3>A2remlife,A2value-SUM($F89:AH89),IF(A2remlife="N/A","n/a",A2value/A2remlife)) -> 11.90856179 | AJ89: =IF(AJ$3>A2remlife,A2value-SUM($F89:AI89),IF(A2remlife="N/A","n/a",A2value/A2remlife)) -> 11.90856179 | AK89: =IF(AK$3>A2remlife,A2value-SUM($F89:AJ89),IF(A2remlife="N/A","n/a",A2value/A2remlife)) -> 6.927115904 | AL89: =IF(AL$3>A2remlife,A2value-SUM($F89:AK89),IF(A2remlife="N/A","n/a",A2value/A2remlife)) -> 0 | AM89: =IF(AM$3>A2remlife,A2value-SUM($F89:AL89),IF(A2remlife="N/A","n/a",A2value/A2remlife)) -> 0 | AN89: =IF(AN$3>A2remlife,A2value-SUM($F89:AM89),IF(A2remlife="N/A","n/a",A2value/A2remlife)) -> 0 | AO89: =IF(AO$3>A2remlife,A2value-SUM($F89:AN89),IF(A2remlife="N/A","n/a",A2value/A2remlife)) -> 0 | AP89: =IF(AP$3>A2remlife,A2value-SUM($F89:AO89),IF(A2remlife="N/A","n/a",A2value/A2remlife)) -> 0 | AQ89: =IF(AQ$3>A2remlife,A2value-SUM($F89:AP89),IF(A2remlife="N/A","n/a",A2value/A2remlife)) -> 0 | AR89: =IF(AR$3>A2remlife,A2value-SUM($F89:AQ89),IF(A2remlife="N/A","n/a",A2value/A2remlife)) -> 0 | AS89: =IF(AS$3>A2remlife,A2value-SUM($F89:AR89),IF(A2remlife="N/A","n/a",A2value/A2remlife)) -> 0 | AT89: =IF(AT$3>A2remlife,A2value-SUM($F89:AS89),IF(A2remlife="N/A","n/a",A2value/A2remlife)) -> 0 | AU89: =IF(AU$3>A2remlife,A2value-SUM($F89:AT89),IF(A2remlife="N/A","n/a",A2value/A2remlife)) -> 0 | AV89: =IF(AV$3>A2remlife,A2value-SUM($F89:AU89),IF(A2remlife="N/A","n/a",A2value/A2remlife)) -> 0 | AW89: =IF(AW$3>A2remlife,A2value-SUM($F89:AV89),IF(A2remlife="N/A","n/a",A2value/A2remlife)) -> 0 | AX89: =IF(AX$3>A2remlife,A2value-SUM($F89:AW89),IF(A2remlife="N/A","n/a",A2value/A2remlife)) -> 0 | AY89: =IF(AY$3>A2remlife,A2value-SUM($F89:AX89),IF(A2remlife="N/A","n/a",A2value/A2remlife)) -> 0 | AZ89: =IF(AZ$3>A2remlife,A2value-SUM($F89:AY89),IF(A2remlife="N/A","n/a",A2value/A2remlife)) -> 0 | BA89: =IF(BA$3>A2remlife,A2value-SUM($F89:AZ89),IF(A2remlife="N/A","n/a",A2value/A2remlife)) -> 0 | BB89: =IF(BB$3>A2remlife,A2value-SUM($F89:BA89),IF(A2remlife="N/A","n/a",A2value/A2remlife)) -> 0 | BC89: =IF(BC$3>A2remlife,A2value-SUM($F89:BB89),IF(A2remlife="N/A","n/a",A2value/A2remlife)) -> 0 | BD89: =IF(BD$3>A2remlife,A2value-SUM($F89:BC89),IF(A2remlife="N/A","n/a",A2value/A2remlife)) -> 0 | BE89: =IF(BE$3>A2remlife,A2value-SUM($F89:BD89),IF(A2remlife="N/A","n/a",A2value/A2remlife)) -> 0 | BF89: =IF(BF$3>A2remlife,A2value-SUM($F89:BE89),IF(A2remlife="N/A","n/a",A2value/A2remlife)) -> 0 | BG89: =IF(BG$3>A2remlife,A2value-SUM($F89:BF89),IF(A2remlife="N/A","n/a",A2value/A2remlife)) -> 0 | BH89: =IF(BH$3>A2remlife,A2value-SUM($F89:BG89),IF(A2remlife="N/A","n/a",A2value/A2remlife)) -> 0 | BI89: =IF(BI$3>A2remlife,A2value-SUM($F89:BH89),IF(A2remlife="N/A","n/a",A2value/A2remlife)) -> 0
D90: Capex | E90: 0
E91: 1 | H91: =IF(A2stdlife="n/a","n/a",IF(H$3>(A2stdlife+$E91),(Input!$G$144*(1+rvanilla)^0.5)-SUM($G91:G91),(Input!$G$144*(1+rvanilla)^0.5)/A2stdlife)) -> 0.2575719816 | I91: =IF(A2stdlife="n/a","n/a",IF(I$3>(A2stdlife+$E91),(Input!$G$144*(1+rvanilla)^0.5)-SUM($G91:H91),(Input!$G$144*(1+rvanilla)^0.5)/A2stdlife)) -> 0.2575719816 | J91: =IF(A2stdlife="n/a","n/a",IF(J$3>(A2stdlife+$E91),(Input!$G$144*(1+rvanilla)^0.5)-SUM($G91:I91),(Input!$G$144*(1+rvanilla)^0.5)/A2stdlife)) -> 0.2575719816 | K91: =IF(A2stdlife="n/a","n/a",IF(K$3>(A2stdlife+$E91),(Input!$G$144*(1+rvanilla)^0.5)-SUM($G91:J91),(Input!$G$144*(1+rvanilla)^0.5)/A2stdlife)) -> 0.2575719816 | L91: =IF(A2stdlife="n/a","n/a",IF(L$3>(A2stdlife+$E91),(Input!$G$144*(1+rvanilla)^0.5)-SUM($G91:K91),(Input!$G$144*(1+rvanilla)^0.5)/A2stdlife)) -> 0.2575719816 | M91: =IF(A2stdlife="n/a","n/a",IF(M$3>(A2stdlife+$E91),(Input!$G$144*(1+rvanilla)^0.5)-SUM($G91:L91),(Input!$G$144*(1+rvanilla)^0.5)/A2stdlife)) -> 0.2575719816 | N91: =IF(A2stdlife="n/a","n/a",IF(N$3>(A2stdlife+$E91),(Input!$G$144*(1+rvanilla)^0.5)-SUM($G91:M91),(Input!$G$144*(1+rvanilla)^0.5)/A2stdlife)) -> 0.2575719816 | O91: =IF(A2stdlife="n/a","n/a",IF(O$3>(A2stdlife+$E91),(Input!$G$144*(1+rvanilla)^0.5)-SUM($G91:N91),(Input!$G$144*(1+rvanilla)^0.5)/A2stdlife)) -> 0.2575719816 | P91: =IF(A2stdlife="n/a","n/a",IF(P$3>(A2stdlife+$E91),(Input!$G$144*(1+rvanilla)^0.5)-SUM($G91:O91),(Input!$G$144*(1+rvanilla)^0.5)/A2stdlife)) -> 0.2575719816 | Q91: =IF(A2stdlife="n/a","n/a",IF(Q$3>(A2stdlife+$E91),(Input!$G$144*(1+rvanilla)^0.5)-SUM($G91:P91),(Input!$G$144*(1+rvanilla)^0.5)/A2stdlife)) -> 0.2575719816 | R91: =IF(A2stdlife="n/a","n/a",IF(R$3>(A2stdlife+$E91),(Input!$G$144*(1+rvanilla)^0.5)-SUM($G91:Q91),(Input!$G$144*(1+rvanilla)^0.5)/A2stdlife)) -> 0.2575719816 | S91: =IF(A2stdlife="n/a","n/a",IF(S$3>(A2stdlife+$E91),(Input!$G$144*(1+rvanilla)^0.5)-SUM($G91:R91),(Input!$G$144*(1+rvanilla)^0.5)/A2stdlife)) -> 0.2575719816 | T91: =IF(A2stdlife="n/a","n/a",IF(T$3>(A2stdlife+$E91),(Input!$G$144*(1+rvanilla)^0.5)-SUM($G91:S91),(Input!$G$144*(1+rvanilla)^0.5)/A2stdlife)) -> 0.2575719816 | U91: =IF(A2stdlife="n/a","n/a",IF(U$3>(A2stdlife+$E91),(Input!$G$144*(1+rvanilla)^0.5)-SUM($G91:T91),(Input!$G$144*(1+rvanilla)^0.5)/A2stdlife)) -> 0.2575719816 | V91: =IF(A2stdlife="n/a","n/a",IF(V$3>(A2stdlife+$E91),(Input!$G$144*(1+rvanilla)^0.5)-SUM($G91:U91),(Input!$G$144*(1+rvanilla)^0.5)/A2stdlife)) -> 0.2575719816 | W91: =IF(A2stdlife="n/a","n/a",IF(W$3>(A2stdlife+$E91),(Input!$G$144*(1+rvanilla)^0.5)-SUM($G91:V91),(Input!$G$144*(1+rvanilla)^0.5)/A2stdlife)) -> 0.2575719816 | X91: =IF(A2stdlife="n/a","n/a",IF(X$3>(A2stdlife+$E91),(Input!$G$144*(1+rvanilla)^0.5)-SUM($G91:W91),(Input!$G$144*(1+rvanilla)^0.5)/A2stdlife)) -> 0.2575719816 | Y91: =IF(A2stdlife="n/a","n/a",IF(Y$3>(A2stdlife+$E91),(Input!$G$144*(1+rvanilla)^0.5)-SUM($G91:X91),(Input!$G$144*(1+rvanilla)^0.5)/A2stdlife)) -> 0.2575719816 | Z91: =IF(A2stdlife="n/a","n/a",IF(Z$3>(A2stdlife+$E91),(Input!$G$144*(1+rvanilla)^0.5)-SUM($G91:Y91),(Input!$G$144*(1+rvanilla)^0.5)/A2stdlife)) -> 0.2575719816 | AA91: =IF(A2stdlife="n/a","n/a",IF(AA$3>(A2stdlife+$E91),(Input!$G$144*(1+rvanilla)^0.5)-SUM($G91:Z91),(Input!$G$144*(1+rvanilla)^0.5)/A2stdlife)) -> 0.2575719816 | AB91: =IF(A2stdlife="n/a","n/a",IF(AB$3>(A2stdlife+$E91),(Input!$G$144*(1+rvanilla)^0.5)-SUM($G91:AA91),(Input!$G$144*(1+rvanilla)^0.5)/A2stdlife)) -> 0.2575719816 | AC91: =IF(A2stdlife="n/a","n/a",IF(AC$3>(A2stdlife+$E91),(Input!$G$144*(1+rvanilla)^0.5)-SUM($G91:AB91),(Input!$G$144*(1+rvanilla)^0.5)/A2stdlife)) -> 0.2575719816 | AD91: =IF(A2stdlife="n/a","n/a",IF(AD$3>(A2stdlife+$E91),(Input!$G$144*(1+rvanilla)^0.5)-SUM($G91:AC91),(Input!$G$144*(1+rvanilla)^0.5)/A2stdlife)) -> 0.2575719816 | AE91: =IF(A2stdlife="n/a","n/a",IF(AE$3>(A2stdlife+$E91),(Input!$G$144*(1+rvanilla)^0.5)-SUM($G91:AD91),(Input!$G$144*(1+rvanilla)^0.5)/A2stdlife)) -> 0.2575719816 | AF91: =IF(A2stdlife="n/a","n/a",IF(AF$3>(A2stdlife+$E91),(Input!$G$144*(1+rvanilla)^0.5)-SUM($G91:AE91),(Input!$G$144*(1+rvanilla)^0.5)/A2stdlife)) -> 0.2575719816 | AG91: =IF(A2stdlife="n/a","n/a",IF(AG$3>(A2stdlife+$E91),(Input!$G$144*(1+rvanilla)^0.5)-SUM($G91:AF91),(Input!$G$144*(1+rvanilla)^0.5)/A2stdlife)) -> 0.2575719816 | AH91: =IF(A2stdlife="n/a","n/a",IF(AH$3>(A2stdlife+$E91),(Input!$G$144*(1+rvanilla)^0.5)-SUM($G91:AG91),(Input!$G$144*(1+rvanilla)^0.5)/A2stdlife)) -> 0.2575719816 | AI91: =IF(A2stdlife="n/a","n/a",IF(AI$3>(A2stdlife+$E91),(Input!$G$144*(1+rvanilla)^0.5)-SUM($G91:AH91),(Input!$G$144*(1+rvanilla)^0.5)/A2stdlife)) -> 0.2575719816 | AJ91: =IF(A2stdlife="n/a","n/a",IF(AJ$3>(A2stdlife+$E91),(Input!$G$144*(1+rvanilla)^0.5)-SUM($G91:AI91),(Input!$G$144*(1+rvanilla)^0.5)/A2stdlife)) -> 0.2575719816 | AK91: =IF(A2stdlife="n/a","n/a",IF(AK$3>(A2stdlife+$E91),(Input!$G$144*(1+rvanilla)^0.5)-SUM($G91:AJ91),(Input!$G$144*(1+rvanilla)^0.5)/A2stdlife)) -> 0.2575719816 | AL91: =IF(A2stdlife="n/a","n/a",IF(AL$3>(A2stdlife+$E91),(Input!$G$144*(1+rvanilla)^0.5)-SUM($G91:AK91),(Input!$G$144*(1+rvanilla)^0.5)/A2stdlife)) -> 0.2575719816 | AM91: =IF(A2stdlife="n/a","n/a",IF(AM$3>(A2stdlife+$E91),(Input!$G$144*(1+rvanilla)^0.5)-SUM($G91:AL91),(Input!$G$144*(1+rvanilla)^0.5)/A2stdlife)) -> 0.2575719816 | AN91: =IF(A2stdlife="n/a","n/a",IF(AN$3>(A2stdlife+$E91),(Input!$G$144*(1+rvanilla)^0.5)-SUM($G91:AM91),(Input!$G$144*(1+rvanilla)^0.5)/A2stdlife)) -> 0.2575719816 | AO91: =IF(A2stdlife="n/a","n/a",IF(AO$3>(A2stdlife+$E91),(Input!$G$144*(1+rvanilla)^0.5)-SUM($G91:AN91),(Input!$G$144*(1+rvanilla)^0.5)/A2stdlife)) -> 0.2575719816 | AP91: =IF(A2stdlife="n/a","n/a",IF(AP$3>(A2stdlife+$E91),(Input!$G$144*(1+rvanilla)^0.5)-SUM($G91:AO91),(Input!$G$144*(1+rvanilla)^0.5)/A2stdlife)) -> 0.2575719816 | AQ91: =IF(A2stdlife="n/a","n/a",IF(AQ$3>(A2stdlife+$E91),(Input!$G$144*(1+rvanilla)^0.5)-SUM($G91:AP91),(Input!$G$144*(1+rvanilla)^0.5)/A2stdlife)) -> 0.2575719816 | AR91: =IF(A2stdlife="n/a","n/a",IF(AR$3>(A2stdlife+$E91),(Input!$G$144*(1+rvanilla)^0.5)-SUM($G91:AQ91),(Input!$G$144*(1+rvanilla)^0.5)/A2stdlife)) -> 0.2575719816 | AS91: =IF(A2stdlife="n/a","n/a",IF(AS$3>(A2stdlife+$E91),(Input!$G$144*(1+rvanilla)^0.5)-SUM($G91:AR91),(Input!$G$144*(1+rvanilla)^0.5)/A2stdlife)) -> 0.2575719816 | AT91: =IF(A2stdlife="n/a","n/a",IF(AT$3>(A2stdlife+$E91),(Input!$G$144*(1+rvanilla)^0.5)-SUM($G91:AS91),(Input!$G$144*(1+rvanilla)^0.5)/A2stdlife)) -> 0.2575719816 | AU91: =IF(A2stdlife="n/a","n/a",IF(AU$3>(A2stdlife+$E91),(Input!$G$144*(1+rvanilla)^0.5)-SUM($G91:AT91),(Input!$G$144*(1+rvanilla)^0.5)/A2stdlife)) -> 0.2575719816 | AV91: =IF(A2stdlife="n/a","n/a",IF(AV$3>(A2stdlife+$E91),(Input!$G$144*(1+rvanilla)^0.5)-SUM($G91:AU91),(Input!$G$144*(1+rvanilla)^0.5)/A2stdlife)) -> 0.2575719816 | AW91: =IF(A2stdlife="n/a","n/a",IF(AW$3>(A2stdlife+$E91),(Input!$G$144*(1+rvanilla)^0.5)-SUM($G91:AV91),(Input!$G$144*(1+rvanilla)^0.5)/A2stdlife)) -> 0.2575719816 | AX91: =IF(A2stdlife="n/a","n/a",IF(AX$3>(A2stdlife+$E91),(Input!$G$144*(1+rvanilla)^0.5)-SUM($G91:AW91),(Input!$G$144*(1+rvanilla)^0.5)/A2stdlife)) -> 0.2575719816 | AY91: =IF(A2stdlife="n/a","n/a",IF(AY$3>(A2stdlife+$E91),(Input!$G$144*(1+rvanilla)^0.5)-SUM($G91:AX91),(Input!$G$144*(1+rvanilla)^0.5)/A2stdlife)) -> 0.2575719816 | AZ91: =IF(A2stdlife="n/a","n/a",IF(AZ$3>(A2stdlife+$E91),(Input!$G$144*(1+rvanilla)^0.5)-SUM($G91:AY91),(Input!$G$144*(1+rvanilla)^0.5)/A2stdlife)) -> 0.2575719816 | BA91: =IF(A2stdlife="n/a","n/a",IF(BA$3>(A2stdlife+$E91),(Input!$G$144*(1+rvanilla)^0.5)-SUM($G91:AZ91),(Input!$G$144*(1+rvanilla)^0.5)/A2stdlife)) -> 0.2575719816 | BB91: =IF(A2stdlife="n/a","n/a",IF(BB$3>(A2stdlife+$E91),(Input!$G$144*(1+rvanilla)^0.5)-SUM($G91:BA91),(Input!$G$144*(1+rvanilla)^0.5)/A2stdlife)) -> 0.2575719816 | BC91: =IF(A2stdlife="n/a","n/a",IF(BC$3>(A2stdlife+$E91),(Input!$G$144*(1+rvanilla)^0.5)-SUM($G91:BB91),(Input!$G$144*(1+rvanilla)^0.5)/A2stdlife)) -> 0.2575719816 | BD91: =IF(A2stdlife="n/a","n/a",IF(BD$3>(A2stdlife+$E91),(Input!$G$144*(1+rvanilla)^0.5)-SUM($G91:BC91),(Input!$G$144*(1+rvanilla)^0.5)/A2stdlife)) -> 0.2575719816 | BE91: =IF(A2stdlife="n/a","n/a",IF(BE$3>(A2stdlife+$E91),(Input!$G$144*(1+rvanilla)^0.5)-SUM($G91:BD91),(Input!$G$144*(1+rvanilla)^0.5)/A2stdlife)) -> 0.2575719816 | BF91: =IF(A2stdlife="n/a","n/a",IF(BF$3>(A2stdlife+$E91),(Input!$G$144*(1+rvanilla)^0.5)-SUM($G91:BE91),(Input!$G$144*(1+rvanilla)^0.5)/A2stdlife)) -> 1.065814104e-14 | BG91: =IF(A2stdlife="n/a","n/a",IF(BG$3>(A2stdlife+$E91),(Input!$G$144*(1+rvanilla)^0.5)-SUM($G91:BF91),(Input!$G$144*(1+rvanilla)^0.5)/A2stdlife)) -> 0 | BH91: =IF(A2stdlife="n/a","n/a",IF(BH$3>(A2stdlife+$E91),(Input!$G$144*(1+rvanilla)^0.5)-SUM($G91:BG91),(Input!$G$144*(1+rvanilla)^0.5)/A2stdlife)) -> 0 | BI91: =IF(A2stdlife="n/a","n/a",IF(BI$3>(A2stdlife+$E91),(Input!$G$144*(1+rvanilla)^0.5)-SUM($G91:BH91),(Input!$G$144*(1+rvanilla)^0.5)/A2stdlife)) -> 0
E92: 2 | I92: =IF(A2stdlife="n/a","n/a",IF(I$3>(A2stdlife+$E92),(Input!$H$144*(1+rvanilla)^0.5)-SUM($H92:H92),(Input!$H$144*(1+rvanilla)^0.5)/A2stdlife)) -> 0.2682912933 | J92: =IF(A2stdlife="n/a","n/a",IF(J$3>(A2stdlife+$E92),(Input!$H$144*(1+rvanilla)^0.5)-SUM($H92:I92),(Input!$H$144*(1+rvanilla)^0.5)/A2stdlife)) -> 0.2682912933 | K92: =IF(A2stdlife="n/a","n/a",IF(K$3>(A2stdlife+$E92),(Input!$H$144*(1+rvanilla)^0.5)-SUM($H92:J92),(Input!$H$144*(1+rvanilla)^0.5)/A2stdlife)) -> 0.2682912933 | L92: =IF(A2stdlife="n/a","n/a",IF(L$3>(A2stdlife+$E92),(Input!$H$144*(1+rvanilla)^0.5)-SUM($H92:K92),(Input!$H$144*(1+rvanilla)^0.5)/A2stdlife)) -> 0.2682912933 | M92: =IF(A2stdlife="n/a","n/a",IF(M$3>(A2stdlife+$E92),(Input!$H$144*(1+rvanilla)^0.5)-SUM($H92:L92),(Input!$H$144*(1+rvanilla)^0.5)/A2stdlife)) -> 0.2682912933 | N92: =IF(A2stdlife="n/a","n/a",IF(N$3>(A2stdlife+$E92),(Input!$H$144*(1+rvanilla)^0.5)-SUM($H92:M92),(Input!$H$144*(1+rvanilla)^0.5)/A2stdlife)) -> 0.2682912933 | O92: =IF(A2stdlife="n/a","n/a",IF(O$3>(A2stdlife+$E92),(Input!$H$144*(1+rvanilla)^0.5)-SUM($H92:N92),(Input!$H$144*(1+rvanilla)^0.5)/A2stdlife)) -> 0.2682912933 | P92: =IF(A2stdlife="n/a","n/a",IF(P$3>(A2stdlife+$E92),(Input!$H$144*(1+rvanilla)^0.5)-SUM($H92:O92),(Input!$H$144*(1+rvanilla)^0.5)/A2stdlife)) -> 0.2682912933 | Q92: =IF(A2stdlife="n/a","n/a",IF(Q$3>(A2stdlife+$E92),(Input!$H$144*(1+rvanilla)^0.5)-SUM($H92:P92),(Input!$H$144*(1+rvanilla)^0.5)/A2stdlife)) -> 0.2682912933 | R92: =IF(A2stdlife="n/a","n/a",IF(R$3>(A2stdlife+$E92),(Input!$H$144*(1+rvanilla)^0.5)-SUM($H92:Q92),(Input!$H$144*(1+rvanilla)^0.5)/A2stdlife)) -> 0.2682912933 | S92: =IF(A2stdlife="n/a","n/a",IF(S$3>(A2stdlife+$E92),(Input!$H$144*(1+rvanilla)^0.5)-SUM($H92:R92),(Input!$H$144*(1+rvanilla)^0.5)/A2stdlife)) -> 0.2682912933 | T92: =IF(A2stdlife="n/a","n/a",IF(T$3>(A2stdlife+$E92),(Input!$H$144*(1+rvanilla)^0.5)-SUM($H92:S92),(Input!$H$144*(1+rvanilla)^0.5)/A2stdlife)) -> 0.2682912933 | U92: =IF(A2stdlife="n/a","n/a",IF(U$3>(A2stdlife+$E92),(Input!$H$144*(1+rvanilla)^0.5)-SUM($H92:T92),(Input!$H$144*(1+rvanilla)^0.5)/A2stdlife)) -> 0.2682912933 | V92: =IF(A2stdlife="n/a","n/a",IF(V$3>(A2stdlife+$E92),(Input!$H$144*(1+rvanilla)^0.5)-SUM($H92:U92),(Input!$H$144*(1+rvanilla)^0.5)/A2stdlife)) -> 0.2682912933 | W92: =IF(A2stdlife="n/a","n/a",IF(W$3>(A2stdlife+$E92),(Input!$H$144*(1+rvanilla)^0.5)-SUM($H92:V92),(Input!$H$144*(1+rvanilla)^0.5)/A2stdlife)) -> 0.2682912933 | X92: =IF(A2stdlife="n/a","n/a",IF(X$3>(A2stdlife+$E92),(Input!$H$144*(1+rvanilla)^0.5)-SUM($H92:W92),(Input!$H$144*(1+rvanilla)^0.5)/A2stdlife)) -> 0.2682912933 | Y92: =IF(A2stdlife="n/a","n/a",IF(Y$3>(A2stdlife+$E92),(Input!$H$144*(1+rvanilla)^0.5)-SUM($H92:X92),(Input!$H$144*(1+rvanilla)^0.5)/A2stdlife)) -> 0.2682912933 | Z92: =IF(A2stdlife="n/a","n/a",IF(Z$3>(A2stdlife+$E92),(Input!$H$144*(1+rvanilla)^0.5)-SUM($H92:Y92),(Input!$H$144*(1+rvanilla)^0.5)/A2stdlife)) -> 0.2682912933 | AA92: =IF(A2stdlife="n/a","n/a",IF(AA$3>(A2stdlife+$E92),(Input!$H$144*(1+rvanilla)^0.5)-SUM($H92:Z92),(Input!$H$144*(1+rvanilla)^0.5)/A2stdlife)) -> 0.2682912933 | AB92: =IF(A2stdlife="n/a","n/a",IF(AB$3>(A2stdlife+$E92),(Input!$H$144*(1+rvanilla)^0.5)-SUM($H92:AA92),(Input!$H$144*(1+rvanilla)^0.5)/A2stdlife)) -> 0.2682912933 | AC92: =IF(A2stdlife="n/a","n/a",IF(AC$3>(A2stdlife+$E92),(Input!$H$144*(1+rvanilla)^0.5)-SUM($H92:AB92),(Input!$H$144*(1+rvanilla)^0.5)/A2stdlife)) -> 0.2682912933 | AD92: =IF(A2stdlife="n/a","n/a",IF(AD$3>(A2stdlife+$E92),(Input!$H$144*(1+rvanilla)^0.5)-SUM($H92:AC92),(Input!$H$144*(1+rvanilla)^0.5)/A2stdlife)) -> 0.2682912933 | AE92: =IF(A2stdlife="n/a","n/a",IF(AE$3>(A2stdlife+$E92),(Input!$H$144*(1+rvanilla)^0.5)-SUM($H92:AD92),(Input!$H$144*(1+rvanilla)^0.5)/A2stdlife)) -> 0.2682912933 | AF92: =IF(A2stdlife="n/a","n/a",IF(AF$3>(A2stdlife+$E92),(Input!$H$144*(1+rvanilla)^0.5)-SUM($H92:AE92),(Input!$H$144*(1+rvanilla)^0.5)/A2stdlife)) -> 0.2682912933 | AG92: =IF(A2stdlife="n/a","n/a",IF(AG$3>(A2stdlife+$E92),(Input!$H$144*(1+rvanilla)^0.5)-SUM($H92:AF92),(Input!$H$144*(1+rvanilla)^0.5)/A2stdlife)) -> 0.2682912933 | AH92: =IF(A2stdlife="n/a","n/a",IF(AH$3>(A2stdlife+$E92),(Input!$H$144*(1+rvanilla)^0.5)-SUM($H92:AG92),(Input!$H$144*(1+rvanilla)^0.5)/A2stdlife)) -> 0.2682912933 | AI92: =IF(A2stdlife="n/a","n/a",IF(AI$3>(A2stdlife+$E92),(Input!$H$144*(1+rvanilla)^0.5)-SUM($H92:AH92),(Input!$H$144*(1+rvanilla)^0.5)/A2stdlife)) -> 0.2682912933 | AJ92: =IF(A2stdlife="n/a","n/a",IF(AJ$3>(A2stdlife+$E92),(Input!$H$144*(1+rvanilla)^0.5)-SUM($H92:AI92),(Input!$H$144*(1+rvanilla)^0.5)/A2stdlife)) -> 0.2682912933 | AK92: =IF(A2stdlife="n/a","n/a",IF(AK$3>(A2stdlife+$E92),(Input!$H$144*(1+rvanilla)^0.5)-SUM($H92:AJ92),(Input!$H$144*(1+rvanilla)^0.5)/A2stdlife)) -> 0.2682912933 | AL92: =IF(A2stdlife="n/a","n/a",IF(AL$3>(A2stdlife+$E92),(Input!$H$144*(1+rvanilla)^0.5)-SUM($H92:AK92),(Input!$H$144*(1+rvanilla)^0.5)/A2stdlife)) -> 0.2682912933 | AM92: =IF(A2stdlife="n/a","n/a",IF(AM$3>(A2stdlife+$E92),(Input!$H$144*(1+rvanilla)^0.5)-SUM($H92:AL92),(Input!$H$144*(1+rvanilla)^0.5)/A2stdlife)) -> 0.2682912933 | AN92: =IF(A2stdlife="n/a","n/a",IF(AN$3>(A2stdlife+$E92),(Input!$H$144*(1+rvanilla)^0.5)-SUM($H92:AM92),(Input!$H$144*(1+rvanilla)^0.5)/A2stdlife)) -> 0.2682912933 | AO92: =IF(A2stdlife="n/a","n/a",IF(AO$3>(A2stdlife+$E92),(Input!$H$144*(1+rvanilla)^0.5)-SUM($H92:AN92),(Input!$H$144*(1+rvanilla)^0.5)/A2stdlife)) -> 0.2682912933 | AP92: =IF(A2stdlife="n/a","n/a",IF(AP$3>(A2stdlife+$E92),(Input!$H$144*(1+rvanilla)^0.5)-SUM($H92:AO92),(Input!$H$144*(1+rvanilla)^0.5)/A2stdlife)) -> 0.2682912933 | AQ92: =IF(A2stdlife="n/a","n/a",IF(AQ$3>(A2stdlife+$E92),(Input!$H$144*(1+rvanilla)^0.5)-SUM($H92:AP92),(Input!$H$144*(1+rvanilla)^0.5)/A2stdlife)) -> 0.2682912933 | AR92: =IF(A2stdlife="n/a","n/a",IF(AR$3>(A2stdlife+$E92),(Input!$H$144*(1+rvanilla)^0.5)-SUM($H92:AQ92),(Input!$H$144*(1+rvanilla)^0.5)/A2stdlife)) -> 0.2682912933 | AS92: =IF(A2stdlife="n/a","n/a",IF(AS$3>(A2stdlife+$E92),(Input!$H$144*(1+rvanilla)^0.5)-SUM($H92:AR92),(Input!$H$144*(1+rvanilla)^0.5)/A2stdlife)) -> 0.2682912933 | AT92: =IF(A2stdlife="n/a","n/a",IF(AT$3>(A2stdlife+$E92),(Input!$H$144*(1+rvanilla)^0.5)-SUM($H92:AS92),(Input!$H$144*(1+rvanilla)^0.5)/A2stdlife)) -> 0.2682912933 | AU92: =IF(A2stdlife="n/a","n/a",IF(AU$3>(A2stdlife+$E92),(Input!$H$144*(1+rvanilla)^0.5)-SUM($H92:AT92),(Input!$H$144*(1+rvanilla)^0.5)/A2stdlife)) -> 0.2682912933 | AV92: =IF(A2stdlife="n/a","n/a",IF(AV$3>(A2stdlife+$E92),(Input!$H$144*(1+rvanilla)^0.5)-SUM($H92:AU92),(Input!$H$144*(1+rvanilla)^0.5)/A2stdlife)) -> 0.2682912933 | AW92: =IF(A2stdlife="n/a","n/a",IF(AW$3>(A2stdlife+$E92),(Input!$H$144*(1+rvanilla)^0.5)-SUM($H92:AV92),(Input!$H$144*(1+rvanilla)^0.5)/A2stdlife)) -> 0.2682912933 | AX92: =IF(A2stdlife="n/a","n/a",IF(AX$3>(A2stdlife+$E92),(Input!$H$144*(1+rvanilla)^0.5)-SUM($H92:AW92),(Input!$H$144*(1+rvanilla)^0.5)/A2stdlife)) -> 0.2682912933 | AY92: =IF(A2stdlife="n/a","n/a",IF(AY$3>(A2stdlife+$E92),(Input!$H$144*(1+rvanilla)^0.5)-SUM($H92:AX92),(Input!$H$144*(1+rvanilla)^0.5)/A2stdlife)) -> 0.2682912933 | AZ92: =IF(A2stdlife="n/a","n/a",IF(AZ$3>(A2stdlife+$E92),(Input!$H$144*(1+rvanilla)^0.5)-SUM($H92:AY92),(Input!$H$144*(1+rvanilla)^0.5)/A2stdlife)) -> 0.2682912933 | BA92: =IF(A2stdlife="n/a","n/a",IF(BA$3>(A2stdlife+$E92),(Input!$H$144*(1+rvanilla)^0.5)-SUM($H92:AZ92),(Input!$H$144*(1+rvanilla)^0.5)/A2stdlife)) -> 0.2682912933 | BB92: =IF(A2stdlife="n/a","n/a",IF(BB$3>(A2stdlife+$E92),(Input!$H$144*(1+rvanilla)^0.5)-SUM($H92:BA92),(Input!$H$144*(1+rvanilla)^0.5)/A2stdlife)) -> 0.2682912933 | BC92: =IF(A2stdlife="n/a","n/a",IF(BC$3>(A2stdlife+$E92),(Input!$H$144*(1+rvanilla)^0.5)-SUM($H92:BB92),(Input!$H$144*(1+rvanilla)^0.5)/A2stdlife)) -> 0.2682912933 | BD92: =IF(A2stdlife="n/a","n/a",IF(BD$3>(A2stdlife+$E92),(Input!$H$144*(1+rvanilla)^0.5)-SUM($H92:BC92),(Input!$H$144*(1+rvanilla)^0.5)/A2stdlife)) -> 0.2682912933 | BE92: =IF(A2stdlife="n/a","n/a",IF(BE$3>(A2stdlife+$E92),(Input!$H$144*(1+rvanilla)^0.5)-SUM($H92:BD92),(Input!$H$144*(1+rvanilla)^0.5)/A2stdlife)) -> 0.2682912933 | BF92: =IF(A2stdlife="n/a","n/a",IF(BF$3>(A2stdlife+$E92),(Input!$H$144*(1+rvanilla)^0.5)-SUM($H92:BE92),(Input!$H$144*(1+rvanilla)^0.5)/A2stdlife)) -> 0.2682912933 | BG92: =IF(A2stdlife="n/a","n/a",IF(BG$3>(A2stdlife+$E92),(Input!$H$144*(1+rvanilla)^0.5)-SUM($H92:BF92),(Input!$H$144*(1+rvanilla)^0.5)/A2stdlife)) -> -8.881784197e-15 | BH92: =IF(A2stdlife="n/a","n/a",IF(BH$3>(A2stdlife+$E92),(Input!$H$144*(1+rvanilla)^0.5)-SUM($H92:BG92),(Input!$H$144*(1+rvanilla)^0.5)/A2stdlife)) -> 0 | BI92: =IF(A2stdlife="n/a","n/a",IF(BI$3>(A2stdlife+$E92),(Input!$H$144*(1+rvanilla)^0.5)-SUM($H92:BH92),(Input!$H$144*(1+rvanilla)^0.5)/A2stdlife)) -> 0
E93: 3 | J93: =IF(A2stdlife="n/a","n/a",IF(J$3>(A2stdlife+$E93),(Input!$I$144*(1+rvanilla)^0.5)-SUM($I93:I93),(Input!$I$144*(1+rvanilla)^0.5)/A2stdlife)) -> 0.2677271327 | K93: =IF(A2stdlife="n/a","n/a",IF(K$3>(A2stdlife+$E93),(Input!$I$144*(1+rvanilla)^0.5)-SUM($I93:J93),(Input!$I$144*(1+rvanilla)^0.5)/A2stdlife)) -> 0.2677271327 | L93: =IF(A2stdlife="n/a","n/a",IF(L$3>(A2stdlife+$E93),(Input!$I$144*(1+rvanilla)^0.5)-SUM($I93:K93),(Input!$I$144*(1+rvanilla)^0.5)/A2stdlife)) -> 0.2677271327 | M93: =IF(A2stdlife="n/a","n/a",IF(M$3>(A2stdlife+$E93),(Input!$I$144*(1+rvanilla)^0.5)-SUM($I93:L93),(Input!$I$144*(1+rvanilla)^0.5)/A2stdlife)) -> 0.2677271327 | N93: =IF(A2stdlife="n/a","n/a",IF(N$3>(A2stdlife+$E93),(Input!$I$144*(1+rvanilla)^0.5)-SUM($I93:M93),(Input!$I$144*(1+rvanilla)^0.5)/A2stdlife)) -> 0.2677271327 | O93: =IF(A2stdlife="n/a","n/a",IF(O$3>(A2stdlife+$E93),(Input!$I$144*(1+rvanilla)^0.5)-SUM($I93:N93),(Input!$I$144*(1+rvanilla)^0.5)/A2stdlife)) -> 0.2677271327 | P93: =IF(A2stdlife="n/a","n/a",IF(P$3>(A2stdlife+$E93),(Input!$I$144*(1+rvanilla)^0.5)-SUM($I93:O93),(Input!$I$144*(1+rvanilla)^0.5)/A2stdlife)) -> 0.2677271327 | Q93: =IF(A2stdlife="n/a","n/a",IF(Q$3>(A2stdlife+$E93),(Input!$I$144*(1+rvanilla)^0.5)-SUM($I93:P93),(Input!$I$144*(1+rvanilla)^0.5)/A2stdlife)) -> 0.2677271327 | R93: =IF(A2stdlife="n/a","n/a",IF(R$3>(A2stdlife+$E93),(Input!$I$144*(1+rvanilla)^0.5)-SUM($I93:Q93),(Input!$I$144*(1+rvanilla)^0.5)/A2stdlife)) -> 0.2677271327 | S93: =IF(A2stdlife="n/a","n/a",IF(S$3>(A2stdlife+$E93),(Input!$I$144*(1+rvanilla)^0.5)-SUM($I93:R93),(Input!$I$144*(1+rvanilla)^0.5)/A2stdlife)) -> 0.2677271327 | T93: =IF(A2stdlife="n/a","n/a",IF(T$3>(A2stdlife+$E93),(Input!$I$144*(1+rvanilla)^0.5)-SUM($I93:S93),(Input!$I$144*(1+rvanilla)^0.5)/A2stdlife)) -> 0.2677271327 | U93: =IF(A2stdlife="n/a","n/a",IF(U$3>(A2stdlife+$E93),(Input!$I$144*(1+rvanilla)^0.5)-SUM($I93:T93),(Input!$I$144*(1+rvanilla)^0.5)/A2stdlife)) -> 0.2677271327 | V93: =IF(A2stdlife="n/a","n/a",IF(V$3>(A2stdlife+$E93),(Input!$I$144*(1+rvanilla)^0.5)-SUM($I93:U93),(Input!$I$144*(1+rvanilla)^0.5)/A2stdlife)) -> 0.2677271327 | W93: =IF(A2stdlife="n/a","n/a",IF(W$3>(A2stdlife+$E93),(Input!$I$144*(1+rvanilla)^0.5)-SUM($I93:V93),(Input!$I$144*(1+rvanilla)^0.5)/A2stdlife)) -> 0.2677271327 | X93: =IF(A2stdlife="n/a","n/a",IF(X$3>(A2stdlife+$E93),(Input!$I$144*(1+rvanilla)^0.5)-SUM($I93:W93),(Input!$I$144*(1+rvanilla)^0.5)/A2stdlife)) -> 0.2677271327 | Y93: =IF(A2stdlife="n/a","n/a",IF(Y$3>(A2stdlife+$E93),(Input!$I$144*(1+rvanilla)^0.5)-SUM($I93:X93),(Input!$I$144*(1+rvanilla)^0.5)/A2stdlife)) -> 0.2677271327 | Z93: =IF(A2stdlife="n/a","n/a",IF(Z$3>(A2stdlife+$E93),(Input!$I$144*(1+rvanilla)^0.5)-SUM($I93:Y93),(Input!$I$144*(1+rvanilla)^0.5)/A2stdlife)) -> 0.2677271327 | AA93: =IF(A2stdlife="n/a","n/a",IF(AA$3>(A2stdlife+$E93),(Input!$I$144*(1+rvanilla)^0.5)-SUM($I93:Z93),(Input!$I$144*(1+rvanilla)^0.5)/A2stdlife)) -> 0.2677271327 | AB93: =IF(A2stdlife="n/a","n/a",IF(AB$3>(A2stdlife+$E93),(Input!$I$144*(1+rvanilla)^0.5)-SUM($I93:AA93),(Input!$I$144*(1+rvanilla)^0.5)/A2stdlife)) -> 0.2677271327 | AC93: =IF(A2stdlife="n/a","n/a",IF(AC$3>(A2stdlife+$E93),(Input!$I$144*(1+rvanilla)^0.5)-SUM($I93:AB93),(Input!$I$144*(1+rvanilla)^0.5)/A2stdlife)) -> 0.2677271327 | AD93: =IF(A2stdlife="n/a","n/a",IF(AD$3>(A2stdlife+$E93),(Input!$I$144*(1+rvanilla)^0.5)-SUM($I93:AC93),(Input!$I$144*(1+rvanilla)^0.5)/A2stdlife)) -> 0.2677271327 | AE93: =IF(A2stdlife="n/a","n/a",IF(AE$3>(A2stdlife+$E93),(Input!$I$144*(1+rvanilla)^0.5)-SUM($I93:AD93),(Input!$I$144*(1+rvanilla)^0.5)/A2stdlife)) -> 0.2677271327 | AF93: =IF(A2stdlife="n/a","n/a",IF(AF$3>(A2stdlife+$E93),(Input!$I$144*(1+rvanilla)^0.5)-SUM($I93:AE93),(Input!$I$144*(1+rvanilla)^0.5)/A2stdlife)) -> 0.2677271327 | AG93: =IF(A2stdlife="n/a","n/a",IF(AG$3>(A2stdlife+$E93),(Input!$I$144*(1+rvanilla)^0.5)-SUM($I93:AF93),(Input!$I$144*(1+rvanilla)^0.5)/A2stdlife)) -> 0.2677271327 | AH93: =IF(A2stdlife="n/a","n/a",IF(AH$3>(A2stdlife+$E93),(Input!$I$144*(1+rvanilla)^0.5)-SUM($I93:AG93),(Input!$I$144*(1+rvanilla)^0.5)/A2stdlife)) -> 0.2677271327 | AI93: =IF(A2stdlife="n/a","n/a",IF(AI$3>(A2stdlife+$E93),(Input!$I$144*(1+rvanilla)^0.5)-SUM($I93:AH93),(Input!$I$144*(1+rvanilla)^0.5)/A2stdlife)) -> 0.2677271327 | AJ93: =IF(A2stdlife="n/a","n/a",IF(AJ$3>(A2stdlife+$E93),(Input!$I$144*(1+rvanilla)^0.5)-SUM($I93:AI93),(Input!$I$144*(1+rvanilla)^0.5)/A2stdlife)) -> 0.2677271327 | AK93: =IF(A2stdlife="n/a","n/a",IF(AK$3>(A2stdlife+$E93),(Input!$I$144*(1+rvanilla)^0.5)-SUM($I93:AJ93),(Input!$I$144*(1+rvanilla)^0.5)/A2stdlife)) -> 0.2677271327 | AL93: =IF(A2stdlife="n/a","n/a",IF(AL$3>(A2stdlife+$E93),(Input!$I$144*(1+rvanilla)^0.5)-SUM($I93:AK93),(Input!$I$144*(1+rvanilla)^0.5)/A2stdlife)) -> 0.2677271327 | AM93: =IF(A2stdlife="n/a","n/a",IF(AM$3>(A2stdlife+$E93),(Input!$I$144*(1+rvanilla)^0.5)-SUM($I93:AL93),(Input!$I$144*(1+rvanilla)^0.5)/A2stdlife)) -> 0.2677271327 | AN93: =IF(A2stdlife="n/a","n/a",IF(AN$3>(A2stdlife+$E93),(Input!$I$144*(1+rvanilla)^0.5)-SUM($I93:AM93),(Input!$I$144*(1+rvanilla)^0.5)/A2stdlife)) -> 0.2677271327 | AO93: =IF(A2stdlife="n/a","n/a",IF(AO$3>(A2stdlife+$E93),(Input!$I$144*(1+rvanilla)^0.5)-SUM($I93:AN93),(Input!$I$144*(1+rvanilla)^0.5)/A2stdlife)) -> 0.2677271327 | AP93: =IF(A2stdlife="n/a","n/a",IF(AP$3>(A2stdlife+$E93),(Input!$I$144*(1+rvanilla)^0.5)-SUM($I93:AO93),(Input!$I$144*(1+rvanilla)^0.5)/A2stdlife)) -> 0.2677271327 | AQ93: =IF(A2stdlife="n/a","n/a",IF(AQ$3>(A2stdlife+$E93),(Input!$I$144*(1+rvanilla)^0.5)-SUM($I93:AP93),(Input!$I$144*(1+rvanilla)^0.5)/A2stdlife)) -> 0.2677271327 | AR93: =IF(A2stdlife="n/a","n/a",IF(AR$3>(A2stdlife+$E93),(Input!$I$144*(1+rvanilla)^0.5)-SUM($I93:AQ93),(Input!$I$144*(1+rvanilla)^0.5)/A2stdlife)) -> 0.2677271327 | AS93: =IF(A2stdlife="n/a","n/a",IF(AS$3>(A2stdlife+$E93),(Input!$I$144*(1+rvanilla)^0.5)-SUM($I93:AR93),(Input!$I$144*(1+rvanilla)^0.5)/A2stdlife)) -> 0.2677271327 | AT93: =IF(A2stdlife="n/a","n/a",IF(AT$3>(A2stdlife+$E93),(Input!$I$144*(1+rvanilla)^0.5)-SUM($I93:AS93),(Input!$I$144*(1+rvanilla)^0.5)/A2stdlife)) -> 0.2677271327 | AU93: =IF(A2stdlife="n/a","n/a",IF(AU$3>(A2stdlife+$E93),(Input!$I$144*(1+rvanilla)^0.5)-SUM($I93:AT93),(Input!$I$144*(1+rvanilla)^0.5)/A2stdlife)) -> 0.2677271327 | AV93: =IF(A2stdlife="n/a","n/a",IF(AV$3>(A2stdlife+$E93),(Input!$I$144*(1+rvanilla)^0.5)-SUM($I93:AU93),(Input!$I$144*(1+rvanilla)^0.5)/A2stdlife)) -> 0.2677271327 | AW93: =IF(A2stdlife="n/a","n/a",IF(AW$3>(A2stdlife+$E93),(Input!$I$144*(1+rvanilla)^0.5)-SUM($I93:AV93),(Input!$I$144*(1+rvanilla)^0.5)/A2stdlife)) -> 0.2677271327 | AX93: =IF(A2stdlife="n/a","n/a",IF(AX$3>(A2stdlife+$E93),(Input!$I$144*(1+rvanilla)^0.5)-SUM($I93:AW93),(Input!$I$144*(1+rvanilla)^0.5)/A2stdlife)) -> 0.2677271327 | AY93: =IF(A2stdlife="n/a","n/a",IF(AY$3>(A2stdlife+$E93),(Input!$I$144*(1+rvanilla)^0.5)-SUM($I93:AX93),(Input!$I$144*(1+rvanilla)^0.5)/A2stdlife)) -> 0.2677271327 | AZ93: =IF(A2stdlife="n/a","n/a",IF(AZ$3>(A2stdlife+$E93),(Input!$I$144*(1+rvanilla)^0.5)-SUM($I93:AY93),(Input!$I$144*(1+rvanilla)^0.5)/A2stdlife)) -> 0.2677271327 | BA93: =IF(A2stdlife="n/a","n/a",IF(BA$3>(A2stdlife+$E93),(Input!$I$144*(1+rvanilla)^0.5)-SUM($I93:AZ93),(Input!$I$144*(1+rvanilla)^0.5)/A2stdlife)) -> 0.2677271327 | BB93: =IF(A2stdlife="n/a","n/a",IF(BB$3>(A2stdlife+$E93),(Input!$I$144*(1+rvanilla)^0.5)-SUM($I93:BA93),(Input!$I$144*(1+rvanilla)^0.5)/A2stdlife)) -> 0.2677271327 | BC93: =IF(A2stdlife="n/a","n/a",IF(BC$3>(A2stdlife+$E93),(Input!$I$144*(1+rvanilla)^0.5)-SUM($I93:BB93),(Input!$I$144*(1+rvanilla)^0.5)/A2stdlife)) -> 0.2677271327 | BD93: =IF(A2stdlife="n/a","n/a",IF(BD$3>(A2stdlife+$E93),(Input!$I$144*(1+rvanilla)^0.5)-SUM($I93:BC93),(Input!$I$144*(1+rvanilla)^0.5)/A2stdlife)) -> 0.2677271327 | BE93: =IF(A2stdlife="n/a","n/a",IF(BE$3>(A2stdlife+$E93),(Input!$I$144*(1+rvanilla)^0.5)-SUM($I93:BD93),(Input!$I$144*(1+rvanilla)^0.5)/A2stdlife)) -> 0.2677271327 | BF93: =IF(A2stdlife="n/a","n/a",IF(BF$3>(A2stdlife+$E93),(Input!$I$144*(1+rvanilla)^0.5)-SUM($I93:BE93),(Input!$I$144*(1+rvanilla)^0.5)/A2stdlife)) -> 0.2677271327 | BG93: =IF(A2stdlife="n/a","n/a",IF(BG$3>(A2stdlife+$E93),(Input!$I$144*(1+rvanilla)^0.5)-SUM($I93:BF93),(Input!$I$144*(1+rvanilla)^0.5)/A2stdlife)) -> 0.2677271327 | BH93: =IF(A2stdlife="n/a","n/a",IF(BH$3>(A2stdlife+$E93),(Input!$I$144*(1+rvanilla)^0.5)-SUM($I93:BG93),(Input!$I$144*(1+rvanilla)^0.5)/A2stdlife)) -> 1.776356839e-15 | BI93: =IF(A2stdlife="n/a","n/a",IF(BI$3>(A2stdlife+$E93),(Input!$I$144*(1+rvanilla)^0.5)-SUM($I93:BH93),(Input!$I$144*(1+rvanilla)^0.5)/A2stdlife)) -> 0
E94: 4 | K94: =IF(A2stdlife="n/a","n/a",IF(K$3>(A2stdlife+$E94),(Input!$J$144*(1+rvanilla)^0.5)-SUM($J94:J94),(Input!$J$144*(1+rvanilla)^0.5)/A2stdlife)) -> 0.2310309318 | L94: =IF(A2stdlife="n/a","n/a",IF(L$3>(A2stdlife+$E94),(Input!$J$144*(1+rvanilla)^0.5)-SUM($J94:K94),(Input!$J$144*(1+rvanilla)^0.5)/A2stdlife)) -> 0.2310309318 | M94: =IF(A2stdlife="n/a","n/a",IF(M$3>(A2stdlife+$E94),(Input!$J$144*(1+rvanilla)^0.5)-SUM($J94:L94),(Input!$J$144*(1+rvanilla)^0.5)/A2stdlife)) -> 0.2310309318 | N94: =IF(A2stdlife="n/a","n/a",IF(N$3>(A2stdlife+$E94),(Input!$J$144*(1+rvanilla)^0.5)-SUM($J94:M94),(Input!$J$144*(1+rvanilla)^0.5)/A2stdlife)) -> 0.2310309318 | O94: =IF(A2stdlife="n/a","n/a",IF(O$3>(A2stdlife+$E94),(Input!$J$144*(1+rvanilla)^0.5)-SUM($J94:N94),(Input!$J$144*(1+rvanilla)^0.5)/A2stdlife)) -> 0.2310309318 | P94: =IF(A2stdlife="n/a","n/a",IF(P$3>(A2stdlife+$E94),(Input!$J$144*(1+rvanilla)^0.5)-SUM($J94:O94),(Input!$J$144*(1+rvanilla)^0.5)/A2stdlife)) -> 0.2310309318 | Q94: =IF(A2stdlife="n/a","n/a",IF(Q$3>(A2stdlife+$E94),(Input!$J$144*(1+rvanilla)^0.5)-SUM($J94:P94),(Input!$J$144*(1+rvanilla)^0.5)/A2stdlife)) -> 0.2310309318 | R94: =IF(A2stdlife="n/a","n/a",IF(R$3>(A2stdlife+$E94),(Input!$J$144*(1+rvanilla)^0.5)-SUM($J94:Q94),(Input!$J$144*(1+rvanilla)^0.5)/A2stdlife)) -> 0.2310309318 | S94: =IF(A2stdlife="n/a","n/a",IF(S$3>(A2stdlife+$E94),(Input!$J$144*(1+rvanilla)^0.5)-SUM($J94:R94),(Input!$J$144*(1+rvanilla)^0.5)/A2stdlife)) -> 0.2310309318 | T94: =IF(A2stdlife="n/a","n/a",IF(T$3>(A2stdlife+$E94),(Input!$J$144*(1+rvanilla)^0.5)-SUM($J94:S94),(Input!$J$144*(1+rvanilla)^0.5)/A2stdlife)) -> 0.2310309318 | U94: =IF(A2stdlife="n/a","n/a",IF(U$3>(A2stdlife+$E94),(Input!$J$144*(1+rvanilla)^0.5)-SUM($J94:T94),(Input!$J$144*(1+rvanilla)^0.5)/A2stdlife)) -> 0.2310309318 | V94: =IF(A2stdlife="n/a","n/a",IF(V$3>(A2stdlife+$E94),(Input!$J$144*(1+rvanilla)^0.5)-SUM($J94:U94),(Input!$J$144*(1+rvanilla)^0.5)/A2stdlife)) -> 0.2310309318 | W94: =IF(A2stdlife="n/a","n/a",IF(W$3>(A2stdlife+$E94),(Input!$J$144*(1+rvanilla)^0.5)-SUM($J94:V94),(Input!$J$144*(1+rvanilla)^0.5)/A2stdlife)) -> 0.2310309318 | X94: =IF(A2stdlife="n/a","n/a",IF(X$3>(A2stdlife+$E94),(Input!$J$144*(1+rvanilla)^0.5)-SUM($J94:W94),(Input!$J$144*(1+rvanilla)^0.5)/A2stdlife)) -> 0.2310309318 | Y94: =IF(A2stdlife="n/a","n/a",IF(Y$3>(A2stdlife+$E94),(Input!$J$144*(1+rvanilla)^0.5)-SUM($J94:X94),(Input!$J$144*(1+rvanilla)^0.5)/A2stdlife)) -> 0.2310309318 | Z94: =IF(A2stdlife="n/a","n/a",IF(Z$3>(A2stdlife+$E94),(Input!$J$144*(1+rvanilla)^0.5)-SUM($J94:Y94),(Input!$J$144*(1+rvanilla)^0.5)/A2stdlife)) -> 0.2310309318 | AA94: =IF(A2stdlife="n/a","n/a",IF(AA$3>(A2stdlife+$E94),(Input!$J$144*(1+rvanilla)^0.5)-SUM($J94:Z94),(Input!$J$144*(1+rvanilla)^0.5)/A2stdlife)) -> 0.2310309318 | AB94: =IF(A2stdlife="n/a","n/a",IF(AB$3>(A2stdlife+$E94),(Input!$J$144*(1+rvanilla)^0.5)-SUM($J94:AA94),(Input!$J$144*(1+rvanilla)^0.5)/A2stdlife)) -> 0.2310309318 | AC94: =IF(A2stdlife="n/a","n/a",IF(AC$3>(A2stdlife+$E94),(Input!$J$144*(1+rvanilla)^0.5)-SUM($J94:AB94),(Input!$J$144*(1+rvanilla)^0.5)/A2stdlife)) -> 0.2310309318 | AD94: =IF(A2stdlife="n/a","n/a",IF(AD$3>(A2stdlife+$E94),(Input!$J$144*(1+rvanilla)^0.5)-SUM($J94:AC94),(Input!$J$144*(1+rvanilla)^0.5)/A2stdlife)) -> 0.2310309318 | AE94: =IF(A2stdlife="n/a","n/a",IF(AE$3>(A2stdlife+$E94),(Input!$J$144*(1+rvanilla)^0.5)-SUM($J94:AD94),(Input!$J$144*(1+rvanilla)^0.5)/A2stdlife)) -> 0.2310309318 | AF94: =IF(A2stdlife="n/a","n/a",IF(AF$3>(A2stdlife+$E94),(Input!$J$144*(1+rvanilla)^0.5)-SUM($J94:AE94),(Input!$J$144*(1+rvanilla)^0.5)/A2stdlife)) -> 0.2310309318 | AG94: =IF(A2stdlife="n/a","n/a",IF(AG$3>(A2stdlife+$E94),(Input!$J$144*(1+rvanilla)^0.5)-SUM($J94:AF94),(Input!$J$144*(1+rvanilla)^0.5)/A2stdlife)) -> 0.2310309318 | AH94: =IF(A2stdlife="n/a","n/a",IF(AH$3>(A2stdlife+$E94),(Input!$J$144*(1+rvanilla)^0.5)-SUM($J94:AG94),(Input!$J$144*(1+rvanilla)^0.5)/A2stdlife)) -> 0.2310309318 | AI94: =IF(A2stdlife="n/a","n/a",IF(AI$3>(A2stdlife+$E94),(Input!$J$144*(1+rvanilla)^0.5)-SUM($J94:AH94),(Input!$J$144*(1+rvanilla)^0.5)/A2stdlife)) -> 0.2310309318 | AJ94: =IF(A2stdlife="n/a","n/a",IF(AJ$3>(A2stdlife+$E94),(Input!$J$144*(1+rvanilla)^0.5)-SUM($J94:AI94),(Input!$J$144*(1+rvanilla)^0.5)/A2stdlife)) -> 0.2310309318 | AK94: =IF(A2stdlife="n/a","n/a",IF(AK$3>(A2stdlife+$E94),(Input!$J$144*(1+rvanilla)^0.5)-SUM($J94:AJ94),(Input!$J$144*(1+rvanilla)^0.5)/A2stdlife)) -> 0.2310309318 | AL94: =IF(A2stdlife="n/a","n/a",IF(AL$3>(A2stdlife+$E94),(Input!$J$144*(1+rvanilla)^0.5)-SUM($J94:AK94),(Input!$J$144*(1+rvanilla)^0.5)/A2stdlife)) -> 0.2310309318 | AM94: =IF(A2stdlife="n/a","n/a",IF(AM$3>(A2stdlife+$E94),(Input!$J$144*(1+rvanilla)^0.5)-SUM($J94:AL94),(Input!$J$144*(1+rvanilla)^0.5)/A2stdlife)) -> 0.2310309318 | AN94: =IF(A2stdlife="n/a","n/a",IF(AN$3>(A2stdlife+$E94),(Input!$J$144*(1+rvanilla)^0.5)-SUM($J94:AM94),(Input!$J$144*(1+rvanilla)^0.5)/A2stdlife)) -> 0.2310309318 | AO94: =IF(A2stdlife="n/a","n/a",IF(AO$3>(A2stdlife+$E94),(Input!$J$144*(1+rvanilla)^0.5)-SUM($J94:AN94),(Input!$J$144*(1+rvanilla)^0.5)/A2stdlife)) -> 0.2310309318 | AP94: =IF(A2stdlife="n/a","n/a",IF(AP$3>(A2stdlife+$E94),(Input!$J$144*(1+rvanilla)^0.5)-SUM($J94:AO94),(Input!$J$144*(1+rvanilla)^0.5)/A2stdlife)) -> 0.2310309318 | AQ94: =IF(A2stdlife="n/a","n/a",IF(AQ$3>(A2stdlife+$E94),(Input!$J$144*(1+rvanilla)^0.5)-SUM($J94:AP94),(Input!$J$144*(1+rvanilla)^0.5)/A2stdlife)) -> 0.2310309318 | AR94: =IF(A2stdlife="n/a","n/a",IF(AR$3>(A2stdlife+$E94),(Input!$J$144*(1+rvanilla)^0.5)-SUM($J94:AQ94),(Input!$J$144*(1+rvanilla)^0.5)/A2stdlife)) -> 0.2310309318 | AS94: =IF(A2stdlife="n/a","n/a",IF(AS$3>(A2stdlife+$E94),(Input!$J$144*(1+rvanilla)^0.5)-SUM($J94:AR94),(Input!$J$144*(1+rvanilla)^0.5)/A2stdlife)) -> 0.2310309318 | AT94: =IF(A2stdlife="n/a","n/a",IF(AT$3>(A2stdlife+$E94),(Input!$J$144*(1+rvanilla)^0.5)-SUM($J94:AS94),(Input!$J$144*(1+rvanilla)^0.5)/A2stdlife)) -> 0.2310309318 | AU94: =IF(A2stdlife="n/a","n/a",IF(AU$3>(A2stdlife+$E94),(Input!$J$144*(1+rvanilla)^0.5)-SUM($J94:AT94),(Input!$J$144*(1+rvanilla)^0.5)/A2stdlife)) -> 0.2310309318 | AV94: =IF(A2stdlife="n/a","n/a",IF(AV$3>(A2stdlife+$E94),(Input!$J$144*(1+rvanilla)^0.5)-SUM($J94:AU94),(Input!$J$144*(1+rvanilla)^0.5)/A2stdlife)) -> 0.2310309318 | AW94: =IF(A2stdlife="n/a","n/a",IF(AW$3>(A2stdlife+$E94),(Input!$J$144*(1+rvanilla)^0.5)-SUM($J94:AV94),(Input!$J$144*(1+rvanilla)^0.5)/A2stdlife)) -> 0.2310309318 | AX94: =IF(A2stdlife="n/a","n/a",IF(AX$3>(A2stdlife+$E94),(Input!$J$144*(1+rvanilla)^0.5)-SUM($J94:AW94),(Input!$J$144*(1+rvanilla)^0.5)/A2stdlife)) -> 0.2310309318 | AY94: =IF(A2stdlife="n/a","n/a",IF(AY$3>(A2stdlife+$E94),(Input!$J$144*(1+rvanilla)^0.5)-SUM($J94:AX94),(Input!$J$144*(1+rvanilla)^0.5)/A2stdlife)) -> 0.2310309318 | AZ94: =IF(A2stdlife="n/a","n/a",IF(AZ$3>(A2stdlife+$E94),(Input!$J$144*(1+rvanilla)^0.5)-SUM($J94:AY94),(Input!$J$144*(1+rvanilla)^0.5)/A2stdlife)) -> 0.2310309318 | BA94: =IF(A2stdlife="n/a","n/a",IF(BA$3>(A2stdlife+$E94),(Input!$J$144*(1+rvanilla)^0.5)-SUM($J94:AZ94),(Input!$J$144*(1+rvanilla)^0.5)/A2stdlife)) -> 0.2310309318 | BB94: =IF(A2stdlife="n/a","n/a",IF(BB$3>(A2stdlife+$E94),(Input!$J$144*(1+rvanilla)^0.5)-SUM($J94:BA94),(Input!$J$144*(1+rvanilla)^0.5)/A2stdlife)) -> 0.2310309318 | BC94: =IF(A2stdlife="n/a","n/a",IF(BC$3>(A2stdlife+$E94),(Input!$J$144*(1+rvanilla)^0.5)-SUM($J94:BB94),(Input!$J$144*(1+rvanilla)^0.5)/A2stdlife)) -> 0.2310309318 | BD94: =IF(A2stdlife="n/a","n/a",IF(BD$3>(A2stdlife+$E94),(Input!$J$144*(1+rvanilla)^0.5)-SUM($J94:BC94),(Input!$J$144*(1+rvanilla)^0.5)/A2stdlife)) -> 0.2310309318 | BE94: =IF(A2stdlife="n/a","n/a",IF(BE$3>(A2stdlife+$E94),(Input!$J$144*(1+rvanilla)^0.5)-SUM($J94:BD94),(Input!$J$144*(1+rvanilla)^0.5)/A2stdlife)) -> 0.2310309318 | BF94: =IF(A2stdlife="n/a","n/a",IF(BF$3>(A2stdlife+$E94),(Input!$J$144*(1+rvanilla)^0.5)-SUM($J94:BE94),(Input!$J$144*(1+rvanilla)^0.5)/A2stdlife)) -> 0.2310309318 | BG94: =IF(A2stdlife="n/a","n/a",IF(BG$3>(A2stdlife+$E94),(Input!$J$144*(1+rvanilla)^0.5)-SUM($J94:BF94),(Input!$J$144*(1+rvanilla)^0.5)/A2stdlife)) -> 0.2310309318 | BH94: =IF(A2stdlife="n/a","n/a",IF(BH$3>(A2stdlife+$E94),(Input!$J$144*(1+rvanilla)^0.5)-SUM($J94:BG94),(Input!$J$144*(1+rvanilla)^0.5)/A2stdlife)) -> 0.2310309318 | BI94: =IF(A2stdlife="n/a","n/a",IF(BI$3>(A2stdlife+$E94),(Input!$J$144*(1+rvanilla)^0.5)-SUM($J94:BH94),(Input!$J$144*(1+rvanilla)^0.5)/A2stdlife)) -> 1.065814104e-14
E95: 5 | L95: =IF(A2stdlife="n/a","n/a",IF(L$3>(A2stdlife+$E95),(Input!$K$144*(1+rvanilla)^0.5)-SUM($K95:K95),(Input!$K$144*(1+rvanilla)^0.5)/A2stdlife)) -> 0.2317523789 | M95: =IF(A2stdlife="n/a","n/a",IF(M$3>(A2stdlife+$E95),(Input!$K$144*(1+rvanilla)^0.5)-SUM($K95:L95),(Input!$K$144*(1+rvanilla)^0.5)/A2stdlife)) -> 0.2317523789 | N95: =IF(A2stdlife="n/a","n/a",IF(N$3>(A2stdlife+$E95),(Input!$K$144*(1+rvanilla)^0.5)-SUM($K95:M95),(Input!$K$144*(1+rvanilla)^0.5)/A2stdlife)) -> 0.2317523789 | O95: =IF(A2stdlife="n/a","n/a",IF(O$3>(A2stdlife+$E95),(Input!$K$144*(1+rvanilla)^0.5)-SUM($K95:N95),(Input!$K$144*(1+rvanilla)^0.5)/A2stdlife)) -> 0.2317523789 | P95: =IF(A2stdlife="n/a","n/a",IF(P$3>(A2stdlife+$E95),(Input!$K$144*(1+rvanilla)^0.5)-SUM($K95:O95),(Input!$K$144*(1+rvanilla)^0.5)/A2stdlife)) -> 0.2317523789 | Q95: =IF(A2stdlife="n/a","n/a",IF(Q$3>(A2stdlife+$E95),(Input!$K$144*(1+rvanilla)^0.5)-SUM($K95:P95),(Input!$K$144*(1+rvanilla)^0.5)/A2stdlife)) -> 0.2317523789 | R95: =IF(A2stdlife="n/a","n/a",IF(R$3>(A2stdlife+$E95),(Input!$K$144*(1+rvanilla)^0.5)-SUM($K95:Q95),(Input!$K$144*(1+rvanilla)^0.5)/A2stdlife)) -> 0.2317523789 | S95: =IF(A2stdlife="n/a","n/a",IF(S$3>(A2stdlife+$E95),(Input!$K$144*(1+rvanilla)^0.5)-SUM($K95:R95),(Input!$K$144*(1+rvanilla)^0.5)/A2stdlife)) -> 0.2317523789 | T95: =IF(A2stdlife="n/a","n/a",IF(T$3>(A2stdlife+$E95),(Input!$K$144*(1+rvanilla)^0.5)-SUM($K95:S95),(Input!$K$144*(1+rvanilla)^0.5)/A2stdlife)) -> 0.2317523789 | U95: =IF(A2stdlife="n/a","n/a",IF(U$3>(A2stdlife+$E95),(Input!$K$144*(1+rvanilla)^0.5)-SUM($K95:T95),(Input!$K$144*(1+rvanilla)^0.5)/A2stdlife)) -> 0.2317523789 | V95: =IF(A2stdlife="n/a","n/a",IF(V$3>(A2stdlife+$E95),(Input!$K$144*(1+rvanilla)^0.5)-SUM($K95:U95),(Input!$K$144*(1+rvanilla)^0.5)/A2stdlife)) -> 0.2317523789 | W95: =IF(A2stdlife="n/a","n/a",IF(W$3>(A2stdlife+$E95),(Input!$K$144*(1+rvanilla)^0.5)-SUM($K95:V95),(Input!$K$144*(1+rvanilla)^0.5)/A2stdlife)) -> 0.2317523789 | X95: =IF(A2stdlife="n/a","n/a",IF(X$3>(A2stdlife+$E95),(Input!$K$144*(1+rvanilla)^0.5)-SUM($K95:W95),(Input!$K$144*(1+rvanilla)^0.5)/A2stdlife)) -> 0.2317523789 | Y95: =IF(A2stdlife="n/a","n/a",IF(Y$3>(A2stdlife+$E95),(Input!$K$144*(1+rvanilla)^0.5)-SUM($K95:X95),(Input!$K$144*(1+rvanilla)^0.5)/A2stdlife)) -> 0.2317523789 | Z95: =IF(A2stdlife="n/a","n/a",IF(Z$3>(A2stdlife+$E95),(Input!$K$144*(1+rvanilla)^0.5)-SUM($K95:Y95),(Input!$K$144*(1+rvanilla)^0.5)/A2stdlife)) -> 0.2317523789 | AA95: =IF(A2stdlife="n/a","n/a",IF(AA$3>(A2stdlife+$E95),(Input!$K$144*(1+rvanilla)^0.5)-SUM($K95:Z95),(Input!$K$144*(1+rvanilla)^0.5)/A2stdlife)) -> 0.2317523789 | AB95: =IF(A2stdlife="n/a","n/a",IF(AB$3>(A2stdlife+$E95),(Input!$K$144*(1+rvanilla)^0.5)-SUM($K95:AA95),(Input!$K$144*(1+rvanilla)^0.5)/A2stdlife)) -> 0.2317523789 | AC95: =IF(A2stdlife="n/a","n/a",IF(AC$3>(A2stdlife+$E95),(Input!$K$144*(1+rvanilla)^0.5)-SUM($K95:AB95),(Input!$K$144*(1+rvanilla)^0.5)/A2stdlife)) -> 0.2317523789 | AD95: =IF(A2stdlife="n/a","n/a",IF(AD$3>(A2stdlife+$E95),(Input!$K$144*(1+rvanilla)^0.5)-SUM($K95:AC95),(Input!$K$144*(1+rvanilla)^0.5)/A2stdlife)) -> 0.2317523789 | AE95: =IF(A2stdlife="n/a","n/a",IF(AE$3>(A2stdlife+$E95),(Input!$K$144*(1+rvanilla)^0.5)-SUM($K95:AD95),(Input!$K$144*(1+rvanilla)^0.5)/A2stdlife)) -> 0.2317523789 | AF95: =IF(A2stdlife="n/a","n/a",IF(AF$3>(A2stdlife+$E95),(Input!$K$144*(1+rvanilla)^0.5)-SUM($K95:AE95),(Input!$K$144*(1+rvanilla)^0.5)/A2stdlife)) -> 0.2317523789 | AG95: =IF(A2stdlife="n/a","n/a",IF(AG$3>(A2stdlife+$E95),(Input!$K$144*(1+rvanilla)^0.5)-SUM($K95:AF95),(Input!$K$144*(1+rvanilla)^0.5)/A2stdlife)) -> 0.2317523789 | AH95: =IF(A2stdlife="n/a","n/a",IF(AH$3>(A2stdlife+$E95),(Input!$K$144*(1+rvanilla)^0.5)-SUM($K95:AG95),(Input!$K$144*(1+rvanilla)^0.5)/A2stdlife)) -> 0.2317523789 | AI95: =IF(A2stdlife="n/a","n/a",IF(AI$3>(A2stdlife+$E95),(Input!$K$144*(1+rvanilla)^0.5)-SUM($K95:AH95),(Input!$K$144*(1+rvanilla)^0.5)/A2stdlife)) -> 0.2317523789 | AJ95: =IF(A2stdlife="n/a","n/a",IF(AJ$3>(A2stdlife+$E95),(Input!$K$144*(1+rvanilla)^0.5)-SUM($K95:AI95),(Input!$K$144*(1+rvanilla)^0.5)/A2stdlife)) -> 0.2317523789 | AK95: =IF(A2stdlife="n/a","n/a",IF(AK$3>(A2stdlife+$E95),(Input!$K$144*(1+rvanilla)^0.5)-SUM($K95:AJ95),(Input!$K$144*(1+rvanilla)^0.5)/A2stdlife)) -> 0.2317523789 | AL95: =IF(A2stdlife="n/a","n/a",IF(AL$3>(A2stdlife+$E95),(Input!$K$144*(1+rvanilla)^0.5)-SUM($K95:AK95),(Input!$K$144*(1+rvanilla)^0.5)/A2stdlife)) -> 0.2317523789 | AM95: =IF(A2stdlife="n/a","n/a",IF(AM$3>(A2stdlife+$E95),(Input!$K$144*(1+rvanilla)^0.5)-SUM($K95:AL95),(Input!$K$144*(1+rvanilla)^0.5)/A2stdlife)) -> 0.2317523789 | AN95: =IF(A2stdlife="n/a","n/a",IF(AN$3>(A2stdlife+$E95),(Input!$K$144*(1+rvanilla)^0.5)-SUM($K95:AM95),(Input!$K$144*(1+rvanilla)^0.5)/A2stdlife)) -> 0.2317523789 | AO95: =IF(A2stdlife="n/a","n/a",IF(AO$3>(A2stdlife+$E95),(Input!$K$144*(1+rvanilla)^0.5)-SUM($K95:AN95),(Input!$K$144*(1+rvanilla)^0.5)/A2stdlife)) -> 0.2317523789 | AP95: =IF(A2stdlife="n/a","n/a",IF(AP$3>(A2stdlife+$E95),(Input!$K$144*(1+rvanilla)^0.5)-SUM($K95:AO95),(Input!$K$144*(1+rvanilla)^0.5)/A2stdlife)) -> 0.2317523789 | AQ95: =IF(A2stdlife="n/a","n/a",IF(AQ$3>(A2stdlife+$E95),(Input!$K$144*(1+rvanilla)^0.5)-SUM($K95:AP95),(Input!$K$144*(1+rvanilla)^0.5)/A2stdlife)) -> 0.2317523789 | AR95: =IF(A2stdlife="n/a","n/a",IF(AR$3>(A2stdlife+$E95),(Input!$K$144*(1+rvanilla)^0.5)-SUM($K95:AQ95),(Input!$K$144*(1+rvanilla)^0.5)/A2stdlife)) -> 0.2317523789 | AS95: =IF(A2stdlife="n/a","n/a",IF(AS$3>(A2stdlife+$E95),(Input!$K$144*(1+rvanilla)^0.5)-SUM($K95:AR95),(Input!$K$144*(1+rvanilla)^0.5)/A2stdlife)) -> 0.2317523789 | AT95: =IF(A2stdlife="n/a","n/a",IF(AT$3>(A2stdlife+$E95),(Input!$K$144*(1+rvanilla)^0.5)-SUM($K95:AS95),(Input!$K$144*(1+rvanilla)^0.5)/A2stdlife)) -> 0.2317523789 | AU95: =IF(A2stdlife="n/a","n/a",IF(AU$3>(A2stdlife+$E95),(Input!$K$144*(1+rvanilla)^0.5)-SUM($K95:AT95),(Input!$K$144*(1+rvanilla)^0.5)/A2stdlife)) -> 0.2317523789 | AV95: =IF(A2stdlife="n/a","n/a",IF(AV$3>(A2stdlife+$E95),(Input!$K$144*(1+rvanilla)^0.5)-SUM($K95:AU95),(Input!$K$144*(1+rvanilla)^0.5)/A2stdlife)) -> 0.2317523789 | AW95: =IF(A2stdlife="n/a","n/a",IF(AW$3>(A2stdlife+$E95),(Input!$K$144*(1+rvanilla)^0.5)-SUM($K95:AV95),(Input!$K$144*(1+rvanilla)^0.5)/A2stdlife)) -> 0.2317523789 | AX95: =IF(A2stdlife="n/a","n/a",IF(AX$3>(A2stdlife+$E95),(Input!$K$144*(1+rvanilla)^0.5)-SUM($K95:AW95),(Input!$K$144*(1+rvanilla)^0.5)/A2stdlife)) -> 0.2317523789 | AY95: =IF(A2stdlife="n/a","n/a",IF(AY$3>(A2stdlife+$E95),(Input!$K$144*(1+rvanilla)^0.5)-SUM($K95:AX95),(Input!$K$144*(1+rvanilla)^0.5)/A2stdlife)) -> 0.2317523789 | AZ95: =IF(A2stdlife="n/a","n/a",IF(AZ$3>(A2stdlife+$E95),(Input!$K$144*(1+rvanilla)^0.5)-SUM($K95:AY95),(Input!$K$144*(1+rvanilla)^0.5)/A2stdlife)) -> 0.2317523789 | BA95: =IF(A2stdlife="n/a","n/a",IF(BA$3>(A2stdlife+$E95),(Input!$K$144*(1+rvanilla)^0.5)-SUM($K95:AZ95),(Input!$K$144*(1+rvanilla)^0.5)/A2stdlife)) -> 0.2317523789 | BB95: =IF(A2stdlife="n/a","n/a",IF(BB$3>(A2stdlife+$E95),(Input!$K$144*(1+rvanilla)^0.5)-SUM($K95:BA95),(Input!$K$144*(1+rvanilla)^0.5)/A2stdlife)) -> 0.2317523789 | BC95: =IF(A2stdlife="n/a","n/a",IF(BC$3>(A2stdlife+$E95),(Input!$K$144*(1+rvanilla)^0.5)-SUM($K95:BB95),(Input!$K$144*(1+rvanilla)^0.5)/A2stdlife)) -> 0.2317523789 | BD95: =IF(A2stdlife="n/a","n/a",IF(BD$3>(A2stdlife+$E95),(Input!$K$144*(1+rvanilla)^0.5)-SUM($K95:BC95),(Input!$K$144*(1+rvanilla)^0.5)/A2stdlife)) -> 0.2317523789 | BE95: =IF(A2stdlife="n/a","n/a",IF(BE$3>(A2stdlife+$E95),(Input!$K$144*(1+rvanilla)^0.5)-SUM($K95:BD95),(Input!$K$144*(1+rvanilla)^0.5)/A2stdlife)) -> 0.2317523789 | BF95: =IF(A2stdlife="n/a","n/a",IF(BF$3>(A2stdlife+$E95),(Input!$K$144*(1+rvanilla)^0.5)-SUM($K95:BE95),(Input!$K$144*(1+rvanilla)^0.5)/A2stdlife)) -> 0.2317523789 | BG95: =IF(A2stdlife="n/a","n/a",IF(BG$3>(A2stdlife+$E95),(Input!$K$144*(1+rvanilla)^0.5)-SUM($K95:BF95),(Input!$K$144*(1+rvanilla)^0.5)/A2stdlife)) -> 0.2317523789 | BH95: =IF(A2stdlife="n/a","n/a",IF(BH$3>(A2stdlife+$E95),(Input!$K$144*(1+rvanilla)^0.5)-SUM($K95:BG95),(Input!$K$144*(1+rvanilla)^0.5)/A2stdlife)) -> 0.2317523789 | BI95: =IF(A2stdlife="n/a","n/a",IF(BI$3>(A2stdlife+$E95),(Input!$K$144*(1+rvanilla)^0.5)-SUM($K95:BH95),(Input!$K$144*(1+rvanilla)^0.5)/A2stdlife)) -> 0.2317523789
E96: 6 | M96: =IF(A2stdlife="n/a","n/a",IF(M$3>(A2stdlife+$E96),(Input!$L$144*(1+rvanilla)^0.5)-SUM($L96:L96),(Input!$L$144*(1+rvanilla)^0.5)/A2stdlife)) -> 0 | N96: =IF(A2stdlife="n/a","n/a",IF(N$3>(A2stdlife+$E96),(Input!$L$144*(1+rvanilla)^0.5)-SUM($L96:M96),(Input!$L$144*(1+rvanilla)^0.5)/A2stdlife)) -> 0 | O96: =IF(A2stdlife="n/a","n/a",IF(O$3>(A2stdlife+$E96),(Input!$L$144*(1+rvanilla)^0.5)-SUM($L96:N96),(Input!$L$144*(1+rvanilla)^0.5)/A2stdlife)) -> 0 | P96: =IF(A2stdlife="n/a","n/a",IF(P$3>(A2stdlife+$E96),(Input!$L$144*(1+rvanilla)^0.5)-SUM($L96:O96),(Input!$L$144*(1+rvanilla)^0.5)/A2stdlife)) -> 0 | Q96: =IF(A2stdlife="n/a","n/a",IF(Q$3>(A2stdlife+$E96),(Input!$L$144*(1+rvanilla)^0.5)-SUM($L96:P96),(Input!$L$144*(1+rvanilla)^0.5)/A2stdlife)) -> 0 | R96: =IF(A2stdlife="n/a","n/a",IF(R$3>(A2stdlife+$E96),(Input!$L$144*(1+rvanilla)^0.5)-SUM($L96:Q96),(Input!$L$144*(1+rvanilla)^0.5)/A2stdlife)) -> 0 | S96: =IF(A2stdlife="n/a","n/a",IF(S$3>(A2stdlife+$E96),(Input!$L$144*(1+rvanilla)^0.5)-SUM($L96:R96),(Input!$L$144*(1+rvanilla)^0.5)/A2stdlife)) -> 0 | T96: =IF(A2stdlife="n/a","n/a",IF(T$3>(A2stdlife+$E96),(Input!$L$144*(1+rvanilla)^0.5)-SUM($L96:S96),(Input!$L$144*(1+rvanilla)^0.5)/A2stdlife)) -> 0 | U96: =IF(A2stdlife="n/a","n/a",IF(U$3>(A2stdlife+$E96),(Input!$L$144*(1+rvanilla)^0.5)-SUM($L96:T96),(Input!$L$144*(1+rvanilla)^0.5)/A2stdlife)) -> 0 | V96: =IF(A2stdlife="n/a","n/a",IF(V$3>(A2stdlife+$E96),(Input!$L$144*(1+rvanilla)^0.5)-SUM($L96:U96),(Input!$L$144*(1+rvanilla)^0.5)/A2stdlife)) -> 0 | W96: =IF(A2stdlife="n/a","n/a",IF(W$3>(A2stdlife+$E96),(Input!$L$144*(1+rvanilla)^0.5)-SUM($L96:V96),(Input!$L$144*(1+rvanilla)^0.5)/A2stdlife)) -> 0 | X96: =IF(A2stdlife="n/a","n/a",IF(X$3>(A2stdlife+$E96),(Input!$L$144*(1+rvanilla)^0.5)-SUM($L96:W96),(Input!$L$144*(1+rvanilla)^0.5)/A2stdlife)) -> 0 | Y96: =IF(A2stdlife="n/a","n/a",IF(Y$3>(A2stdlife+$E96),(Input!$L$144*(1+rvanilla)^0.5)-SUM($L96:X96),(Input!$L$144*(1+rvanilla)^0.5)/A2stdlife)) -> 0 | Z96: =IF(A2stdlife="n/a","n/a",IF(Z$3>(A2stdlife+$E96),(Input!$L$144*(1+rvanilla)^0.5)-SUM($L96:Y96),(Input!$L$144*(1+rvanilla)^0.5)/A2stdlife)) -> 0 | AA96: =IF(A2stdlife="n/a","n/a",IF(AA$3>(A2stdlife+$E96),(Input!$L$144*(1+rvanilla)^0.5)-SUM($L96:Z96),(Input!$L$144*(1+rvanilla)^0.5)/A2stdlife)) -> 0 | AB96: =IF(A2stdlife="n/a","n/a",IF(AB$3>(A2stdlife+$E96),(Input!$L$144*(1+rvanilla)^0.5)-SUM($L96:AA96),(Input!$L$144*(1+rvanilla)^0.5)/A2stdlife)) -> 0 | AC96: =IF(A2stdlife="n/a","n/a",IF(AC$3>(A2stdlife+$E96),(Input!$L$144*(1+rvanilla)^0.5)-SUM($L96:AB96),(Input!$L$144*(1+rvanilla)^0.5)/A2stdlife)) -> 0 | AD96: =IF(A2stdlife="n/a","n/a",IF(AD$3>(A2stdlife+$E96),(Input!$L$144*(1+rvanilla)^0.5)-SUM($L96:AC96),(Input!$L$144*(1+rvanilla)^0.5)/A2stdlife)) -> 0 | AE96: =IF(A2stdlife="n/a","n/a",IF(AE$3>(A2stdlife+$E96),(Input!$L$144*(1+rvanilla)^0.5)-SUM($L96:AD96),(Input!$L$144*(1+rvanilla)^0.5)/A2stdlife)) -> 0 | AF96: =IF(A2stdlife="n/a","n/a",IF(AF$3>(A2stdlife+$E96),(Input!$L$144*(1+rvanilla)^0.5)-SUM($L96:AE96),(Input!$L$144*(1+rvanilla)^0.5)/A2stdlife)) -> 0 | AG96: =IF(A2stdlife="n/a","n/a",IF(AG$3>(A2stdlife+$E96),(Input!$L$144*(1+rvanilla)^0.5)-SUM($L96:AF96),(Input!$L$144*(1+rvanilla)^0.5)/A2stdlife)) -> 0 | AH96: =IF(A2stdlife="n/a","n/a",IF(AH$3>(A2stdlife+$E96),(Input!$L$144*(1+rvanilla)^0.5)-SUM($L96:AG96),(Input!$L$144*(1+rvanilla)^0.5)/A2stdlife)) -> 0 | AI96: =IF(A2stdlife="n/a","n/a",IF(AI$3>(A2stdlife+$E96),(Input!$L$144*(1+rvanilla)^0.5)-SUM($L96:AH96),(Input!$L$144*(1+rvanilla)^0.5)/A2stdlife)) -> 0 | AJ96: =IF(A2stdlife="n/a","n/a",IF(AJ$3>(A2stdlife+$E96),(Input!$L$144*(1+rvanilla)^0.5)-SUM($L96:AI96),(Input!$L$144*(1+rvanilla)^0.5)/A2stdlife)) -> 0 | AK96: =IF(A2stdlife="n/a","n/a",IF(AK$3>(A2stdlife+$E96),(Input!$L$144*(1+rvanilla)^0.5)-SUM($L96:AJ96),(Input!$L$144*(1+rvanilla)^0.5)/A2stdlife)) -> 0 | AL96: =IF(A2stdlife="n/a","n/a",IF(AL$3>(A2stdlife+$E96),(Input!$L$144*(1+rvanilla)^0.5)-SUM($L96:AK96),(Input!$L$144*(1+rvanilla)^0.5)/A2stdlife)) -> 0 | AM96: =IF(A2stdlife="n/a","n/a",IF(AM$3>(A2stdlife+$E96),(Input!$L$144*(1+rvanilla)^0.5)-SUM($L96:AL96),(Input!$L$144*(1+rvanilla)^0.5)/A2stdlife)) -> 0 | AN96: =IF(A2stdlife="n/a","n/a",IF(AN$3>(A2stdlife+$E96),(Input!$L$144*(1+rvanilla)^0.5)-SUM($L96:AM96),(Input!$L$144*(1+rvanilla)^0.5)/A2stdlife)) -> 0 | AO96: =IF(A2stdlife="n/a","n/a",IF(AO$3>(A2stdlife+$E96),(Input!$L$144*(1+rvanilla)^0.5)-SUM($L96:AN96),(Input!$L$144*(1+rvanilla)^0.5)/A2stdlife)) -> 0 | AP96: =IF(A2stdlife="n/a","n/a",IF(AP$3>(A2stdlife+$E96),(Input!$L$144*(1+rvanilla)^0.5)-SUM($L96:AO96),(Input!$L$144*(1+rvanilla)^0.5)/A2stdlife)) -> 0 | AQ96: =IF(A2stdlife="n/a","n/a",IF(AQ$3>(A2stdlife+$E96),(Input!$L$144*(1+rvanilla)^0.5)-SUM($L96:AP96),(Input!$L$144*(1+rvanilla)^0.5)/A2stdlife)) -> 0 | AR96: =IF(A2stdlife="n/a","n/a",IF(AR$3>(A2stdlife+$E96),(Input!$L$144*(1+rvanilla)^0.5)-SUM($L96:AQ96),(Input!$L$144*(1+rvanilla)^0.5)/A2stdlife)) -> 0 | AS96: =IF(A2stdlife="n/a","n/a",IF(AS$3>(A2stdlife+$E96),(Input!$L$144*(1+rvanilla)^0.5)-SUM($L96:AR96),(Input!$L$144*(1+rvanilla)^0.5)/A2stdlife)) -> 0 | AT96: =IF(A2stdlife="n/a","n/a",IF(AT$3>(A2stdlife+$E96),(Input!$L$144*(1+rvanilla)^0.5)-SUM($L96:AS96),(Input!$L$144*(1+rvanilla)^0.5)/A2stdlife)) -> 0 | AU96: =IF(A2stdlife="n/a","n/a",IF(AU$3>(A2stdlife+$E96),(Input!$L$144*(1+rvanilla)^0.5)-SUM($L96:AT96),(Input!$L$144*(1+rvanilla)^0.5)/A2stdlife)) -> 0 | AV96: =IF(A2stdlife="n/a","n/a",IF(AV$3>(A2stdlife+$E96),(Input!$L$144*(1+rvanilla)^0.5)-SUM($L96:AU96),(Input!$L$144*(1+rvanilla)^0.5)/A2stdlife)) -> 0 | AW96: =IF(A2stdlife="n/a","n/a",IF(AW$3>(A2stdlife+$E96),(Input!$L$144*(1+rvanilla)^0.5)-SUM($L96:AV96),(Input!$L$144*(1+rvanilla)^0.5)/A2stdlife)) -> 0 | AX96: =IF(A2stdlife="n/a","n/a",IF(AX$3>(A2stdlife+$E96),(Input!$L$144*(1+rvanilla)^0.5)-SUM($L96:AW96),(Input!$L$144*(1+rvanilla)^0.5)/A2stdlife)) -> 0 | AY96: =IF(A2stdlife="n/a","n/a",IF(AY$3>(A2stdlife+$E96),(Input!$L$144*(1+rvanilla)^0.5)-SUM($L96:AX96),(Input!$L$144*(1+rvanilla)^0.5)/A2stdlife)) -> 0 | AZ96: =IF(A2stdlife="n/a","n/a",IF(AZ$3>(A2stdlife+$E96),(Input!$L$144*(1+rvanilla)^0.5)-SUM($L96:AY96),(Input!$L$144*(1+rvanilla)^0.5)/A2stdlife)) -> 0 | BA96: =IF(A2stdlife="n/a","n/a",IF(BA$3>(A2stdlife+$E96),(Input!$L$144*(1+rvanilla)^0.5)-SUM($L96:AZ96),(Input!$L$144*(1+rvanilla)^0.5)/A2stdlife)) -> 0 | BB96: =IF(A2stdlife="n/a","n/a",IF(BB$3>(A2stdlife+$E96),(Input!$L$144*(1+rvanilla)^0.5)-SUM($L96:BA96),(Input!$L$144*(1+rvanilla)^0.5)/A2stdlife)) -> 0 | BC96: =IF(A2stdlife="n/a","n/a",IF(BC$3>(A2stdlife+$E96),(Input!$L$144*(1+rvanilla)^0.5)-SUM($L96:BB96),(Input!$L$144*(1+rvanilla)^0.5)/A2stdlife)) -> 0 | BD96: =IF(A2stdlife="n/a","n/a",IF(BD$3>(A2stdlife+$E96),(Input!$L$144*(1+rvanilla)^0.5)-SUM($L96:BC96),(Input!$L$144*(1+rvanilla)^0.5)/A2stdlife)) -> 0 | BE96: =IF(A2stdlife="n/a","n/a",IF(BE$3>(A2stdlife+$E96),(Input!$L$144*(1+rvanilla)^0.5)-SUM($L96:BD96),(Input!$L$144*(1+rvanilla)^0.5)/A2stdlife)) -> 0 | BF96: =IF(A2stdlife="n/a","n/a",IF(BF$3>(A2stdlife+$E96),(Input!$L$144*(1+rvanilla)^0.5)-SUM($L96:BE96),(Input!$L$144*(1+rvanilla)^0.5)/A2stdlife)) -> 0 | BG96: =IF(A2stdlife="n/a","n/a",IF(BG$3>(A2stdlife+$E96),(Input!$L$144*(1+rvanilla)^0.5)-SUM($L96:BF96),(Input!$L$144*(1+rvanilla)^0.5)/A2stdlife)) -> 0 | BH96: =IF(A2stdlife="n/a","n/a",IF(BH$3>(A2stdlife+$E96),(Input!$L$144*(1+rvanilla)^0.5)-SUM($L96:BG96),(Input!$L$144*(1+rvanilla)^0.5)/A2stdlife)) -> 0 | BI96: =IF(A2stdlife="n/a","n/a",IF(BI$3>(A2stdlife+$E96),(Input!$L$144*(1+rvanilla)^0.5)-SUM($L96:BH96),(Input!$L$144*(1+rvanilla)^0.5)/A2stdlife)) -> 0
E97: 7 | N97: =IF(A2stdlife="n/a","n/a",IF(N$3>(A2stdlife+$E97),(Input!$M$144*(1+rvanilla)^0.5)-SUM($M97:M97),(Input!$M$144*(1+rvanilla)^0.5)/A2stdlife)) -> 0 | O97: =IF(A2stdlife="n/a","n/a",IF(O$3>(A2stdlife+$E97),(Input!$M$144*(1+rvanilla)^0.5)-SUM($M97:N97),(Input!$M$144*(1+rvanilla)^0.5)/A2stdlife)) -> 0 | P97: =IF(A2stdlife="n/a","n/a",IF(P$3>(A2stdlife+$E97),(Input!$M$144*(1+rvanilla)^0.5)-SUM($M97:O97),(Input!$M$144*(1+rvanilla)^0.5)/A2stdlife)) -> 0 | Q97: =IF(A2stdlife="n/a","n/a",IF(Q$3>(A2stdlife+$E97),(Input!$M$144*(1+rvanilla)^0.5)-SUM($M97:P97),(Input!$M$144*(1+rvanilla)^0.5)/A2stdlife)) -> 0 | R97: =IF(A2stdlife="n/a","n/a",IF(R$3>(A2stdlife+$E97),(Input!$M$144*(1+rvanilla)^0.5)-SUM($M97:Q97),(Input!$M$144*(1+rvanilla)^0.5)/A2stdlife)) -> 0 | S97: =IF(A2stdlife="n/a","n/a",IF(S$3>(A2stdlife+$E97),(Input!$M$144*(1+rvanilla)^0.5)-SUM($M97:R97),(Input!$M$144*(1+rvanilla)^0.5)/A2stdlife)) -> 0 | T97: =IF(A2stdlife="n/a","n/a",IF(T$3>(A2stdlife+$E97),(Input!$M$144*(1+rvanilla)^0.5)-SUM($M97:S97),(Input!$M$144*(1+rvanilla)^0.5)/A2stdlife)) -> 0 | U97: =IF(A2stdlife="n/a","n/a",IF(U$3>(A2stdlife+$E97),(Input!$M$144*(1+rvanilla)^0.5)-SUM($M97:T97),(Input!$M$144*(1+rvanilla)^0.5)/A2stdlife)) -> 0 | V97: =IF(A2stdlife="n/a","n/a",IF(V$3>(A2stdlife+$E97),(Input!$M$144*(1+rvanilla)^0.5)-SUM($M97:U97),(Input!$M$144*(1+rvanilla)^0.5)/A2stdlife)) -> 0 | W97: =IF(A2stdlife="n/a","n/a",IF(W$3>(A2stdlife+$E97),(Input!$M$144*(1+rvanilla)^0.5)-SUM($M97:V97),(Input!$M$144*(1+rvanilla)^0.5)/A2stdlife)) -> 0 | X97: =IF(A2stdlife="n/a","n/a",IF(X$3>(A2stdlife+$E97),(Input!$M$144*(1+rvanilla)^0.5)-SUM($M97:W97),(Input!$M$144*(1+rvanilla)^0.5)/A2stdlife)) -> 0 | Y97: =IF(A2stdlife="n/a","n/a",IF(Y$3>(A2stdlife+$E97),(Input!$M$144*(1+rvanilla)^0.5)-SUM($M97:X97),(Input!$M$144*(1+rvanilla)^0.5)/A2stdlife)) -> 0 | Z97: =IF(A2stdlife="n/a","n/a",IF(Z$3>(A2stdlife+$E97),(Input!$M$144*(1+rvanilla)^0.5)-SUM($M97:Y97),(Input!$M$144*(1+rvanilla)^0.5)/A2stdlife)) -> 0 | AA97: =IF(A2stdlife="n/a","n/a",IF(AA$3>(A2stdlife+$E97),(Input!$M$144*(1+rvanilla)^0.5)-SUM($M97:Z97),(Input!$M$144*(1+rvanilla)^0.5)/A2stdlife)) -> 0 | AB97: =IF(A2stdlife="n/a","n/a",IF(AB$3>(A2stdlife+$E97),(Input!$M$144*(1+rvanilla)^0.5)-SUM($M97:AA97),(Input!$M$144*(1+rvanilla)^0.5)/A2stdlife)) -> 0 | AC97: =IF(A2stdlife="n/a","n/a",IF(AC$3>(A2stdlife+$E97),(Input!$M$144*(1+rvanilla)^0.5)-SUM($M97:AB97),(Input!$M$144*(1+rvanilla)^0.5)/A2stdlife)) -> 0 | AD97: =IF(A2stdlife="n/a","n/a",IF(AD$3>(A2stdlife+$E97),(Input!$M$144*(1+rvanilla)^0.5)-SUM($M97:AC97),(Input!$M$144*(1+rvanilla)^0.5)/A2stdlife)) -> 0 | AE97: =IF(A2stdlife="n/a","n/a",IF(AE$3>(A2stdlife+$E97),(Input!$M$144*(1+rvanilla)^0.5)-SUM($M97:AD97),(Input!$M$144*(1+rvanilla)^0.5)/A2stdlife)) -> 0 | AF97: =IF(A2stdlife="n/a","n/a",IF(AF$3>(A2stdlife+$E97),(Input!$M$144*(1+rvanilla)^0.5)-SUM($M97:AE97),(Input!$M$144*(1+rvanilla)^0.5)/A2stdlife)) -> 0 | AG97: =IF(A2stdlife="n/a","n/a",IF(AG$3>(A2stdlife+$E97),(Input!$M$144*(1+rvanilla)^0.5)-SUM($M97:AF97),(Input!$M$144*(1+rvanilla)^0.5)/A2stdlife)) -> 0 | AH97: =IF(A2stdlife="n/a","n/a",IF(AH$3>(A2stdlife+$E97),(Input!$M$144*(1+rvanilla)^0.5)-SUM($M97:AG97),(Input!$M$144*(1+rvanilla)^0.5)/A2stdlife)) -> 0 | AI97: =IF(A2stdlife="n/a","n/a",IF(AI$3>(A2stdlife+$E97),(Input!$M$144*(1+rvanilla)^0.5)-SUM($M97:AH97),(Input!$M$144*(1+rvanilla)^0.5)/A2stdlife)) -> 0 | AJ97: =IF(A2stdlife="n/a","n/a",IF(AJ$3>(A2stdlife+$E97),(Input!$M$144*(1+rvanilla)^0.5)-SUM($M97:AI97),(Input!$M$144*(1+rvanilla)^0.5)/A2stdlife)) -> 0 | AK97: =IF(A2stdlife="n/a","n/a",IF(AK$3>(A2stdlife+$E97),(Input!$M$144*(1+rvanilla)^0.5)-SUM($M97:AJ97),(Input!$M$144*(1+rvanilla)^0.5)/A2stdlife)) -> 0 | AL97: =IF(A2stdlife="n/a","n/a",IF(AL$3>(A2stdlife+$E97),(Input!$M$144*(1+rvanilla)^0.5)-SUM($M97:AK97),(Input!$M$144*(1+rvanilla)^0.5)/A2stdlife)) -> 0 | AM97: =IF(A2stdlife="n/a","n/a",IF(AM$3>(A2stdlife+$E97),(Input!$M$144*(1+rvanilla)^0.5)-SUM($M97:AL97),(Input!$M$144*(1+rvanilla)^0.5)/A2stdlife)) -> 0 | AN97: =IF(A2stdlife="n/a","n/a",IF(AN$3>(A2stdlife+$E97),(Input!$M$144*(1+rvanilla)^0.5)-SUM($M97:AM97),(Input!$M$144*(1+rvanilla)^0.5)/A2stdlife)) -> 0 | AO97: =IF(A2stdlife="n/a","n/a",IF(AO$3>(A2stdlife+$E97),(Input!$M$144*(1+rvanilla)^0.5)-SUM($M97:AN97),(Input!$M$144*(1+rvanilla)^0.5)/A2stdlife)) -> 0 | AP97: =IF(A2stdlife="n/a","n/a",IF(AP$3>(A2stdlife+$E97),(Input!$M$144*(1+rvanilla)^0.5)-SUM($M97:AO97),(Input!$M$144*(1+rvanilla)^0.5)/A2stdlife)) -> 0 | AQ97: =IF(A2stdlife="n/a","n/a",IF(AQ$3>(A2stdlife+$E97),(Input!$M$144*(1+rvanilla)^0.5)-SUM($M97:AP97),(Input!$M$144*(1+rvanilla)^0.5)/A2stdlife)) -> 0 | AR97: =IF(A2stdlife="n/a","n/a",IF(AR$3>(A2stdlife+$E97),(Input!$M$144*(1+rvanilla)^0.5)-SUM($M97:AQ97),(Input!$M$144*(1+rvanilla)^0.5)/A2stdlife)) -> 0 | AS97: =IF(A2stdlife="n/a","n/a",IF(AS$3>(A2stdlife+$E97),(Input!$M$144*(1+rvanilla)^0.5)-SUM($M97:AR97),(Input!$M$144*(1+rvanilla)^0.5)/A2stdlife)) -> 0 | AT97: =IF(A2stdlife="n/a","n/a",IF(AT$3>(A2stdlife+$E97),(Input!$M$144*(1+rvanilla)^0.5)-SUM($M97:AS97),(Input!$M$144*(1+rvanilla)^0.5)/A2stdlife)) -> 0 | AU97: =IF(A2stdlife="n/a","n/a",IF(AU$3>(A2stdlife+$E97),(Input!$M$144*(1+rvanilla)^0.5)-SUM($M97:AT97),(Input!$M$144*(1+rvanilla)^0.5)/A2stdlife)) -> 0 | AV97: =IF(A2stdlife="n/a","n/a",IF(AV$3>(A2stdlife+$E97),(Input!$M$144*(1+rvanilla)^0.5)-SUM($M97:AU97),(Input!$M$144*(1+rvanilla)^0.5)/A2stdlife)) -> 0 | AW97: =IF(A2stdlife="n/a","n/a",IF(AW$3>(A2stdlife+$E97),(Input!$M$144*(1+rvanilla)^0.5)-SUM($M97:AV97),(Input!$M$144*(1+rvanilla)^0.5)/A2stdlife)) -> 0 | AX97: =IF(A2stdlife="n/a","n/a",IF(AX$3>(A2stdlife+$E97),(Input!$M$144*(1+rvanilla)^0.5)-SUM($M97:AW97),(Input!$M$144*(1+rvanilla)^0.5)/A2stdlife)) -> 0 | AY97: =IF(A2stdlife="n/a","n/a",IF(AY$3>(A2stdlife+$E97),(Input!$M$144*(1+rvanilla)^0.5)-SUM($M97:AX97),(Input!$M$144*(1+rvanilla)^0.5)/A2stdlife)) -> 0 | AZ97: =IF(A2stdlife="n/a","n/a",IF(AZ$3>(A2stdlife+$E97),(Input!$M$144*(1+rvanilla)^0.5)-SUM($M97:AY97),(Input!$M$144*(1+rvanilla)^0.5)/A2stdlife)) -> 0 | BA97: =IF(A2stdlife="n/a","n/a",IF(BA$3>(A2stdlife+$E97),(Input!$M$144*(1+rvanilla)^0.5)-SUM($M97:AZ97),(Input!$M$144*(1+rvanilla)^0.5)/A2stdlife)) -> 0 | BB97: =IF(A2stdlife="n/a","n/a",IF(BB$3>(A2stdlife+$E97),(Input!$M$144*(1+rvanilla)^0.5)-SUM($M97:BA97),(Input!$M$144*(1+rvanilla)^0.5)/A2stdlife)) -> 0 | BC97: =IF(A2stdlife="n/a","n/a",IF(BC$3>(A2stdlife+$E97),(Input!$M$144*(1+rvanilla)^0.5)-SUM($M97:BB97),(Input!$M$144*(1+rvanilla)^0.5)/A2stdlife)) -> 0 | BD97: =IF(A2stdlife="n/a","n/a",IF(BD$3>(A2stdlife+$E97),(Input!$M$144*(1+rvanilla)^0.5)-SUM($M97:BC97),(Input!$M$144*(1+rvanilla)^0.5)/A2stdlife)) -> 0 | BE97: =IF(A2stdlife="n/a","n/a",IF(BE$3>(A2stdlife+$E97),(Input!$M$144*(1+rvanilla)^0.5)-SUM($M97:BD97),(Input!$M$144*(1+rvanilla)^0.5)/A2stdlife)) -> 0 | BF97: =IF(A2stdlife="n/a","n/a",IF(BF$3>(A2stdlife+$E97),(Input!$M$144*(1+rvanilla)^0.5)-SUM($M97:BE97),(Input!$M$144*(1+rvanilla)^0.5)/A2stdlife)) -> 0 | BG97: =IF(A2stdlife="n/a","n/a",IF(BG$3>(A2stdlife+$E97),(Input!$M$144*(1+rvanilla)^0.5)-SUM($M97:BF97),(Input!$M$144*(1+rvanilla)^0.5)/A2stdlife)) -> 0 | BH97: =IF(A2stdlife="n/a","n/a",IF(BH$3>(A2stdlife+$E97),(Input!$M$144*(1+rvanilla)^0.5)-SUM($M97:BG97),(Input!$M$144*(1+rvanilla)^0.5)/A2stdlife)) -> 0 | BI97: =IF(A2stdlife="n/a","n/a",IF(BI$3>(A2stdlife+$E97),(Input!$M$144*(1+rvanilla)^0.5)-SUM($M97:BH97),(Input!$M$144*(1+rvanilla)^0.5)/A2stdlife)) -> 0
E98: 8 | O98: =IF(A2stdlife="n/a","n/a",IF(O$3>(A2stdlife+$E98),(Input!$N$144*(1+rvanilla)^0.5)-SUM($N98:N98),(Input!$N$144*(1+rvanilla)^0.5)/A2stdlife)) -> 0 | P98: =IF(A2stdlife="n/a","n/a",IF(P$3>(A2stdlife+$E98),(Input!$N$144*(1+rvanilla)^0.5)-SUM($N98:O98),(Input!$N$144*(1+rvanilla)^0.5)/A2stdlife)) -> 0 | Q98: =IF(A2stdlife="n/a","n/a",IF(Q$3>(A2stdlife+$E98),(Input!$N$144*(1+rvanilla)^0.5)-SUM($N98:P98),(Input!$N$144*(1+rvanilla)^0.5)/A2stdlife)) -> 0 | R98: =IF(A2stdlife="n/a","n/a",IF(R$3>(A2stdlife+$E98),(Input!$N$144*(1+rvanilla)^0.5)-SUM($N98:Q98),(Input!$N$144*(1+rvanilla)^0.5)/A2stdlife)) -> 0 | S98: =IF(A2stdlife="n/a","n/a",IF(S$3>(A2stdlife+$E98),(Input!$N$144*(1+rvanilla)^0.5)-SUM($N98:R98),(Input!$N$144*(1+rvanilla)^0.5)/A2stdlife)) -> 0 | T98: =IF(A2stdlife="n/a","n/a",IF(T$3>(A2stdlife+$E98),(Input!$N$144*(1+rvanilla)^0.5)-SUM($N98:S98),(Input!$N$144*(1+rvanilla)^0.5)/A2stdlife)) -> 0 | U98: =IF(A2stdlife="n/a","n/a",IF(U$3>(A2stdlife+$E98),(Input!$N$144*(1+rvanilla)^0.5)-SUM($N98:T98),(Input!$N$144*(1+rvanilla)^0.5)/A2stdlife)) -> 0 | V98: =IF(A2stdlife="n/a","n/a",IF(V$3>(A2stdlife+$E98),(Input!$N$144*(1+rvanilla)^0.5)-SUM($N98:U98),(Input!$N$144*(1+rvanilla)^0.5)/A2stdlife)) -> 0 | W98: =IF(A2stdlife="n/a","n/a",IF(W$3>(A2stdlife+$E98),(Input!$N$144*(1+rvanilla)^0.5)-SUM($N98:V98),(Input!$N$144*(1+rvanilla)^0.5)/A2stdlife)) -> 0 | X98: =IF(A2stdlife="n/a","n/a",IF(X$3>(A2stdlife+$E98),(Input!$N$144*(1+rvanilla)^0.5)-SUM($N98:W98),(Input!$N$144*(1+rvanilla)^0.5)/A2stdlife)) -> 0 | Y98: =IF(A2stdlife="n/a","n/a",IF(Y$3>(A2stdlife+$E98),(Input!$N$144*(1+rvanilla)^0.5)-SUM($N98:X98),(Input!$N$144*(1+rvanilla)^0.5)/A2stdlife)) -> 0 | Z98: =IF(A2stdlife="n/a","n/a",IF(Z$3>(A2stdlife+$E98),(Input!$N$144*(1+rvanilla)^0.5)-SUM($N98:Y98),(Input!$N$144*(1+rvanilla)^0.5)/A2stdlife)) -> 0 | AA98: =IF(A2stdlife="n/a","n/a",IF(AA$3>(A2stdlife+$E98),(Input!$N$144*(1+rvanilla)^0.5)-SUM($N98:Z98),(Input!$N$144*(1+rvanilla)^0.5)/A2stdlife)) -> 0 | AB98: =IF(A2stdlife="n/a","n/a",IF(AB$3>(A2stdlife+$E98),(Input!$N$144*(1+rvanilla)^0.5)-SUM($N98:AA98),(Input!$N$144*(1+rvanilla)^0.5)/A2stdlife)) -> 0 | AC98: =IF(A2stdlife="n/a","n/a",IF(AC$3>(A2stdlife+$E98),(Input!$N$144*(1+rvanilla)^0.5)-SUM($N98:AB98),(Input!$N$144*(1+rvanilla)^0.5)/A2stdlife)) -> 0 | AD98: =IF(A2stdlife="n/a","n/a",IF(AD$3>(A2stdlife+$E98),(Input!$N$144*(1+rvanilla)^0.5)-SUM($N98:AC98),(Input!$N$144*(1+rvanilla)^0.5)/A2stdlife)) -> 0 | AE98: =IF(A2stdlife="n/a","n/a",IF(AE$3>(A2stdlife+$E98),(Input!$N$144*(1+rvanilla)^0.5)-SUM($N98:AD98),(Input!$N$144*(1+rvanilla)^0.5)/A2stdlife)) -> 0 | AF98: =IF(A2stdlife="n/a","n/a",IF(AF$3>(A2stdlife+$E98),(Input!$N$144*(1+rvanilla)^0.5)-SUM($N98:AE98),(Input!$N$144*(1+rvanilla)^0.5)/A2stdlife)) -> 0 | AG98: =IF(A2stdlife="n/a","n/a",IF(AG$3>(A2stdlife+$E98),(Input!$N$144*(1+rvanilla)^0.5)-SUM($N98:AF98),(Input!$N$144*(1+rvanilla)^0.5)/A2stdlife)) -> 0 | AH98: =IF(A2stdlife="n/a","n/a",IF(AH$3>(A2stdlife+$E98),(Input!$N$144*(1+rvanilla)^0.5)-SUM($N98:AG98),(Input!$N$144*(1+rvanilla)^0.5)/A2stdlife)) -> 0 | AI98: =IF(A2stdlife="n/a","n/a",IF(AI$3>(A2stdlife+$E98),(Input!$N$144*(1+rvanilla)^0.5)-SUM($N98:AH98),(Input!$N$144*(1+rvanilla)^0.5)/A2stdlife)) -> 0 | AJ98: =IF(A2stdlife="n/a","n/a",IF(AJ$3>(A2stdlife+$E98),(Input!$N$144*(1+rvanilla)^0.5)-SUM($N98:AI98),(Input!$N$144*(1+rvanilla)^0.5)/A2stdlife)) -> 0 | AK98: =IF(A2stdlife="n/a","n/a",IF(AK$3>(A2stdlife+$E98),(Input!$N$144*(1+rvanilla)^0.5)-SUM($N98:AJ98),(Input!$N$144*(1+rvanilla)^0.5)/A2stdlife)) -> 0 | AL98: =IF(A2stdlife="n/a","n/a",IF(AL$3>(A2stdlife+$E98),(Input!$N$144*(1+rvanilla)^0.5)-SUM($N98:AK98),(Input!$N$144*(1+rvanilla)^0.5)/A2stdlife)) -> 0 | AM98: =IF(A2stdlife="n/a","n/a",IF(AM$3>(A2stdlife+$E98),(Input!$N$144*(1+rvanilla)^0.5)-SUM($N98:AL98),(Input!$N$144*(1+rvanilla)^0.5)/A2stdlife)) -> 0 | AN98: =IF(A2stdlife="n/a","n/a",IF(AN$3>(A2stdlife+$E98),(Input!$N$144*(1+rvanilla)^0.5)-SUM($N98:AM98),(Input!$N$144*(1+rvanilla)^0.5)/A2stdlife)) -> 0 | AO98: =IF(A2stdlife="n/a","n/a",IF(AO$3>(A2stdlife+$E98),(Input!$N$144*(1+rvanilla)^0.5)-SUM($N98:AN98),(Input!$N$144*(1+rvanilla)^0.5)/A2stdlife)) -> 0 | AP98: =IF(A2stdlife="n/a","n/a",IF(AP$3>(A2stdlife+$E98),(Input!$N$144*(1+rvanilla)^0.5)-SUM($N98:AO98),(Input!$N$144*(1+rvanilla)^0.5)/A2stdlife)) -> 0 | AQ98: =IF(A2stdlife="n/a","n/a",IF(AQ$3>(A2stdlife+$E98),(Input!$N$144*(1+rvanilla)^0.5)-SUM($N98:AP98),(Input!$N$144*(1+rvanilla)^0.5)/A2stdlife)) -> 0 | AR98: =IF(A2stdlife="n/a","n/a",IF(AR$3>(A2stdlife+$E98),(Input!$N$144*(1+rvanilla)^0.5)-SUM($N98:AQ98),(Input!$N$144*(1+rvanilla)^0.5)/A2stdlife)) -> 0 | AS98: =IF(A2stdlife="n/a","n/a",IF(AS$3>(A2stdlife+$E98),(Input!$N$144*(1+rvanilla)^0.5)-SUM($N98:AR98),(Input!$N$144*(1+rvanilla)^0.5)/A2stdlife)) -> 0 | AT98: =IF(A2stdlife="n/a","n/a",IF(AT$3>(A2stdlife+$E98),(Input!$N$144*(1+rvanilla)^0.5)-SUM($N98:AS98),(Input!$N$144*(1+rvanilla)^0.5)/A2stdlife)) -> 0 | AU98: =IF(A2stdlife="n/a","n/a",IF(AU$3>(A2stdlife+$E98),(Input!$N$144*(1+rvanilla)^0.5)-SUM($N98:AT98),(Input!$N$144*(1+rvanilla)^0.5)/A2stdlife)) -> 0 | AV98: =IF(A2stdlife="n/a","n/a",IF(AV$3>(A2stdlife+$E98),(Input!$N$144*(1+rvanilla)^0.5)-SUM($N98:AU98),(Input!$N$144*(1+rvanilla)^0.5)/A2stdlife)) -> 0 | AW98: =IF(A2stdlife="n/a","n/a",IF(AW$3>(A2stdlife+$E98),(Input!$N$144*(1+rvanilla)^0.5)-SUM($N98:AV98),(Input!$N$144*(1+rvanilla)^0.5)/A2stdlife)) -> 0 | AX98: =IF(A2stdlife="n/a","n/a",IF(AX$3>(A2stdlife+$E98),(Input!$N$144*(1+rvanilla)^0.5)-SUM($N98:AW98),(Input!$N$144*(1+rvanilla)^0.5)/A2stdlife)) -> 0 | AY98: =IF(A2stdlife="n/a","n/a",IF(AY$3>(A2stdlife+$E98),(Input!$N$144*(1+rvanilla)^0.5)-SUM($N98:AX98),(Input!$N$144*(1+rvanilla)^0.5)/A2stdlife)) -> 0 | AZ98: =IF(A2stdlife="n/a","n/a",IF(AZ$3>(A2stdlife+$E98),(Input!$N$144*(1+rvanilla)^0.5)-SUM($N98:AY98),(Input!$N$144*(1+rvanilla)^0.5)/A2stdlife)) -> 0 | BA98: =IF(A2stdlife="n/a","n/a",IF(BA$3>(A2stdlife+$E98),(Input!$N$144*(1+rvanilla)^0.5)-SUM($N98:AZ98),(Input!$N$144*(1+rvanilla)^0.5)/A2stdlife)) -> 0 | BB98: =IF(A2stdlife="n/a","n/a",IF(BB$3>(A2stdlife+$E98),(Input!$N$144*(1+rvanilla)^0.5)-SUM($N98:BA98),(Input!$N$144*(1+rvanilla)^0.5)/A2stdlife)) -> 0 | BC98: =IF(A2stdlife="n/a","n/a",IF(BC$3>(A2stdlife+$E98),(Input!$N$144*(1+rvanilla)^0.5)-SUM($N98:BB98),(Input!$N$144*(1+rvanilla)^0.5)/A2stdlife)) -> 0 | BD98: =IF(A2stdlife="n/a","n/a",IF(BD$3>(A2stdlife+$E98),(Input!$N$144*(1+rvanilla)^0.5)-SUM($N98:BC98),(Input!$N$144*(1+rvanilla)^0.5)/A2stdlife)) -> 0 | BE98: =IF(A2stdlife="n/a","n/a",IF(BE$3>(A2stdlife+$E98),(Input!$N$144*(1+rvanilla)^0.5)-SUM($N98:BD98),(Input!$N$144*(1+rvanilla)^0.5)/A2stdlife)) -> 0 | BF98: =IF(A2stdlife="n/a","n/a",IF(BF$3>(A2stdlife+$E98),(Input!$N$144*(1+rvanilla)^0.5)-SUM($N98:BE98),(Input!$N$144*(1+rvanilla)^0.5)/A2stdlife)) -> 0 | BG98: =IF(A2stdlife="n/a","n/a",IF(BG$3>(A2stdlife+$E98),(Input!$N$144*(1+rvanilla)^0.5)-SUM($N98:BF98),(Input!$N$144*(1+rvanilla)^0.5)/A2stdlife)) -> 0 | BH98: =IF(A2stdlife="n/a","n/a",IF(BH$3>(A2stdlife+$E98),(Input!$N$144*(1+rvanilla)^0.5)-SUM($N98:BG98),(Input!$N$144*(1+rvanilla)^0.5)/A2stdlife)) -> 0 | BI98: =IF(A2stdlife="n/a","n/a",IF(BI$3>(A2stdlife+$E98),(Input!$N$144*(1+rvanilla)^0.5)-SUM($N98:BH98),(Input!$N$144*(1+rvanilla)^0.5)/A2stdlife)) -> 0
E99: 9 | P99: =IF(A2stdlife="n/a","n/a",IF(P$3>(A2stdlife+$E99),(Input!$O$144*(1+rvanilla)^0.5)-SUM($O99:O99),(Input!$O$144*(1+rvanilla)^0.5)/A2stdlife)) -> 0 | Q99: =IF(A2stdlife="n/a","n/a",IF(Q$3>(A2stdlife+$E99),(Input!$O$144*(1+rvanilla)^0.5)-SUM($O99:P99),(Input!$O$144*(1+rvanilla)^0.5)/A2stdlife)) -> 0 | R99: =IF(A2stdlife="n/a","n/a",IF(R$3>(A2stdlife+$E99),(Input!$O$144*(1+rvanilla)^0.5)-SUM($O99:Q99),(Input!$O$144*(1+rvanilla)^0.5)/A2stdlife)) -> 0 | S99: =IF(A2stdlife="n/a","n/a",IF(S$3>(A2stdlife+$E99),(Input!$O$144*(1+rvanilla)^0.5)-SUM($O99:R99),(Input!$O$144*(1+rvanilla)^0.5)/A2stdlife)) -> 0 | T99: =IF(A2stdlife="n/a","n/a",IF(T$3>(A2stdlife+$E99),(Input!$O$144*(1+rvanilla)^0.5)-SUM($O99:S99),(Input!$O$144*(1+rvanilla)^0.5)/A2stdlife)) -> 0 | U99: =IF(A2stdlife="n/a","n/a",IF(U$3>(A2stdlife+$E99),(Input!$O$144*(1+rvanilla)^0.5)-SUM($O99:T99),(Input!$O$144*(1+rvanilla)^0.5)/A2stdlife)) -> 0 | V99: =IF(A2stdlife="n/a","n/a",IF(V$3>(A2stdlife+$E99),(Input!$O$144*(1+rvanilla)^0.5)-SUM($O99:U99),(Input!$O$144*(1+rvanilla)^0.5)/A2stdlife)) -> 0 | W99: =IF(A2stdlife="n/a","n/a",IF(W$3>(A2stdlife+$E99),(Input!$O$144*(1+rvanilla)^0.5)-SUM($O99:V99),(Input!$O$144*(1+rvanilla)^0.5)/A2stdlife)) -> 0 | X99: =IF(A2stdlife="n/a","n/a",IF(X$3>(A2stdlife+$E99),(Input!$O$144*(1+rvanilla)^0.5)-SUM($O99:W99),(Input!$O$144*(1+rvanilla)^0.5)/A2stdlife)) -> 0 | Y99: =IF(A2stdlife="n/a","n/a",IF(Y$3>(A2stdlife+$E99),(Input!$O$144*(1+rvanilla)^0.5)-SUM($O99:X99),(Input!$O$144*(1+rvanilla)^0.5)/A2stdlife)) -> 0 | Z99: =IF(A2stdlife="n/a","n/a",IF(Z$3>(A2stdlife+$E99),(Input!$O$144*(1+rvanilla)^0.5)-SUM($O99:Y99),(Input!$O$144*(1+rvanilla)^0.5)/A2stdlife)) -> 0 | AA99: =IF(A2stdlife="n/a","n/a",IF(AA$3>(A2stdlife+$E99),(Input!$O$144*(1+rvanilla)^0.5)-SUM($O99:Z99),(Input!$O$144*(1+rvanilla)^0.5)/A2stdlife)) -> 0 | AB99: =IF(A2stdlife="n/a","n/a",IF(AB$3>(A2stdlife+$E99),(Input!$O$144*(1+rvanilla)^0.5)-SUM($O99:AA99),(Input!$O$144*(1+rvanilla)^0.5)/A2stdlife)) -> 0 | AC99: =IF(A2stdlife="n/a","n/a",IF(AC$3>(A2stdlife+$E99),(Input!$O$144*(1+rvanilla)^0.5)-SUM($O99:AB99),(Input!$O$144*(1+rvanilla)^0.5)/A2stdlife)) -> 0 | AD99: =IF(A2stdlife="n/a","n/a",IF(AD$3>(A2stdlife+$E99),(Input!$O$144*(1+rvanilla)^0.5)-SUM($O99:AC99),(Input!$O$144*(1+rvanilla)^0.5)/A2stdlife)) -> 0 | AE99: =IF(A2stdlife="n/a","n/a",IF(AE$3>(A2stdlife+$E99),(Input!$O$144*(1+rvanilla)^0.5)-SUM($O99:AD99),(Input!$O$144*(1+rvanilla)^0.5)/A2stdlife)) -> 0 | AF99: =IF(A2stdlife="n/a","n/a",IF(AF$3>(A2stdlife+$E99),(Input!$O$144*(1+rvanilla)^0.5)-SUM($O99:AE99),(Input!$O$144*(1+rvanilla)^0.5)/A2stdlife)) -> 0 | AG99: =IF(A2stdlife="n/a","n/a",IF(AG$3>(A2stdlife+$E99),(Input!$O$144*(1+rvanilla)^0.5)-SUM($O99:AF99),(Input!$O$144*(1+rvanilla)^0.5)/A2stdlife)) -> 0 | AH99: =IF(A2stdlife="n/a","n/a",IF(AH$3>(A2stdlife+$E99),(Input!$O$144*(1+rvanilla)^0.5)-SUM($O99:AG99),(Input!$O$144*(1+rvanilla)^0.5)/A2stdlife)) -> 0 | AI99: =IF(A2stdlife="n/a","n/a",IF(AI$3>(A2stdlife+$E99),(Input!$O$144*(1+rvanilla)^0.5)-SUM($O99:AH99),(Input!$O$144*(1+rvanilla)^0.5)/A2stdlife)) -> 0 | AJ99: =IF(A2stdlife="n/a","n/a",IF(AJ$3>(A2stdlife+$E99),(Input!$O$144*(1+rvanilla)^0.5)-SUM($O99:AI99),(Input!$O$144*(1+rvanilla)^0.5)/A2stdlife)) -> 0 | AK99: =IF(A2stdlife="n/a","n/a",IF(AK$3>(A2stdlife+$E99),(Input!$O$144*(1+rvanilla)^0.5)-SUM($O99:AJ99),(Input!$O$144*(1+rvanilla)^0.5)/A2stdlife)) -> 0 | AL99: =IF(A2stdlife="n/a","n/a",IF(AL$3>(A2stdlife+$E99),(Input!$O$144*(1+rvanilla)^0.5)-SUM($O99:AK99),(Input!$O$144*(1+rvanilla)^0.5)/A2stdlife)) -> 0 | AM99: =IF(A2stdlife="n/a","n/a",IF(AM$3>(A2stdlife+$E99),(Input!$O$144*(1+rvanilla)^0.5)-SUM($O99:AL99),(Input!$O$144*(1+rvanilla)^0.5)/A2stdlife)) -> 0 | AN99: =IF(A2stdlife="n/a","n/a",IF(AN$3>(A2stdlife+$E99),(Input!$O$144*(1+rvanilla)^0.5)-SUM($O99:AM99),(Input!$O$144*(1+rvanilla)^0.5)/A2stdlife)) -> 0 | AO99: =IF(A2stdlife="n/a","n/a",IF(AO$3>(A2stdlife+$E99),(Input!$O$144*(1+rvanilla)^0.5)-SUM($O99:AN99),(Input!$O$144*(1+rvanilla)^0.5)/A2stdlife)) -> 0 | AP99: =IF(A2stdlife="n/a","n/a",IF(AP$3>(A2stdlife+$E99),(Input!$O$144*(1+rvanilla)^0.5)-SUM($O99:AO99),(Input!$O$144*(1+rvanilla)^0.5)/A2stdlife)) -> 0 | AQ99: =IF(A2stdlife="n/a","n/a",IF(AQ$3>(A2stdlife+$E99),(Input!$O$144*(1+rvanilla)^0.5)-SUM($O99:AP99),(Input!$O$144*(1+rvanilla)^0.5)/A2stdlife)) -> 0 | AR99: =IF(A2stdlife="n/a","n/a",IF(AR$3>(A2stdlife+$E99),(Input!$O$144*(1+rvanilla)^0.5)-SUM($O99:AQ99),(Input!$O$144*(1+rvanilla)^0.5)/A2stdlife)) -> 0 | AS99: =IF(A2stdlife="n/a","n/a",IF(AS$3>(A2stdlife+$E99),(Input!$O$144*(1+rvanilla)^0.5)-SUM($O99:AR99),(Input!$O$144*(1+rvanilla)^0.5)/A2stdlife)) -> 0 | AT99: =IF(A2stdlife="n/a","n/a",IF(AT$3>(A2stdlife+$E99),(Input!$O$144*(1+rvanilla)^0.5)-SUM($O99:AS99),(Input!$O$144*(1+rvanilla)^0.5)/A2stdlife)) -> 0 | AU99: =IF(A2stdlife="n/a","n/a",IF(AU$3>(A2stdlife+$E99),(Input!$O$144*(1+rvanilla)^0.5)-SUM($O99:AT99),(Input!$O$144*(1+rvanilla)^0.5)/A2stdlife)) -> 0 | AV99: =IF(A2stdlife="n/a","n/a",IF(AV$3>(A2stdlife+$E99),(Input!$O$144*(1+rvanilla)^0.5)-SUM($O99:AU99),(Input!$O$144*(1+rvanilla)^0.5)/A2stdlife)) -> 0 | AW99: =IF(A2stdlife="n/a","n/a",IF(AW$3>(A2stdlife+$E99),(Input!$O$144*(1+rvanilla)^0.5)-SUM($O99:AV99),(Input!$O$144*(1+rvanilla)^0.5)/A2stdlife)) -> 0 | AX99: =IF(A2stdlife="n/a","n/a",IF(AX$3>(A2stdlife+$E99),(Input!$O$144*(1+rvanilla)^0.5)-SUM($O99:AW99),(Input!$O$144*(1+rvanilla)^0.5)/A2stdlife)) -> 0 | AY99: =IF(A2stdlife="n/a","n/a",IF(AY$3>(A2stdlife+$E99),(Input!$O$144*(1+rvanilla)^0.5)-SUM($O99:AX99),(Input!$O$144*(1+rvanilla)^0.5)/A2stdlife)) -> 0 | AZ99: =IF(A2stdlife="n/a","n/a",IF(AZ$3>(A2stdlife+$E99),(Input!$O$144*(1+rvanilla)^0.5)-SUM($O99:AY99),(Input!$O$144*(1+rvanilla)^0.5)/A2stdlife)) -> 0 | BA99: =IF(A2stdlife="n/a","n/a",IF(BA$3>(A2stdlife+$E99),(Input!$O$144*(1+rvanilla)^0.5)-SUM($O99:AZ99),(Input!$O$144*(1+rvanilla)^0.5)/A2stdlife)) -> 0 | BB99: =IF(A2stdlife="n/a","n/a",IF(BB$3>(A2stdlife+$E99),(Input!$O$144*(1+rvanilla)^0.5)-SUM($O99:BA99),(Input!$O$144*(1+rvanilla)^0.5)/A2stdlife)) -> 0 | BC99: =IF(A2stdlife="n/a","n/a",IF(BC$3>(A2stdlife+$E99),(Input!$O$144*(1+rvanilla)^0.5)-SUM($O99:BB99),(Input!$O$144*(1+rvanilla)^0.5)/A2stdlife)) -> 0 | BD99: =IF(A2stdlife="n/a","n/a",IF(BD$3>(A2stdlife+$E99),(Input!$O$144*(1+rvanilla)^0.5)-SUM($O99:BC99),(Input!$O$144*(1+rvanilla)^0.5)/A2stdlife)) -> 0 | BE99: =IF(A2stdlife="n/a","n/a",IF(BE$3>(A2stdlife+$E99),(Input!$O$144*(1+rvanilla)^0.5)-SUM($O99:BD99),(Input!$O$144*(1+rvanilla)^0.5)/A2stdlife)) -> 0 | BF99: =IF(A2stdlife="n/a","n/a",IF(BF$3>(A2stdlife+$E99),(Input!$O$144*(1+rvanilla)^0.5)-SUM($O99:BE99),(Input!$O$144*(1+rvanilla)^0.5)/A2stdlife)) -> 0 | BG99: =IF(A2stdlife="n/a","n/a",IF(BG$3>(A2stdlife+$E99),(Input!$O$144*(1+rvanilla)^0.5)-SUM($O99:BF99),(Input!$O$144*(1+rvanilla)^0.5)/A2stdlife)) -> 0 | BH99: =IF(A2stdlife="n/a","n/a",IF(BH$3>(A2stdlife+$E99),(Input!$O$144*(1+rvanilla)^0.5)-SUM($O99:BG99),(Input!$O$144*(1+rvanilla)^0.5)/A2stdlife)) -> 0 | BI99: =IF(A2stdlife="n/a","n/a",IF(BI$3>(A2stdlife+$E99),(Input!$O$144*(1+rvanilla)^0.5)-SUM($O99:BH99),(Input!$O$144*(1+rvanilla)^0.5)/A2stdlife)) -> 0
E100: 10 | Q100: =IF(A2stdlife="n/a","n/a",IF(Q$3>(A2stdlife+$E100),(Input!$P$144*(1+rvanilla)^0.5)-SUM($P100:P100),(Input!$P$144*(1+rvanilla)^0.5)/A2stdlife)) -> 0 | R100: =IF(A2stdlife="n/a","n/a",IF(R$3>(A2stdlife+$E100),(Input!$P$144*(1+rvanilla)^0.5)-SUM($P100:Q100),(Input!$P$144*(1+rvanilla)^0.5)/A2stdlife)) -> 0 | S100: =IF(A2stdlife="n/a","n/a",IF(S$3>(A2stdlife+$E100),(Input!$P$144*(1+rvanilla)^0.5)-SUM($P100:R100),(Input!$P$144*(1+rvanilla)^0.5)/A2stdlife)) -> 0 | T100: =IF(A2stdlife="n/a","n/a",IF(T$3>(A2stdlife+$E100),(Input!$P$144*(1+rvanilla)^0.5)-SUM($P100:S100),(Input!$P$144*(1+rvanilla)^0.5)/A2stdlife)) -> 0 | U100: =IF(A2stdlife="n/a","n/a",IF(U$3>(A2stdlife+$E100),(Input!$P$144*(1+rvanilla)^0.5)-SUM($P100:T100),(Input!$P$144*(1+rvanilla)^0.5)/A2stdlife)) -> 0 | V100: =IF(A2stdlife="n/a","n/a",IF(V$3>(A2stdlife+$E100),(Input!$P$144*(1+rvanilla)^0.5)-SUM($P100:U100),(Input!$P$144*(1+rvanilla)^0.5)/A2stdlife)) -> 0 | W100: =IF(A2stdlife="n/a","n/a",IF(W$3>(A2stdlife+$E100),(Input!$P$144*(1+rvanilla)^0.5)-SUM($P100:V100),(Input!$P$144*(1+rvanilla)^0.5)/A2stdlife)) -> 0 | X100: =IF(A2stdlife="n/a","n/a",IF(X$3>(A2stdlife+$E100),(Input!$P$144*(1+rvanilla)^0.5)-SUM($P100:W100),(Input!$P$144*(1+rvanilla)^0.5)/A2stdlife)) -> 0 | Y100: =IF(A2stdlife="n/a","n/a",IF(Y$3>(A2stdlife+$E100),(Input!$P$144*(1+rvanilla)^0.5)-SUM($P100:X100),(Input!$P$144*(1+rvanilla)^0.5)/A2stdlife)) -> 0 | Z100: =IF(A2stdlife="n/a","n/a",IF(Z$3>(A2stdlife+$E100),(Input!$P$144*(1+rvanilla)^0.5)-SUM($P100:Y100),(Input!$P$144*(1+rvanilla)^0.5)/A2stdlife)) -> 0 | AA100: =IF(A2stdlife="n/a","n/a",IF(AA$3>(A2stdlife+$E100),(Input!$P$144*(1+rvanilla)^0.5)-SUM($P100:Z100),(Input!$P$144*(1+rvanilla)^0.5)/A2stdlife)) -> 0 | AB100: =IF(A2stdlife="n/a","n/a",IF(AB$3>(A2stdlife+$E100),(Input!$P$144*(1+rvanilla)^0.5)-SUM($P100:AA100),(Input!$P$144*(1+rvanilla)^0.5)/A2stdlife)) -> 0 | AC100: =IF(A2stdlife="n/a","n/a",IF(AC$3>(A2stdlife+$E100),(Input!$P$144*(1+rvanilla)^0.5)-SUM($P100:AB100),(Input!$P$144*(1+rvanilla)^0.5)/A2stdlife)) -> 0 | AD100: =IF(A2stdlife="n/a","n/a",IF(AD$3>(A2stdlife+$E100),(Input!$P$144*(1+rvanilla)^0.5)-SUM($P100:AC100),(Input!$P$144*(1+rvanilla)^0.5)/A2stdlife)) -> 0 | AE100: =IF(A2stdlife="n/a","n/a",IF(AE$3>(A2stdlife+$E100),(Input!$P$144*(1+rvanilla)^0.5)-SUM($P100:AD100),(Input!$P$144*(1+rvanilla)^0.5)/A2stdlife)) -> 0 | AF100: =IF(A2stdlife="n/a","n/a",IF(AF$3>(A2stdlife+$E100),(Input!$P$144*(1+rvanilla)^0.5)-SUM($P100:AE100),(Input!$P$144*(1+rvanilla)^0.5)/A2stdlife)) -> 0 | AG100: =IF(A2stdlife="n/a","n/a",IF(AG$3>(A2stdlife+$E100),(Input!$P$144*(1+rvanilla)^0.5)-SUM($P100:AF100),(Input!$P$144*(1+rvanilla)^0.5)/A2stdlife)) -> 0 | AH100: =IF(A2stdlife="n/a","n/a",IF(AH$3>(A2stdlife+$E100),(Input!$P$144*(1+rvanilla)^0.5)-SUM($P100:AG100),(Input!$P$144*(1+rvanilla)^0.5)/A2stdlife)) -> 0 | AI100: =IF(A2stdlife="n/a","n/a",IF(AI$3>(A2stdlife+$E100),(Input!$P$144*(1+rvanilla)^0.5)-SUM($P100:AH100),(Input!$P$144*(1+rvanilla)^0.5)/A2stdlife)) -> 0 | AJ100: =IF(A2stdlife="n/a","n/a",IF(AJ$3>(A2stdlife+$E100),(Input!$P$144*(1+rvanilla)^0.5)-SUM($P100:AI100),(Input!$P$144*(1+rvanilla)^0.5)/A2stdlife)) -> 0 | AK100: =IF(A2stdlife="n/a","n/a",IF(AK$3>(A2stdlife+$E100),(Input!$P$144*(1+rvanilla)^0.5)-SUM($P100:AJ100),(Input!$P$144*(1+rvanilla)^0.5)/A2stdlife)) -> 0 | AL100: =IF(A2stdlife="n/a","n/a",IF(AL$3>(A2stdlife+$E100),(Input!$P$144*(1+rvanilla)^0.5)-SUM($P100:AK100),(Input!$P$144*(1+rvanilla)^0.5)/A2stdlife)) -> 0 | AM100: =IF(A2stdlife="n/a","n/a",IF(AM$3>(A2stdlife+$E100),(Input!$P$144*(1+rvanilla)^0.5)-SUM($P100:AL100),(Input!$P$144*(1+rvanilla)^0.5)/A2stdlife)) -> 0 | AN100: =IF(A2stdlife="n/a","n/a",IF(AN$3>(A2stdlife+$E100),(Input!$P$144*(1+rvanilla)^0.5)-SUM($P100:AM100),(Input!$P$144*(1+rvanilla)^0.5)/A2stdlife)) -> 0 | AO100: =IF(A2stdlife="n/a","n/a",IF(AO$3>(A2stdlife+$E100),(Input!$P$144*(1+rvanilla)^0.5)-SUM($P100:AN100),(Input!$P$144*(1+rvanilla)^0.5)/A2stdlife)) -> 0 | AP100: =IF(A2stdlife="n/a","n/a",IF(AP$3>(A2stdlife+$E100),(Input!$P$144*(1+rvanilla)^0.5)-SUM($P100:AO100),(Input!$P$144*(1+rvanilla)^0.5)/A2stdlife)) -> 0 | AQ100: =IF(A2stdlife="n/a","n/a",IF(AQ$3>(A2stdlife+$E100),(Input!$P$144*(1+rvanilla)^0.5)-SUM($P100:AP100),(Input!$P$144*(1+rvanilla)^0.5)/A2stdlife)) -> 0 | AR100: =IF(A2stdlife="n/a","n/a",IF(AR$3>(A2stdlife+$E100),(Input!$P$144*(1+rvanilla)^0.5)-SUM($P100:AQ100),(Input!$P$144*(1+rvanilla)^0.5)/A2stdlife)) -> 0 | AS100: =IF(A2stdlife="n/a","n/a",IF(AS$3>(A2stdlife+$E100),(Input!$P$144*(1+rvanilla)^0.5)-SUM($P100:AR100),(Input!$P$144*(1+rvanilla)^0.5)/A2stdlife)) -> 0 | AT100: =IF(A2stdlife="n/a","n/a",IF(AT$3>(A2stdlife+$E100),(Input!$P$144*(1+rvanilla)^0.5)-SUM($P100:AS100),(Input!$P$144*(1+rvanilla)^0.5)/A2stdlife)) -> 0 | AU100: =IF(A2stdlife="n/a","n/a",IF(AU$3>(A2stdlife+$E100),(Input!$P$144*(1+rvanilla)^0.5)-SUM($P100:AT100),(Input!$P$144*(1+rvanilla)^0.5)/A2stdlife)) -> 0 | AV100: =IF(A2stdlife="n/a","n/a",IF(AV$3>(A2stdlife+$E100),(Input!$P$144*(1+rvanilla)^0.5)-SUM($P100:AU100),(Input!$P$144*(1+rvanilla)^0.5)/A2stdlife)) -> 0 | AW100: =IF(A2stdlife="n/a","n/a",IF(AW$3>(A2stdlife+$E100),(Input!$P$144*(1+rvanilla)^0.5)-SUM($P100:AV100),(Input!$P$144*(1+rvanilla)^0.5)/A2stdlife)) -> 0 | AX100: =IF(A2stdlife="n/a","n/a",IF(AX$3>(A2stdlife+$E100),(Input!$P$144*(1+rvanilla)^0.5)-SUM($P100:AW100),(Input!$P$144*(1+rvanilla)^0.5)/A2stdlife)) -> 0 | AY100: =IF(A2stdlife="n/a","n/a",IF(AY$3>(A2stdlife+$E100),(Input!$P$144*(1+rvanilla)^0.5)-SUM($P100:AX100),(Input!$P$144*(1+rvanilla)^0.5)/A2stdlife)) -> 0 | AZ100: =IF(A2stdlife="n/a","n/a",IF(AZ$3>(A2stdlife+$E100),(Input!$P$144*(1+rvanilla)^0.5)-SUM($P100:AY100),(Input!$P$144*(1+rvanilla)^0.5)/A2stdlife)) -> 0 | BA100: =IF(A2stdlife="n/a","n/a",IF(BA$3>(A2stdlife+$E100),(Input!$P$144*(1+rvanilla)^0.5)-SUM($P100:AZ100),(Input!$P$144*(1+rvanilla)^0.5)/A2stdlife)) -> 0 | BB100: =IF(A2stdlife="n/a","n/a",IF(BB$3>(A2stdlife+$E100),(Input!$P$144*(1+rvanilla)^0.5)-SUM($P100:BA100),(Input!$P$144*(1+rvanilla)^0.5)/A2stdlife)) -> 0 | BC100: =IF(A2stdlife="n/a","n/a",IF(BC$3>(A2stdlife+$E100),(Input!$P$144*(1+rvanilla)^0.5)-SUM($P100:BB100),(Input!$P$144*(1+rvanilla)^0.5)/A2stdlife)) -> 0 | BD100: =IF(A2stdlife="n/a","n/a",IF(BD$3>(A2stdlife+$E100),(Input!$P$144*(1+rvanilla)^0.5)-SUM($P100:BC100),(Input!$P$144*(1+rvanilla)^0.5)/A2stdlife)) -> 0 | BE100: =IF(A2stdlife="n/a","n/a",IF(BE$3>(A2stdlife+$E100),(Input!$P$144*(1+rvanilla)^0.5)-SUM($P100:BD100),(Input!$P$144*(1+rvanilla)^0.5)/A2stdlife)) -> 0 | BF100: =IF(A2stdlife="n/a","n/a",IF(BF$3>(A2stdlife+$E100),(Input!$P$144*(1+rvanilla)^0.5)-SUM($P100:BE100),(Input!$P$144*(1+rvanilla)^0.5)/A2stdlife)) -> 0 | BG100: =IF(A2stdlife="n/a","n/a",IF(BG$3>(A2stdlife+$E100),(Input!$P$144*(1+rvanilla)^0.5)-SUM($P100:BF100),(Input!$P$144*(1+rvanilla)^0.5)/A2stdlife)) -> 0 | BH100: =IF(A2stdlife="n/a","n/a",IF(BH$3>(A2stdlife+$E100),(Input!$P$144*(1+rvanilla)^0.5)-SUM($P100:BG100),(Input!$P$144*(1+rvanilla)^0.5)/A2stdlife)) -> 0 | BI100: =IF(A2stdlife="n/a","n/a",IF(BI$3>(A2stdlife+$E100),(Input!$P$144*(1+rvanilla)^0.5)-SUM($P100:BH100),(Input!$P$144*(1+rvanilla)^0.5)/A2stdlife)) -> 0
C101: =Asset2 -> Services | G101: =SUM(G89:G100) -> 11.90856179 | H101: =SUM(H89:H100) -> 12.16613377 | I101: 12.43442506 | J101: 12.70215219 | K101: 12.93318313 | L101: 13.1649355 | M101: 13.1649355 | N101: 13.1649355 | O101: 13.1649355 | P101: 13.1649355 | Q101: 13.1649355 | R101: 13.1649355 | S101: 13.1649355 | T101: 13.1649355 | U101: 13.1649355 | V101: 13.1649355 | W101: 13.1649355 | X101: 13.1649355 | Y101: 13.1649355 | Z101: 13.1649355 | AA101: 13.1649355 | AB101: 13.1649355 | AC101: 13.1649355 | AD101: 13.1649355 | AE101: 13.1649355 | AF101: 13.1649355 | AG101: 13.1649355 | AH101: 13.1649355 | AI101: 13.1649355 | AJ101: 13.1649355 | AK101: 8.183489622 | AL101: 1.256373718 | AM101: 1.256373718 | AN101: 1.256373718 | AO101: 1.256373718 | AP101: 1.256373718 | AQ101: 1.256373718 | AR101: 1.256373718 | AS101: 1.256373718 | AT101: 1.256373718 | AU101: 1.256373718 | AV101: 1.256373718 | AW101: 1.256373718 | AX101: 1.256373718 | AY101: 1.256373718 | AZ101: 1.256373718 | BA101: 1.256373718 | BB101: 1.256373718 | BC101: 1.256373718 | BD101: 1.256373718 | BE101: 1.256373718 | BF101: 0.9988017366 | BG101: 0.7305104433 | BH101: 0.4627833106 | BI101: 0.2317523789
B102: =C114 -> Cathodic Protection | D102: Initial Asset Base | G102: =IF(G$3>A3remlife,A3value-SUM($F102:F102),IF(A3remlife="N/A","n/a",A3value/A3remlife)) -> 0.02161792237 | H102: =IF(H$3>A3remlife,A3value-SUM($F102:G102),IF(A3remlife="N/A","n/a",A3value/A3remlife)) -> 0.02161792237 | I102: =IF(I$3>A3remlife,A3value-SUM($F102:H102),IF(A3remlife="N/A","n/a",A3value/A3remlife)) -> 0.02161792237 | J102: =IF(J$3>A3remlife,A3value-SUM($F102:I102),IF(A3remlife="N/A","n/a",A3value/A3remlife)) -> 0.02161792237 | K102: =IF(K$3>A3remlife,A3value-SUM($F102:J102),IF(A3remlife="N/A","n/a",A3value/A3remlife)) -> 0.02161792237 | L102: =IF(L$3>A3remlife,A3value-SUM($F102:K102),IF(A3remlife="N/A","n/a",A3value/A3remlife)) -> 0.02161792237 | M102: =IF(M$3>A3remlife,A3value-SUM($F102:L102),IF(A3remlife="N/A","n/a",A3value/A3remlife)) -> 0.02161792237 | N102: =IF(N$3>A3remlife,A3value-SUM($F102:M102),IF(A3remlife="N/A","n/a",A3value/A3remlife)) -> 0.02161792237 | O102: =IF(O$3>A3remlife,A3value-SUM($F102:N102),IF(A3remlife="N/A","n/a",A3value/A3remlife)) -> 0.02161792237 | P102: =IF(P$3>A3remlife,A3value-SUM($F102:O102),IF(A3remlife="N/A","n/a",A3value/A3remlife)) -> 0.02161792237 | Q102: =IF(Q$3>A3remlife,A3value-SUM($F102:P102),IF(A3remlife="N/A","n/a",A3value/A3remlife)) -> 0.02161792237 | R102: =IF(R$3>A3remlife,A3value-SUM($F102:Q102),IF(A3remlife="N/A","n/a",A3value/A3remlife)) -> 0.02161792237 | S102: =IF(S$3>A3remlife,A3value-SUM($F102:R102),IF(A3remlife="N/A","n/a",A3value/A3remlife)) -> 0.02161792237 | T102: =IF(T$3>A3remlife,A3value-SUM($F102:S102),IF(A3remlife="N/A","n/a",A3value/A3remlife)) -> 0.02161792237 | U102: =IF(U$3>A3remlife,A3value-SUM($F102:T102),IF(A3remlife="N/A","n/a",A3value/A3remlife)) -> 0.02161792237 | V102: =IF(V$3>A3remlife,A3value-SUM($F102:U102),IF(A3remlife="N/A","n/a",A3value/A3remlife)) -> 0.02161792237 | W102: =IF(W$3>A3remlife,A3value-SUM($F102:V102),IF(A3remlife="N/A","n/a",A3value/A3remlife)) -> 0.02161792237 | X102: =IF(X$3>A3remlife,A3value-SUM($F102:W102),IF(A3remlife="N/A","n/a",A3value/A3remlife)) -> 0.02161792237 | Y102: =IF(Y$3>A3remlife,A3value-SUM($F102:X102),IF(A3remlife="N/A","n/a",A3value/A3remlife)) -> 0.02161792237 | Z102: =IF(Z$3>A3remlife,A3value-SUM($F102:Y102),IF(A3remlife="N/A","n/a",A3value/A3remlife)) -> 0.02161792237 | AA102: =IF(AA$3>A3remlife,A3value-SUM($F102:Z102),IF(A3remlife="N/A","n/a",A3value/A3remlife)) -> 0.02161792237 | AB102: =IF(AB$3>A3remlife,A3value-SUM($F102:AA102),IF(A3remlife="N/A","n/a",A3value/A3remlife)) -> 0.02161792237 | AC102: =IF(AC$3>A3remlife,A3value-SUM($F102:AB102),IF(A3remlife="N/A","n/a",A3value/A3remlife)) -> 0.02161792237 | AD102: =IF(AD$3>A3remlife,A3value-SUM($F102:AC102),IF(A3remlife="N/A","n/a",A3value/A3remlife)) -> 0.02161792237 | AE102: =IF(AE$3>A3remlife,A3value-SUM($F102:AD102),IF(A3remlife="N/A","n/a",A3value/A3remlife)) -> 0.02161792237 | AF102: =IF(AF$3>A3remlife,A3value-SUM($F102:AE102),IF(A3remlife="N/A","n/a",A3value/A3remlife)) -> 0.02161792237 | AG102: =IF(AG$3>A3remlife,A3value-SUM($F102:AF102),IF(A3remlife="N/A","n/a",A3value/A3remlife)) -> 0.02161792237 | AH102: =IF(AH$3>A3remlife,A3value-SUM($F102:AG102),IF(A3remlife="N/A","n/a",A3value/A3remlife)) -> 0.02161792237 | AI102: =IF(AI$3>A3remlife,A3value-SUM($F102:AH102),IF(A3remlife="N/A","n/a",A3value/A3remlife)) -> 0.02161792237 | AJ102: =IF(AJ$3>A3remlife,A3value-SUM($F102:AI102),IF(A3remlife="N/A","n/a",A3value/A3remlife)) -> 0.02161792237 | AK102: =IF(AK$3>A3remlife,A3value-SUM($F102:AJ102),IF(A3remlife="N/A","n/a",A3value/A3remlife)) -> 0.02161792237 | AL102: =IF(AL$3>A3remlife,A3value-SUM($F102:AK102),IF(A3remlife="N/A","n/a",A3value/A3remlife)) -> 0.02161792237 | AM102: =IF(AM$3>A3remlife,A3value-SUM($F102:AL102),IF(A3remlife="N/A","n/a",A3value/A3remlife)) -> 0.02161792237 | AN102: =IF(AN$3>A3remlife,A3value-SUM($F102:AM102),IF(A3remlife="N/A","n/a",A3value/A3remlife)) -> 0.02161792237 | AO102: =IF(AO$3>A3remlife,A3value-SUM($F102:AN102),IF(A3remlife="N/A","n/a",A3value/A3remlife)) -> 0.02161792237 | AP102: =IF(AP$3>A3remlife,A3value-SUM($F102:AO102),IF(A3remlife="N/A","n/a",A3value/A3remlife)) -> 0.02161792237 | AQ102: =IF(AQ$3>A3remlife,A3value-SUM($F102:AP102),IF(A3remlife="N/A","n/a",A3value/A3remlife)) -> 0.02161792237 | AR102: =IF(AR$3>A3remlife,A3value-SUM($F102:AQ102),IF(A3remlife="N/A","n/a",A3value/A3remlife)) -> 0.02161792237 | AS102: =IF(AS$3>A3remlife,A3value-SUM($F102:AR102),IF(A3remlife="N/A","n/a",A3value/A3remlife)) -> 0.02161792237 | AT102: =IF(AT$3>A3remlife,A3value-SUM($F102:AS102),IF(A3remlife="N/A","n/a",A3value/A3remlife)) -> 0.02161792237 | AU102: =IF(AU$3>A3remlife,A3value-SUM($F102:AT102),IF(A3remlife="N/A","n/a",A3value/A3remlife)) -> 0.02161792237 | AV102: =IF(AV$3>A3remlife,A3value-SUM($F102:AU102),IF(A3remlife="N/A","n/a",A3value/A3remlife)) -> 0.02161792237 | AW102: =IF(AW$3>A3remlife,A3value-SUM($F102:AV102),IF(A3remlife="N/A","n/a",A3value/A3remlife)) -> 0.02161792237 | AX102: =IF(AX$3>A3remlife,A3value-SUM($F102:AW102),IF(A3remlife="N/A","n/a",A3value/A3remlife)) -> 0.02161792237 | AY102: =IF(AY$3>A3remlife,A3value-SUM($F102:AX102),IF(A3remlife="N/A","n/a",A3value/A3remlife)) -> 0.02161792237 | AZ102: =IF(AZ$3>A3remlife,A3value-SUM($F102:AY102),IF(A3remlife="N/A","n/a",A3value/A3remlife)) -> 0.01185655536 | BA102: =IF(BA$3>A3remlife,A3value-SUM($F102:AZ102),IF(A3remlife="N/A","n/a",A3value/A3remlife)) -> 0 | BB102: =IF(BB$3>A3remlife,A3value-SUM($F102:BA102),IF(A3remlife="N/A","n/a",A3value/A3remlife)) -> 0 | BC102: =IF(BC$3>A3remlife,A3value-SUM($F102:BB102),IF(A3remlife="N/A","n/a",A3value/A3remlife)) -> 0 | BD102: =IF(BD$3>A3remlife,A3value-SUM($F102:BC102),IF(A3remlife="N/A","n/a",A3value/A3remlife)) -> 0 | BE102: =IF(BE$3>A3remlife,A3value-SUM($F102:BD102),IF(A3remlife="N/A","n/a",A3value/A3remlife)) -> 0 | BF102: =IF(BF$3>A3remlife,A3value-SUM($F102:BE102),IF(A3remlife="N/A","n/a",A3value/A3remlife)) -> 0 | BG102: =IF(BG$3>A3remlife,A3value-SUM($F102:BF102),IF(A3remlife="N/A","n/a",A3value/A3remlife)) -> 0 | BH102: =IF(BH$3>A3remlife,A3value-SUM($F102:BG102),IF(A3remlife="N/A","n/a",A3value/A3remlife)) -> 0 | BI102: =IF(BI$3>A3remlife,A3value-SUM($F102:BH102),IF(A3remlife="N/A","n/a",A3value/A3remlife)) -> 0
D103: Capex | E103: 0
E104: 1 | H104: =IF(A3stdlife="n/a","n/a",IF(H$3>(A3stdlife+$E104),(Input!$G$145*(1+rvanilla)^0.5)-SUM($G104:G104),(Input!$G$145*(1+rvanilla)^0.5)/A3stdlife)) -> 0.003783101889 | I104: =IF(A3stdlife="n/a","n/a",IF(I$3>(A3stdlife+$E104),(Input!$G$145*(1+rvanilla)^0.5)-SUM($G104:H104),(Input!$G$145*(1+rvanilla)^0.5)/A3stdlife)) -> 0.003783101889 | J104: =IF(A3stdlife="n/a","n/a",IF(J$3>(A3stdlife+$E104),(Input!$G$145*(1+rvanilla)^0.5)-SUM($G104:I104),(Input!$G$145*(1+rvanilla)^0.5)/A3stdlife)) -> 0.003783101889 | K104: =IF(A3stdlife="n/a","n/a",IF(K$3>(A3stdlife+$E104),(Input!$G$145*(1+rvanilla)^0.5)-SUM($G104:J104),(Input!$G$145*(1+rvanilla)^0.5)/A3stdlife)) -> 0.003783101889 | L104: =IF(A3stdlife="n/a","n/a",IF(L$3>(A3stdlife+$E104),(Input!$G$145*(1+rvanilla)^0.5)-SUM($G104:K104),(Input!$G$145*(1+rvanilla)^0.5)/A3stdlife)) -> 0.003783101889 | M104: =IF(A3stdlife="n/a","n/a",IF(M$3>(A3stdlife+$E104),(Input!$G$145*(1+rvanilla)^0.5)-SUM($G104:L104),(Input!$G$145*(1+rvanilla)^0.5)/A3stdlife)) -> 0.003783101889 | N104: =IF(A3stdlife="n/a","n/a",IF(N$3>(A3stdlife+$E104),(Input!$G$145*(1+rvanilla)^0.5)-SUM($G104:M104),(Input!$G$145*(1+rvanilla)^0.5)/A3stdlife)) -> 0.003783101889 | O104: =IF(A3stdlife="n/a","n/a",IF(O$3>(A3stdlife+$E104),(Input!$G$145*(1+rvanilla)^0.5)-SUM($G104:N104),(Input!$G$145*(1+rvanilla)^0.5)/A3stdlife)) -> 0.003783101889 | P104: =IF(A3stdlife="n/a","n/a",IF(P$3>(A3stdlife+$E104),(Input!$G$145*(1+rvanilla)^0.5)-SUM($G104:O104),(Input!$G$145*(1+rvanilla)^0.5)/A3stdlife)) -> 0.003783101889 | Q104: =IF(A3stdlife="n/a","n/a",IF(Q$3>(A3stdlife+$E104),(Input!$G$145*(1+rvanilla)^0.5)-SUM($G104:P104),(Input!$G$145*(1+rvanilla)^0.5)/A3stdlife)) -> 0.003783101889 | R104: =IF(A3stdlife="n/a","n/a",IF(R$3>(A3stdlife+$E104),(Input!$G$145*(1+rvanilla)^0.5)-SUM($G104:Q104),(Input!$G$145*(1+rvanilla)^0.5)/A3stdlife)) -> 0.003783101889 | S104: =IF(A3stdlife="n/a","n/a",IF(S$3>(A3stdlife+$E104),(Input!$G$145*(1+rvanilla)^0.5)-SUM($G104:R104),(Input!$G$145*(1+rvanilla)^0.5)/A3stdlife)) -> 0.003783101889 | T104: =IF(A3stdlife="n/a","n/a",IF(T$3>(A3stdlife+$E104),(Input!$G$145*(1+rvanilla)^0.5)-SUM($G104:S104),(Input!$G$145*(1+rvanilla)^0.5)/A3stdlife)) -> 0.003783101889 | U104: =IF(A3stdlife="n/a","n/a",IF(U$3>(A3stdlife+$E104),(Input!$G$145*(1+rvanilla)^0.5)-SUM($G104:T104),(Input!$G$145*(1+rvanilla)^0.5)/A3stdlife)) -> 0.003783101889 | V104: =IF(A3stdlife="n/a","n/a",IF(V$3>(A3stdlife+$E104),(Input!$G$145*(1+rvanilla)^0.5)-SUM($G104:U104),(Input!$G$145*(1+rvanilla)^0.5)/A3stdlife)) -> 0.003783101889 | W104: =IF(A3stdlife="n/a","n/a",IF(W$3>(A3stdlife+$E104),(Input!$G$145*(1+rvanilla)^0.5)-SUM($G104:V104),(Input!$G$145*(1+rvanilla)^0.5)/A3stdlife)) -> 0.003783101889 | X104: =IF(A3stdlife="n/a","n/a",IF(X$3>(A3stdlife+$E104),(Input!$G$145*(1+rvanilla)^0.5)-SUM($G104:W104),(Input!$G$145*(1+rvanilla)^0.5)/A3stdlife)) -> 0.003783101889 | Y104: =IF(A3stdlife="n/a","n/a",IF(Y$3>(A3stdlife+$E104),(Input!$G$145*(1+rvanilla)^0.5)-SUM($G104:X104),(Input!$G$145*(1+rvanilla)^0.5)/A3stdlife)) -> 0.003783101889 | Z104: =IF(A3stdlife="n/a","n/a",IF(Z$3>(A3stdlife+$E104),(Input!$G$145*(1+rvanilla)^0.5)-SUM($G104:Y104),(Input!$G$145*(1+rvanilla)^0.5)/A3stdlife)) -> 0.003783101889 | AA104: =IF(A3stdlife="n/a","n/a",IF(AA$3>(A3stdlife+$E104),(Input!$G$145*(1+rvanilla)^0.5)-SUM($G104:Z104),(Input!$G$145*(1+rvanilla)^0.5)/A3stdlife)) -> 0.003783101889 | AB104: =IF(A3stdlife="n/a","n/a",IF(AB$3>(A3stdlife+$E104),(Input!$G$145*(1+rvanilla)^0.5)-SUM($G104:AA104),(Input!$G$145*(1+rvanilla)^0.5)/A3stdlife)) -> 0.003783101889 | AC104: =IF(A3stdlife="n/a","n/a",IF(AC$3>(A3stdlife+$E104),(Input!$G$145*(1+rvanilla)^0.5)-SUM($G104:AB104),(Input!$G$145*(1+rvanilla)^0.5)/A3stdlife)) -> 0.003783101889 | AD104: =IF(A3stdlife="n/a","n/a",IF(AD$3>(A3stdlife+$E104),(Input!$G$145*(1+rvanilla)^0.5)-SUM($G104:AC104),(Input!$G$145*(1+rvanilla)^0.5)/A3stdlife)) -> 0.003783101889 | AE104: =IF(A3stdlife="n/a","n/a",IF(AE$3>(A3stdlife+$E104),(Input!$G$145*(1+rvanilla)^0.5)-SUM($G104:AD104),(Input!$G$145*(1+rvanilla)^0.5)/A3stdlife)) -> 0.003783101889 | AF104: =IF(A3stdlife="n/a","n/a",IF(AF$3>(A3stdlife+$E104),(Input!$G$145*(1+rvanilla)^0.5)-SUM($G104:AE104),(Input!$G$145*(1+rvanilla)^0.5)/A3stdlife)) -> 0.003783101889 | AG104: =IF(A3stdlife="n/a","n/a",IF(AG$3>(A3stdlife+$E104),(Input!$G$145*(1+rvanilla)^0.5)-SUM($G104:AF104),(Input!$G$145*(1+rvanilla)^0.5)/A3stdlife)) -> 0.003783101889 | AH104: =IF(A3stdlife="n/a","n/a",IF(AH$3>(A3stdlife+$E104),(Input!$G$145*(1+rvanilla)^0.5)-SUM($G104:AG104),(Input!$G$145*(1+rvanilla)^0.5)/A3stdlife)) -> 0.003783101889 | AI104: =IF(A3stdlife="n/a","n/a",IF(AI$3>(A3stdlife+$E104),(Input!$G$145*(1+rvanilla)^0.5)-SUM($G104:AH104),(Input!$G$145*(1+rvanilla)^0.5)/A3stdlife)) -> 0.003783101889 | AJ104: =IF(A3stdlife="n/a","n/a",IF(AJ$3>(A3stdlife+$E104),(Input!$G$145*(1+rvanilla)^0.5)-SUM($G104:AI104),(Input!$G$145*(1+rvanilla)^0.5)/A3stdlife)) -> 0.003783101889 | AK104: =IF(A3stdlife="n/a","n/a",IF(AK$3>(A3stdlife+$E104),(Input!$G$145*(1+rvanilla)^0.5)-SUM($G104:AJ104),(Input!$G$145*(1+rvanilla)^0.5)/A3stdlife)) -> 0.003783101889 | AL104: =IF(A3stdlife="n/a","n/a",IF(AL$3>(A3stdlife+$E104),(Input!$G$145*(1+rvanilla)^0.5)-SUM($G104:AK104),(Input!$G$145*(1+rvanilla)^0.5)/A3stdlife)) -> 0.003783101889 | AM104: =IF(A3stdlife="n/a","n/a",IF(AM$3>(A3stdlife+$E104),(Input!$G$145*(1+rvanilla)^0.5)-SUM($G104:AL104),(Input!$G$145*(1+rvanilla)^0.5)/A3stdlife)) -> 0.003783101889 | AN104: =IF(A3stdlife="n/a","n/a",IF(AN$3>(A3stdlife+$E104),(Input!$G$145*(1+rvanilla)^0.5)-SUM($G104:AM104),(Input!$G$145*(1+rvanilla)^0.5)/A3stdlife)) -> 0.003783101889 | AO104: =IF(A3stdlife="n/a","n/a",IF(AO$3>(A3stdlife+$E104),(Input!$G$145*(1+rvanilla)^0.5)-SUM($G104:AN104),(Input!$G$145*(1+rvanilla)^0.5)/A3stdlife)) -> 0.003783101889 | AP104: =IF(A3stdlife="n/a","n/a",IF(AP$3>(A3stdlife+$E104),(Input!$G$145*(1+rvanilla)^0.5)-SUM($G104:AO104),(Input!$G$145*(1+rvanilla)^0.5)/A3stdlife)) -> 0.003783101889 | AQ104: =IF(A3stdlife="n/a","n/a",IF(AQ$3>(A3stdlife+$E104),(Input!$G$145*(1+rvanilla)^0.5)-SUM($G104:AP104),(Input!$G$145*(1+rvanilla)^0.5)/A3stdlife)) -> 0.003783101889 | AR104: =IF(A3stdlife="n/a","n/a",IF(AR$3>(A3stdlife+$E104),(Input!$G$145*(1+rvanilla)^0.5)-SUM($G104:AQ104),(Input!$G$145*(1+rvanilla)^0.5)/A3stdlife)) -> 0.003783101889 | AS104: =IF(A3stdlife="n/a","n/a",IF(AS$3>(A3stdlife+$E104),(Input!$G$145*(1+rvanilla)^0.5)-SUM($G104:AR104),(Input!$G$145*(1+rvanilla)^0.5)/A3stdlife)) -> 0.003783101889 | AT104: =IF(A3stdlife="n/a","n/a",IF(AT$3>(A3stdlife+$E104),(Input!$G$145*(1+rvanilla)^0.5)-SUM($G104:AS104),(Input!$G$145*(1+rvanilla)^0.5)/A3stdlife)) -> 0.003783101889 | AU104: =IF(A3stdlife="n/a","n/a",IF(AU$3>(A3stdlife+$E104),(Input!$G$145*(1+rvanilla)^0.5)-SUM($G104:AT104),(Input!$G$145*(1+rvanilla)^0.5)/A3stdlife)) -> 0.003783101889 | AV104: =IF(A3stdlife="n/a","n/a",IF(AV$3>(A3stdlife+$E104),(Input!$G$145*(1+rvanilla)^0.5)-SUM($G104:AU104),(Input!$G$145*(1+rvanilla)^0.5)/A3stdlife)) -> 0.003783101889 | AW104: =IF(A3stdlife="n/a","n/a",IF(AW$3>(A3stdlife+$E104),(Input!$G$145*(1+rvanilla)^0.5)-SUM($G104:AV104),(Input!$G$145*(1+rvanilla)^0.5)/A3stdlife)) -> 0.003783101889 | AX104: =IF(A3stdlife="n/a","n/a",IF(AX$3>(A3stdlife+$E104),(Input!$G$145*(1+rvanilla)^0.5)-SUM($G104:AW104),(Input!$G$145*(1+rvanilla)^0.5)/A3stdlife)) -> 0.003783101889 | AY104: =IF(A3stdlife="n/a","n/a",IF(AY$3>(A3stdlife+$E104),(Input!$G$145*(1+rvanilla)^0.5)-SUM($G104:AX104),(Input!$G$145*(1+rvanilla)^0.5)/A3stdlife)) -> 0.003783101889 | AZ104: =IF(A3stdlife="n/a","n/a",IF(AZ$3>(A3stdlife+$E104),(Input!$G$145*(1+rvanilla)^0.5)-SUM($G104:AY104),(Input!$G$145*(1+rvanilla)^0.5)/A3stdlife)) -> 0.003783101889 | BA104: =IF(A3stdlife="n/a","n/a",IF(BA$3>(A3stdlife+$E104),(Input!$G$145*(1+rvanilla)^0.5)-SUM($G104:AZ104),(Input!$G$145*(1+rvanilla)^0.5)/A3stdlife)) -> 0.003783101889 | BB104: =IF(A3stdlife="n/a","n/a",IF(BB$3>(A3stdlife+$E104),(Input!$G$145*(1+rvanilla)^0.5)-SUM($G104:BA104),(Input!$G$145*(1+rvanilla)^0.5)/A3stdlife)) -> 0.003783101889 | BC104: =IF(A3stdlife="n/a","n/a",IF(BC$3>(A3stdlife+$E104),(Input!$G$145*(1+rvanilla)^0.5)-SUM($G104:BB104),(Input!$G$145*(1+rvanilla)^0.5)/A3stdlife)) -> 0.003783101889 | BD104: =IF(A3stdlife="n/a","n/a",IF(BD$3>(A3stdlife+$E104),(Input!$G$145*(1+rvanilla)^0.5)-SUM($G104:BC104),(Input!$G$145*(1+rvanilla)^0.5)/A3stdlife)) -> 0.003783101889 | BE104: =IF(A3stdlife="n/a","n/a",IF(BE$3>(A3stdlife+$E104),(Input!$G$145*(1+rvanilla)^0.5)-SUM($G104:BD104),(Input!$G$145*(1+rvanilla)^0.5)/A3stdlife)) -> 0.003783101889 | BF104: =IF(A3stdlife="n/a","n/a",IF(BF$3>(A3stdlife+$E104),(Input!$G$145*(1+rvanilla)^0.5)-SUM($G104:BE104),(Input!$G$145*(1+rvanilla)^0.5)/A3stdlife)) -> 1.387778781e-16 | BG104: =IF(A3stdlife="n/a","n/a",IF(BG$3>(A3stdlife+$E104),(Input!$G$145*(1+rvanilla)^0.5)-SUM($G104:BF104),(Input!$G$145*(1+rvanilla)^0.5)/A3stdlife)) -> 0 | BH104: =IF(A3stdlife="n/a","n/a",IF(BH$3>(A3stdlife+$E104),(Input!$G$145*(1+rvanilla)^0.5)-SUM($G104:BG104),(Input!$G$145*(1+rvanilla)^0.5)/A3stdlife)) -> 0 | BI104: =IF(A3stdlife="n/a","n/a",IF(BI$3>(A3stdlife+$E104),(Input!$G$145*(1+rvanilla)^0.5)-SUM($G104:BH104),(Input!$G$145*(1+rvanilla)^0.5)/A3stdlife)) -> 0
E105: 2 | I105: =IF(A3stdlife="n/a","n/a",IF(I$3>(A3stdlife+$E105),(Input!$H$145*(1+rvanilla)^0.5)-SUM($H105:H105),(Input!$H$145*(1+rvanilla)^0.5)/A3stdlife)) -> 0.003783101889 | J105: =IF(A3stdlife="n/a","n/a",IF(J$3>(A3stdlife+$E105),(Input!$H$145*(1+rvanilla)^0.5)-SUM($H105:I105),(Input!$H$145*(1+rvanilla)^0.5)/A3stdlife)) -> 0.003783101889 | K105: =IF(A3stdlife="n/a","n/a",IF(K$3>(A3stdlife+$E105),(Input!$H$145*(1+rvanilla)^0.5)-SUM($H105:J105),(Input!$H$145*(1+rvanilla)^0.5)/A3stdlife)) -> 0.003783101889 | L105: =IF(A3stdlife="n/a","n/a",IF(L$3>(A3stdlife+$E105),(Input!$H$145*(1+rvanilla)^0.5)-SUM($H105:K105),(Input!$H$145*(1+rvanilla)^0.5)/A3stdlife)) -> 0.003783101889 | M105: =IF(A3stdlife="n/a","n/a",IF(M$3>(A3stdlife+$E105),(Input!$H$145*(1+rvanilla)^0.5)-SUM($H105:L105),(Input!$H$145*(1+rvanilla)^0.5)/A3stdlife)) -> 0.003783101889 | N105: =IF(A3stdlife="n/a","n/a",IF(N$3>(A3stdlife+$E105),(Input!$H$145*(1+rvanilla)^0.5)-SUM($H105:M105),(Input!$H$145*(1+rvanilla)^0.5)/A3stdlife)) -> 0.003783101889 | O105: =IF(A3stdlife="n/a","n/a",IF(O$3>(A3stdlife+$E105),(Input!$H$145*(1+rvanilla)^0.5)-SUM($H105:N105),(Input!$H$145*(1+rvanilla)^0.5)/A3stdlife)) -> 0.003783101889 | P105: =IF(A3stdlife="n/a","n/a",IF(P$3>(A3stdlife+$E105),(Input!$H$145*(1+rvanilla)^0.5)-SUM($H105:O105),(Input!$H$145*(1+rvanilla)^0.5)/A3stdlife)) -> 0.003783101889 | Q105: =IF(A3stdlife="n/a","n/a",IF(Q$3>(A3stdlife+$E105),(Input!$H$145*(1+rvanilla)^0.5)-SUM($H105:P105),(Input!$H$145*(1+rvanilla)^0.5)/A3stdlife)) -> 0.003783101889 | R105: =IF(A3stdlife="n/a","n/a",IF(R$3>(A3stdlife+$E105),(Input!$H$145*(1+rvanilla)^0.5)-SUM($H105:Q105),(Input!$H$145*(1+rvanilla)^0.5)/A3stdlife)) -> 0.003783101889 | S105: =IF(A3stdlife="n/a","n/a",IF(S$3>(A3stdlife+$E105),(Input!$H$145*(1+rvanilla)^0.5)-SUM($H105:R105),(Input!$H$145*(1+rvanilla)^0.5)/A3stdlife)) -> 0.003783101889 | T105: =IF(A3stdlife="n/a","n/a",IF(T$3>(A3stdlife+$E105),(Input!$H$145*(1+rvanilla)^0.5)-SUM($H105:S105),(Input!$H$145*(1+rvanilla)^0.5)/A3stdlife)) -> 0.003783101889 | U105: =IF(A3stdlife="n/a","n/a",IF(U$3>(A3stdlife+$E105),(Input!$H$145*(1+rvanilla)^0.5)-SUM($H105:T105),(Input!$H$145*(1+rvanilla)^0.5)/A3stdlife)) -> 0.003783101889 | V105: =IF(A3stdlife="n/a","n/a",IF(V$3>(A3stdlife+$E105),(Input!$H$145*(1+rvanilla)^0.5)-SUM($H105:U105),(Input!$H$145*(1+rvanilla)^0.5)/A3stdlife)) -> 0.003783101889 | W105: =IF(A3stdlife="n/a","n/a",IF(W$3>(A3stdlife+$E105),(Input!$H$145*(1+rvanilla)^0.5)-SUM($H105:V105),(Input!$H$145*(1+rvanilla)^0.5)/A3stdlife)) -> 0.003783101889 | X105: =IF(A3stdlife="n/a","n/a",IF(X$3>(A3stdlife+$E105),(Input!$H$145*(1+rvanilla)^0.5)-SUM($H105:W105),(Input!$H$145*(1+rvanilla)^0.5)/A3stdlife)) -> 0.003783101889 | Y105: =IF(A3stdlife="n/a","n/a",IF(Y$3>(A3stdlife+$E105),(Input!$H$145*(1+rvanilla)^0.5)-SUM($H105:X105),(Input!$H$145*(1+rvanilla)^0.5)/A3stdlife)) -> 0.003783101889 | Z105: =IF(A3stdlife="n/a","n/a",IF(Z$3>(A3stdlife+$E105),(Input!$H$145*(1+rvanilla)^0.5)-SUM($H105:Y105),(Input!$H$145*(1+rvanilla)^0.5)/A3stdlife)) -> 0.003783101889 | AA105: =IF(A3stdlife="n/a","n/a",IF(AA$3>(A3stdlife+$E105),(Input!$H$145*(1+rvanilla)^0.5)-SUM($H105:Z105),(Input!$H$145*(1+rvanilla)^0.5)/A3stdlife)) -> 0.003783101889 | AB105: =IF(A3stdlife="n/a","n/a",IF(AB$3>(A3stdlife+$E105),(Input!$H$145*(1+rvanilla)^0.5)-SUM($H105:AA105),(Input!$H$145*(1+rvanilla)^0.5)/A3stdlife)) -> 0.003783101889 | AC105: =IF(A3stdlife="n/a","n/a",IF(AC$3>(A3stdlife+$E105),(Input!$H$145*(1+rvanilla)^0.5)-SUM($H105:AB105),(Input!$H$145*(1+rvanilla)^0.5)/A3stdlife)) -> 0.003783101889 | AD105: =IF(A3stdlife="n/a","n/a",IF(AD$3>(A3stdlife+$E105),(Input!$H$145*(1+rvanilla)^0.5)-SUM($H105:AC105),(Input!$H$145*(1+rvanilla)^0.5)/A3stdlife)) -> 0.003783101889 | AE105: =IF(A3stdlife="n/a","n/a",IF(AE$3>(A3stdlife+$E105),(Input!$H$145*(1+rvanilla)^0.5)-SUM($H105:AD105),(Input!$H$145*(1+rvanilla)^0.5)/A3stdlife)) -> 0.003783101889 | AF105: =IF(A3stdlife="n/a","n/a",IF(AF$3>(A3stdlife+$E105),(Input!$H$145*(1+rvanilla)^0.5)-SUM($H105:AE105),(Input!$H$145*(1+rvanilla)^0.5)/A3stdlife)) -> 0.003783101889 | AG105: =IF(A3stdlife="n/a","n/a",IF(AG$3>(A3stdlife+$E105),(Input!$H$145*(1+rvanilla)^0.5)-SUM($H105:AF105),(Input!$H$145*(1+rvanilla)^0.5)/A3stdlife)) -> 0.003783101889 | AH105: =IF(A3stdlife="n/a","n/a",IF(AH$3>(A3stdlife+$E105),(Input!$H$145*(1+rvanilla)^0.5)-SUM($H105:AG105),(Input!$H$145*(1+rvanilla)^0.5)/A3stdlife)) -> 0.003783101889 | AI105: =IF(A3stdlife="n/a","n/a",IF(AI$3>(A3stdlife+$E105),(Input!$H$145*(1+rvanilla)^0.5)-SUM($H105:AH105),(Input!$H$145*(1+rvanilla)^0.5)/A3stdlife)) -> 0.003783101889 | AJ105: =IF(A3stdlife="n/a","n/a",IF(AJ$3>(A3stdlife+$E105),(Input!$H$145*(1+rvanilla)^0.5)-SUM($H105:AI105),(Input!$H$145*(1+rvanilla)^0.5)/A3stdlife)) -> 0.003783101889 | AK105: =IF(A3stdlife="n/a","n/a",IF(AK$3>(A3stdlife+$E105),(Input!$H$145*(1+rvanilla)^0.5)-SUM($H105:AJ105),(Input!$H$145*(1+rvanilla)^0.5)/A3stdlife)) -> 0.003783101889 | AL105: =IF(A3stdlife="n/a","n/a",IF(AL$3>(A3stdlife+$E105),(Input!$H$145*(1+rvanilla)^0.5)-SUM($H105:AK105),(Input!$H$145*(1+rvanilla)^0.5)/A3stdlife)) -> 0.003783101889 | AM105: =IF(A3stdlife="n/a","n/a",IF(AM$3>(A3stdlife+$E105),(Input!$H$145*(1+rvanilla)^0.5)-SUM($H105:AL105),(Input!$H$145*(1+rvanilla)^0.5)/A3stdlife)) -> 0.003783101889 | AN105: =IF(A3stdlife="n/a","n/a",IF(AN$3>(A3stdlife+$E105),(Input!$H$145*(1+rvanilla)^0.5)-SUM($H105:AM105),(Input!$H$145*(1+rvanilla)^0.5)/A3stdlife)) -> 0.003783101889 | AO105: =IF(A3stdlife="n/a","n/a",IF(AO$3>(A3stdlife+$E105),(Input!$H$145*(1+rvanilla)^0.5)-SUM($H105:AN105),(Input!$H$145*(1+rvanilla)^0.5)/A3stdlife)) -> 0.003783101889 | AP105: =IF(A3stdlife="n/a","n/a",IF(AP$3>(A3stdlife+$E105),(Input!$H$145*(1+rvanilla)^0.5)-SUM($H105:AO105),(Input!$H$145*(1+rvanilla)^0.5)/A3stdlife)) -> 0.003783101889 | AQ105: =IF(A3stdlife="n/a","n/a",IF(AQ$3>(A3stdlife+$E105),(Input!$H$145*(1+rvanilla)^0.5)-SUM($H105:AP105),(Input!$H$145*(1+rvanilla)^0.5)/A3stdlife)) -> 0.003783101889 | AR105: =IF(A3stdlife="n/a","n/a",IF(AR$3>(A3stdlife+$E105),(Input!$H$145*(1+rvanilla)^0.5)-SUM($H105:AQ105),(Input!$H$145*(1+rvanilla)^0.5)/A3stdlife)) -> 0.003783101889 | AS105: =IF(A3stdlife="n/a","n/a",IF(AS$3>(A3stdlife+$E105),(Input!$H$145*(1+rvanilla)^0.5)-SUM($H105:AR105),(Input!$H$145*(1+rvanilla)^0.5)/A3stdlife)) -> 0.003783101889 | AT105: =IF(A3stdlife="n/a","n/a",IF(AT$3>(A3stdlife+$E105),(Input!$H$145*(1+rvanilla)^0.5)-SUM($H105:AS105),(Input!$H$145*(1+rvanilla)^0.5)/A3stdlife)) -> 0.003783101889 | AU105: =IF(A3stdlife="n/a","n/a",IF(AU$3>(A3stdlife+$E105),(Input!$H$145*(1+rvanilla)^0.5)-SUM($H105:AT105),(Input!$H$145*(1+rvanilla)^0.5)/A3stdlife)) -> 0.003783101889 | AV105: =IF(A3stdlife="n/a","n/a",IF(AV$3>(A3stdlife+$E105),(Input!$H$145*(1+rvanilla)^0.5)-SUM($H105:AU105),(Input!$H$145*(1+rvanilla)^0.5)/A3stdlife)) -> 0.003783101889 | AW105: =IF(A3stdlife="n/a","n/a",IF(AW$3>(A3stdlife+$E105),(Input!$H$145*(1+rvanilla)^0.5)-SUM($H105:AV105),(Input!$H$145*(1+rvanilla)^0.5)/A3stdlife)) -> 0.003783101889 | AX105: =IF(A3stdlife="n/a","n/a",IF(AX$3>(A3stdlife+$E105),(Input!$H$145*(1+rvanilla)^0.5)-SUM($H105:AW105),(Input!$H$145*(1+rvanilla)^0.5)/A3stdlife)) -> 0.003783101889 | AY105: =IF(A3stdlife="n/a","n/a",IF(AY$3>(A3stdlife+$E105),(Input!$H$145*(1+rvanilla)^0.5)-SUM($H105:AX105),(Input!$H$145*(1+rvanilla)^0.5)/A3stdlife)) -> 0.003783101889 | AZ105: =IF(A3stdlife="n/a","n/a",IF(AZ$3>(A3stdlife+$E105),(Input!$H$145*(1+rvanilla)^0.5)-SUM($H105:AY105),(Input!$H$145*(1+rvanilla)^0.5)/A3stdlife)) -> 0.003783101889 | BA105: =IF(A3stdlife="n/a","n/a",IF(BA$3>(A3stdlife+$E105),(Input!$H$145*(1+rvanilla)^0.5)-SUM($H105:AZ105),(Input!$H$145*(1+rvanilla)^0.5)/A3stdlife)) -> 0.003783101889 | BB105: =IF(A3stdlife="n/a","n/a",IF(BB$3>(A3stdlife+$E105),(Input!$H$145*(1+rvanilla)^0.5)-SUM($H105:BA105),(Input!$H$145*(1+rvanilla)^0.5)/A3stdlife)) -> 0.003783101889 | BC105: =IF(A3stdlife="n/a","n/a",IF(BC$3>(A3stdlife+$E105),(Input!$H$145*(1+rvanilla)^0.5)-SUM($H105:BB105),(Input!$H$145*(1+rvanilla)^0.5)/A3stdlife)) -> 0.003783101889 | BD105: =IF(A3stdlife="n/a","n/a",IF(BD$3>(A3stdlife+$E105),(Input!$H$145*(1+rvanilla)^0.5)-SUM($H105:BC105),(Input!$H$145*(1+rvanilla)^0.5)/A3stdlife)) -> 0.003783101889 | BE105: =IF(A3stdlife="n/a","n/a",IF(BE$3>(A3stdlife+$E105),(Input!$H$145*(1+rvanilla)^0.5)-SUM($H105:BD105),(Input!$H$145*(1+rvanilla)^0.5)/A3stdlife)) -> 0.003783101889 | BF105: =IF(A3stdlife="n/a","n/a",IF(BF$3>(A3stdlife+$E105),(Input!$H$145*(1+rvanilla)^0.5)-SUM($H105:BE105),(Input!$H$145*(1+rvanilla)^0.5)/A3stdlife)) -> 0.003783101889 | BG105: =IF(A3stdlife="n/a","n/a",IF(BG$3>(A3stdlife+$E105),(Input!$H$145*(1+rvanilla)^0.5)-SUM($H105:BF105),(Input!$H$145*(1+rvanilla)^0.5)/A3stdlife)) -> 1.387778781e-16 | BH105: =IF(A3stdlife="n/a","n/a",IF(BH$3>(A3stdlife+$E105),(Input!$H$145*(1+rvanilla)^0.5)-SUM($H105:BG105),(Input!$H$145*(1+rvanilla)^0.5)/A3stdlife)) -> 0 | BI105: =IF(A3stdlife="n/a","n/a",IF(BI$3>(A3stdlife+$E105),(Input!$H$145*(1+rvanilla)^0.5)-SUM($H105:BH105),(Input!$H$145*(1+rvanilla)^0.5)/A3stdlife)) -> 0
E106: 3 | J106: =IF(A3stdlife="n/a","n/a",IF(J$3>(A3stdlife+$E106),(Input!$I$145*(1+rvanilla)^0.5)-SUM($I106:I106),(Input!$I$145*(1+rvanilla)^0.5)/A3stdlife)) -> 0.003783101889 | K106: =IF(A3stdlife="n/a","n/a",IF(K$3>(A3stdlife+$E106),(Input!$I$145*(1+rvanilla)^0.5)-SUM($I106:J106),(Input!$I$145*(1+rvanilla)^0.5)/A3stdlife)) -> 0.003783101889 | L106: =IF(A3stdlife="n/a","n/a",IF(L$3>(A3stdlife+$E106),(Input!$I$145*(1+rvanilla)^0.5)-SUM($I106:K106),(Input!$I$145*(1+rvanilla)^0.5)/A3stdlife)) -> 0.003783101889 | M106: =IF(A3stdlife="n/a","n/a",IF(M$3>(A3stdlife+$E106),(Input!$I$145*(1+rvanilla)^0.5)-SUM($I106:L106),(Input!$I$145*(1+rvanilla)^0.5)/A3stdlife)) -> 0.003783101889 | N106: =IF(A3stdlife="n/a","n/a",IF(N$3>(A3stdlife+$E106),(Input!$I$145*(1+rvanilla)^0.5)-SUM($I106:M106),(Input!$I$145*(1+rvanilla)^0.5)/A3stdlife)) -> 0.003783101889 | O106: =IF(A3stdlife="n/a","n/a",IF(O$3>(A3stdlife+$E106),(Input!$I$145*(1+rvanilla)^0.5)-SUM($I106:N106),(Input!$I$145*(1+rvanilla)^0.5)/A3stdlife)) -> 0.003783101889 | P106: =IF(A3stdlife="n/a","n/a",IF(P$3>(A3stdlife+$E106),(Input!$I$145*(1+rvanilla)^0.5)-SUM($I106:O106),(Input!$I$145*(1+rvanilla)^0.5)/A3stdlife)) -> 0.003783101889 | Q106: =IF(A3stdlife="n/a","n/a",IF(Q$3>(A3stdlife+$E106),(Input!$I$145*(1+rvanilla)^0.5)-SUM($I106:P106),(Input!$I$145*(1+rvanilla)^0.5)/A3stdlife)) -> 0.003783101889 | R106: =IF(A3stdlife="n/a","n/a",IF(R$3>(A3stdlife+$E106),(Input!$I$145*(1+rvanilla)^0.5)-SUM($I106:Q106),(Input!$I$145*(1+rvanilla)^0.5)/A3stdlife)) -> 0.003783101889 | S106: =IF(A3stdlife="n/a","n/a",IF(S$3>(A3stdlife+$E106),(Input!$I$145*(1+rvanilla)^0.5)-SUM($I106:R106),(Input!$I$145*(1+rvanilla)^0.5)/A3stdlife)) -> 0.003783101889 | T106: =IF(A3stdlife="n/a","n/a",IF(T$3>(A3stdlife+$E106),(Input!$I$145*(1+rvanilla)^0.5)-SUM($I106:S106),(Input!$I$145*(1+rvanilla)^0.5)/A3stdlife)) -> 0.003783101889 | U106: =IF(A3stdlife="n/a","n/a",IF(U$3>(A3stdlife+$E106),(Input!$I$145*(1+rvanilla)^0.5)-SUM($I106:T106),(Input!$I$145*(1+rvanilla)^0.5)/A3stdlife)) -> 0.003783101889 | V106: =IF(A3stdlife="n/a","n/a",IF(V$3>(A3stdlife+$E106),(Input!$I$145*(1+rvanilla)^0.5)-SUM($I106:U106),(Input!$I$145*(1+rvanilla)^0.5)/A3stdlife)) -> 0.003783101889 | W106: =IF(A3stdlife="n/a","n/a",IF(W$3>(A3stdlife+$E106),(Input!$I$145*(1+rvanilla)^0.5)-SUM($I106:V106),(Input!$I$145*(1+rvanilla)^0.5)/A3stdlife)) -> 0.003783101889 | X106: =IF(A3stdlife="n/a","n/a",IF(X$3>(A3stdlife+$E106),(Input!$I$145*(1+rvanilla)^0.5)-SUM($I106:W106),(Input!$I$145*(1+rvanilla)^0.5)/A3stdlife)) -> 0.003783101889 | Y106: =IF(A3stdlife="n/a","n/a",IF(Y$3>(A3stdlife+$E106),(Input!$I$145*(1+rvanilla)^0.5)-SUM($I106:X106),(Input!$I$145*(1+rvanilla)^0.5)/A3stdlife)) -> 0.003783101889 | Z106: =IF(A3stdlife="n/a","n/a",IF(Z$3>(A3stdlife+$E106),(Input!$I$145*(1+rvanilla)^0.5)-SUM($I106:Y106),(Input!$I$145*(1+rvanilla)^0.5)/A3stdlife)) -> 0.003783101889 | AA106: =IF(A3stdlife="n/a","n/a",IF(AA$3>(A3stdlife+$E106),(Input!$I$145*(1+rvanilla)^0.5)-SUM($I106:Z106),(Input!$I$145*(1+rvanilla)^0.5)/A3stdlife)) -> 0.003783101889 | AB106: =IF(A3stdlife="n/a","n/a",IF(AB$3>(A3stdlife+$E106),(Input!$I$145*(1+rvanilla)^0.5)-SUM($I106:AA106),(Input!$I$145*(1+rvanilla)^0.5)/A3stdlife)) -> 0.003783101889 | AC106: =IF(A3stdlife="n/a","n/a",IF(AC$3>(A3stdlife+$E106),(Input!$I$145*(1+rvanilla)^0.5)-SUM($I106:AB106),(Input!$I$145*(1+rvanilla)^0.5)/A3stdlife)) -> 0.003783101889 | AD106: =IF(A3stdlife="n/a","n/a",IF(AD$3>(A3stdlife+$E106),(Input!$I$145*(1+rvanilla)^0.5)-SUM($I106:AC106),(Input!$I$145*(1+rvanilla)^0.5)/A3stdlife)) -> 0.003783101889 | AE106: =IF(A3stdlife="n/a","n/a",IF(AE$3>(A3stdlife+$E106),(Input!$I$145*(1+rvanilla)^0.5)-SUM($I106:AD106),(Input!$I$145*(1+rvanilla)^0.5)/A3stdlife)) -> 0.003783101889 | AF106: =IF(A3stdlife="n/a","n/a",IF(AF$3>(A3stdlife+$E106),(Input!$I$145*(1+rvanilla)^0.5)-SUM($I106:AE106),(Input!$I$145*(1+rvanilla)^0.5)/A3stdlife)) -> 0.003783101889 | AG106: =IF(A3stdlife="n/a","n/a",IF(AG$3>(A3stdlife+$E106),(Input!$I$145*(1+rvanilla)^0.5)-SUM($I106:AF106),(Input!$I$145*(1+rvanilla)^0.5)/A3stdlife)) -> 0.003783101889 | AH106: =IF(A3stdlife="n/a","n/a",IF(AH$3>(A3stdlife+$E106),(Input!$I$145*(1+rvanilla)^0.5)-SUM($I106:AG106),(Input!$I$145*(1+rvanilla)^0.5)/A3stdlife)) -> 0.003783101889 | AI106: =IF(A3stdlife="n/a","n/a",IF(AI$3>(A3stdlife+$E106),(Input!$I$145*(1+rvanilla)^0.5)-SUM($I106:AH106),(Input!$I$145*(1+rvanilla)^0.5)/A3stdlife)) -> 0.003783101889 | AJ106: =IF(A3stdlife="n/a","n/a",IF(AJ$3>(A3stdlife+$E106),(Input!$I$145*(1+rvanilla)^0.5)-SUM($I106:AI106),(Input!$I$145*(1+rvanilla)^0.5)/A3stdlife)) -> 0.003783101889 | AK106: =IF(A3stdlife="n/a","n/a",IF(AK$3>(A3stdlife+$E106),(Input!$I$145*(1+rvanilla)^0.5)-SUM($I106:AJ106),(Input!$I$145*(1+rvanilla)^0.5)/A3stdlife)) -> 0.003783101889 | AL106: =IF(A3stdlife="n/a","n/a",IF(AL$3>(A3stdlife+$E106),(Input!$I$145*(1+rvanilla)^0.5)-SUM($I106:AK106),(Input!$I$145*(1+rvanilla)^0.5)/A3stdlife)) -> 0.003783101889 | AM106: =IF(A3stdlife="n/a","n/a",IF(AM$3>(A3stdlife+$E106),(Input!$I$145*(1+rvanilla)^0.5)-SUM($I106:AL106),(Input!$I$145*(1+rvanilla)^0.5)/A3stdlife)) -> 0.003783101889 | AN106: =IF(A3stdlife="n/a","n/a",IF(AN$3>(A3stdlife+$E106),(Input!$I$145*(1+rvanilla)^0.5)-SUM($I106:AM106),(Input!$I$145*(1+rvanilla)^0.5)/A3stdlife)) -> 0.003783101889 | AO106: =IF(A3stdlife="n/a","n/a",IF(AO$3>(A3stdlife+$E106),(Input!$I$145*(1+rvanilla)^0.5)-SUM($I106:AN106),(Input!$I$145*(1+rvanilla)^0.5)/A3stdlife)) -> 0.003783101889 | AP106: =IF(A3stdlife="n/a","n/a",IF(AP$3>(A3stdlife+$E106),(Input!$I$145*(1+rvanilla)^0.5)-SUM($I106:AO106),(Input!$I$145*(1+rvanilla)^0.5)/A3stdlife)) -> 0.003783101889 | AQ106: =IF(A3stdlife="n/a","n/a",IF(AQ$3>(A3stdlife+$E106),(Input!$I$145*(1+rvanilla)^0.5)-SUM($I106:AP106),(Input!$I$145*(1+rvanilla)^0.5)/A3stdlife)) -> 0.003783101889 | AR106: =IF(A3stdlife="n/a","n/a",IF(AR$3>(A3stdlife+$E106),(Input!$I$145*(1+rvanilla)^0.5)-SUM($I106:AQ106),(Input!$I$145*(1+rvanilla)^0.5)/A3stdlife)) -> 0.003783101889 | AS106: =IF(A3stdlife="n/a","n/a",IF(AS$3>(A3stdlife+$E106),(Input!$I$145*(1+rvanilla)^0.5)-SUM($I106:AR106),(Input!$I$145*(1+rvanilla)^0.5)/A3stdlife)) -> 0.003783101889 | AT106: =IF(A3stdlife="n/a","n/a",IF(AT$3>(A3stdlife+$E106),(Input!$I$145*(1+rvanilla)^0.5)-SUM($I106:AS106),(Input!$I$145*(1+rvanilla)^0.5)/A3stdlife)) -> 0.003783101889 | AU106: =IF(A3stdlife="n/a","n/a",IF(AU$3>(A3stdlife+$E106),(Input!$I$145*(1+rvanilla)^0.5)-SUM($I106:AT106),(Input!$I$145*(1+rvanilla)^0.5)/A3stdlife)) -> 0.003783101889 | AV106: =IF(A3stdlife="n/a","n/a",IF(AV$3>(A3stdlife+$E106),(Input!$I$145*(1+rvanilla)^0.5)-SUM($I106:AU106),(Input!$I$145*(1+rvanilla)^0.5)/A3stdlife)) -> 0.003783101889 | AW106: =IF(A3stdlife="n/a","n/a",IF(AW$3>(A3stdlife+$E106),(Input!$I$145*(1+rvanilla)^0.5)-SUM($I106:AV106),(Input!$I$145*(1+rvanilla)^0.5)/A3stdlife)) -> 0.003783101889 | AX106: =IF(A3stdlife="n/a","n/a",IF(AX$3>(A3stdlife+$E106),(Input!$I$145*(1+rvanilla)^0.5)-SUM($I106:AW106),(Input!$I$145*(1+rvanilla)^0.5)/A3stdlife)) -> 0.003783101889 | AY106: =IF(A3stdlife="n/a","n/a",IF(AY$3>(A3stdlife+$E106),(Input!$I$145*(1+rvanilla)^0.5)-SUM($I106:AX106),(Input!$I$145*(1+rvanilla)^0.5)/A3stdlife)) -> 0.003783101889 | AZ106: =IF(A3stdlife="n/a","n/a",IF(AZ$3>(A3stdlife+$E106),(Input!$I$145*(1+rvanilla)^0.5)-SUM($I106:AY106),(Input!$I$145*(1+rvanilla)^0.5)/A3stdlife)) -> 0.003783101889 | BA106: =IF(A3stdlife="n/a","n/a",IF(BA$3>(A3stdlife+$E106),(Input!$I$145*(1+rvanilla)^0.5)-SUM($I106:AZ106),(Input!$I$145*(1+rvanilla)^0.5)/A3stdlife)) -> 0.003783101889 | BB106: =IF(A3stdlife="n/a","n/a",IF(BB$3>(A3stdlife+$E106),(Input!$I$145*(1+rvanilla)^0.5)-SUM($I106:BA106),(Input!$I$145*(1+rvanilla)^0.5)/A3stdlife)) -> 0.003783101889 | BC106: =IF(A3stdlife="n/a","n/a",IF(BC$3>(A3stdlife+$E106),(Input!$I$145*(1+rvanilla)^0.5)-SUM($I106:BB106),(Input!$I$145*(1+rvanilla)^0.5)/A3stdlife)) -> 0.003783101889 | BD106: =IF(A3stdlife="n/a","n/a",IF(BD$3>(A3stdlife+$E106),(Input!$I$145*(1+rvanilla)^0.5)-SUM($I106:BC106),(Input!$I$145*(1+rvanilla)^0.5)/A3stdlife)) -> 0.003783101889 | BE106: =IF(A3stdlife="n/a","n/a",IF(BE$3>(A3stdlife+$E106),(Input!$I$145*(1+rvanilla)^0.5)-SUM($I106:BD106),(Input!$I$145*(1+rvanilla)^0.5)/A3stdlife)) -> 0.003783101889 | BF106: =IF(A3stdlife="n/a","n/a",IF(BF$3>(A3stdlife+$E106),(Input!$I$145*(1+rvanilla)^0.5)-SUM($I106:BE106),(Input!$I$145*(1+rvanilla)^0.5)/A3stdlife)) -> 0.003783101889 | BG106: =IF(A3stdlife="n/a","n/a",IF(BG$3>(A3stdlife+$E106),(Input!$I$145*(1+rvanilla)^0.5)-SUM($I106:BF106),(Input!$I$145*(1+rvanilla)^0.5)/A3stdlife)) -> 0.003783101889 | BH106: =IF(A3stdlife="n/a","n/a",IF(BH$3>(A3stdlife+$E106),(Input!$I$145*(1+rvanilla)^0.5)-SUM($I106:BG106),(Input!$I$145*(1+rvanilla)^0.5)/A3stdlife)) -> 1.387778781e-16 | BI106: =IF(A3stdlife="n/a","n/a",IF(BI$3>(A3stdlife+$E106),(Input!$I$145*(1+rvanilla)^0.5)-SUM($I106:BH106),(Input!$I$145*(1+rvanilla)^0.5)/A3stdlife)) -> 0
E107: 4 | K107: =IF(A3stdlife="n/a","n/a",IF(K$3>(A3stdlife+$E107),(Input!$J$145*(1+rvanilla)^0.5)-SUM($J107:J107),(Input!$J$145*(1+rvanilla)^0.5)/A3stdlife)) -> 0.003783101889 | L107: =IF(A3stdlife="n/a","n/a",IF(L$3>(A3stdlife+$E107),(Input!$J$145*(1+rvanilla)^0.5)-SUM($J107:K107),(Input!$J$145*(1+rvanilla)^0.5)/A3stdlife)) -> 0.003783101889 | M107: =IF(A3stdlife="n/a","n/a",IF(M$3>(A3stdlife+$E107),(Input!$J$145*(1+rvanilla)^0.5)-SUM($J107:L107),(Input!$J$145*(1+rvanilla)^0.5)/A3stdlife)) -> 0.003783101889 | N107: =IF(A3stdlife="n/a","n/a",IF(N$3>(A3stdlife+$E107),(Input!$J$145*(1+rvanilla)^0.5)-SUM($J107:M107),(Input!$J$145*(1+rvanilla)^0.5)/A3stdlife)) -> 0.003783101889 | O107: =IF(A3stdlife="n/a","n/a",IF(O$3>(A3stdlife+$E107),(Input!$J$145*(1+rvanilla)^0.5)-SUM($J107:N107),(Input!$J$145*(1+rvanilla)^0.5)/A3stdlife)) -> 0.003783101889 | P107: =IF(A3stdlife="n/a","n/a",IF(P$3>(A3stdlife+$E107),(Input!$J$145*(1+rvanilla)^0.5)-SUM($J107:O107),(Input!$J$145*(1+rvanilla)^0.5)/A3stdlife)) -> 0.003783101889 | Q107: =IF(A3stdlife="n/a","n/a",IF(Q$3>(A3stdlife+$E107),(Input!$J$145*(1+rvanilla)^0.5)-SUM($J107:P107),(Input!$J$145*(1+rvanilla)^0.5)/A3stdlife)) -> 0.003783101889 | R107: =IF(A3stdlife="n/a","n/a",IF(R$3>(A3stdlife+$E107),(Input!$J$145*(1+rvanilla)^0.5)-SUM($J107:Q107),(Input!$J$145*(1+rvanilla)^0.5)/A3stdlife)) -> 0.003783101889 | S107: =IF(A3stdlife="n/a","n/a",IF(S$3>(A3stdlife+$E107),(Input!$J$145*(1+rvanilla)^0.5)-SUM($J107:R107),(Input!$J$145*(1+rvanilla)^0.5)/A3stdlife)) -> 0.003783101889 | T107: =IF(A3stdlife="n/a","n/a",IF(T$3>(A3stdlife+$E107),(Input!$J$145*(1+rvanilla)^0.5)-SUM($J107:S107),(Input!$J$145*(1+rvanilla)^0.5)/A3stdlife)) -> 0.003783101889 | U107: =IF(A3stdlife="n/a","n/a",IF(U$3>(A3stdlife+$E107),(Input!$J$145*(1+rvanilla)^0.5)-SUM($J107:T107),(Input!$J$145*(1+rvanilla)^0.5)/A3stdlife)) -> 0.003783101889 | V107: =IF(A3stdlife="n/a","n/a",IF(V$3>(A3stdlife+$E107),(Input!$J$145*(1+rvanilla)^0.5)-SUM($J107:U107),(Input!$J$145*(1+rvanilla)^0.5)/A3stdlife)) -> 0.003783101889 | W107: =IF(A3stdlife="n/a","n/a",IF(W$3>(A3stdlife+$E107),(Input!$J$145*(1+rvanilla)^0.5)-SUM($J107:V107),(Input!$J$145*(1+rvanilla)^0.5)/A3stdlife)) -> 0.003783101889 | X107: =IF(A3stdlife="n/a","n/a",IF(X$3>(A3stdlife+$E107),(Input!$J$145*(1+rvanilla)^0.5)-SUM($J107:W107),(Input!$J$145*(1+rvanilla)^0.5)/A3stdlife)) -> 0.003783101889 | Y107: =IF(A3stdlife="n/a","n/a",IF(Y$3>(A3stdlife+$E107),(Input!$J$145*(1+rvanilla)^0.5)-SUM($J107:X107),(Input!$J$145*(1+rvanilla)^0.5)/A3stdlife)) -> 0.003783101889 | Z107: =IF(A3stdlife="n/a","n/a",IF(Z$3>(A3stdlife+$E107),(Input!$J$145*(1+rvanilla)^0.5)-SUM($J107:Y107),(Input!$J$145*(1+rvanilla)^0.5)/A3stdlife)) -> 0.003783101889 | AA107: =IF(A3stdlife="n/a","n/a",IF(AA$3>(A3stdlife+$E107),(Input!$J$145*(1+rvanilla)^0.5)-SUM($J107:Z107),(Input!$J$145*(1+rvanilla)^0.5)/A3stdlife)) -> 0.003783101889 | AB107: =IF(A3stdlife="n/a","n/a",IF(AB$3>(A3stdlife+$E107),(Input!$J$145*(1+rvanilla)^0.5)-SUM($J107:AA107),(Input!$J$145*(1+rvanilla)^0.5)/A3stdlife)) -> 0.003783101889 | AC107: =IF(A3stdlife="n/a","n/a",IF(AC$3>(A3stdlife+$E107),(Input!$J$145*(1+rvanilla)^0.5)-SUM($J107:AB107),(Input!$J$145*(1+rvanilla)^0.5)/A3stdlife)) -> 0.003783101889 | AD107: =IF(A3stdlife="n/a","n/a",IF(AD$3>(A3stdlife+$E107),(Input!$J$145*(1+rvanilla)^0.5)-SUM($J107:AC107),(Input!$J$145*(1+rvanilla)^0.5)/A3stdlife)) -> 0.003783101889 | AE107: =IF(A3stdlife="n/a","n/a",IF(AE$3>(A3stdlife+$E107),(Input!$J$145*(1+rvanilla)^0.5)-SUM($J107:AD107),(Input!$J$145*(1+rvanilla)^0.5)/A3stdlife)) -> 0.003783101889 | AF107: =IF(A3stdlife="n/a","n/a",IF(AF$3>(A3stdlife+$E107),(Input!$J$145*(1+rvanilla)^0.5)-SUM($J107:AE107),(Input!$J$145*(1+rvanilla)^0.5)/A3stdlife)) -> 0.003783101889 | AG107: =IF(A3stdlife="n/a","n/a",IF(AG$3>(A3stdlife+$E107),(Input!$J$145*(1+rvanilla)^0.5)-SUM($J107:AF107),(Input!$J$145*(1+rvanilla)^0.5)/A3stdlife)) -> 0.003783101889 | AH107: =IF(A3stdlife="n/a","n/a",IF(AH$3>(A3stdlife+$E107),(Input!$J$145*(1+rvanilla)^0.5)-SUM($J107:AG107),(Input!$J$145*(1+rvanilla)^0.5)/A3stdlife)) -> 0.003783101889 | AI107: =IF(A3stdlife="n/a","n/a",IF(AI$3>(A3stdlife+$E107),(Input!$J$145*(1+rvanilla)^0.5)-SUM($J107:AH107),(Input!$J$145*(1+rvanilla)^0.5)/A3stdlife)) -> 0.003783101889 | AJ107: =IF(A3stdlife="n/a","n/a",IF(AJ$3>(A3stdlife+$E107),(Input!$J$145*(1+rvanilla)^0.5)-SUM($J107:AI107),(Input!$J$145*(1+rvanilla)^0.5)/A3stdlife)) -> 0.003783101889 | AK107: =IF(A3stdlife="n/a","n/a",IF(AK$3>(A3stdlife+$E107),(Input!$J$145*(1+rvanilla)^0.5)-SUM($J107:AJ107),(Input!$J$145*(1+rvanilla)^0.5)/A3stdlife)) -> 0.003783101889 | AL107: =IF(A3stdlife="n/a","n/a",IF(AL$3>(A3stdlife+$E107),(Input!$J$145*(1+rvanilla)^0.5)-SUM($J107:AK107),(Input!$J$145*(1+rvanilla)^0.5)/A3stdlife)) -> 0.003783101889 | AM107: =IF(A3stdlife="n/a","n/a",IF(AM$3>(A3stdlife+$E107),(Input!$J$145*(1+rvanilla)^0.5)-SUM($J107:AL107),(Input!$J$145*(1+rvanilla)^0.5)/A3stdlife)) -> 0.003783101889 | AN107: =IF(A3stdlife="n/a","n/a",IF(AN$3>(A3stdlife+$E107),(Input!$J$145*(1+rvanilla)^0.5)-SUM($J107:AM107),(Input!$J$145*(1+rvanilla)^0.5)/A3stdlife)) -> 0.003783101889 | AO107: =IF(A3stdlife="n/a","n/a",IF(AO$3>(A3stdlife+$E107),(Input!$J$145*(1+rvanilla)^0.5)-SUM($J107:AN107),(Input!$J$145*(1+rvanilla)^0.5)/A3stdlife)) -> 0.003783101889 | AP107: =IF(A3stdlife="n/a","n/a",IF(AP$3>(A3stdlife+$E107),(Input!$J$145*(1+rvanilla)^0.5)-SUM($J107:AO107),(Input!$J$145*(1+rvanilla)^0.5)/A3stdlife)) -> 0.003783101889 | AQ107: =IF(A3stdlife="n/a","n/a",IF(AQ$3>(A3stdlife+$E107),(Input!$J$145*(1+rvanilla)^0.5)-SUM($J107:AP107),(Input!$J$145*(1+rvanilla)^0.5)/A3stdlife)) -> 0.003783101889 | AR107: =IF(A3stdlife="n/a","n/a",IF(AR$3>(A3stdlife+$E107),(Input!$J$145*(1+rvanilla)^0.5)-SUM($J107:AQ107),(Input!$J$145*(1+rvanilla)^0.5)/A3stdlife)) -> 0.003783101889 | AS107: =IF(A3stdlife="n/a","n/a",IF(AS$3>(A3stdlife+$E107),(Input!$J$145*(1+rvanilla)^0.5)-SUM($J107:AR107),(Input!$J$145*(1+rvanilla)^0.5)/A3stdlife)) -> 0.003783101889 | AT107: =IF(A3stdlife="n/a","n/a",IF(AT$3>(A3stdlife+$E107),(Input!$J$145*(1+rvanilla)^0.5)-SUM($J107:AS107),(Input!$J$145*(1+rvanilla)^0.5)/A3stdlife)) -> 0.003783101889 | AU107: =IF(A3stdlife="n/a","n/a",IF(AU$3>(A3stdlife+$E107),(Input!$J$145*(1+rvanilla)^0.5)-SUM($J107:AT107),(Input!$J$145*(1+rvanilla)^0.5)/A3stdlife)) -> 0.003783101889 | AV107: =IF(A3stdlife="n/a","n/a",IF(AV$3>(A3stdlife+$E107),(Input!$J$145*(1+rvanilla)^0.5)-SUM($J107:AU107),(Input!$J$145*(1+rvanilla)^0.5)/A3stdlife)) -> 0.003783101889 | AW107: =IF(A3stdlife="n/a","n/a",IF(AW$3>(A3stdlife+$E107),(Input!$J$145*(1+rvanilla)^0.5)-SUM($J107:AV107),(Input!$J$145*(1+rvanilla)^0.5)/A3stdlife)) -> 0.003783101889 | AX107: =IF(A3stdlife="n/a","n/a",IF(AX$3>(A3stdlife+$E107),(Input!$J$145*(1+rvanilla)^0.5)-SUM($J107:AW107),(Input!$J$145*(1+rvanilla)^0.5)/A3stdlife)) -> 0.003783101889 | AY107: =IF(A3stdlife="n/a","n/a",IF(AY$3>(A3stdlife+$E107),(Input!$J$145*(1+rvanilla)^0.5)-SUM($J107:AX107),(Input!$J$145*(1+rvanilla)^0.5)/A3stdlife)) -> 0.003783101889 | AZ107: =IF(A3stdlife="n/a","n/a",IF(AZ$3>(A3stdlife+$E107),(Input!$J$145*(1+rvanilla)^0.5)-SUM($J107:AY107),(Input!$J$145*(1+rvanilla)^0.5)/A3stdlife)) -> 0.003783101889 | BA107: =IF(A3stdlife="n/a","n/a",IF(BA$3>(A3stdlife+$E107),(Input!$J$145*(1+rvanilla)^0.5)-SUM($J107:AZ107),(Input!$J$145*(1+rvanilla)^0.5)/A3stdlife)) -> 0.003783101889 | BB107: =IF(A3stdlife="n/a","n/a",IF(BB$3>(A3stdlife+$E107),(Input!$J$145*(1+rvanilla)^0.5)-SUM($J107:BA107),(Input!$J$145*(1+rvanilla)^0.5)/A3stdlife)) -> 0.003783101889 | BC107: =IF(A3stdlife="n/a","n/a",IF(BC$3>(A3stdlife+$E107),(Input!$J$145*(1+rvanilla)^0.5)-SUM($J107:BB107),(Input!$J$145*(1+rvanilla)^0.5)/A3stdlife)) -> 0.003783101889 | BD107: =IF(A3stdlife="n/a","n/a",IF(BD$3>(A3stdlife+$E107),(Input!$J$145*(1+rvanilla)^0.5)-SUM($J107:BC107),(Input!$J$145*(1+rvanilla)^0.5)/A3stdlife)) -> 0.003783101889 | BE107: =IF(A3stdlife="n/a","n/a",IF(BE$3>(A3stdlife+$E107),(Input!$J$145*(1+rvanilla)^0.5)-SUM($J107:BD107),(Input!$J$145*(1+rvanilla)^0.5)/A3stdlife)) -> 0.003783101889 | BF107: =IF(A3stdlife="n/a","n/a",IF(BF$3>(A3stdlife+$E107),(Input!$J$145*(1+rvanilla)^0.5)-SUM($J107:BE107),(Input!$J$145*(1+rvanilla)^0.5)/A3stdlife)) -> 0.003783101889 | BG107: =IF(A3stdlife="n/a","n/a",IF(BG$3>(A3stdlife+$E107),(Input!$J$145*(1+rvanilla)^0.5)-SUM($J107:BF107),(Input!$J$145*(1+rvanilla)^0.5)/A3stdlife)) -> 0.003783101889 | BH107: =IF(A3stdlife="n/a","n/a",IF(BH$3>(A3stdlife+$E107),(Input!$J$145*(1+rvanilla)^0.5)-SUM($J107:BG107),(Input!$J$145*(1+rvanilla)^0.5)/A3stdlife)) -> 0.003783101889 | BI107: =IF(A3stdlife="n/a","n/a",IF(BI$3>(A3stdlife+$E107),(Input!$J$145*(1+rvanilla)^0.5)-SUM($J107:BH107),(Input!$J$145*(1+rvanilla)^0.5)/A3stdlife)) -> 1.387778781e-16
E108: 5 | L108: =IF(A3stdlife="n/a","n/a",IF(L$3>(A3stdlife+$E108),(Input!$K$145*(1+rvanilla)^0.5)-SUM($K108:K108),(Input!$K$145*(1+rvanilla)^0.5)/A3stdlife)) -> 0.003783101889 | M108: =IF(A3stdlife="n/a","n/a",IF(M$3>(A3stdlife+$E108),(Input!$K$145*(1+rvanilla)^0.5)-SUM($K108:L108),(Input!$K$145*(1+rvanilla)^0.5)/A3stdlife)) -> 0.003783101889 | N108: =IF(A3stdlife="n/a","n/a",IF(N$3>(A3stdlife+$E108),(Input!$K$145*(1+rvanilla)^0.5)-SUM($K108:M108),(Input!$K$145*(1+rvanilla)^0.5)/A3stdlife)) -> 0.003783101889 | O108: =IF(A3stdlife="n/a","n/a",IF(O$3>(A3stdlife+$E108),(Input!$K$145*(1+rvanilla)^0.5)-SUM($K108:N108),(Input!$K$145*(1+rvanilla)^0.5)/A3stdlife)) -> 0.003783101889 | P108: =IF(A3stdlife="n/a","n/a",IF(P$3>(A3stdlife+$E108),(Input!$K$145*(1+rvanilla)^0.5)-SUM($K108:O108),(Input!$K$145*(1+rvanilla)^0.5)/A3stdlife)) -> 0.003783101889 | Q108: =IF(A3stdlife="n/a","n/a",IF(Q$3>(A3stdlife+$E108),(Input!$K$145*(1+rvanilla)^0.5)-SUM($K108:P108),(Input!$K$145*(1+rvanilla)^0.5)/A3stdlife)) -> 0.003783101889 | R108: =IF(A3stdlife="n/a","n/a",IF(R$3>(A3stdlife+$E108),(Input!$K$145*(1+rvanilla)^0.5)-SUM($K108:Q108),(Input!$K$145*(1+rvanilla)^0.5)/A3stdlife)) -> 0.003783101889 | S108: =IF(A3stdlife="n/a","n/a",IF(S$3>(A3stdlife+$E108),(Input!$K$145*(1+rvanilla)^0.5)-SUM($K108:R108),(Input!$K$145*(1+rvanilla)^0.5)/A3stdlife)) -> 0.003783101889 | T108: =IF(A3stdlife="n/a","n/a",IF(T$3>(A3stdlife+$E108),(Input!$K$145*(1+rvanilla)^0.5)-SUM($K108:S108),(Input!$K$145*(1+rvanilla)^0.5)/A3stdlife)) -> 0.003783101889 | U108: =IF(A3stdlife="n/a","n/a",IF(U$3>(A3stdlife+$E108),(Input!$K$145*(1+rvanilla)^0.5)-SUM($K108:T108),(Input!$K$145*(1+rvanilla)^0.5)/A3stdlife)) -> 0.003783101889 | V108: =IF(A3stdlife="n/a","n/a",IF(V$3>(A3stdlife+$E108),(Input!$K$145*(1+rvanilla)^0.5)-SUM($K108:U108),(Input!$K$145*(1+rvanilla)^0.5)/A3stdlife)) -> 0.003783101889 | W108: =IF(A3stdlife="n/a","n/a",IF(W$3>(A3stdlife+$E108),(Input!$K$145*(1+rvanilla)^0.5)-SUM($K108:V108),(Input!$K$145*(1+rvanilla)^0.5)/A3stdlife)) -> 0.003783101889 | X108: =IF(A3stdlife="n/a","n/a",IF(X$3>(A3stdlife+$E108),(Input!$K$145*(1+rvanilla)^0.5)-SUM($K108:W108),(Input!$K$145*(1+rvanilla)^0.5)/A3stdlife)) -> 0.003783101889 | Y108: =IF(A3stdlife="n/a","n/a",IF(Y$3>(A3stdlife+$E108),(Input!$K$145*(1+rvanilla)^0.5)-SUM($K108:X108),(Input!$K$145*(1+rvanilla)^0.5)/A3stdlife)) -> 0.003783101889 | Z108: =IF(A3stdlife="n/a","n/a",IF(Z$3>(A3stdlife+$E108),(Input!$K$145*(1+rvanilla)^0.5)-SUM($K108:Y108),(Input!$K$145*(1+rvanilla)^0.5)/A3stdlife)) -> 0.003783101889 | AA108: =IF(A3stdlife="n/a","n/a",IF(AA$3>(A3stdlife+$E108),(Input!$K$145*(1+rvanilla)^0.5)-SUM($K108:Z108),(Input!$K$145*(1+rvanilla)^0.5)/A3stdlife)) -> 0.003783101889 | AB108: =IF(A3stdlife="n/a","n/a",IF(AB$3>(A3stdlife+$E108),(Input!$K$145*(1+rvanilla)^0.5)-SUM($K108:AA108),(Input!$K$145*(1+rvanilla)^0.5)/A3stdlife)) -> 0.003783101889 | AC108: =IF(A3stdlife="n/a","n/a",IF(AC$3>(A3stdlife+$E108),(Input!$K$145*(1+rvanilla)^0.5)-SUM($K108:AB108),(Input!$K$145*(1+rvanilla)^0.5)/A3stdlife)) -> 0.003783101889 | AD108: =IF(A3stdlife="n/a","n/a",IF(AD$3>(A3stdlife+$E108),(Input!$K$145*(1+rvanilla)^0.5)-SUM($K108:AC108),(Input!$K$145*(1+rvanilla)^0.5)/A3stdlife)) -> 0.003783101889 | AE108: =IF(A3stdlife="n/a","n/a",IF(AE$3>(A3stdlife+$E108),(Input!$K$145*(1+rvanilla)^0.5)-SUM($K108:AD108),(Input!$K$145*(1+rvanilla)^0.5)/A3stdlife)) -> 0.003783101889 | AF108: =IF(A3stdlife="n/a","n/a",IF(AF$3>(A3stdlife+$E108),(Input!$K$145*(1+rvanilla)^0.5)-SUM($K108:AE108),(Input!$K$145*(1+rvanilla)^0.5)/A3stdlife)) -> 0.003783101889 | AG108: =IF(A3stdlife="n/a","n/a",IF(AG$3>(A3stdlife+$E108),(Input!$K$145*(1+rvanilla)^0.5)-SUM($K108:AF108),(Input!$K$145*(1+rvanilla)^0.5)/A3stdlife)) -> 0.003783101889 | AH108: =IF(A3stdlife="n/a","n/a",IF(AH$3>(A3stdlife+$E108),(Input!$K$145*(1+rvanilla)^0.5)-SUM($K108:AG108),(Input!$K$145*(1+rvanilla)^0.5)/A3stdlife)) -> 0.003783101889 | AI108: =IF(A3stdlife="n/a","n/a",IF(AI$3>(A3stdlife+$E108),(Input!$K$145*(1+rvanilla)^0.5)-SUM($K108:AH108),(Input!$K$145*(1+rvanilla)^0.5)/A3stdlife)) -> 0.003783101889 | AJ108: =IF(A3stdlife="n/a","n/a",IF(AJ$3>(A3stdlife+$E108),(Input!$K$145*(1+rvanilla)^0.5)-SUM($K108:AI108),(Input!$K$145*(1+rvanilla)^0.5)/A3stdlife)) -> 0.003783101889 | AK108: =IF(A3stdlife="n/a","n/a",IF(AK$3>(A3stdlife+$E108),(Input!$K$145*(1+rvanilla)^0.5)-SUM($K108:AJ108),(Input!$K$145*(1+rvanilla)^0.5)/A3stdlife)) -> 0.003783101889 | AL108: =IF(A3stdlife="n/a","n/a",IF(AL$3>(A3stdlife+$E108),(Input!$K$145*(1+rvanilla)^0.5)-SUM($K108:AK108),(Input!$K$145*(1+rvanilla)^0.5)/A3stdlife)) -> 0.003783101889 | AM108: =IF(A3stdlife="n/a","n/a",IF(AM$3>(A3stdlife+$E108),(Input!$K$145*(1+rvanilla)^0.5)-SUM($K108:AL108),(Input!$K$145*(1+rvanilla)^0.5)/A3stdlife)) -> 0.003783101889 | AN108: =IF(A3stdlife="n/a","n/a",IF(AN$3>(A3stdlife+$E108),(Input!$K$145*(1+rvanilla)^0.5)-SUM($K108:AM108),(Input!$K$145*(1+rvanilla)^0.5)/A3stdlife)) -> 0.003783101889 | AO108: =IF(A3stdlife="n/a","n/a",IF(AO$3>(A3stdlife+$E108),(Input!$K$145*(1+rvanilla)^0.5)-SUM($K108:AN108),(Input!$K$145*(1+rvanilla)^0.5)/A3stdlife)) -> 0.003783101889 | AP108: =IF(A3stdlife="n/a","n/a",IF(AP$3>(A3stdlife+$E108),(Input!$K$145*(1+rvanilla)^0.5)-SUM($K108:AO108),(Input!$K$145*(1+rvanilla)^0.5)/A3stdlife)) -> 0.003783101889 | AQ108: =IF(A3stdlife="n/a","n/a",IF(AQ$3>(A3stdlife+$E108),(Input!$K$145*(1+rvanilla)^0.5)-SUM($K108:AP108),(Input!$K$145*(1+rvanilla)^0.5)/A3stdlife)) -> 0.003783101889 | AR108: =IF(A3stdlife="n/a","n/a",IF(AR$3>(A3stdlife+$E108),(Input!$K$145*(1+rvanilla)^0.5)-SUM($K108:AQ108),(Input!$K$145*(1+rvanilla)^0.5)/A3stdlife)) -> 0.003783101889 | AS108: =IF(A3stdlife="n/a","n/a",IF(AS$3>(A3stdlife+$E108),(Input!$K$145*(1+rvanilla)^0.5)-SUM($K108:AR108),(Input!$K$145*(1+rvanilla)^0.5)/A3stdlife)) -> 0.003783101889 | AT108: =IF(A3stdlife="n/a","n/a",IF(AT$3>(A3stdlife+$E108),(Input!$K$145*(1+rvanilla)^0.5)-SUM($K108:AS108),(Input!$K$145*(1+rvanilla)^0.5)/A3stdlife)) -> 0.003783101889 | AU108: =IF(A3stdlife="n/a","n/a",IF(AU$3>(A3stdlife+$E108),(Input!$K$145*(1+rvanilla)^0.5)-SUM($K108:AT108),(Input!$K$145*(1+rvanilla)^0.5)/A3stdlife)) -> 0.003783101889 | AV108: =IF(A3stdlife="n/a","n/a",IF(AV$3>(A3stdlife+$E108),(Input!$K$145*(1+rvanilla)^0.5)-SUM($K108:AU108),(Input!$K$145*(1+rvanilla)^0.5)/A3stdlife)) -> 0.003783101889 | AW108: =IF(A3stdlife="n/a","n/a",IF(AW$3>(A3stdlife+$E108),(Input!$K$145*(1+rvanilla)^0.5)-SUM($K108:AV108),(Input!$K$145*(1+rvanilla)^0.5)/A3stdlife)) -> 0.003783101889 | AX108: =IF(A3stdlife="n/a","n/a",IF(AX$3>(A3stdlife+$E108),(Input!$K$145*(1+rvanilla)^0.5)-SUM($K108:AW108),(Input!$K$145*(1+rvanilla)^0.5)/A3stdlife)) -> 0.003783101889 | AY108: =IF(A3stdlife="n/a","n/a",IF(AY$3>(A3stdlife+$E108),(Input!$K$145*(1+rvanilla)^0.5)-SUM($K108:AX108),(Input!$K$145*(1+rvanilla)^0.5)/A3stdlife)) -> 0.003783101889 | AZ108: =IF(A3stdlife="n/a","n/a",IF(AZ$3>(A3stdlife+$E108),(Input!$K$145*(1+rvanilla)^0.5)-SUM($K108:AY108),(Input!$K$145*(1+rvanilla)^0.5)/A3stdlife)) -> 0.003783101889 | BA108: =IF(A3stdlife="n/a","n/a",IF(BA$3>(A3stdlife+$E108),(Input!$K$145*(1+rvanilla)^0.5)-SUM($K108:AZ108),(Input!$K$145*(1+rvanilla)^0.5)/A3stdlife)) -> 0.003783101889 | BB108: =IF(A3stdlife="n/a","n/a",IF(BB$3>(A3stdlife+$E108),(Input!$K$145*(1+rvanilla)^0.5)-SUM($K108:BA108),(Input!$K$145*(1+rvanilla)^0.5)/A3stdlife)) -> 0.003783101889 | BC108: =IF(A3stdlife="n/a","n/a",IF(BC$3>(A3stdlife+$E108),(Input!$K$145*(1+rvanilla)^0.5)-SUM($K108:BB108),(Input!$K$145*(1+rvanilla)^0.5)/A3stdlife)) -> 0.003783101889 | BD108: =IF(A3stdlife="n/a","n/a",IF(BD$3>(A3stdlife+$E108),(Input!$K$145*(1+rvanilla)^0.5)-SUM($K108:BC108),(Input!$K$145*(1+rvanilla)^0.5)/A3stdlife)) -> 0.003783101889 | BE108: =IF(A3stdlife="n/a","n/a",IF(BE$3>(A3stdlife+$E108),(Input!$K$145*(1+rvanilla)^0.5)-SUM($K108:BD108),(Input!$K$145*(1+rvanilla)^0.5)/A3stdlife)) -> 0.003783101889 | BF108: =IF(A3stdlife="n/a","n/a",IF(BF$3>(A3stdlife+$E108),(Input!$K$145*(1+rvanilla)^0.5)-SUM($K108:BE108),(Input!$K$145*(1+rvanilla)^0.5)/A3stdlife)) -> 0.003783101889 | BG108: =IF(A3stdlife="n/a","n/a",IF(BG$3>(A3stdlife+$E108),(Input!$K$145*(1+rvanilla)^0.5)-SUM($K108:BF108),(Input!$K$145*(1+rvanilla)^0.5)/A3stdlife)) -> 0.003783101889 | BH108: =IF(A3stdlife="n/a","n/a",IF(BH$3>(A3stdlife+$E108),(Input!$K$145*(1+rvanilla)^0.5)-SUM($K108:BG108),(Input!$K$145*(1+rvanilla)^0.5)/A3stdlife)) -> 0.003783101889 | BI108: =IF(A3stdlife="n/a","n/a",IF(BI$3>(A3stdlife+$E108),(Input!$K$145*(1+rvanilla)^0.5)-SUM($K108:BH108),(Input!$K$145*(1+rvanilla)^0.5)/A3stdlife)) -> 0.003783101889
